Workbook

Sheet Project Setup
A1: Interlocking Concrete Pavement Institute
A2: Lifecycle Cost Analysis Tool
A5: Select options for lifecycle cost analysis:
A6: PAVEMENT TYPES
A7: Permeable Interlocking Concrete Pavement (PICP)
A8: Conventional Interlocking Concrete Pavement (ICP)
A9: Asphalt Concrete Pavement (ACP)
A10: Portland Cement Concrete Pavement (PCCP)
A14: OFF-ROAD CONSIDERATIONS
A15: Stormwater Management Pond
A16: Combined Sewer Overflow (CSO)
A17: Pollutant Removal
A18: Winter Maintenance
A19: Paint Striping
A20: Traffic Calming
A21: Impervious Surface Fees
A22: Utility Cut Restoration

Sheet Global Inputs
A1: Interlocking Concrete Pavement Institute
A2: Lifecycle Cost Analysis Tool
A4: Global Design Inputs
A6: Project Name | B6: Sample Subdivision | H6: Item | I6: Qty | J6: Unit
A7: Location | B7: Sample Town | H7: Pavement Area | I7: 48000 | J7: sq. ft.
A9: Discount Rate | B9: 0.04
A10: Analysis Period | B10: 40 | C10: years
A11: Construction Year | B11: 2019
A12: Project Type | B12: Roadway
B107: Stormwater Management Pond | C107: =SUMIF($A46:$A62,$B$107,$J46:$J61) -> 0 | D107: =SUMIF($A66:$A94,$B$107,$N66:$N94) -> 0 | E107: =SUM($C$107:$D$107) -> 0
B108: Combined Sewer Overflow (CSO) | C108: =SUMIF($A46:$A62,$B$108,$J46:$J61) -> 0 | D108: =SUMIF($A66:$A94,$B$108,$N66:$N94) -> 0 | E108: =SUM($C$108:$D$108) -> 0
B109: Pollutant Removal | C109: =SUMIF($A46:$A62,$B$109,$J46:$J61) -> 0 | D109: =SUMIF($A66:$A94,$B$109,$N66:$N94) -> 0 | E109: =SUM($C$109:$D$109) -> 0
B110: Winter Maintenance | C110: =SUMIF($A46:$A62,$B$110,$J46:$J61) -> 0 | D110: =SUMIF($A66:$A94,$B$110,$N66:$N94) -> 0 | E110: =SUM($C$110:$D$110) -> 0
B111: Paint Striping | C111: =SUMIF($A46:$A62,$B$111,$J46:$J61) -> 0 | D111: =SUMIF($A66:$A94,$B$111,$N66:$N94) -> 0 | E111: =SUM($C$111:$D$111) -> 0
B112: Traffic Calming | C112: =SUMIF($A46:$A62,$B$112,$J46:$J61) -> 0 | D112: =SUMIF($A66:$A94,$B$112,$N66:$N94) -> 0 | E112: =SUM($C$112:$D$112) -> 0
B113: Impervious Surface Fees | C113: =SUMIF($A46:$A62,$B$113,$J46:$J61) -> 0 | D113: =SUMIF($A66:$A94,$B$113,$N66:$N94) -> 0 | E113: =SUM($C$113:$D$113) -> 0
B114: Utility Cut Restoration | C114: =SUMIF($A46:$A62,$B$114,$J46:$J61) -> 0 | D114: =SUMIF($A66:$A94,$B$114,$N66:$N94) -> 0 | E114: =SUM($C$114:$D$114) -> 0
C115: =SUM($C$107:$C$114) -> 0 | D115: =SUM($D$107:$D$114) -> 0 | E115: =SUM($C$115:$D$115) -> 0

Sheet Temp Sheet (hidden)
A1: 1 | B1: 2 | C1: 3 | D1: 4 | E1: 5 | F1: 6 | G1: 7 | H1: 8 | I1: 9 | J1: 10 | K1: 11 | L1: 12 | M1: 13 | N1: 14 | O1: 15 | P1: 16 | Q1: 17 | R1: 18 | S1: 19 | T1: 20 | U1: 21 | V1: 22 | W1: 23 | X1: 24 | Y1: 25 | Z1: 26 | AA1: 27 | AB1: 28 | AC1: 29 | AD1: 30 | AE1: 31 | AF1: 32 | AG1: 33 | AH1: 34 | AI1: 35 | AJ1: 36 | AK1: 37 | AL1: 38 | AM1: 39 | AN1: 40 | AO1: 41 | AP1: 42 | AQ1: 43 | AR1: 44 | AS1: 45 | AT1: 46 | AU1: 47 | AV1: 48 | AW1: 49 | AX1: 50 | AY1: 51 | AZ1: 52 | BA1: 53 | BB1: 54 | BC1: 55 | BD1: 56 | BE1: 57 | BF1: 58 | BG1: 59 | BH1: 60
C2: 0 | D2: 1 | E2: 2 | F2: 3 | G2: 4 | H2: 5 | I2: 6 | J2: 7 | K2: 8 | L2: 9 | N2: 10 | AR2: Default Pavement Unit Costs | BC2: Default Off-Road Unit Costs
A3: Category | C3: Validation Category | D3: Category | E3: Cost Type | F3: Description | G3: Unit Cost | H3: Unit | I3: Quantity Multiplier | J3: Density | K3: Density Units | M3: Validation Category | N3: Category | O3: Cost Type | P3: Item Description | Q3: Unit Cost | R3: Unit | S3: Quantity Multiplier | U3: Off-Road Categories | W3: Distribution Type | Y3: List_QuantityItems | AA3: List_Units | AD3: List_DimensionalUnits | AF3: List_ConversionFactors | AL3: List_ConversionFactorsToVolume | AR3: Category | AS3: Cost Type | AT3: Item Description | AU3: Unit Cost | AV3: Unit | AW3: Quantity Multiplier | AX3: Material Density | BC3: Category | BD3: Cost Type | BE3: Item Description | BF3: Unit Cost | BG3: Unit | BH3: Quantity Multiplier
A4: Asphalt Pavement | C4: =CONCATENATE(D4,"_",F4) -> Asphalt Pavement_Asphalt Concrete (Generic) | D4: Asphalt Pavement | E4: Capital | F4: Asphalt Concrete (Generic) | G4: 110 | H4: ton | I4: 1 | J4: 142 | K4: =CONCATENATE("lbs","_","cu. ft.") -> lbs_cu. ft. | M4: =CONCATENATE(N4,"_",P4) -> Stormwater Management Pond_Land Value | N4: Stormwater Management Pond | O4: Capital | P4: Land Value | Q4: 75000 | R4: acre | S4: 1 | U4: Combined Sewer Overflow (CSO) | W4: One Time | Y4: Pavement Area | AA4: in. | AB4: Linear | AD4: in. | AF4: in._in. | AG4: in. | AH4: 1 | AI4: in. | AL4: in.*sq. in. | AM4: in. | AN4: in. | AO4: 1 | AP4: cu. in. | AR4: Interlocking Concrete Pavement | AS4: Capital | AT4: Permeable Paving Stones and Bedding | AU4: 6.5 | AV4: sq. ft. | AW4: 1 | BC4: Stormwater Management Pond | BD4: Capital | BE4: Land Value | BF4: 4725 | BG4: acre | BH4: 1
A5: Granular Base/Subbase | C5: =CONCATENATE(D5,"_",F5) -> Asphalt Pavement_Asphalt Surface Course | D5: Asphalt Pavement | E5: Capital | F5: Asphalt Surface Course | G5: 110 | H5: ton | I5: 1 | J5: 145 | K5: =CONCATENATE("lbs","_","cu. ft.") -> lbs_cu. ft. | M5: =CONCATENATE(N5,"_",P5) -> Stormwater Management Pond_Excavation | N5: Stormwater Management Pond | O5: Capital | P5: Excavation | Q5: 10 | R5: sq. yd. | S5: 1 | U5: Impervious Surface Fees | W5: One Time Multiyear | AA5: ft. | AB5: Linear | AD5: ft. | AF5: ft._in. | AG5: ft. | AH5: 12 | AI5: in. | AL5: ft.*sq. in. | AM5: ft. | AN5: in. | AO5: 12 | AP5: cu. in. | AR5: Interlocking Concrete Pavement | AS5: Capital | AT5: Interlocking Concrete Paving Stones and Bedding | AU5: 6.5 | AV5: sq. ft. | AW5: 1 | BC5: Stormwater Management Pond | BD5: Capital | BE5: Excavation | BF5: 10 | BG5: sq. yd. | BH5: 1
A6: Interlocking Concrete Pavement | C6: =CONCATENATE(D6,"_",F6) -> Asphalt Pavement_Asphalt Base Course | D6: Asphalt Pavement | E6: Capital | F6: Asphalt Base Course | G6: 105 | H6: ton | I6: 1 | J6: 140 | K6: =CONCATENATE("lbs","_","cu. ft.") -> lbs_cu. ft. | M6: =CONCATENATE(N6,"_",P6) -> Stormwater Management Pond_Hauling and Disposal | N6: Stormwater Management Pond | O6: Capital | P6: Hauling and Disposal | Q6: 10 | R6: sq. yd. | S6: 1 | U6: Paint Striping | W6: Uniform | AA6: yd. | AB6: Linear | AD6: yd. | AF6: yd._in. | AG6: yd. | AH6: 36 | AI6: in. | AL6: yd.*sq. in. | AM6: yd. | AN6: in. | AO6: 36 | AP6: cu. in. | AR6: Interlocking Concrete Pavement | AS6: Maint. & Rehab. | AT6: Replace Cracked Pavers | AU6: 6 | AV6: sq. ft. | AW6: 1 | BC6: Stormwater Management Pond | BD6: Capital | BE6: Hauling and Disposal | BF6: 10 | BG6: sq. yd. | BH6: 1
A7: PCC Pavement | C7: =CONCATENATE(D7,"_",F7) -> Asphalt Pavement_Rout and Seal Cracks | D7: Asphalt Pavement | E7: Maint. & Rehab. | F7: Rout and Seal Cracks | G7: 2 | H7: ft. | I7: 1 | M7: =CONCATENATE(N7,"_",P7) -> Stormwater Management Pond_Grading | N7: Stormwater Management Pond | O7: Capital | P7: Grading | Q7: 1.5 | R7: sq. yd. | S7: 1 | U7: Pollutant Removal | W7: Ramp | AA7: mi. | AB7: Linear | AD7: mi. | AF7: mi._in. | AG7: mi. | AH7: 63360 | AI7: in. | AL7: mi.*sq. in. | AM7: mi. | AN7: in. | AO7: 63360 | AP7: cu. in. | AR7: Interlocking Concrete Pavement | AS7: Maint. & Rehab. | AT7: Replace Worn/Rutted Pavers (wheelpath) | AU7: 12 | AV7: sq. ft. | AW7: 1 | BC7: Stormwater Management Pond | BD7: Capital | BE7: Grading | BF7: 1.5 | BG7: sq. yd. | BH7: 1
C8: =CONCATENATE(D8,"_",F8) -> Asphalt Pavement_Asphalt Machine Patching | D8: Asphalt Pavement | E8: Maint. & Rehab. | F8: Asphalt Machine Patching | G8: 10 | H8: sq. ft. | I8: 1 | M8: =CONCATENATE(N8,"_",P8) -> Stormwater Management Pond_Inlet Structure | N8: Stormwater Management Pond | O8: Capital | P8: Inlet Structure | Q8: 2000 | R8: each | S8: 1 | U8: Stormwater Management Pond | W8: Periodic | AA8: lane-ft. | AB8: Linear | AD8: lane-ft. | AF8: in._ft. | AG8: in. | AH8: 0.08333333333 | AI8: ft. | AL8: in.*sq. ft. | AM8: in. | AN8: ft. | AO8: 0.08333333333 | AP8: cu. ft. | AR8: Interlocking Concrete Pavement | AS8: Maint. & Rehab. | AT8: Restorative Surface Vacuum Sweeping | AU8: 8000 | AV8: acre | AW8: 1 | BC8: Stormwater Management Pond | BD8: Capital | BE8: Inlet Structure | BF8: 2000 | BG8: each | BH8: 1
C9: =CONCATENATE(D9,"_",F9) -> Asphalt Pavement_Mill and Overlay (2 in) | D9: Asphalt Pavement | E9: Maint. & Rehab. | F9: Mill and Overlay (2 in) | G9: 8 | H9: sq. yd. | I9: 1 | M9: =CONCATENATE(N9,"_",P9) -> Stormwater Management Pond_Overflow Structure | N9: Stormwater Management Pond | O9: Capital | P9: Overflow Structure | Q9: 3500 | R9: each | S9: 1 | U9: Traffic Calming | W9: Periodic Finite | AA9: lane-mi. | AB9: Linear | AD9: lane-mi. | AF9: ft._ft. | AG9: ft. | AH9: 1 | AI9: ft. | AL9: ft.*sq. ft. | AM9: ft. | AN9: ft. | AO9: 1 | AP9: cu. ft. | AR9: PCC Pavement | AS9: Capital | AT9: Portland Cement Concrete | AU9: 75 | AV9: sq. yd. | AW9: 1 | BC9: Stormwater Management Pond | BD9: Capital | BE9: Overflow Structure | BF9: 3500 | BG9: each | BH9: 1
C10: =CONCATENATE(D10,"_",F10) -> Asphalt Pavement_Mill and Overlay (3-1/2 in) | D10: Asphalt Pavement | E10: Maint. & Rehab. | F10: Mill and Overlay (3-1/2 in) | G10: 16 | H10: sq. yd. | I10: 1 | M10: =CONCATENATE(N10,"_",P10) -> Stormwater Management Pond_Corrugated Pipe | N10: Stormwater Management Pond | O10: Capital | P10: Corrugated Pipe | Q10: 17.55 | R10: ft. | S10: 1 | U10: Utility Cut Restoration | W10: Multiyear Periodic | AA10: sq. in. | AB10: Area | AD10: sq. in. | AF10: yd._ft. | AG10: yd. | AH10: 3 | AI10: ft. | AL10: yd.*sq. ft. | AM10: yd. | AN10: ft. | AO10: 3 | AP10: cu. ft. | AR10: PCC Pavement | AS10: Maint. & Rehab. | AT10: Reseal Joints | AU10: 10 | AV10: yd. | AW10: 1 | BC10: Stormwater Management Pond | BD10: Capital | BE10: Corrugated Pipe | BF10: 17.55 | BG10: ft. | BH10: 1
C11: =CONCATENATE(D11,"_",F11) -> Granular Base/Subbase_Granular Base | D11: Granular Base/Subbase | E11: Capital | F11: Granular Base | G11: 34.2 | H11: cu. yd. | I11: 1 | J11: 135 | K11: =CONCATENATE("lbs","_","cu. yd.") -> lbs_cu. yd. | M11: =CONCATENATE(N11,"_",P11) -> Stormwater Management Pond_Concrete Pipe | N11: Stormwater Management Pond | O11: Capital | P11: Concrete Pipe | Q11: 30 | R11: ft. | S11: 1 | U11: Winter Maintenance | AA11: sq. ft. | AB11: Area | AD11: sq. ft. | AF11: mi._ft. | AG11: mi. | AH11: 5280 | AI11: ft. | AL11: mi.*sq. ft. | AM11: mi. | AN11: ft. | AO11: 5280 | AP11: cu. ft. | AR11: PCC Pavement | AS11: Maint. & Rehab. | AT11: Partial Depth PCC Repair | AU11: 350 | AV11: sq. yd. | AW11: 1 | BC11: Stormwater Management Pond | BD11: Capital | BE11: Concrete Pipe | BF11: 29.5 | BG11: ft. | BH11: 1
C12: =CONCATENATE(D12,"_",F12) -> Granular Base/Subbase_Granular Subbase | D12: Granular Base/Subbase | E12: Capital | F12: Granular Subbase | G12: 34.2 | H12: cu. yd. | I12: 1 | J12: 130 | K12: =CONCATENATE("lbs","_","cu. yd.") -> lbs_cu. yd. | M12: =CONCATENATE(N12,"_",P12) -> Stormwater Management Pond_Sod | N12: Stormwater Management Pond | O12: Capital | P12: Sod | Q12: 4.5 | R12: sq. yd. | S12: 1 | AA12: sq. yd. | AB12: Area | AD12: sq. yd. | AF12: in._yd. | AG12: in. | AH12: 0.02777777778 | AI12: yd. | AL12: in.*sq. yd. | AM12: in. | AN12: yd. | AO12: 0.02777777778 | AP12: cu. yd. | AR12: PCC Pavement | AS12: Maint. & Rehab. | AT12: Full Depth Repair | AU12: 120 | AV12: sq. yd. | AW12: 1 | BC12: Stormwater Management Pond | BD12: Capital | BE12: Sod | BF12: 4.5 | BG12: sq. yd. | BH12: 1
C13: =CONCATENATE(D13,"_",F13) -> Granular Base/Subbase_ASTM No. 57 Base | D13: Granular Base/Subbase | E13: Capital | F13: ASTM No. 57 Base | G13: 34.2 | H13: cu. yd. | I13: 1 | J13: 135 | K13: =CONCATENATE("lbs","_","cu. yd.") -> lbs_cu. yd. | M13: =CONCATENATE(N13,"_",P13) -> Stormwater Management Pond_Erosion | N13: Stormwater Management Pond | O13: Maint. & Rehab. | P13: Erosion | Q13: 75 | R13: sq. yd. | S13: 1 | AA13: sq. mi. | AB13: Area | AD13: sq. mi. | AF13: ft._yd. | AG13: ft. | AH13: 0.3333333333 | AI13: yd. | AL13: ft.*sq. yd. | AM13: ft. | AN13: yd. | AO13: 0.3333333333 | AP13: cu. yd. | AR13: Asphalt Pavement | AS13: Capital | AT13: Asphalt Concrete (Generic) | AU13: 110 | AV13: ton | AW13: 1 | AX13: 142 | AY13: lbs | AZ13: / | BA13: cu. ft. | BC13: Stormwater Management Pond | BD13: Maint. & Rehab. | BE13: Erosion | BF13: 75 | BG13: sq. yd. | BH13: 1
C14: =CONCATENATE(D14,"_",F14) -> Granular Base/Subbase_ASTM No. 2 Subbase | D14: Granular Base/Subbase | E14: Capital | F14: ASTM No. 2 Subbase | G14: 34.2 | H14: cu. yd. | I14: 1 | J14: 130 | K14: =CONCATENATE("lbs","_","cu. yd.") -> lbs_cu. yd. | M14: =CONCATENATE(N14,"_",P14) -> Stormwater Management Pond_Site Protection/Sediment Control | N14: Stormwater Management Pond | O14: Maint. & Rehab. | P14: Site Protection/Sediment Control | Q14: 125 | R14: each | S14: 1 | AA14: acre | AB14: Area | AD14: acre | AF14: yd._yd. | AG14: yd. | AH14: 1 | AI14: yd. | AL14: yd.*sq. yd. | AM14: yd. | AN14: yd. | AO14: 1 | AP14: cu. yd. | AR14: Asphalt Pavement | AS14: Capital | AT14: Asphalt Surface Course | AU14: 110 | AV14: ton | AW14: 1 | AX14: 145 | AY14: lbs | AZ14: / | BA14: cu. ft. | BC14: Stormwater Management Pond | BD14: Maint. & Rehab. | BE14: Site Protection/Sediment Control | BF14: 125 | BG14: each | BH14: 1
C15: =CONCATENATE(D15,"_",F15) -> Interlocking Concrete Pavement_Permeable Paving Stones and Bedding | D15: Interlocking Concrete Pavement | E15: Capital | F15: Permeable Paving Stones and Bedding | G15: 6.5 | H15: sq. ft. | I15: 1 | M15: =CONCATENATE(N15,"_",P15) -> Stormwater Management Pond_Soil Preparation | N15: Stormwater Management Pond | O15: Maint. & Rehab. | P15: Soil Preparation | Q15: 5 | R15: sq. yd. | S15: 1 | AA15: cu. in. | AB15: Volume | AD15: cu. in. | AF15: mi._yd. | AG15: mi. | AH15: 1760 | AI15: yd. | AL15: mi.*sq. yd. | AM15: mi. | AN15: yd. | AO15: 1760 | AP15: cu. yd. | AR15: Asphalt Pavement | AS15: Capital | AT15: Asphalt Base Course | AU15: 105 | AV15: ton | AW15: 1 | AX15: 140 | AY15: lbs | AZ15: / | BA15: cu. ft. | BC15: Stormwater Management Pond | BD15: Maint. & Rehab. | BE15: Soil Preparation | BF15: 5 | BG15: sq. yd. | BH15: 1
C16: =CONCATENATE(D16,"_",F16) -> Interlocking Concrete Pavement_Interlocking Concrete Paving Stones and Bedding | D16: Interlocking Concrete Pavement | E16: Capital | F16: Interlocking Concrete Paving Stones and Bedding | G16: 6.5 | H16: sq. ft. | I16: 1 | M16: =CONCATENATE(N16,"_",P16) -> Stormwater Management Pond_Inspection | N16: Stormwater Management Pond | O16: Maint. & Rehab. | P16: Inspection | Q16: 125 | R16: each | S16: 1 | AA16: cu. ft. | AB16: Volume | AD16: cu. ft. | AF16: in._mi. | AG16: in. | AH16: 1.578282828e-05 | AI16: mi. | AL16: in.*sq. mi. | AM16: in. | AN16: mi. | AO16: 111513600 | AP16: cu. yd. | AR16: Asphalt Pavement | AS16: Maint. & Rehab. | AT16: Rout and Seal Cracks | AU16: 2 | AV16: ft. | AW16: 1 | BC16: Stormwater Management Pond | BD16: Maint. & Rehab. | BE16: Inspection | BF16: 125 | BG16: each | BH16: 1
C17: =CONCATENATE(D17,"_",F17) -> Interlocking Concrete Pavement_Replace Cracked Pavers | D17: Interlocking Concrete Pavement | E17: Maint. & Rehab. | F17: Replace Cracked Pavers | G17: 6 | H17: sq. ft. | I17: 1 | M17: =CONCATENATE(N17,"_",P17) -> Stormwater Management Pond_Sod | N17: Stormwater Management Pond | O17: Maint. & Rehab. | P17: Sod | Q17: 4.5 | R17: sq. yd. | S17: 1 | W17: Periodic Increasing | AA17: cu. yd. | AB17: Volume | AD17: cu. yd. | AF17: ft._mi. | AG17: ft. | AH17: 0.0001893939394 | AI17: mi. | AL17: ft.*sq. mi. | AM17: ft. | AN17: mi. | AO17: 9292800 | AP17: cu. yd. | AR17: Asphalt Pavement | AS17: Maint. & Rehab. | AT17: Asphalt Machine Patching | AU17: 10 | AV17: sq. ft. | AW17: 1 | BC17: Stormwater Management Pond | BD17: Maint. & Rehab. | BE17: Sod | BF17: 4.5 | BG17: sq. yd. | BH17: 1
C18: =CONCATENATE(D18,"_",F18) -> Interlocking Concrete Pavement_Replace Worn/Rutted Pavers (wheelpath) | D18: Interlocking Concrete Pavement | E18: Maint. & Rehab. | F18: Replace Worn/Rutted Pavers (wheelpath) | G18: 12 | H18: sq. ft. | I18: 1 | M18: =CONCATENATE(N18,"_",P18) -> Stormwater Management Pond_Debris Removal | N18: Stormwater Management Pond | O18: Maint. & Rehab. | P18: Debris Removal | Q18: 100 | R18: each | S18: 1 | W18: Periodic Declining | AA18: each | AB18: Nondimensional | AD18: ton | AF18: yd._mi. | AG18: yd. | AH18: 0.0005681818182 | AI18: mi. | AL18: yd.*sq. mi. | AM18: yd. | AN18: mi. | AO18: 3097600 | AP18: cu. yd. | AR18: Asphalt Pavement | AS18: Maint. & Rehab. | AT18: Mill and Overlay (2 in) | AU18: 8 | AV18: sq. yd. | AW18: 1 | BC18: Stormwater Management Pond | BD18: Maint. & Rehab. | BE18: Debris Removal | BF18: 100 | BG18: each | BH18: 1
C19: =CONCATENATE(D19,"_",F19) -> Interlocking Concrete Pavement_Restorative Surface Vacuum Sweeping | D19: Interlocking Concrete Pavement | E19: Maint. & Rehab. | F19: Restorative Surface Vacuum Sweeping | G19: 8000 | H19: acre | I19: 1 | M19: =CONCATENATE(N19,"_",P19) -> Stormwater Management Pond_Remove Invasive Plants | N19: Stormwater Management Pond | O19: Maint. & Rehab. | P19: Remove Invasive Plants | Q19: 500 | R19: each | S19: 1 | AA19: monthly | AB19: Nondimensional | AD19: lbs | AF19: mi._mi. | AG19: mi. | AH19: 1 | AI19: mi. | AL19: mi.*sq. mi. | AM19: mi. | AN19: mi. | AO19: 5451776000 | AP19: cu. yd. | AR19: Asphalt Pavement | AS19: Maint. & Rehab. | AT19: Mill and Overlay (3-1/2 in) | AU19: 16 | AV19: sq. yd. | AW19: 1 | BC19: Stormwater Management Pond | BD19: Maint. & Rehab. | BE19: Remove Invasive Plants | BF19: 500 | BG19: each | BH19: 1
C20: =CONCATENATE(D20,"_",F20) -> Interlocking Concrete Pavement_Routine Preventive Maintenance Vacuuming | D20: Interlocking Concrete Pavement | E20: Maint. & Rehab. | F20: Routine Preventive Maintenance Vacuuming | G20: 800 | H20: acre | I20: 1 | M20: =CONCATENATE(N20,"_",P20) -> Stormwater Management Pond_Mowing | N20: Stormwater Management Pond | O20: Maint. & Rehab. | P20: Mowing | Q20: 150 | R20: each | S20: 1 | AA20: annual | AB20: Nondimensional | AD20: acre-ft. | AF20: lane-ft._lane-mi. | AG20: lane-ft. | AH20: 0.0001893939394 | AI20: lane-mi. | AL20: in.*acre | AM20: in. | AN20: acre | AO20: 0.08333333333 | AP20: acre-ft. | AR20: Granular Base/Subbase | AS20: Capital | AT20: Granular Base | AU20: 34.2 | AV20: cu. yd. | AW20: 1 | AX20: 135 | AY20: lbs | AZ20: / | BA20: cu. yd. | BC20: Stormwater Management Pond | BD20: Maint. & Rehab. | BE20: Mowing | BF20: 150 | BG20: each | BH20: 1
C21: =CONCATENATE(D21,"_",F21) -> PCC Pavement_Portland Cement Concrete | D21: PCC Pavement | E21: Capital | F21: Portland Cement Concrete | G21: 75 | H21: sq. yd. | I21: 1 | M21: =CONCATENATE(N21,"_",P21) -> Stormwater Management Pond_Sediment Removal from Pond | N21: Stormwater Management Pond | O21: Maint. & Rehab. | P21: Sediment Removal from Pond | Q21: 390 | R21: cu. yd. | S21: 1 | AA21: lump sum | AB21: Nondimensional | AD21: gal. | AF21: lane-mi._lane-ft. | AG21: lane-mi. | AH21: 5280 | AI21: lane-ft. | AL21: ft.*acre | AM21: ft. | AN21: acre | AO21: 1 | AP21: acre-ft. | AR21: Granular Base/Subbase | AS21: Capital | AT21: Granular Subbase | AU21: 34.2 | AV21: cu. yd. | AW21: 1 | AX21: 130 | AY21: lbs | AZ21: / | BA21: cu. yd. | BC21: Stormwater Management Pond | BD21: Maint. & Rehab. | BE21: Sediment Removal from Pond | BF21: 390 | BG21: cu. yd. | BH21: 1
C22: =CONCATENATE(D22,"_",F22) -> PCC Pavement_Reseal Joints | D22: PCC Pavement | E22: Maint. & Rehab. | F22: Reseal Joints | G22: 10 | H22: yd. | I22: 1 | M22: =CONCATENATE(N22,"_",P22) -> Stormwater Management Pond_Sediment Removal Setup | N22: Stormwater Management Pond | O22: Maint. & Rehab. | P22: Sediment Removal Setup | Q22: 7600 | R22: each | S22: 1 | AA22: percent | AB22: Percentage | AF22: sq. in._sq. in. | AG22: sq. in. | AH22: 1 | AI22: sq. in. | AL22: yd.*acre | AM22: yd. | AN22: acre | AO22: 3 | AP22: acre-ft. | AR22: Granular Base/Subbase | AS22: Capital | AT22: ASTM No. 57 Base | AU22: 34.2 | AV22: cu. yd. | AW22: 1 | AX22: 135 | AY22: lbs | AZ22: / | BA22: cu. yd. | BC22: Stormwater Management Pond | BD22: Maint. & Rehab. | BE22: Sediment Removal Setup | BF22: 7600 | BG22: each | BH22: 1
C23: =CONCATENATE(D23,"_",F23) -> PCC Pavement_Partial Depth PCC Repair | D23: PCC Pavement | E23: Maint. & Rehab. | F23: Partial Depth PCC Repair | G23: 350 | H23: sq. yd. | I23: 1 | M23: =CONCATENATE(N23,"_",P23) -> Combined Sewer Overflow (CSO)_Plant Capital Cost/gallon/annually | N23: Combined Sewer Overflow (CSO) | O23: Capital | P23: Plant Capital Cost/gallon/annually | Q23: 4.5 | R23: gal. | S23: 1 | AA23: ton | AB23: Mass | AF23: sq. ft._sq. in. | AG23: sq. ft. | AH23: 144 | AI23: sq. in. | AL23: mi.*acre | AM23: mi. | AN23: acre | AO23: 5280 | AP23: acre-ft. | AR23: Granular Base/Subbase | AS23: Capital | AT23: ASTM No. 2 Subbase | AU23: 34.2 | AV23: cu. yd. | AW23: 1 | AX23: 130 | AY23: lbs | AZ23: / | BA23: cu. yd. | BC23: Combined Sewer Overflow (CSO) | BD23: Capital | BE23: Plant Capital Cost/gallon/annually | BF23: 4.5 | BG23: gal. | BH23: 1
C24: =CONCATENATE(D24,"_",F24) -> PCC Pavement_Full Depth Repair | D24: PCC Pavement | E24: Maint. & Rehab. | F24: Full Depth Repair | G24: 120 | H24: sq. yd. | I24: 1 | M24: =CONCATENATE(N24,"_",P24) -> Combined Sewer Overflow (CSO)_Plant Operating Cost/annually | N24: Combined Sewer Overflow (CSO) | O24: Maint. & Rehab. | P24: Plant Operating Cost/annually | Q24: 1.5 | R24: gal. | S24: 1 | AA24: lbs | AB24: Mass | AF24: sq. yd._sq. in. | AG24: sq. yd. | AH24: 1296 | AI24: sq. in. | BC24: Combined Sewer Overflow (CSO) | BD24: Maint. & Rehab. | BE24: Plant Operating Cost/annually | BF24: 1.5 | BG24: gal. | BH24: 1
M25: =CONCATENATE(N25,"_",P25) -> Pollutant Removal_Tier 1 Pollutant Level Target (M.G. per day) | N25: Pollutant Removal | O25: Maint. & Rehab. | P25: Tier 1 Pollutant Level Target (M.G. per day) | Q25: 5850 | R25: each | S25: 1 | AA25: acre-ft. | AB25: Volume | AF25: sq. mi._sq. in. | AG25: sq. mi. | AH25: 4014489600 | AI25: sq. in. | BC25: Pollutant Removal | BD25: Maint. & Rehab. | BE25: Tier 1 Pollutant Level Target (M.G. per day) | BF25: 5850 | BG25: each | BH25: 1
M26: =CONCATENATE(N26,"_",P26) -> Pollutant Removal_Tier 2 Pollutant Level Target (M.G. per day) | N26: Pollutant Removal | O26: Maint. & Rehab. | P26: Tier 2 Pollutant Level Target (M.G. per day) | Q26: 1350 | R26: each | S26: 1 | AA26: gal. | AB26: Volume | AF26: acre_sq. in. | AG26: acre | AH26: 6272640 | AI26: sq. in. | BC26: Pollutant Removal | BD26: Maint. & Rehab. | BE26: Tier 2 Pollutant Level Target (M.G. per day) | BF26: 1350 | BG26: each | BH26: 1
M27: =CONCATENATE(N27,"_",P27) -> Winter Maintenance_Conventional Annual Snow Clearing/Salting/Sanding (per lane-mile) | N27: Winter Maintenance | O27: Maint. & Rehab. | P27: Conventional Annual Snow Clearing/Salting/Sanding (per lane-mile) | Q27: 4715 | R27: each | S27: 1 | AF27: sq. in._sq. ft. | AG27: sq. in. | AH27: 0.08333333333 | AI27: sq. ft. | BC27: Winter Maintenance | BD27: Maint. & Rehab. | BE27: Conventional Annual Snow Clearing/Salting/Sanding (per lane-mile) | BF27: 4715 | BG27: each | BH27: 1
M28: =CONCATENATE(N28,"_",P28) -> Winter Maintenance_Permeable Pavers Annual Snow Clearing/Salting/Sanding (per lane-mile) | N28: Winter Maintenance | O28: Maint. & Rehab. | P28: Permeable Pavers Annual Snow Clearing/Salting/Sanding (per lane-mile) | Q28: 3160 | R28: each | S28: 1 | AF28: sq. ft._sq. ft. | AG28: sq. ft. | AH28: 1 | AI28: sq. ft. | BC28: Winter Maintenance | BD28: Maint. & Rehab. | BE28: Permeable Pavers Annual Snow Clearing/Salting/Sanding (per lane-mile) | BF28: 3160 | BG28: each | BH28: 1
M29: =CONCATENATE(N29,"_",P29) -> Paint Striping_Paint (yearly) | N29: Paint Striping | O29: Maint. & Rehab. | P29: Paint (yearly) | Q29: 0.04 | R29: ft. | S29: 1 | AF29: sq. yd._sq. ft. | AG29: sq. yd. | AH29: 9 | AI29: sq. ft. | BC29: Paint Striping | BD29: Maint. & Rehab. | BE29: Paint (yearly) | BF29: 0.04 | BG29: ft. | BH29: 1
M30: =CONCATENATE(N30,"_",P30) -> Paint Striping_Epoxy Paint (every 4 years) | N30: Paint Striping | O30: Maint. & Rehab. | P30: Epoxy Paint (every 4 years) | Q30: 0.25 | R30: ft. | S30: 1 | AD30: List_MassUnits | AF30: sq. mi._sq. ft. | AG30: sq. mi. | AH30: 27878400 | AI30: sq. ft. | BC30: Paint Striping | BD30: Maint. & Rehab. | BE30: Epoxy Paint (every 4 years) | BF30: 0.25 | BG30: ft. | BH30: 1
M31: =CONCATENATE(N31,"_",P31) -> Paint Striping_Thermoplastic (every 6 years) | N31: Paint Striping | O31: Maint. & Rehab. | P31: Thermoplastic (every 6 years) | Q31: 0.23 | R31: ft. | S31: 1 | AD31: ton | AF31: acre_sq. ft. | AG31: acre | AH31: 43560 | AI31: sq. ft. | BC31: Paint Striping | BD31: Maint. & Rehab. | BE31: Thermoplastic (every 6 years) | BF31: 0.23 | BG31: ft. | BH31: 1
M32: =CONCATENATE(N32,"_",P32) -> Paint Striping_Preformed Tape (every 6 years) | N32: Paint Striping | O32: Maint. & Rehab. | P32: Preformed Tape (every 6 years) | Q32: 2 | R32: ft. | S32: 1 | AD32: lbs | AF32: sq. in._sq. yd. | AG32: sq. in. | AH32: 0.0007716049383 | AI32: sq. yd. | BC32: Paint Striping | BD32: Maint. & Rehab. | BE32: Preformed Tape (every 6 years) | BF32: 2 | BG32: ft. | BH32: 1
M33: =CONCATENATE(N33,"_",P33) -> Paint Striping_Pigment Paver Cost Addition (25 years) | N33: Paint Striping | O33: Maint. & Rehab. | P33: Pigment Paver Cost Addition (25 years) | Q33: 0.08 | R33: ft. | S33: 1 | AF33: sq. ft._sq. yd. | AG33: sq. ft. | AH33: 0.1111111111 | AI33: sq. yd. | BC33: Paint Striping | BD33: Maint. & Rehab. | BE33: Pigment Paver Cost Addition (25 years) | BF33: 0.08 | BG33: ft. | BH33: 1
M34: =CONCATENATE(N34,"_",P34) -> Traffic Calming_Rubber Speed Bumps (25 years) | N34: Traffic Calming | O34: Capital | P34: Rubber Speed Bumps (25 years) | Q34: 1500 | R34: each | S34: 1 | AF34: sq. yd._sq. yd. | AG34: sq. yd. | AH34: 1 | AI34: sq. yd. | BC34: Traffic Calming | BD34: Capital | BE34: Rubber Speed Bumps (25 years) | BF34: 1500 | BG34: each | BH34: 1
M35: =CONCATENATE(N35,"_",P35) -> Traffic Calming_Asphalt Speed Bump (25 years) | N35: Traffic Calming | O35: Capital | P35: Asphalt Speed Bump (25 years) | Q35: 3000 | R35: each | S35: 1 | AF35: sq. mi._sq. yd. | AG35: sq. mi. | AH35: 3097600 | AI35: sq. yd. | BC35: Traffic Calming | BD35: Capital | BE35: Asphalt Speed Bump (25 years) | BF35: 3000 | BG35: each | BH35: 1
M36: =CONCATENATE(N36,"_",P36) -> Traffic Calming_Rubber Remove and Install (yearly) | N36: Traffic Calming | O36: Maint. & Rehab. | P36: Rubber Remove and Install (yearly) | Q36: 300 | R36: each | S36: 1 | AF36: acre_sq. yd. | AG36: acre | AH36: 4840 | AI36: sq. yd. | BC36: Traffic Calming | BD36: Maint. & Rehab. | BE36: Rubber Remove and Install (yearly) | BF36: 300 | BG36: each | BH36: 1
M37: =CONCATENATE(N37,"_",P37) -> Traffic Calming_Traffic Calming for Pavers (25 years) | N37: Traffic Calming | O37: Maint. & Rehab. | P37: Traffic Calming for Pavers (25 years) | Q37: 0 | R37: each | S37: 1 | AF37: sq. in._sq. mi. | AG37: sq. in. | AH37: 2.490976686e-10 | AI37: sq. mi. | BC37: Traffic Calming | BD37: Maint. & Rehab. | BE37: Traffic Calming for Pavers (25 years) | BF37: 0 | BG37: each | BH37: 1
M38: =CONCATENATE(N38,"_",P38) -> Impervious Surface Fees_Annual Fee per 1,000 ft2 | N38: Impervious Surface Fees | O38: Maint. & Rehab. | P38: Annual Fee per 1,000 ft2 | Q38: 526.92 | R38: each | S38: 1 | AF38: sq. ft._sq. mi. | AG38: sq. ft. | AH38: 3.587006428e-08 | AI38: sq. mi. | BC38: Impervious Surface Fees | BD38: Maint. & Rehab. | BE38: Annual Fee per 1,000 ft2 | BF38: 526.92 | BG38: each | BH38: 1
M39: =CONCATENATE(N39,"_",P39) -> Utility Cut Restoration_Remove and Replace Asphalt | N39: Utility Cut Restoration | O39: Maint. & Rehab. | P39: Remove and Replace Asphalt | Q39: 4.5 | R39: sq. ft. | S39: 1 | AF39: sq. yd._sq. mi. | AG39: sq. yd. | AH39: 3.228305785e-07 | AI39: sq. mi. | BC39: Utility Cut Restoration | BD39: Maint. & Rehab. | BE39: Remove and Replace Asphalt | BF39: 4.5 | BG39: sq. ft. | BH39: 1
M40: =CONCATENATE(N40,"_",P40) -> Utility Cut Restoration_Remove and Replace Concrete | N40: Utility Cut Restoration | O40: Maint. & Rehab. | P40: Remove and Replace Concrete | Q40: 8 | R40: sq. ft. | S40: 1 | AF40: sq. mi._sq. mi. | AG40: sq. mi. | AH40: 1 | AI40: sq. mi. | BC40: Utility Cut Restoration | BD40: Maint. & Rehab. | BE40: Remove and Replace Concrete | BF40: 8 | BG40: sq. ft. | BH40: 1
M41: =CONCATENATE(N41,"_",P41) -> Utility Cut Restoration_Remove and Replace Pavers | N41: Utility Cut Restoration | O41: Maint. & Rehab. | P41: Remove and Replace Pavers | Q41: 5 | R41: sq. ft. | S41: 1 | AF41: acre_sq. mi. | AG41: acre | AH41: 0.0015625 | AI41: sq. mi. | BC41: Utility Cut Restoration | BD41: Maint. & Rehab. | BE41: Remove and Replace Pavers | BF41: 5 | BG41: sq. ft. | BH41: 1
M42: =CONCATENATE(N42,"_",P42) -> Utility Cut Restoration_Pavement Degradation Fee | N42: Utility Cut Restoration | O42: Maint. & Rehab. | P42: Pavement Degradation Fee | Q42: 2 | R42: sq. ft. | S42: 1 | AD42: List_VolumeUnits | AF42: sq. in._acre | AG42: sq. in. | AH42: 1.594225079e-07 | AI42: acre | BC42: Utility Cut Restoration | BD42: Maint. & Rehab. | BE42: Pavement Degradation Fee | BF42: 2 | BG42: sq. ft. | BH42: 1
M43: =CONCATENATE(N43,"_",P43) -> Utility Cut Restoration_Remove and Replace Asphalt | N43: Utility Cut Restoration | O43: Rehabilitation | P43: Remove and Replace Asphalt | Q43: 2 | R43: sq. ft. | S43: 1 | AD43: cu. in. | AF43: sq. ft._acre | AG43: sq. ft. | AH43: 2.295684114e-05 | AI43: acre | BC43: Utility Cut Restoration | BD43: Rehabilitation | BE43: Remove and Replace Asphalt | BF43: 2 | BG43: sq. ft. | BH43: 1
AD44: cu. ft. | AF44: sq. yd._acre | AG44: sq. yd. | AH44: 0.0002066115702 | AI44: acre
AD45: cu. yd. | AF45: sq. mi._acre | AG45: sq. mi. | AH45: 640 | AI45: acre
AD46: acre-ft. | AF46: acre_acre | AG46: acre | AH46: 1 | AI46: acre
AD47: gal. | AF47: cu. in._cu. in. | AG47: cu. in. | AH47: 1 | AI47: cu. in.
AF48: cu. ft._cu. in. | AG48: cu. ft. | AH48: 1728 | AI48: cu. in.
AF49: cu. yd._cu. in. | AG49: cu. yd. | AH49: 46656 | AI49: cu. in.
AF50: cu. in._cu. ft. | AG50: cu. in. | AH50: 0.0005787037037 | AI50: cu. ft.
AF51: cu. ft._cu. ft. | AG51: cu. ft. | AH51: 1 | AI51: cu. ft.
AF52: cu. yd._cu. ft. | AG52: cu. yd. | AH52: 27 | AI52: cu. ft.
AF53: cu. in._cu. yd. | AG53: cu. in. | AH53: 2.143347051e-05 | AI53: cu. yd.
AF54: cu. ft._cu. yd. | AG54: cu. ft. | AH54: 0.03703703704 | AI54: cu. yd.
AF55: cu. yd._cu. yd. | AG55: cu. yd. | AH55: 1 | AI55: cu. yd.
AF56: cu. in._acre-ft. | AG56: cu. in. | AH56: 1.328520899e-08 | AI56: acre-ft.
AD57: List_LinearUnits | AF57: cu. ft._acre-ft. | AG57: cu. ft. | AH57: 2.295684114e-05 | AI57: acre-ft.
AD58: in. | AF58: cu. yd._acre-ft. | AG58: cu. yd. | AH58: 0.0006199628022 | AI58: acre-ft.
AD59: ft. | AF59: acre-ft._acre-ft. | AG59: acre-ft. | AH59: 1 | AI59: acre-ft.
AD60: yd. | AF60: acre-ft._cu. in. | AG60: acre-ft. | AH60: 75271680 | AI60: cu. in.
AD61: mi. | AF61: acre-ft._cu. ft. | AG61: acre-ft. | AH61: 43560 | AI61: cu. ft.
AD62: lane-ft. | AF62: acre-ft._cu. yd. | AG62: acre-ft. | AH62: 1613 | AI62: cu. yd.
AD63: lane-mi. | AF63: ton_lbs | AG63: ton | AH63: 1613 | AI63: lbs
AF64: lbs_ton | AG64: lbs | AH64: =1/2000 -> 0.0005 | AI64: ton
AF65: cu. in._gal. | AG65: cu. in. | AH65: =1/231 -> 0.004329004329 | AI65: gal.
AF66: cu. ft._gal. | AG66: cu. ft. | AH66: =7.48052 -> 7.48052 | AI66: gal.
AF67: cu. yd._gal. | AG67: cu. yd. | AH67: 201.97 | AI67: gal.
AF68: acre-ft._gal. | AG68: acre-ft. | AH68: 325853 | AI68: gal.
AF69: gal._gal. | AG69: gal. | AH69: 1 | AI69: gal.
AF70: gal._cu. in. | AG70: gal. | AH70: 231 | AI70: cu. in.
AF71: gal._cu. ft. | AG71: gal. | AH71: 0.1337 | AI71: cu. ft.
AF72: gal._cu. yd. | AG72: gal. | AH72: 0.004951 | AI72: cu. yd.
AF73: gal._acre-ft. | AG73: gal. | AH73: 3.069e-06 | AI73: acre-ft.
AD76: List_AreaUnits
AD77: sq. in.
AD78: sq. ft.
AD79: sq. yd.
AD80: sq. mi.
AD81: acre
C101: =CONCATENATE(D101,"_",F101) -> _
C102: =CONCATENATE(D102,"_",F102) -> _
C103: =CONCATENATE(D103,"_",F103) -> _
C104: =CONCATENATE(D104,"_",F104) -> _
C105: =CONCATENATE(D105,"_",F105) -> _
C106: =CONCATENATE(D106,"_",F106) -> _
B107: Combined Sewer Overflow (CSO) | C107: =CONCATENATE(D107,"_",F107) -> _
B108: Pollutant Removal | C108: =CONCATENATE(D108,"_",F108) -> _
B109: Winter Maintenance | C109: =CONCATENATE(D109,"_",F109) -> _
B110: Paint Striping | C110: =CONCATENATE(D110,"_",F110) -> _
B111: Traffic Calming | C111: =CONCATENATE(D111,"_",F111) -> _
B112: Impervious Surface Fees | C112: =CONCATENATE(D112,"_",F112) -> _
B113: Utility Cut Restoration | C113: =CONCATENATE(D113,"_",F113) -> _
C114: =CONCATENATE(D114,"_",F114) -> _

Sheet Default Values (hidden)
A1: Pre-loaded Default Values
A4: 1 | B4: 2 | C4: 3 | D4: 4 | E4: 5 | F4: 6 | G4: 7 | H4: 8 | I4: 9 | J4: 10 | K4: 11 | L4: 12 | M4: 13 | N4: 14 | O4: 15 | P4: 16 | Q4: 17 | R4: 18 | S4: 19 | T4: 20 | U4: 21 | V4: 22 | W4: 23 | X4: 24 | Y4: 25 | Z4: 26 | AA4: 27 | AB4: 28 | AC4: 29 | AD4: 30 | AE4: 31 | AF4: 32 | AG4: 33 | AH4: 34 | AI4: 35 | AJ4: 36 | AK4: 37 | AL4: 38 | AM4: 39 | AN4: 40 | AO4: 41 | AP4: 42 | AQ4: 43 | AR4: 44 | AS4: 45 | AT4: 46 | AU4: 47 | AV4: 48 | AW4: 49 | AX4: 50 | AY4: 51 | AZ4: 52 | BA4: 53 | BB4: 54 | BC4: 55 | BD4: 56 | BE4: 57 | BF4: 58 | BG4: 59
A5: Permeable Interlocking Concrete Pavement | P5: Conventional Interlocking Concrete Pavement | AE5: Asphalt Concrete Pavement | AT5: Portland Cement Concrete Pavement
A8: Permeable Interlocking Concrete Pavement Considerations | P8: Conventional Interlocking Concrete Pavement Considerations | AE8: Asphalt Concrete Pavement Considerations | AT8: Portland Cement Concrete Pavement Considerations
A9: INITIAL CONSTRUCTION COSTS | P9: INITIAL CONSTRUCTION COSTS | AE9: INITIAL CONSTRUCTION COSTS | AT9: INITIAL CONSTRUCTION COSTS
A10: Category | B10: Construction Item Description | C10: Unit Cost | D10: Unit | E10: Quantity / Layer Thickness | F10: Quantity / Layer Thickness Unit | G10: Related Quantity | H10: Total Quantity | I10: Quantity Units | J10: Extended Cost | P10: Category | Q10: Construction Item Description | R10: Unit Cost | S10: Unit | T10: Quantity / Layer Thickness | U10: Quantity / Layer Thickness Unit | V10: Related Quantity | W10: Total Quantity | X10: Quantity Units | Y10: Extended Cost | AE10: Category | AF10: Construction Item Description | AG10: Unit Cost | AH10: Unit | AI10: Quantity / Layer Thickness | AJ10: Quantity / Layer Thickness Unit | AK10: Related Quantity | AL10: Total Quantity | AM10: Quantity Units | AN10: Extended Cost | AT10: Category | AU10: Construction Item Description | AV10: Unit Cost | AW10: Unit | AX10: Quantity / Layer Thickness | AY10: Quantity / Layer Thickness Unit | AZ10: Related Quantity | BA10: Total Quantity | BB10: Quantity Units | BC10: Extended Cost
A11: Interlocking Concrete Pavement | B11: Permeable Paving Stones and Bedding | G11: Pavement Area | P11: Interlocking Concrete Pavement | Q11: Interlocking Concrete Paving Stones and Bedding | V11: Pavement Area | AE11: Asphalt Pavement | AF11: Asphalt Concrete (Generic) | AI11: 4 | AJ11: in. | AK11: Pavement Area | AT11: PCC Pavement | AU11: Portland Cement Concrete | AZ11: Pavement Area
A12: Granular Base/Subbase | B12: ASTM No. 57 Base | E12: 4 | F12: in. | G12: Pavement Area | P12: Granular Base/Subbase | Q12: Granular Base | T12: 4 | U12: in. | V12: Pavement Area | AE12: Granular Base/Subbase | AF12: Granular Base | AI12: 6 | AJ12: in. | AK12: Pavement Area | AT12: Granular Base/Subbase | AU12: Granular Base | AX12: 10 | AY12: in. | AZ12: Pavement Area
A13: Granular Base/Subbase | B13: ASTM No. 2 Subbase | E13: 32 | F13: in. | G13: Pavement Area | P13: Granular Base/Subbase | Q13: Granular Subbase | T13: 16 | U13: in. | V13: Pavement Area | AE13: Granular Base/Subbase | AF13: Granular Subbase | AI13: 14 | AJ13: in. | AK13: Pavement Area
A21: MAINTENANCE AND REHABILITATION COSTS | P21: MAINTENANCE AND REHABILITATION COSTS | AE21: MAINTENANCE AND REHABILITATION COSTS | AT21: MAINTENANCE AND REHABILITATION COSTS
A22: Category | B22: Cost Description | C22: Unit Cost | D22: Unit | E22: Quantity Multiplier | F22: Quantity Multiplier Unit | G22: Related Quantity Item | H22: Total Quantity | I22: Quantity Units | J22: Distribution Type | K22: Initial Year | L22: Duration | M22: Period | N22: Total NPV Cost | P22: Category | Q22: Cost Description | R22: Unit Cost | S22: Unit | T22: Quantity Multiplier | U22: Quantity Multiplier Unit | V22: Related Quantity Item | W22: Total Quantity | X22: Quantity Units | Y22: Distribution Type | Z22: Initial Year | AA22: Duration | AB22: Period | AC22: Total NPV Cost | AE22: Category | AF22: Cost Description | AG22: Unit Cost | AH22: Unit | AI22: Quantity Multiplier | AJ22: Quantity Multiplier Unit | AK22: Related Quantity Item | AL22: Total Quantity | AM22: Quantity Units | AN22: Distribution Type | AO22: Initial Year | AP22: Duration | AQ22: Period | AR22: Total NPV Cost | AT22: Category | AU22: Cost Description | AV22: Unit Cost | AW22: Unit | AX22: Quantity Multiplier | AY22: Quantity Multiplier Unit | AZ22: Related Quantity Item | BA22: Total Quantity | BB22: Quantity Units | BC22: Distribution Type | BD22: Initial Year | BE22: Duration | BF22: Period | BG22: Total NPV Cost
A23: Interlocking Concrete Pavement | B23: Replace Cracked Pavers | E23: 2 | F23: percent | G23: Pavement Area | J23: One Time | K23: 8 | P23: Interlocking Concrete Pavement | Q23: Replace Cracked Pavers | T23: 2 | U23: percent | V23: Pavement Area | Y23: One Time | Z23: 8 | AE23: Asphalt Pavement | AF23: Rout and Seal Cracks | AI23: 150 | AJ23: ft. | AN23: One Time | AO23: 4 | AT23: PCC Pavement | AU23: Reseal Joints | AX23: 6500 | AY23: yd. | BC23: One Time | BD23: 12
A24: Interlocking Concrete Pavement | B24: Replace Worn/Rutted Pavers (wheelpath) | E24: 5 | F24: percent | G24: Pavement Area | J24: One Time | K24: 20 | P24: Interlocking Concrete Pavement | Q24: Replace Worn/Rutted Pavers (wheelpath) | T24: 5 | U24: percent | V24: Pavement Area | Y24: One Time | Z24: 20 | AE24: Asphalt Pavement | AF24: Asphalt Machine Patching | AI24: 5 | AJ24: percent | AK24: Pavement Area | AN24: One Time | AO24: 8 | AT24: PCC Pavement | AU24: Partial Depth PCC Repair | AX24: 2 | AY24: percent | AZ24: Pavement Area | BC24: One Time | BD24: 25
A25: Interlocking Concrete Pavement | B25: Restorative Surface Vacuum Sweeping | E25: 100 | F25: percent | G25: Pavement Area | J25: One Time | K25: 15 | P25: Interlocking Concrete Pavement | Q25: Replace Cracked Pavers | T25: 2 | U25: percent | V25: Pavement Area | Y25: One Time | Z25: 28 | AE25: Asphalt Pavement | AF25: Rout and Seal Cracks | AI25: 150 | AJ25: ft. | AN25: One Time | AO25: 12 | AT25: PCC Pavement | AU25: Full Depth Repair | AX25: 10 | AY25: percent | AZ25: Pavement Area | BC25: One Time | BD25: 25
A26: Interlocking Concrete Pavement | B26: Replace Cracked Pavers | E26: 2 | F26: percent | G26: Pavement Area | J26: One Time | K26: 28 | P26: Interlocking Concrete Pavement | Q26: Replace Worn/Rutted Pavers (wheelpath) | T26: 5 | U26: percent | V26: Pavement Area | Y26: One Time | Z26: 35 | AE26: Asphalt Pavement | AF26: Asphalt Machine Patching | AI26: 10 | AJ26: percent | AK26: Pavement Area | AN26: One Time | AO26: 12 | AT26: PCC Pavement | AU26: Reseal Joints | AX26: 13000 | AY26: yd. | BC26: One Time | BD26: 25
A27: Interlocking Concrete Pavement | B27: Replace Worn/Rutted Pavers (wheelpath) | E27: 5 | F27: percent | G27: Pavement Area | J27: One Time | K27: 35 | AE27: Asphalt Pavement | AF27: Mill and Overlay (2 in) | AI27: 100 | AJ27: percent | AK27: Pavement Area | AN27: One Time | AO27: 15 | AT27: PCC Pavement | AU27: Reseal Joints | AX27: 26000 | AY27: yd. | BC27: One Time | BD27: 35
A28: Interlocking Concrete Pavement | B28: Restorative Surface Vacuum Sweeping | E28: 100 | F28: percent | G28: Pavement Area | J28: One Time | K28: 35 | AE28: Asphalt Pavement | AF28: Rout and Seal Cracks | AI28: 300 | AJ28: ft. | AN28: One Time | AO28: 19 | AT28: PCC Pavement | AU28: Partial Depth PCC Repair | AX28: 2 | AY28: percent | AZ28: Pavement Area | BC28: One Time | BD28: 35
AE29: Asphalt Pavement | AF29: Asphalt Machine Patching | AI29: 10 | AJ29: percent | AK29: Pavement Area | AN29: One Time | AO29: 22 | AT29: PCC Pavement | AU29: Full Depth Repair | AX29: 5 | AY29: percent | AZ29: Pavement Area | BC29: One Time | BD29: 35
AE30: Asphalt Pavement | AF30: Mill and Overlay (3-1/2 in) | AI30: 100 | AJ30: percent | AK30: Pavement Area | AN30: One Time | AO30: 25
AE31: Asphalt Pavement | AF31: Rout and Seal Cracks | AI31: 150 | AJ31: ft. | AN31: One Time | AO31: 27
AE32: Asphalt Pavement | AF32: Asphalt Machine Patching | AI32: 10 | AJ32: percent | AK32: Pavement Area | AN32: One Time | AO32: 30
AE33: Asphalt Pavement | AF33: Mill and Overlay (2 in) | AI33: 100 | AJ33: percent | AK33: Pavement Area | AN33: One Time | AO33: 37
A43: =$A$5&" Off-Road Considerations" -> Permeable Interlocking Concrete Pavement Off-Road Considerations | P43: =$P$5&" Off-Road Considerations" -> Conventional Interlocking Concrete Pavement Off-Road Considerations | AE43: Permeable Interlocking Concrete Pavement Off-Road Considerations | AT43: =$AT$5&" Off-Road Considerations" -> Portland Cement Concrete Pavement Off-Road Considerations
A44: INITIAL CONSTRUCTION COSTS | P44: INITIAL CONSTRUCTION COSTS | AE44: INITIAL CONSTRUCTION COSTS | AT44: INITIAL CONSTRUCTION COSTS
A45: Category | B45: Construction Item Description | C45: Unit Cost | D45: Unit | E45: Project Quantity | F45: Quantity Units | G45: Related Quantity Item | H45: Total Quantity | I45: Quantity Units | J45: Extended Cost | P45: Category | Q45: Construction Item Description | R45: Unit Cost | S45: Unit | T45: Project Quantity | U45: Quantity Units | V45: Related Quantity Item | W45: Total Quantity | X45: Quantity Units | Y45: Extended Cost | AE45: Category | AF45: Construction Item Description | AG45: Unit Cost | AH45: Unit | AI45: Project Quantity | AJ45: Quantity Units | AK45: Related Quantity Item | AL45: Total Quantity | AM45: Quantity Units | AN45: Extended Cost | AT45: Category | AU45: Construction Item Description | AV45: Unit Cost | AW45: Unit | AX45: Project Quantity | AY45: Quantity Units | AZ45: Related Quantity Item | BA45: Total Quantity | BB45: Quantity Units | BC45: Extended Cost
A46: Stormwater Management Pond | B46: Land Value | F46: acre | P46: Stormwater Management Pond | Q46: Land Value | T46: 4 | U46: acre | AE46: Stormwater Management Pond | AF46: Land Value | AI46: 4 | AJ46: acre | AT46: Stormwater Management Pond | AU46: Land Value | AX46: 4 | AY46: acre
A47: Stormwater Management Pond | B47: Excavation | F47: sq. yd. | P47: Stormwater Management Pond | Q47: Excavation | T47: 19360 | U47: sq. yd. | AE47: Stormwater Management Pond | AF47: Excavation | AI47: 19360 | AJ47: sq. yd. | AT47: Stormwater Management Pond | AU47: Excavation | AX47: 19360 | AY47: sq. yd.
A48: Stormwater Management Pond | B48: Hauling and Disposal | F48: sq. yd. | P48: Stormwater Management Pond | Q48: Hauling and Disposal | T48: 19360 | U48: sq. yd. | AE48: Stormwater Management Pond | AF48: Hauling and Disposal | AI48: 19360 | AJ48: sq. yd. | AT48: Stormwater Management Pond | AU48: Hauling and Disposal | AX48: 19360 | AY48: sq. yd.
A49: Stormwater Management Pond | B49: Grading | F49: sq. yd. | P49: Stormwater Management Pond | Q49: Grading | U49: sq. yd. | AE49: Stormwater Management Pond | AF49: Grading | AJ49: sq. yd. | AT49: Stormwater Management Pond | AU49: Grading | AY49: sq. yd.
A50: Stormwater Management Pond | B50: Inlet Structure | F50: each | P50: Stormwater Management Pond | Q50: Inlet Structure | T50: 230 | U50: each | AE50: Stormwater Management Pond | AF50: Inlet Structure | AI50: 230 | AJ50: each | AT50: Stormwater Management Pond | AU50: Inlet Structure | AX50: 230 | AY50: each
A51: Stormwater Management Pond | B51: Overflow Structure | F51: each | P51: Stormwater Management Pond | Q51: Overflow Structure | T51: 1 | U51: each | AE51: Stormwater Management Pond | AF51: Overflow Structure | AI51: 1 | AJ51: each | AT51: Stormwater Management Pond | AU51: Overflow Structure | AX51: 1 | AY51: each
A52: Stormwater Management Pond | B52: Corrugated Pipe | F52: ft. | P52: Stormwater Management Pond | Q52: Corrugated Pipe | U52: ft. | AE52: Stormwater Management Pond | AF52: Corrugated Pipe | AJ52: ft. | AT52: Stormwater Management Pond | AU52: Corrugated Pipe | AY52: ft.
A53: Stormwater Management Pond | B53: Concrete Pipe | F53: ft. | P53: Stormwater Management Pond | Q53: Concrete Pipe | T53: 60000 | U53: ft. | AE53: Stormwater Management Pond | AF53: Concrete Pipe | AI53: 60000 | AJ53: ft. | AT53: Stormwater Management Pond | AU53: Concrete Pipe | AX53: 60000 | AY53: ft.
A54: Stormwater Management Pond | B54: Sod | F54: sq. ft. | P54: Stormwater Management Pond | Q54: Sod | U54: sq. ft. | AE54: Stormwater Management Pond | AF54: Sod | AJ54: sq. ft. | AT54: Stormwater Management Pond | AU54: Sod | AY54: sq. ft.
A55: Combined Sewer Overflow (CSO) | B55: Plant Capital Cost/gallon/annually | F55: gal. | P55: Combined Sewer Overflow (CSO) | Q55: Plant Capital Cost/gallon/annually | U55: gal. | AE55: Combined Sewer Overflow (CSO) | AF55: Plant Capital Cost/gallon/annually | AJ55: gal. | AT55: Combined Sewer Overflow (CSO) | AU55: Plant Capital Cost/gallon/annually | AY55: gal.
A56: Traffic Calming | B56: Rubber Speed Bumps (25 years) | F56: each | P56: Traffic Calming | Q56: Rubber Speed Bumps (25 years) | U56: each | AE56: Traffic Calming | AF56: Rubber Speed Bumps (25 years) | AJ56: each | AT56: Traffic Calming | AU56: Rubber Speed Bumps (25 years) | AX56: 21 | AY56: each
A57: Traffic Calming | B57: Asphalt Speed Bump (25 years) | F57: each | P57: Traffic Calming | Q57: Asphalt Speed Bump (25 years) | U57: each | AE57: Traffic Calming | AF57: Asphalt Speed Bump (25 years) | AI57: 21 | AJ57: each | AT57: Traffic Calming | AU57: Asphalt Speed Bump (25 years) | AY57: each
A64: OPERATIONS, MAINTENANCE AND REHABILITATION COSTS | P64: OPERATIONS, MAINTENANCE AND REHABILITATION COSTS | AE64: OPERATIONS, MAINTENANCE AND REHABILITATION COSTS | AT64: OPERATIONS, MAINTENANCE AND REHABILITATION COSTS
A65: Category | B65: Cost Description | C65: Unit Cost | D65: Unit | E65: Quantity Multiplier | F65: Quantity Multiplier Unit | G65: Related Quantity Item | H65: Total Quantity | I65: Quantity Units | J65: Distribution Type | K65: Initial Year | L65: Duration | M65: Period | N65: Total NPV Cost | P65: Category | Q65: Cost Description | R65: Unit Cost | S65: Unit | T65: Quantity Multiplier | U65: Quantity Multiplier Unit | V65: Related Quantity Item | W65: Total Quantity | X65: Quantity Units | Y65: Distribution Type | Z65: Initial Year | AA65: Duration | AB65: Period | AC65: Total NPV Cost | AE65: Category | AF65: Cost Description | AG65: Unit Cost | AH65: Unit | AI65: Quantity Multiplier | AJ65: Quantity Multiplier Unit | AK65: Related Quantity Item | AL65: Total Quantity | AM65: Quantity Units | AN65: Distribution Type | AO65: Initial Year | AP65: Duration | AQ65: Period | AR65: Total NPV Cost | AT65: Category | AU65: Cost Description | AV65: Unit Cost | AW65: Unit | AX65: Quantity Multiplier | AY65: Quantity Multiplier Unit | AZ65: Related Quantity Item | BA65: Total Quantity | BB65: Quantity Units | BC65: Distribution Type | BD65: Initial Year | BE65: Duration | BF65: Period | BG65: Total NPV Cost
A66: Stormwater Management Pond | B66: Erosion | F66: sq. yd. | J66: Periodic | K66: 1 | M66: 1 | P66: Stormwater Management Pond | Q66: Erosion | T66: 500 | U66: sq. yd. | Y66: Periodic | Z66: 10 | AB66: 5 | AE66: Stormwater Management Pond | AF66: Erosion | AI66: 500 | AJ66: sq. yd. | AN66: Periodic | AO66: 10 | AQ66: 5 | AT66: Stormwater Management Pond | AU66: Erosion | AX66: 500 | AY66: sq. yd. | BC66: Periodic | BD66: 10 | BF66: 5
A67: Stormwater Management Pond | B67: Site Protection/Sediment Control | F67: each | J67: Periodic | K67: 1 | M67: 1 | P67: Stormwater Management Pond | Q67: Site Protection/Sediment Control | U67: each | Y67: Periodic | Z67: 1 | AB67: 1 | AE67: Stormwater Management Pond | AF67: Site Protection/Sediment Control | AJ67: each | AN67: Periodic | AO67: 1 | AQ67: 1 | AT67: Stormwater Management Pond | AU67: Site Protection/Sediment Control | AY67: each | BC67: Periodic | BD67: 1 | BF67: 1
A68: Stormwater Management Pond | B68: Soil Preparation | E68: 19360 | F68: sq. yd. | J68: One Time | K68: 0 | M68: 1 | P68: Stormwater Management Pond | Q68: Soil Preparation | U68: sq. yd. | Y68: Periodic | Z68: 1 | AB68: 1 | AE68: Stormwater Management Pond | AF68: Soil Preparation | AJ68: sq. yd. | AN68: Periodic | AO68: 1 | AQ68: 1 | AT68: Stormwater Management Pond | AU68: Soil Preparation | AY68: sq. yd. | BC68: Periodic | BD68: 1 | BF68: 1
A69: Stormwater Management Pond | B69: Inspection | F69: each | J69: Periodic | K69: 1 | M69: 1 | P69: Stormwater Management Pond | Q69: Inspection | T69: 1 | U69: each | Y69: Periodic | Z69: 1 | AB69: 1 | AE69: Stormwater Management Pond | AF69: Inspection | AI69: 1 | AJ69: each | AN69: Periodic | AO69: 1 | AQ69: 1 | AT69: Stormwater Management Pond | AU69: Inspection | AX69: 1 | AY69: each | BC69: Periodic | BD69: 1 | BF69: 1
A70: Stormwater Management Pond | B70: Sod | E70: 19360 | F70: sq. yd. | J70: One Time | K70: 0 | M70: 1 | P70: Stormwater Management Pond | Q70: Sod | U70: sq. yd. | Y70: Periodic | Z70: 1 | AB70: 1 | AE70: Stormwater Management Pond | AF70: Sod | AJ70: sq. yd. | AN70: Periodic | AO70: 1 | AQ70: 1 | AT70: Stormwater Management Pond | AU70: Sod | AY70: sq. yd. | BC70: Periodic | BD70: 1 | BF70: 1
A71: Stormwater Management Pond | B71: Debris Removal | F71: each | J71: Periodic | K71: 1 | M71: 1 | P71: Stormwater Management Pond | Q71: Debris Removal | U71: each | Y71: Periodic | Z71: 1 | AB71: 1 | AE71: Stormwater Management Pond | AF71: Debris Removal | AJ71: each | AN71: Periodic | AO71: 1 | AQ71: 1 | AT71: Stormwater Management Pond | AU71: Debris Removal | AY71: each | BC71: Periodic | BD71: 1 | BF71: 1
A72: Stormwater Management Pond | B72: Remove Invasive Plants | F72: each | J72: Periodic | K72: 1 | M72: 1 | P72: Stormwater Management Pond | Q72: Remove Invasive Plants | U72: each | Y72: Periodic | Z72: 1 | AB72: 1 | AE72: Stormwater Management Pond | AF72: Remove Invasive Plants | AJ72: each | AN72: Periodic | AO72: 1 | AQ72: 1 | AT72: Stormwater Management Pond | AU72: Remove Invasive Plants | AY72: each | BC72: Periodic | BD72: 1 | BF72: 1
A73: Stormwater Management Pond | B73: Mowing | F73: each | J73: Periodic | K73: 1 | M73: 1 | P73: Stormwater Management Pond | Q73: Mowing | U73: each | Y73: Periodic | Z73: 1 | AB73: 1 | AE73: Stormwater Management Pond | AF73: Mowing | AJ73: each | AN73: Periodic | AO73: 1 | AQ73: 1 | AT73: Stormwater Management Pond | AU73: Mowing | AY73: each | BC73: Periodic | BD73: 1 | BF73: 1
A74: Stormwater Management Pond | B74: Sediment Removal from Pond | F74: cu. yd. | J74: Periodic | K74: 1 | M74: 1 | P74: Stormwater Management Pond | Q74: Sediment Removal from Pond | T74: 500 | U74: cu. yd. | Y74: Periodic | Z74: 5 | AB74: 5 | AE74: Stormwater Management Pond | AF74: Sediment Removal from Pond | AI74: 500 | AJ74: cu. yd. | AN74: Periodic | AO74: 5 | AQ74: 5 | AT74: Stormwater Management Pond | AU74: Sediment Removal from Pond | AX74: 500 | AY74: cu. yd. | BC74: Periodic | BD74: 5 | BF74: 5
A75: Stormwater Management Pond | B75: Sediment Removal Setup | F75: each | J75: Periodic | K75: 1 | M75: 1 | P75: Stormwater Management Pond | Q75: Sediment Removal Setup | T75: 1 | U75: each | Y75: Periodic | Z75: 5 | AB75: 5 | AE75: Stormwater Management Pond | AF75: Sediment Removal Setup | AI75: 1 | AJ75: each | AN75: Periodic | AO75: 5 | AQ75: 5 | AT75: Stormwater Management Pond | AU75: Sediment Removal Setup | AX75: 1 | AY75: each | BC75: Periodic | BD75: 5 | BF75: 5
A76: Combined Sewer Overflow (CSO) | B76: Plant Operating Cost/annually | E76: 3467000 | F76: gal. | J76: Periodic | K76: 1 | M76: 1 | P76: Combined Sewer Overflow (CSO) | Q76: Plant Operating Cost/annually | T76: 3650000 | U76: gal. | Y76: Periodic | Z76: 1 | AB76: 1 | AE76: Combined Sewer Overflow (CSO) | AF76: Plant Operating Cost/annually | AI76: 3650000 | AJ76: gal. | AN76: Periodic | AO76: 1 | AQ76: 1 | AT76: Combined Sewer Overflow (CSO) | AU76: Plant Operating Cost/annually | AX76: 3650000 | AY76: gal. | BC76: Periodic | BD76: 1 | BF76: 1
A77: Pollutant Removal | B77: Tier 1 Pollutant Level Target (M.G. per day) | F77: each | J77: Periodic | K77: 1 | M77: 1 | P77: Pollutant Removal | Q77: Tier 1 Pollutant Level Target (M.G. per day) | U77: each | Y77: Periodic | Z77: 1 | AB77: 1 | AE77: Pollutant Removal | AF77: Tier 1 Pollutant Level Target (M.G. per day) | AJ77: each | AN77: Periodic | AO77: 1 | AQ77: 1 | AT77: Pollutant Removal | AU77: Tier 1 Pollutant Level Target (M.G. per day) | AY77: each | BC77: Periodic | BD77: 1 | BF77: 1
A78: Pollutant Removal | B78: Tier 2 Pollutant Level Target (M.G. per day) | E78: 3467 | F78: each | J78: Periodic | K78: 1 | M78: 1 | P78: Pollutant Removal | Q78: Tier 2 Pollutant Level Target (M.G. per day) | T78: 3650 | U78: each | Y78: Periodic | Z78: 1 | AB78: 1 | AE78: Pollutant Removal | AF78: Tier 2 Pollutant Level Target (M.G. per day) | AI78: 3650 | AJ78: each | AN78: Periodic | AO78: 1 | AQ78: 1 | AT78: Pollutant Removal | AU78: Tier 2 Pollutant Level Target (M.G. per day) | AX78: 3650 | AY78: each | BC78: Periodic | BD78: 1 | BF78: 1
A79: Winter Maintenance | B79: Conventional Annual Snow Clearing/Salting/Sanding (per lane-mile) | F79: each | J79: Periodic | K79: 1 | M79: 1 | P79: Winter Maintenance | Q79: Conventional Annual Snow Clearing/Salting/Sanding (per lane-mile) | T79: 10.5 | U79: each | Y79: Periodic | Z79: 1 | AB79: 1 | AE79: Winter Maintenance | AF79: Conventional Annual Snow Clearing/Salting/Sanding (per lane-mile) | AI79: 10.5 | AJ79: each | AN79: Periodic | AO79: 1 | AQ79: 1 | AT79: Winter Maintenance | AU79: Conventional Annual Snow Clearing/Salting/Sanding (per lane-mile) | AX79: 10.5 | AY79: each | BC79: Periodic | BD79: 1 | BF79: 1
A80: Winter Maintenance | B80: Permeable Pavers Annual Snow Clearing/Salting/Sanding (per lane-mile) | E80: 10.5 | F80: each | J80: Periodic | K80: 1 | M80: 1 | P80: Winter Maintenance | Q80: Permeable Pavers Annual Snow Clearing/Salting/Sanding (per lane-mile) | U80: each | Y80: Periodic | Z80: 1 | AB80: 1 | AE80: Winter Maintenance | AF80: Permeable Pavers Annual Snow Clearing/Salting/Sanding (per lane-mile) | AJ80: each | AN80: Periodic | AO80: 1 | AQ80: 1 | AT80: Winter Maintenance | AU80: Permeable Pavers Annual Snow Clearing/Salting/Sanding (per lane-mile) | AY80: each | BC80: Periodic | BD80: 1 | BF80: 1
A81: Paint Striping | B81: Paint (yearly) | F81: ft. | J81: Periodic | K81: 1 | M81: 1 | P81: Paint Striping | Q81: Paint (yearly) | U81: ft. | Y81: Periodic | Z81: 1 | AB81: 1 | AE81: Paint Striping | AF81: Paint (yearly) | AI81: 110880 | AJ81: ft. | AN81: Periodic | AO81: 1 | AQ81: 1 | AT81: Paint Striping | AU81: Paint (yearly) | AX81: 110880 | AY81: ft. | BC81: Periodic | BD81: 1 | BF81: 1
A82: Paint Striping | B82: Epoxy Paint (every 4 years) | F82: ft. | J82: Periodic | K82: 1 | M82: 1 | P82: Paint Striping | Q82: Epoxy Paint (every 4 years) | U82: ft. | Y82: Periodic | Z82: 1 | AB82: 1 | AE82: Paint Striping | AF82: Epoxy Paint (every 4 years) | AJ82: ft. | AN82: Periodic | AO82: 1 | AQ82: 1 | AT82: Paint Striping | AU82: Epoxy Paint (every 4 years) | AY82: ft. | BC82: Periodic | BD82: 1 | BF82: 1
A83: Paint Striping | B83: Thermoplastic (every 6 years) | F83: ft. | J83: Periodic | K83: 1 | M83: 1 | P83: Paint Striping | Q83: Thermoplastic (every 6 years) | U83: ft. | Y83: Periodic | Z83: 1 | AB83: 1 | AE83: Paint Striping | AF83: Thermoplastic (every 6 years) | AJ83: ft. | AN83: Periodic | AO83: 1 | AQ83: 1 | AT83: Paint Striping | AU83: Thermoplastic (every 6 years) | AY83: ft. | BC83: Periodic | BD83: 1 | BF83: 1
A84: Paint Striping | B84: Preformed Tape (every 6 years) | F84: ft. | J84: Periodic | K84: 1 | M84: 1 | P84: Paint Striping | Q84: Preformed Tape (every 6 years) | U84: ft. | Y84: Periodic | Z84: 1 | AB84: 1 | AE84: Paint Striping | AF84: Preformed Tape (every 6 years) | AJ84: ft. | AN84: Periodic | AO84: 1 | AQ84: 1 | AT84: Paint Striping | AU84: Preformed Tape (every 6 years) | AY84: ft. | BC84: Periodic | BD84: 1 | BF84: 1
A85: Paint Striping | B85: Pigment Paver Cost Addition (25 years) | E85: 110880 | F85: ft. | J85: Periodic | K85: 1 | M85: 25 | P85: Paint Striping | Q85: Pigment Paver Cost Addition (25 years) | T85: 110880 | U85: ft. | Y85: Periodic | Z85: 1 | AB85: 25 | AE85: Paint Striping | AF85: Pigment Paver Cost Addition (25 years) | AJ85: ft. | AN85: Periodic | AO85: 1 | AQ85: 1 | AT85: Paint Striping | AU85: Pigment Paver Cost Addition (25 years) | AY85: ft. | BC85: Periodic | BD85: 1 | BF85: 1
A86: Traffic Calming | B86: Rubber Remove and Install (yearly) | F86: each | J86: Periodic | K86: 1 | M86: 1 | P86: Traffic Calming | Q86: Rubber Remove and Install (yearly) | U86: each | Y86: Periodic | Z86: 1 | AB86: 1 | AE86: Traffic Calming | AF86: Rubber Remove and Install (yearly) | AJ86: each | AN86: Periodic | AO86: 1 | AQ86: 1 | AT86: Traffic Calming | AU86: Rubber Remove and Install (yearly) | AY86: each | BC86: Periodic | BD86: 1 | BF86: 1
A87: Traffic Calming | B87: Traffic Calming for Pavers (25 years) | F87: each | J87: Periodic | K87: 1 | M87: 1 | P87: Traffic Calming | Q87: Traffic Calming for Pavers (25 years) | U87: each | Y87: Periodic | Z87: 1 | AB87: 1 | AE87: Traffic Calming | AF87: Traffic Calming for Pavers (25 years) | AJ87: each | AN87: Periodic | AO87: 1 | AQ87: 1 | AT87: Traffic Calming | AU87: Traffic Calming for Pavers (25 years) | AY87: each | BC87: Periodic | BD87: 1 | BF87: 1
A88: Impervious Surface Fees | B88: Annual Fee per 1,000 ft2 | F88: each | J88: Periodic | K88: 1 | M88: 1 | P88: Impervious Surface Fees | Q88: Annual Fee per 1,000 ft2 | T88: 544.5 | U88: each | Y88: Periodic | Z88: 1 | AB88: 1 | AE88: Impervious Surface Fees | AF88: Annual Fee per 1,000 ft2 | AI88: 544.5 | AJ88: each | AN88: Periodic | AO88: 1 | AQ88: 1 | AT88: Impervious Surface Fees | AU88: Annual Fee per 1,000 ft2 | AX88: 544.5 | AY88: each | BC88: Periodic | BD88: 1 | BF88: 1
A89: Utility Cut Restoration | B89: Remove and Replace Asphalt | F89: sq. ft. | J89: Periodic | K89: 1 | M89: 1 | P89: Utility Cut Restoration | Q89: Remove and Replace Asphalt | U89: sq. ft. | Y89: Periodic | Z89: 1 | AB89: 1 | AE89: Utility Cut Restoration | AF89: Remove and Replace Asphalt | AI89: 840 | AJ89: sq. ft. | AN89: Periodic | AO89: 1 | AQ89: 1 | AT89: Utility Cut Restoration | AU89: Remove and Replace Asphalt | AY89: sq. ft. | BC89: Periodic | BD89: 1 | BF89: 1
A90: Utility Cut Restoration | B90: Remove and Replace Concrete | F90: sq. ft. | J90: Periodic | K90: 1 | M90: 1 | P90: Utility Cut Restoration | Q90: Remove and Replace Concrete | U90: sq. ft. | Y90: Periodic | Z90: 1 | AB90: 1 | AE90: Utility Cut Restoration | AF90: Remove and Replace Concrete | AJ90: sq. ft. | AN90: Periodic | AO90: 1 | AQ90: 1 | AT90: Utility Cut Restoration | AU90: Remove and Replace Concrete | AX90: 840 | AY90: sq. ft. | BC90: Periodic | BD90: 1 | BF90: 1
A91: Utility Cut Restoration | B91: Remove and Replace Pavers | E91: 840 | F91: sq. ft. | J91: Periodic | K91: 1 | M91: 1 | P91: Utility Cut Restoration | Q91: Remove and Replace Pavers | U91: sq. ft. | Y91: Periodic | Z91: 1 | AB91: 1 | AE91: Utility Cut Restoration | AF91: Remove and Replace Pavers | AJ91: sq. ft. | AN91: Periodic | AO91: 1 | AQ91: 1 | AT91: Utility Cut Restoration | AU91: Remove and Replace Pavers | AY91: sq. ft. | BC91: Periodic | BD91: 1 | BF91: 1
A92: Utility Cut Restoration | B92: Remove and Replace Asphalt | F92: sq. ft. | J92: Periodic | K92: 1 | M92: 1 | P92: Utility Cut Restoration | Q92: Remove and Replace Asphalt | U92: sq. ft. | Y92: Periodic | Z92: 1 | AB92: 1 | AE92: Utility Cut Restoration | AF92: Remove and Replace Asphalt | AJ92: sq. ft. | AN92: Periodic | AO92: 1 | AQ92: 1 | AT92: Utility Cut Restoration | AU92: Remove and Replace Asphalt | AY92: sq. ft. | BC92: Periodic | BD92: 1 | BF92: 1
A93: Utility Cut Restoration | B93: Pavement Degradation Fee | E93: 0 | F93: sq. ft. | J93: Periodic | K93: 1 | M93: 1 | P93: Utility Cut Restoration | Q93: Pavement Degradation Fee | U93: sq. ft. | Y93: Periodic | Z93: 1 | AB93: 1 | AE93: Utility Cut Restoration | AF93: Pavement Degradation Fee | AI93: 840 | AJ93: sq. ft. | AN93: Periodic | AO93: 1 | AQ93: 1 | AT93: Utility Cut Restoration | AU93: Pavement Degradation Fee | AX93: 840 | AY93: sq. ft. | BC93: Periodic | BD93: 1 | BF93: 1

Sheet Unit Costs
A1: Interlocking Concrete Pavement Institute
A2: Lifecycle Cost Analysis Tool
A4: Unit Costs
A6: Pavement Items | L6: Off-Road Items
A7: Category | B7: Cost Type | C7: Item Description | D7: Unit Cost | E7: Unit | F7: Quantity Multiplier | G7: Material Density | L7: Category | M7: Cost Type | N7: Item Description | O7: Unit Cost | P7: Unit | Q7: Quantity Multiplier
A8: Interlocking Concrete Pavement | B8: Capital | C8: Permeable Paving Stones and Bedding | D8: 6.5 | E8: sq. ft. | F8: 1 | L8: Stormwater Management Pond | M8: Capital | N8: Land Value | O8: 75000 | P8: acre | Q8: 1
A9: Interlocking Concrete Pavement | B9: Capital | C9: Interlocking Concrete Paving Stones and Bedding | D9: 6.5 | E9: sq. ft. | F9: 1 | L9: Stormwater Management Pond | M9: Capital | N9: Excavation | O9: 10 | P9: sq. yd. | Q9: 1
A10: Interlocking Concrete Pavement | B10: Maint. & Rehab. | C10: Replace Cracked Pavers | D10: 6 | E10: sq. ft. | F10: 1 | L10: Stormwater Management Pond | M10: Capital | N10: Hauling and Disposal | O10: 10 | P10: sq. yd. | Q10: 1
A11: Interlocking Concrete Pavement | B11: Maint. & Rehab. | C11: Replace Worn/Rutted Pavers (wheelpath) | D11: 12 | E11: sq. ft. | F11: 1 | L11: Stormwater Management Pond | M11: Capital | N11: Grading | O11: 1.5 | P11: sq. yd. | Q11: 1
A12: Interlocking Concrete Pavement | B12: Maint. & Rehab. | C12: Restorative Surface Vacuum Sweeping | D12: 8000 | E12: acre | F12: 1 | L12: Stormwater Management Pond | M12: Capital | N12: Inlet Structure | O12: 2000 | P12: each | Q12: 1
A13: PCC Pavement | B13: Capital | C13: Portland Cement Concrete | D13: 75 | E13: sq. yd. | F13: 1 | L13: Stormwater Management Pond | M13: Capital | N13: Overflow Structure | O13: 3500 | P13: each | Q13: 1
A14: PCC Pavement | B14: Maint. & Rehab. | C14: Reseal Joints | D14: 10 | E14: yd. | F14: 1 | L14: Stormwater Management Pond | M14: Capital | N14: Corrugated Pipe | O14: 17.55 | P14: ft. | Q14: 1
A15: PCC Pavement | B15: Maint. & Rehab. | C15: Partial Depth PCC Repair | D15: 350 | E15: sq. yd. | F15: 1 | L15: Stormwater Management Pond | M15: Capital | N15: Concrete Pipe | O15: 30 | P15: ft. | Q15: 1
A16: PCC Pavement | B16: Maint. & Rehab. | C16: Full Depth Repair | D16: 120 | E16: sq. yd. | F16: 1 | L16: Stormwater Management Pond | M16: Capital | N16: Sod | O16: 4.5 | P16: sq. yd. | Q16: 1
A17: Asphalt Pavement | B17: Capital | C17: Asphalt Concrete (Generic) | D17: 110 | E17: ton | F17: 1 | G17: 142 | H17: lbs | I17: / | J17: cu. ft. | L17: Stormwater Management Pond | M17: Maint. & Rehab. | N17: Erosion | O17: 75 | P17: sq. yd. | Q17: 1
A18: Asphalt Pavement | B18: Capital | C18: Asphalt Surface Course | D18: 110 | E18: ton | F18: 1 | G18: 145 | H18: lbs | I18: / | J18: cu. ft. | L18: Stormwater Management Pond | M18: Maint. & Rehab. | N18: Site Protection/Sediment Control | O18: 125 | P18: each | Q18: 1
A19: Asphalt Pavement | B19: Capital | C19: Asphalt Base Course | D19: 105 | E19: ton | F19: 1 | G19: 140 | H19: lbs | I19: / | J19: cu. ft. | L19: Stormwater Management Pond | M19: Maint. & Rehab. | N19: Soil Preparation | O19: 5 | P19: sq. yd. | Q19: 1
A20: Asphalt Pavement | B20: Maint. & Rehab. | C20: Rout and Seal Cracks | D20: 2 | E20: ft. | F20: 1 | L20: Stormwater Management Pond | M20: Maint. & Rehab. | N20: Inspection | O20: 125 | P20: each | Q20: 1
A21: Asphalt Pavement | B21: Maint. & Rehab. | C21: Asphalt Machine Patching | D21: 10 | E21: sq. ft. | F21: 1 | L21: Stormwater Management Pond | M21: Maint. & Rehab. | N21: Sod | O21: 4.5 | P21: sq. yd. | Q21: 1
A22: Asphalt Pavement | B22: Maint. & Rehab. | C22: Mill and Overlay (2 in) | D22: 8 | E22: sq. yd. | F22: 1 | L22: Stormwater Management Pond | M22: Maint. & Rehab. | N22: Debris Removal | O22: 100 | P22: each | Q22: 1
A23: Asphalt Pavement | B23: Maint. & Rehab. | C23: Mill and Overlay (3-1/2 in) | D23: 16 | E23: sq. yd. | F23: 1 | L23: Stormwater Management Pond | M23: Maint. & Rehab. | N23: Remove Invasive Plants | O23: 500 | P23: each | Q23: 1
A24: Granular Base/Subbase | B24: Capital | C24: Granular Base | D24: 34.2 | E24: cu. yd. | F24: 1 | G24: 135 | H24: lbs | I24: / | J24: cu. yd. | L24: Stormwater Management Pond | M24: Maint. & Rehab. | N24: Mowing | O24: 150 | P24: each | Q24: 1
A25: Granular Base/Subbase | B25: Capital | C25: Granular Subbase | D25: 34.2 | E25: cu. yd. | F25: 1 | G25: 130 | H25: lbs | I25: / | J25: cu. yd. | L25: Stormwater Management Pond | M25: Maint. & Rehab. | N25: Sediment Removal from Pond | O25: 390 | P25: cu. yd. | Q25: 1
A26: Granular Base/Subbase | B26: Capital | C26: ASTM No. 57 Base | D26: 34.2 | E26: cu. yd. | F26: 1 | G26: 135 | H26: lbs | I26: / | J26: cu. yd. | L26: Stormwater Management Pond | M26: Maint. & Rehab. | N26: Sediment Removal Setup | O26: 7600 | P26: each | Q26: 1
A27: Granular Base/Subbase | B27: Capital | C27: ASTM No. 2 Subbase | D27: 34.2 | E27: cu. yd. | F27: 1 | G27: 130 | H27: lbs | I27: / | J27: cu. yd. | L27: Combined Sewer Overflow (CSO) | M27: Capital | N27: Plant Capital Cost/gallon/annually | O27: 4.5 | P27: gal. | Q27: 1
A28: Interlocking Concrete Pavement | B28: Maint. & Rehab. | C28: Routine Preventive Maintenance Vacuuming | D28: 800 | E28: acre | F28: 1 | L28: Combined Sewer Overflow (CSO) | M28: Maint. & Rehab. | N28: Plant Operating Cost/annually | O28: 1.5 | P28: gal. | Q28: 1
L29: Pollutant Removal | M29: Maint. & Rehab. | N29: Tier 1 Pollutant Level Target (M.G. per day) | O29: 5850 | P29: each | Q29: 1
L30: Pollutant Removal | M30: Maint. & Rehab. | N30: Tier 2 Pollutant Level Target (M.G. per day) | O30: 1350 | P30: each | Q30: 1
L31: Winter Maintenance | M31: Maint. & Rehab. | N31: Conventional Annual Snow Clearing/Salting/Sanding (per lane-mile) | O31: 4715 | P31: each | Q31: 1
L32: Winter Maintenance | M32: Maint. & Rehab. | N32: Permeable Pavers Annual Snow Clearing/Salting/Sanding (per lane-mile) | O32: 3160 | P32: each | Q32: 1
L33: Paint Striping | M33: Maint. & Rehab. | N33: Paint (yearly) | O33: 0.04 | P33: ft. | Q33: 1
L34: Paint Striping | M34: Maint. & Rehab. | N34: Epoxy Paint (every 4 years) | O34: 0.25 | P34: ft. | Q34: 1
L35: Paint Striping | M35: Maint. & Rehab. | N35: Thermoplastic (every 6 years) | O35: 0.23 | P35: ft. | Q35: 1
L36: Paint Striping | M36: Maint. & Rehab. | N36: Preformed Tape (every 6 years) | O36: 2 | P36: ft. | Q36: 1
L37: Paint Striping | M37: Maint. & Rehab. | N37: Pigment Paver Cost Addition (25 years) | O37: 0.08 | P37: ft. | Q37: 1
L38: Traffic Calming | M38: Capital | N38: Rubber Speed Bumps (25 years) | O38: 1500 | P38: each | Q38: 1
L39: Traffic Calming | M39: Capital | N39: Asphalt Speed Bump (25 years) | O39: 3000 | P39: each | Q39: 1
L40: Traffic Calming | M40: Maint. & Rehab. | N40: Rubber Remove and Install (yearly) | O40: 300 | P40: each | Q40: 1
L41: Traffic Calming | M41: Maint. & Rehab. | N41: Traffic Calming for Pavers (25 years) | O41: 0 | P41: each | Q41: 1
L42: Impervious Surface Fees | M42: Maint. & Rehab. | N42: Annual Fee per 1,000 ft2 | O42: 526.92 | P42: each | Q42: 1
L43: Utility Cut Restoration | M43: Maint. & Rehab. | N43: Remove and Replace Asphalt | O43: 4.5 | P43: sq. ft. | Q43: 1
L44: Utility Cut Restoration | M44: Maint. & Rehab. | N44: Remove and Replace Concrete | O44: 8 | P44: sq. ft. | Q44: 1
L45: Utility Cut Restoration | M45: Maint. & Rehab. | N45: Remove and Replace Pavers | O45: 5 | P45: sq. ft. | Q45: 1
L46: Utility Cut Restoration | M46: Maint. & Rehab. | N46: Pavement Degradation Fee | O46: 2 | P46: sq. ft. | Q46: 1
L47: Utility Cut Restoration | M47: Rehabilitation | N47: Remove and Replace Asphalt | O47: 2 | P47: sq. ft. | Q47: 1

Sheet PICP
A1: Interlocking Concrete Pavement Institute
A2: Lifecycle Cost Analysis Tool
A4: Lifecycle Cost Analysis
A5: Permeable Interlocking Concrete Pavement
A8: =$A$5&" Considerations" -> Permeable Interlocking Concrete Pavement Considerations
A9: INITIAL CONSTRUCTION COSTS
A10: Category | B10: Construction Item Description | C10: Unit Cost | D10: Unit | E10: Quantity / Layer Thickness | F10: Quantity / Layer Thickness Unit | G10: Related Quantity | H10: Total Quantity | I10: Quantity Units | J10: Extended Cost
A11: Interlocking Concrete Pavement | B11: Permeable Paving Stones and Bedding | C11: =IF($A11<>"",IF($B11<>"",VLOOKUP(CONCATENATE($A11,"_",$B11),List_PavtUnitCosts,5,FALSE),""),"") -> 6.5 | D11: =IF($A11<>"",IF($B11<>"",VLOOKUP(CONCATENATE($A11,"_",$B11),List_PavtUnitCosts,6,FALSE),""),"") -> sq. ft. | G11: Pavement Area | H11: =IF($A11<>"",IF($B11<>"",ItemQuantity(A11,B11,D11,E11,F11,G11),""),"") -> 48000 | I11: =IF($A11<>"",IF($B11<>"",IF($G11<>"",$D11,""),""),"") -> sq. ft. | J11: =IF(AND(ISNUMBER($C11),ISNUMBER($H11)),PRODUCT($C11,$H11),"") -> 312000
A12: Granular Base/Subbase | B12: ASTM No. 57 Base | C12: =IF($A12<>"",IF($B12<>"",VLOOKUP(CONCATENATE($A12,"_",$B12),List_PavtUnitCosts,5,FALSE),""),"") -> 34.2 | D12: =IF($A12<>"",IF($B12<>"",VLOOKUP(CONCATENATE($A12,"_",$B12),List_PavtUnitCosts,6,FALSE),""),"") -> cu. yd. | E12: 4 | F12: in. | G12: Pavement Area | H12: =IF($A12<>"",IF($B12<>"",ItemQuantity(A12,B12,D12,E12,F12,G12),""),"") -> 592.5925926 | I12: =IF($A12<>"",IF($B12<>"",IF($G12<>"",$D12,""),""),"") -> cu. yd. | J12: =IF(AND(ISNUMBER($C12),ISNUMBER($H12)),PRODUCT($C12,$H12),"") -> 20266.66667
A13: Granular Base/Subbase | B13: ASTM No. 2 Subbase | C13: 34.2 | D13: cu. yd. | E13: 16 | F13: in. | G13: Pavement Area | H13: =IF($A13<>"",IF($B13<>"",ItemQuantity(A13,B13,D13,E13,F13,G13),""),"") -> 2370.37037 | I13: =IF($A13<>"",IF($B13<>"",IF($G13<>"",$D13,""),""),"") -> cu. yd. | J13: 81066.66667
H14: =IF($A14<>"",IF($B14<>"",ItemQuantity(A14,B14,D14,E14,F14,G14),""),"") -> 
H15: =IF($A15<>"",IF($B15<>"",ItemQuantity(A15,B15,D15,E15,F15,G15),""),"") -> 
H16: =IF($A16<>"",IF($B16<>"",ItemQuantity(A16,B16,D16,E16,F16,G16),""),"") -> 
H17: =IF($A17<>"",IF($B17<>"",ItemQuantity(A17,B17,D17,E17,F17,G17),""),"") -> 
H18: =IF($A18<>"",IF($B18<>"",ItemQuantity(A18,B18,D18,E18,F18,G18),""),"") -> 
I19: Total: | J19: =SUM(J11:J18) -> 413333.3333
A21: MAINTENANCE AND REHABILITATION COSTS | P21: 0 | Q21: 1 | R21: 2 | S21: 3 | T21: 4 | U21: 5 | V21: 6 | W21: 7 | X21: 8 | Y21: 9 | Z21: 10 | AA21: 11 | AB21: 12 | AC21: 13 | AD21: 14 | AE21: 15 | AF21: 16 | AG21: 17 | AH21: 18 | AI21: 19 | AJ21: 20 | AK21: 21 | AL21: 22 | AM21: 23 | AN21: 24 | AO21: 25 | AP21: 26 | AQ21: 27 | AR21: 28 | AS21: 29 | AT21: 30 | AU21: 31 | AV21: 32 | AW21: 33 | AX21: 34 | AY21: 35 | AZ21: 36 | BA21: 37 | BB21: 38 | BC21: 39 | BD21: 40 | BF21: 0 | BG21: 1 | BH21: 2 | BI21: 3 | BJ21: 4 | BK21: 5 | BL21: 6 | BM21: 7 | BN21: 8 | BO21: 9 | BP21: 10 | BQ21: 11 | BR21: 12 | BS21: 13 | BT21: 14 | BU21: 15 | BV21: 16 | BW21: 17 | BX21: 18 | BY21: 19 | BZ21: 20 | CA21: 21 | CB21: 22 | CC21: 23 | CD21: 24 | CE21: 25 | CF21: 26 | CG21: 27 | CH21: 28 | CI21: 29 | CJ21: 30 | CK21: 31 | CL21: 32 | CM21: 33 | CN21: 34 | CO21: 35 | CP21: 36 | CQ21: 37 | CR21: 38 | CS21: 39 | CT21: 40 | CV21: 0 | CW21: 1 | CX21: 2 | CY21: 3 | CZ21: 4 | DA21: 5 | DB21: 6 | DC21: 7 | DD21: 8 | DE21: 9 | DF21: 10 | DG21: 11 | DH21: 12 | DI21: 13 | DJ21: 14 | DK21: 15 | DL21: 16 | DM21: 17 | DN21: 18 | DO21: 19 | DP21: 20 | DQ21: 21 | DR21: 22 | DS21: 23 | DT21: 24 | DU21: 25 | DV21: 26 | DW21: 27 | DX21: 28 | DY21: 29 | DZ21: 30 | EA21: 31 | EB21: 32 | EC21: 33 | ED21: 34 | EE21: 35 | EF21: 36 | EG21: 37 | EH21: 38 | EI21: 39 | EJ21: 40
A22: Category | B22: Cost Description | C22: Unit Cost | D22: Unit | E22: Quantity Multiplier | F22: Quantity Multiplier Unit | G22: Related Quantity Item | H22: Total Quantity | I22: Quantity Units | J22: Distribution Type | K22: Initial Year | L22: Duration | M22: Period | N22: Total NPV Cost | P22: =ConstYear -> 2019 | Q22: 2018 | R22: 2019 | S22: 2020 | T22: 2021 | U22: 2022 | V22: 2023 | W22: 2024 | X22: 2025 | Y22: 2026 | Z22: 2027 | AA22: 2028 | AB22: 2029 | AC22: 2030 | AD22: 2031 | AE22: 2032 | AF22: 2033 | AG22: 2034 | AH22: 2035 | AI22: 2036 | AJ22: 2037 | AK22: 2038 | AL22: 2039 | AM22: 2040 | AN22: 2041 | AO22: 2042 | AP22: 2043 | AQ22: 2044 | AR22: 2045 | AS22: 2046 | AT22: 2047 | AU22: 2048 | AV22: 2049 | AW22: 2050 | AX22: 2051 | AY22: 2052 | AZ22: 2053 | BA22: 2054 | BB22: 2055 | BC22: 2056 | BD22: 2057 | BF22: 2017 | BG22: 2018 | BH22: 2019 | BI22: 2020 | BJ22: 2021 | BK22: 2022 | BL22: 2023 | BM22: 2024 | BN22: 2025 | BO22: 2026 | BP22: 2027 | BQ22: 2028 | BR22: 2029 | BS22: 2030 | BT22: 2031 | BU22: 2032 | BV22: 2033 | BW22: 2034 | BX22: 2035 | BY22: 2036 | BZ22: 2037 | CA22: 2038 | CB22: 2039 | CC22: 2040 | CD22: 2041 | CE22: 2042 | CF22: 2043 | CG22: 2044 | CH22: 2045 | CI22: 2046 | CJ22: 2047 | CK22: 2048 | CL22: 2049 | CM22: 2050 | CN22: 2051 | CO22: 2052 | CP22: 2053 | CQ22: 2054 | CR22: 2055 | CS22: 2056 | CT22: 2057 | CV22: 2017 | CW22: 2018 | CX22: 2019 | CY22: 2020 | CZ22: 2021 | DA22: 2022 | DB22: 2023 | DC22: 2024 | DD22: 2025 | DE22: 2026 | DF22: 2027 | DG22: 2028 | DH22: 2029 | DI22: 2030 | DJ22: 2031 | DK22: 2032 | DL22: 2033 | DM22: 2034 | DN22: 2035 | DO22: 2036 | DP22: 2037 | DQ22: 2038 | DR22: 2039 | DS22: 2040 | DT22: 2041 | DU22: 2042 | DV22: 2043 | DW22: 2044 | DX22: 2045 | DY22: 2046 | DZ22: 2047 | EA22: 2048 | EB22: 2049 | EC22: 2050 | ED22: 2051 | EE22: 2052 | EF22: 2053 | EG22: 2054 | EH22: 2055 | EI22: 2056 | EJ22: 2057
A23: Interlocking Concrete Pavement | B23: Replace Cracked Pavers | C23: =IF($A23<>"",IF($B23<>"",VLOOKUP(CONCATENATE($A23,"_",$B23),List_PavtUnitCosts,5,FALSE),""),"") -> 6 | D23: =IF($A23<>"",IF($B23<>"",VLOOKUP(CONCATENATE($A23,"_",$B23),List_PavtUnitCosts,6,FALSE),""),"") -> sq. ft. | E23: 2 | F23: percent | G23: Pavement Area | H23: =IF($A23<>"",IF($B23<>"",ItemQuantity(A23,B23,D23,E23,F23,G23),""),"") -> 960 | I23: =IF($A23<>"",IF($B23<>"",IF($F23<>"",$D23,""),""),"") -> sq. ft. | J23: One Time | K23: 8 | N23: =IF($A23<>"",IF($B23<>"",SUM(OFFSET($P23,0,AnalysisPeriod*2+4):OFFSET($P23,0,AnalysisPeriod*3+4)),""),"") -> 4208.775581 | P23: =IF($D23<>"",QuantityEstimate($J23,$H23,$E23,IF($K23<100,$K23,$K23-ConstYear),$L23,$M23,P$21),"") -> 0 | Q23: =IF($D23<>"",QuantityEstimate($J23,$H23,$E23,IF($K23<100,$K23,$K23-ConstYear),$L23,$M23,Q$21),"") -> 0 | R23: =IF($D23<>"",QuantityEstimate($J23,$H23,$E23,IF($K23<100,$K23,$K23-ConstYear),$L23,$M23,R$21),"") -> 0 | S23: =IF($D23<>"",QuantityEstimate($J23,$H23,$E23,IF($K23<100,$K23,$K23-ConstYear),$L23,$M23,S$21),"") -> 0 | T23: =IF($D23<>"",QuantityEstimate($J23,$H23,$E23,IF($K23<100,$K23,$K23-ConstYear),$L23,$M23,T$21),"") -> 0 | U23: =IF($D23<>"",QuantityEstimate($J23,$H23,$E23,IF($K23<100,$K23,$K23-ConstYear),$L23,$M23,U$21),"") -> 0 | V23: =IF($D23<>"",QuantityEstimate($J23,$H23,$E23,IF($K23<100,$K23,$K23-ConstYear),$L23,$M23,V$21),"") -> 0 | W23: =IF($D23<>"",QuantityEstimate($J23,$H23,$E23,IF($K23<100,$K23,$K23-ConstYear),$L23,$M23,W$21),"") -> 0 | X23: =IF($D23<>"",QuantityEstimate($J23,$H23,$E23,IF($K23<100,$K23,$K23-ConstYear),$L23,$M23,X$21),"") -> 960 | Y23: =IF($D23<>"",QuantityEstimate($J23,$H23,$E23,IF($K23<100,$K23,$K23-ConstYear),$L23,$M23,Y$21),"") -> 0 | Z23: =IF($D23<>"",QuantityEstimate($J23,$H23,$E23,IF($K23<100,$K23,$K23-ConstYear),$L23,$M23,Z$21),"") -> 0 | AA23: =IF($D23<>"",QuantityEstimate($J23,$H23,$E23,IF($K23<100,$K23,$K23-ConstYear),$L23,$M23,AA$21),"") -> 0 | AB23: =IF($D23<>"",QuantityEstimate($J23,$H23,$E23,IF($K23<100,$K23,$K23-ConstYear),$L23,$M23,AB$21),"") -> 0 | AC23: =IF($D23<>"",QuantityEstimate($J23,$H23,$E23,IF($K23<100,$K23,$K23-ConstYear),$L23,$M23,AC$21),"") -> 0 | AD23: =IF($D23<>"",QuantityEstimate($J23,$H23,$E23,IF($K23<100,$K23,$K23-ConstYear),$L23,$M23,AD$21),"") -> 0 | AE23: =IF($D23<>"",QuantityEstimate($J23,$H23,$E23,IF($K23<100,$K23,$K23-ConstYear),$L23,$M23,AE$21),"") -> 0 | AF23: =IF($D23<>"",QuantityEstimate($J23,$H23,$E23,IF($K23<100,$K23,$K23-ConstYear),$L23,$M23,AF$21),"") -> 0 | AG23: =IF($D23<>"",QuantityEstimate($J23,$H23,$E23,IF($K23<100,$K23,$K23-ConstYear),$L23,$M23,AG$21),"") -> 0 | AH23: =IF($D23<>"",QuantityEstimate($J23,$H23,$E23,IF($K23<100,$K23,$K23-ConstYear),$L23,$M23,AH$21),"") -> 0 | AI23: =IF($D23<>"",QuantityEstimate($J23,$H23,$E23,IF($K23<100,$K23,$K23-ConstYear),$L23,$M23,AI$21),"") -> 0 | AJ23: =IF($D23<>"",QuantityEstimate($J23,$H23,$E23,IF($K23<100,$K23,$K23-ConstYear),$L23,$M23,AJ$21),"") -> 0 | AK23: =IF($D23<>"",QuantityEstimate($J23,$H23,$E23,IF($K23<100,$K23,$K23-ConstYear),$L23,$M23,AK$21),"") -> 0 | AL23: =IF($D23<>"",QuantityEstimate($J23,$H23,$E23,IF($K23<100,$K23,$K23-ConstYear),$L23,$M23,AL$21),"") -> 0 | AM23: =IF($D23<>"",QuantityEstimate($J23,$H23,$E23,IF($K23<100,$K23,$K23-ConstYear),$L23,$M23,AM$21),"") -> 0 | AN23: =IF($D23<>"",QuantityEstimate($J23,$H23,$E23,IF($K23<100,$K23,$K23-ConstYear),$L23,$M23,AN$21),"") -> 0 | AO23: =IF($D23<>"",QuantityEstimate($J23,$H23,$E23,IF($K23<100,$K23,$K23-ConstYear),$L23,$M23,AO$21),"") -> 0 | AP23: =IF($D23<>"",QuantityEstimate($J23,$H23,$E23,IF($K23<100,$K23,$K23-ConstYear),$L23,$M23,AP$21),"") -> 0 | AQ23: =IF($D23<>"",QuantityEstimate($J23,$H23,$E23,IF($K23<100,$K23,$K23-ConstYear),$L23,$M23,AQ$21),"") -> 0 | AR23: =IF($D23<>"",QuantityEstimate($J23,$H23,$E23,IF($K23<100,$K23,$K23-ConstYear),$L23,$M23,AR$21),"") -> 0 | AS23: =IF($D23<>"",QuantityEstimate($J23,$H23,$E23,IF($K23<100,$K23,$K23-ConstYear),$L23,$M23,AS$21),"") -> 0 | AT23: =IF($D23<>"",QuantityEstimate($J23,$H23,$E23,IF($K23<100,$K23,$K23-ConstYear),$L23,$M23,AT$21),"") -> 0 | AU23: =IF($D23<>"",QuantityEstimate($J23,$H23,$E23,IF($K23<100,$K23,$K23-ConstYear),$L23,$M23,AU$21),"") -> 0 | AV23: =IF($D23<>"",QuantityEstimate($J23,$H23,$E23,IF($K23<100,$K23,$K23-ConstYear),$L23,$M23,AV$21),"") -> 0 | AW23: =IF($D23<>"",QuantityEstimate($J23,$H23,$E23,IF($K23<100,$K23,$K23-ConstYear),$L23,$M23,AW$21),"") -> 0 | AX23: =IF($D23<>"",QuantityEstimate($J23,$H23,$E23,IF($K23<100,$K23,$K23-ConstYear),$L23,$M23,AX$21),"") -> 0 | AY23: =IF($D23<>"",QuantityEstimate($J23,$H23,$E23,IF($K23<100,$K23,$K23-ConstYear),$L23,$M23,AY$21),"") -> 0 | AZ23: =IF($D23<>"",QuantityEstimate($J23,$H23,$E23,IF($K23<100,$K23,$K23-ConstYear),$L23,$M23,AZ$21),"") -> 0 | BA23: =IF($D23<>"",QuantityEstimate($J23,$H23,$E23,IF($K23<100,$K23,$K23-ConstYear),$L23,$M23,BA$21),"") -> 0 | BB23: =IF($D23<>"",QuantityEstimate($J23,$H23,$E23,IF($K23<100,$K23,$K23-ConstYear),$L23,$M23,BB$21),"") -> 0 | BC23: =IF($D23<>"",QuantityEstimate($J23,$H23,$E23,IF($K23<100,$K23,$K23-ConstYear),$L23,$M23,BC$21),"") -> 0 | BD23: =IF($D23<>"",QuantityEstimate($J23,$H23,$E23,IF($K23<100,$K23,$K23-ConstYear),$L23,$M23,BD$21),"") -> 0 | BF23: =IF($P$23<>"", $C23*$P$23,"") -> 0 | BG23: =IF($Q$23<>"", $C23*$Q$23,"") -> 0 | BH23: =IF($R$23<>"", $C23*$R$23,"") -> 0 | BI23: =IF($S$23<>"", $C23*$S$23,"") -> 0 | BJ23: =IF($T$23<>"", $C23*$T$23,"") -> 0 | BK23: =IF($U$23<>"", $C23*$U$23,"") -> 0 | BL23: =IF($V$23<>"", $C23*$V$23,"") -> 0 | BM23: =IF($W$23<>"", $C23*$W$23,"") -> 0 | BN23: =IF($X$23<>"", $C23*$X$23,"") -> 5760 | BO23: =IF($Y$23<>"", $C23*$Y$23,"") -> 0 | BP23: =IF($Z$23<>"", $C23*$Z$23,"") -> 0 | BQ23: =IF($AA$23<>"", $C23*$AA$23,"") -> 0 | BR23: =IF($AB$23<>"", $C23*$AB$23,"") -> 0 | BS23: =IF($AC$23<>"", $C23*$AC$23,"") -> 0 | BT23: =IF($AD$23<>"", $C23*$AD$23,"") -> 0 | BU23: =IF($AE$23<>"", $C23*$AE$23,"") -> 0 | BV23: =IF($AF$23<>"", $C23*$AF$23,"") -> 0 | BW23: =IF($AG$23<>"", $C23*$AG$23,"") -> 0 | BX23: =IF($AH$23<>"", $C23*$AH$23,"") -> 0 | BY23: =IF($AI$23<>"", $C23*$AI$23,"") -> 0 | BZ23: =IF($AJ$23<>"", $C23*$AJ$23,"") -> 0 | CA23: =IF($AK$23<>"", $C23*$AK$23,"") -> 0 | CB23: =IF($AL$23<>"", $C23*$AL$23,"") -> 0 | CC23: =IF($AM$23<>"", $C23*$AM$23,"") -> 0 | CD23: =IF($AN$23<>"", $C23*$AN$23,"") -> 0 | CE23: =IF($AO$23<>"", $C23*$AO$23,"") -> 0 | CF23: =IF($AP$23<>"", $C23*$AP$23,"") -> 0 | CG23: =IF($AQ$23<>"", $C23*$AQ$23,"") -> 0 | CH23: =IF($AR$23<>"", $C23*$AR$23,"") -> 0 | CI23: =IF($AS$23<>"", $C23*$AS$23,"") -> 0 | CJ23: =IF($AT$23<>"", $C23*$AT$23,"") -> 0 | CK23: =IF($AU$23<>"", $C23*$AU$23,"") -> 0 | CL23: =IF($AV$23<>"", $C23*$AV$23,"") -> 0 | CM23: =IF($AW$23<>"", $C23*$AW$23,"") -> 0 | CN23: =IF($AX$23<>"", $C23*$AX$23,"") -> 0 | CO23: =IF($AY$23<>"", $C23*$AY$23,"") -> 0 | CP23: =IF($AZ$23<>"", $C23*$AZ$23,"") -> 0 | CQ23: =IF($BA$23<>"", $C23*$BA$23,"") -> 0 | CR23: =IF($BB$23<>"", $C23*$BB$23,"") -> 0 | CS23: =IF($BC$23<>"", $C23*$BC$23,"") -> 0 | CT23: =IF($BD$23<>"", $C23*$BD$23,"") -> 0 | CV23: =IF($P$23<>"",$BF$23/(1 + DiscountRate) ^ $CV$21,"") -> 0 | CW23: =IF($Q$23<>"",$BG$23/(1 + DiscountRate) ^ $CW$21,"") -> 0 | CX23: =IF($R$23<>"",$BH$23/(1 + DiscountRate) ^ $CX$21,"") -> 0 | CY23: =IF($S$23<>"",$BI$23/(1 + DiscountRate) ^ $CY$21,"") -> 0 | CZ23: =IF($T$23<>"",$BJ$23/(1 + DiscountRate) ^ $CZ$21,"") -> 0 | DA23: =IF($U$23<>"",$BK$23/(1 + DiscountRate) ^ $DA$21,"") -> 0 | DB23: =IF($V$23<>"",$BL$23/(1 + DiscountRate) ^ $DB$21,"") -> 0 | DC23: =IF($W$23<>"",$BM$23/(1 + DiscountRate) ^ $DC$21,"") -> 0 | DD23: =IF($X$23<>"",$BN$23/(1 + DiscountRate) ^ $DD$21,"") -> 4208.775581 | DE23: =IF($Y$23<>"",$BO$23/(1 + DiscountRate) ^ $DE$21,"") -> 0 | DF23: =IF($Z$23<>"",$BP$23/(1 + DiscountRate) ^ $DF$21,"") -> 0 | DG23: =IF($AA$23<>"",$BQ$23/(1 + DiscountRate) ^ $DG$21,"") -> 0 | DH23: =IF($AB$23<>"",$BR$23/(1 + DiscountRate) ^ $DH$21,"") -> 0 | DI23: =IF($AC$23<>"",$BS$23/(1 + DiscountRate) ^ $DI$21,"") -> 0 | DJ23: =IF($AD$23<>"",$BT$23/(1 + DiscountRate) ^ $DJ$21,"") -> 0 | DK23: =IF($AE$23<>"",$BU$23/(1 + DiscountRate) ^ $DK$21,"") -> 0 | DL23: =IF($AF$23<>"",$BV$23/(1 + DiscountRate) ^ $DL$21,"") -> 0 | DM23: =IF($AG$23<>"",$BW$23/(1 + DiscountRate) ^ $DM$21,"") -> 0 | DN23: =IF($AH$23<>"",$BX$23/(1 + DiscountRate) ^ $DN$21,"") -> 0 | DO23: =IF($AI$23<>"",$BY$23/(1 + DiscountRate) ^ $DO$21,"") -> 0 | DP23: =IF($AJ$23<>"",$BZ$23/(1 + DiscountRate) ^ $DP$21,"") -> 0 | DQ23: =IF($AK$23<>"",$CA$23/(1 + DiscountRate) ^ $DQ$21,"") -> 0 | DR23: =IF($AL$23<>"",$CB$23/(1 + DiscountRate) ^ $DR$21,"") -> 0 | DS23: =IF($AM$23<>"",$CC$23/(1 + DiscountRate) ^ $DS$21,"") -> 0 | DT23: =IF($AN$23<>"",$CD$23/(1 + DiscountRate) ^ $DT$21,"") -> 0 | DU23: =IF($AO$23<>"",$CE$23/(1 + DiscountRate) ^ $DU$21,"") -> 0 | DV23: =IF($AP$23<>"",$CF$23/(1 + DiscountRate) ^ $DV$21,"") -> 0 | DW23: =IF($AQ$23<>"",$CG$23/(1 + DiscountRate) ^ $DW$21,"") -> 0 | DX23: =IF($AR$23<>"",$CH$23/(1 + DiscountRate) ^ $DX$21,"") -> 0 | DY23: =IF($AS$23<>"",$CI$23/(1 + DiscountRate) ^ $DY$21,"") -> 0 | DZ23: =IF($AT$23<>"",$CJ$23/(1 + DiscountRate) ^ $DZ$21,"") -> 0 | EA23: =IF($AU$23<>"",$CK$23/(1 + DiscountRate) ^ $EA$21,"") -> 0 | EB23: =IF($AV$23<>"",$CL$23/(1 + DiscountRate) ^ $EB$21,"") -> 0 | EC23: =IF($AW$23<>"",$CM$23/(1 + DiscountRate) ^ $EC$21,"") -> 0 | ED23: =IF($AX$23<>"",$CN$23/(1 + DiscountRate) ^ $ED$21,"") -> 0 | EE23: =IF($AY$23<>"",$CO$23/(1 + DiscountRate) ^ $EE$21,"") -> 0 | EF23: =IF($AZ$23<>"",$CP$23/(1 + DiscountRate) ^ $EF$21,"") -> 0 | EG23: =IF($BA$23<>"",$CQ$23/(1 + DiscountRate) ^ $EG$21,"") -> 0 | EH23: =IF($BB$23<>"",$CR$23/(1 + DiscountRate) ^ $EH$21,"") -> 0 | EI23: =IF($BC$23<>"",$CS$23/(1 + DiscountRate) ^ $EI$21,"") -> 0 | EJ23: =IF($BD$23<>"",$CT$23/(1 + DiscountRate) ^ $EJ$21,"") -> 0
A24: Interlocking Concrete Pavement | B24: Replace Worn/Rutted Pavers (wheelpath) | C24: =IF($A24<>"",IF($B24<>"",VLOOKUP(CONCATENATE($A24,"_",$B24),List_PavtUnitCosts,5,FALSE),""),"") -> 12 | D24: =IF($A24<>"",IF($B24<>"",VLOOKUP(CONCATENATE($A24,"_",$B24),List_PavtUnitCosts,6,FALSE),""),"") -> sq. ft. | E24: 5 | F24: percent | G24: Pavement Area | H24: =IF($A24<>"",IF($B24<>"",ItemQuantity(A24,B24,D24,E24,F24,G24),""),"") -> 2400 | I24: sq. ft. | J24: One Time | K24: 20 | N24: =IF($A24<>"",IF($B24<>"",SUM(OFFSET($P24,0,AnalysisPeriod*2+4):OFFSET($P24,0,AnalysisPeriod*3+4)),""),"") -> 13143.94405 | P24: =IF($D24<>"",QuantityEstimate($J24,$H24,$E24,IF($K24<100,$K24,$K24-ConstYear),$L24,$M24,P$21),"") -> 0 | Q24: =IF($D24<>"",QuantityEstimate($J24,$H24,$E24,IF($K24<100,$K24,$K24-ConstYear),$L24,$M24,Q$21),"") -> 0 | R24: =IF($D24<>"",QuantityEstimate($J24,$H24,$E24,IF($K24<100,$K24,$K24-ConstYear),$L24,$M24,R$21),"") -> 0 | S24: =IF($D24<>"",QuantityEstimate($J24,$H24,$E24,IF($K24<100,$K24,$K24-ConstYear),$L24,$M24,S$21),"") -> 0 | T24: =IF($D24<>"",QuantityEstimate($J24,$H24,$E24,IF($K24<100,$K24,$K24-ConstYear),$L24,$M24,T$21),"") -> 0 | U24: =IF($D24<>"",QuantityEstimate($J24,$H24,$E24,IF($K24<100,$K24,$K24-ConstYear),$L24,$M24,U$21),"") -> 0 | V24: =IF($D24<>"",QuantityEstimate($J24,$H24,$E24,IF($K24<100,$K24,$K24-ConstYear),$L24,$M24,V$21),"") -> 0 | W24: =IF($D24<>"",QuantityEstimate($J24,$H24,$E24,IF($K24<100,$K24,$K24-ConstYear),$L24,$M24,W$21),"") -> 0 | X24: =IF($D24<>"",QuantityEstimate($J24,$H24,$E24,IF($K24<100,$K24,$K24-ConstYear),$L24,$M24,X$21),"") -> 0 | Y24: =IF($D24<>"",QuantityEstimate($J24,$H24,$E24,IF($K24<100,$K24,$K24-ConstYear),$L24,$M24,Y$21),"") -> 0 | Z24: =IF($D24<>"",QuantityEstimate($J24,$H24,$E24,IF($K24<100,$K24,$K24-ConstYear),$L24,$M24,Z$21),"") -> 0 | AA24: =IF($D24<>"",QuantityEstimate($J24,$H24,$E24,IF($K24<100,$K24,$K24-ConstYear),$L24,$M24,AA$21),"") -> 0 | AB24: =IF($D24<>"",QuantityEstimate($J24,$H24,$E24,IF($K24<100,$K24,$K24-ConstYear),$L24,$M24,AB$21),"") -> 0 | AC24: =IF($D24<>"",QuantityEstimate($J24,$H24,$E24,IF($K24<100,$K24,$K24-ConstYear),$L24,$M24,AC$21),"") -> 0 | AD24: =IF($D24<>"",QuantityEstimate($J24,$H24,$E24,IF($K24<100,$K24,$K24-ConstYear),$L24,$M24,AD$21),"") -> 0 | AE24: =IF($D24<>"",QuantityEstimate($J24,$H24,$E24,IF($K24<100,$K24,$K24-ConstYear),$L24,$M24,AE$21),"") -> 0 | AF24: =IF($D24<>"",QuantityEstimate($J24,$H24,$E24,IF($K24<100,$K24,$K24-ConstYear),$L24,$M24,AF$21),"") -> 0 | AG24: =IF($D24<>"",QuantityEstimate($J24,$H24,$E24,IF($K24<100,$K24,$K24-ConstYear),$L24,$M24,AG$21),"") -> 0 | AH24: =IF($D24<>"",QuantityEstimate($J24,$H24,$E24,IF($K24<100,$K24,$K24-ConstYear),$L24,$M24,AH$21),"") -> 0 | AI24: =IF($D24<>"",QuantityEstimate($J24,$H24,$E24,IF($K24<100,$K24,$K24-ConstYear),$L24,$M24,AI$21),"") -> 0 | AJ24: =IF($D24<>"",QuantityEstimate($J24,$H24,$E24,IF($K24<100,$K24,$K24-ConstYear),$L24,$M24,AJ$21),"") -> 2400 | AK24: =IF($D24<>"",QuantityEstimate($J24,$H24,$E24,IF($K24<100,$K24,$K24-ConstYear),$L24,$M24,AK$21),"") -> 0 | AL24: =IF($D24<>"",QuantityEstimate($J24,$H24,$E24,IF($K24<100,$K24,$K24-ConstYear),$L24,$M24,AL$21),"") -> 0 | AM24: =IF($D24<>"",QuantityEstimate($J24,$H24,$E24,IF($K24<100,$K24,$K24-ConstYear),$L24,$M24,AM$21),"") -> 0 | AN24: =IF($D24<>"",QuantityEstimate($J24,$H24,$E24,IF($K24<100,$K24,$K24-ConstYear),$L24,$M24,AN$21),"") -> 0 | AO24: =IF($D24<>"",QuantityEstimate($J24,$H24,$E24,IF($K24<100,$K24,$K24-ConstYear),$L24,$M24,AO$21),"") -> 0 | AP24: =IF($D24<>"",QuantityEstimate($J24,$H24,$E24,IF($K24<100,$K24,$K24-ConstYear),$L24,$M24,AP$21),"") -> 0 | AQ24: =IF($D24<>"",QuantityEstimate($J24,$H24,$E24,IF($K24<100,$K24,$K24-ConstYear),$L24,$M24,AQ$21),"") -> 0 | AR24: =IF($D24<>"",QuantityEstimate($J24,$H24,$E24,IF($K24<100,$K24,$K24-ConstYear),$L24,$M24,AR$21),"") -> 0 | AS24: =IF($D24<>"",QuantityEstimate($J24,$H24,$E24,IF($K24<100,$K24,$K24-ConstYear),$L24,$M24,AS$21),"") -> 0 | AT24: =IF($D24<>"",QuantityEstimate($J24,$H24,$E24,IF($K24<100,$K24,$K24-ConstYear),$L24,$M24,AT$21),"") -> 0 | AU24: =IF($D24<>"",QuantityEstimate($J24,$H24,$E24,IF($K24<100,$K24,$K24-ConstYear),$L24,$M24,AU$21),"") -> 0 | AV24: =IF($D24<>"",QuantityEstimate($J24,$H24,$E24,IF($K24<100,$K24,$K24-ConstYear),$L24,$M24,AV$21),"") -> 0 | AW24: =IF($D24<>"",QuantityEstimate($J24,$H24,$E24,IF($K24<100,$K24,$K24-ConstYear),$L24,$M24,AW$21),"") -> 0 | AX24: =IF($D24<>"",QuantityEstimate($J24,$H24,$E24,IF($K24<100,$K24,$K24-ConstYear),$L24,$M24,AX$21),"") -> 0 | AY24: =IF($D24<>"",QuantityEstimate($J24,$H24,$E24,IF($K24<100,$K24,$K24-ConstYear),$L24,$M24,AY$21),"") -> 0 | AZ24: =IF($D24<>"",QuantityEstimate($J24,$H24,$E24,IF($K24<100,$K24,$K24-ConstYear),$L24,$M24,AZ$21),"") -> 0 | BA24: =IF($D24<>"",QuantityEstimate($J24,$H24,$E24,IF($K24<100,$K24,$K24-ConstYear),$L24,$M24,BA$21),"") -> 0 | BB24: =IF($D24<>"",QuantityEstimate($J24,$H24,$E24,IF($K24<100,$K24,$K24-ConstYear),$L24,$M24,BB$21),"") -> 0 | BC24: =IF($D24<>"",QuantityEstimate($J24,$H24,$E24,IF($K24<100,$K24,$K24-ConstYear),$L24,$M24,BC$21),"") -> 0 | BD24: =IF($D24<>"",QuantityEstimate($J24,$H24,$E24,IF($K24<100,$K24,$K24-ConstYear),$L24,$M24,BD$21),"") -> 0 | BF24: =IF($P$24<>"", $C24*$P$24,"") -> 0 | BG24: =IF($Q$24<>"", $C24*$Q$24,"") -> 0 | BH24: =IF($R$24<>"", $C24*$R$24,"") -> 0 | BI24: =IF($S$24<>"", $C24*$S$24,"") -> 0 | BJ24: =IF($T$24<>"", $C24*$T$24,"") -> 0 | BK24: =IF($U$24<>"", $C24*$U$24,"") -> 0 | BL24: =IF($V$24<>"", $C24*$V$24,"") -> 0 | BM24: =IF($W$24<>"", $C24*$W$24,"") -> 0 | BN24: =IF($X$24<>"", $C24*$X$24,"") -> 0 | BO24: =IF($Y$24<>"", $C24*$Y$24,"") -> 0 | BP24: =IF($Z$24<>"", $C24*$Z$24,"") -> 0 | BQ24: =IF($AA$24<>"", $C24*$AA$24,"") -> 0 | BR24: =IF($AB$24<>"", $C24*$AB$24,"") -> 0 | BS24: =IF($AC$24<>"", $C24*$AC$24,"") -> 0 | BT24: =IF($AD$24<>"", $C24*$AD$24,"") -> 0 | BU24: =IF($AE$24<>"", $C24*$AE$24,"") -> 0 | BV24: =IF($AF$24<>"", $C24*$AF$24,"") -> 0 | BW24: =IF($AG$24<>"", $C24*$AG$24,"") -> 0 | BX24: =IF($AH$24<>"", $C24*$AH$24,"") -> 0 | BY24: =IF($AI$24<>"", $C24*$AI$24,"") -> 0 | BZ24: =IF($AJ$24<>"", $C24*$AJ$24,"") -> 28800 | CA24: =IF($AK$24<>"", $C24*$AK$24,"") -> 0 | CB24: =IF($AL$24<>"", $C24*$AL$24,"") -> 0 | CC24: =IF($AM$24<>"", $C24*$AM$24,"") -> 0 | CD24: =IF($AN$24<>"", $C24*$AN$24,"") -> 0 | CE24: =IF($AO$24<>"", $C24*$AO$24,"") -> 0 | CF24: =IF($AP$24<>"", $C24*$AP$24,"") -> 0 | CG24: =IF($AQ$24<>"", $C24*$AQ$24,"") -> 0 | CH24: =IF($AR$24<>"", $C24*$AR$24,"") -> 0 | CI24: =IF($AS$24<>"", $C24*$AS$24,"") -> 0 | CJ24: =IF($AT$24<>"", $C24*$AT$24,"") -> 0 | CK24: =IF($AU$24<>"", $C24*$AU$24,"") -> 0 | CL24: =IF($AV$24<>"", $C24*$AV$24,"") -> 0 | CM24: =IF($AW$24<>"", $C24*$AW$24,"") -> 0 | CN24: =IF($AX$24<>"", $C24*$AX$24,"") -> 0 | CO24: =IF($AY$24<>"", $C24*$AY$24,"") -> 0 | CP24: =IF($AZ$24<>"", $C24*$AZ$24,"") -> 0 | CQ24: =IF($BA$24<>"", $C24*$BA$24,"") -> 0 | CR24: =IF($BB$24<>"", $C24*$BB$24,"") -> 0 | CS24: =IF($BC$24<>"", $C24*$BC$24,"") -> 0 | CT24: =IF($BD$24<>"", $C24*$BD$24,"") -> 0 | CV24: =IF($P$24<>"",$BF$24/(1 + DiscountRate) ^ $CV$21,"") -> 0 | CW24: =IF($Q$24<>"",$BG$24/(1 + DiscountRate) ^ $CW$21,"") -> 0 | CX24: =IF($R$24<>"",$BH$24/(1 + DiscountRate) ^ $CX$21,"") -> 0 | CY24: =IF($S$24<>"",$BI$24/(1 + DiscountRate) ^ $CY$21,"") -> 0 | CZ24: =IF($T$24<>"",$BJ$24/(1 + DiscountRate) ^ $CZ$21,"") -> 0 | DA24: =IF($U$24<>"",$BK$24/(1 + DiscountRate) ^ $DA$21,"") -> 0 | DB24: =IF($V$24<>"",$BL$24/(1 + DiscountRate) ^ $DB$21,"") -> 0 | DC24: =IF($W$24<>"",$BM$24/(1 + DiscountRate) ^ $DC$21,"") -> 0 | DD24: =IF($X$24<>"",$BN$24/(1 + DiscountRate) ^ $DD$21,"") -> 0 | DE24: =IF($Y$24<>"",$BO$24/(1 + DiscountRate) ^ $DE$21,"") -> 0 | DF24: =IF($Z$24<>"",$BP$24/(1 + DiscountRate) ^ $DF$21,"") -> 0 | DG24: =IF($AA$24<>"",$BQ$24/(1 + DiscountRate) ^ $DG$21,"") -> 0 | DH24: =IF($AB$24<>"",$BR$24/(1 + DiscountRate) ^ $DH$21,"") -> 0 | DI24: =IF($AC$24<>"",$BS$24/(1 + DiscountRate) ^ $DI$21,"") -> 0 | DJ24: =IF($AD$24<>"",$BT$24/(1 + DiscountRate) ^ $DJ$21,"") -> 0 | DK24: =IF($AE$24<>"",$BU$24/(1 + DiscountRate) ^ $DK$21,"") -> 0 | DL24: =IF($AF$24<>"",$BV$24/(1 + DiscountRate) ^ $DL$21,"") -> 0 | DM24: =IF($AG$24<>"",$BW$24/(1 + DiscountRate) ^ $DM$21,"") -> 0 | DN24: =IF($AH$24<>"",$BX$24/(1 + DiscountRate) ^ $DN$21,"") -> 0 | DO24: =IF($AI$24<>"",$BY$24/(1 + DiscountRate) ^ $DO$21,"") -> 0 | DP24: =IF($AJ$24<>"",$BZ$24/(1 + DiscountRate) ^ $DP$21,"") -> 13143.94405 | DQ24: =IF($AK$24<>"",$CA$24/(1 + DiscountRate) ^ $DQ$21,"") -> 0 | DR24: =IF($AL$24<>"",$CB$24/(1 + DiscountRate) ^ $DR$21,"") -> 0 | DS24: =IF($AM$24<>"",$CC$24/(1 + DiscountRate) ^ $DS$21,"") -> 0 | DT24: =IF($AN$24<>"",$CD$24/(1 + DiscountRate) ^ $DT$21,"") -> 0 | DU24: =IF($AO$24<>"",$CE$24/(1 + DiscountRate) ^ $DU$21,"") -> 0 | DV24: =IF($AP$24<>"",$CF$24/(1 + DiscountRate) ^ $DV$21,"") -> 0 | DW24: =IF($AQ$24<>"",$CG$24/(1 + DiscountRate) ^ $DW$21,"") -> 0 | DX24: =IF($AR$24<>"",$CH$24/(1 + DiscountRate) ^ $DX$21,"") -> 0 | DY24: =IF($AS$24<>"",$CI$24/(1 + DiscountRate) ^ $DY$21,"") -> 0 | DZ24: =IF($AT$24<>"",$CJ$24/(1 + DiscountRate) ^ $DZ$21,"") -> 0 | EA24: =IF($AU$24<>"",$CK$24/(1 + DiscountRate) ^ $EA$21,"") -> 0 | EB24: =IF($AV$24<>"",$CL$24/(1 + DiscountRate) ^ $EB$21,"") -> 0 | EC24: =IF($AW$24<>"",$CM$24/(1 + DiscountRate) ^ $EC$21,"") -> 0 | ED24: =IF($AX$24<>"",$CN$24/(1 + DiscountRate) ^ $ED$21,"") -> 0 | EE24: =IF($AY$24<>"",$CO$24/(1 + DiscountRate) ^ $EE$21,"") -> 0 | EF24: =IF($AZ$24<>"",$CP$24/(1 + DiscountRate) ^ $EF$21,"") -> 0 | EG24: =IF($BA$24<>"",$CQ$24/(1 + DiscountRate) ^ $EG$21,"") -> 0 | EH24: =IF($BB$24<>"",$CR$24/(1 + DiscountRate) ^ $EH$21,"") -> 0 | EI24: =IF($BC$24<>"",$CS$24/(1 + DiscountRate) ^ $EI$21,"") -> 0 | EJ24: =IF($BD$24<>"",$CT$24/(1 + DiscountRate) ^ $EJ$21,"") -> 0
A25: Interlocking Concrete Pavement | B25: Routine Preventive Maintenance Vacuuming | C25: 800 | D25: =IF($A25<>"",IF($B25<>"",VLOOKUP(CONCATENATE($A25,"_",$B25),List_PavtUnitCosts,6,FALSE),""),"") -> acre | E25: 100 | F25: percent | G25: Pavement Area | H25: =IF($A25<>"",IF($B25<>"",ItemQuantity(A25,B25,D25,E25,F25,G25),""),"") -> 1.101928375 | I25: acre | J25: Uniform | K25: 0 | L25: 40 | N25: =IF($A25<>"",IF($B25<>"",SUM(OFFSET($P25,0,AnalysisPeriod*2+4):OFFSET($P25,0,AnalysisPeriod*3+4)),""),"") -> 18146.10234 | P25: =IF($D25<>"",QuantityEstimate($J25,$H25,$E25,IF($K25<100,$K25,$K25-ConstYear),$L25,$M25,P$21),"") -> 1.101928375 | Q25: =IF($D25<>"",QuantityEstimate($J25,$H25,$E25,IF($K25<100,$K25,$K25-ConstYear),$L25,$M25,Q$21),"") -> 1.101928375 | R25: =IF($D25<>"",QuantityEstimate($J25,$H25,$E25,IF($K25<100,$K25,$K25-ConstYear),$L25,$M25,R$21),"") -> 1.101928375 | S25: =IF($D25<>"",QuantityEstimate($J25,$H25,$E25,IF($K25<100,$K25,$K25-ConstYear),$L25,$M25,S$21),"") -> 1.101928375 | T25: =IF($D25<>"",QuantityEstimate($J25,$H25,$E25,IF($K25<100,$K25,$K25-ConstYear),$L25,$M25,T$21),"") -> 1.101928375 | U25: =IF($D25<>"",QuantityEstimate($J25,$H25,$E25,IF($K25<100,$K25,$K25-ConstYear),$L25,$M25,U$21),"") -> 1.101928375 | V25: =IF($D25<>"",QuantityEstimate($J25,$H25,$E25,IF($K25<100,$K25,$K25-ConstYear),$L25,$M25,V$21),"") -> 1.101928375 | W25: =IF($D25<>"",QuantityEstimate($J25,$H25,$E25,IF($K25<100,$K25,$K25-ConstYear),$L25,$M25,W$21),"") -> 1.101928375 | X25: =IF($D25<>"",QuantityEstimate($J25,$H25,$E25,IF($K25<100,$K25,$K25-ConstYear),$L25,$M25,X$21),"") -> 1.101928375 | Y25: =IF($D25<>"",QuantityEstimate($J25,$H25,$E25,IF($K25<100,$K25,$K25-ConstYear),$L25,$M25,Y$21),"") -> 1.101928375 | Z25: =IF($D25<>"",QuantityEstimate($J25,$H25,$E25,IF($K25<100,$K25,$K25-ConstYear),$L25,$M25,Z$21),"") -> 1.101928375 | AA25: =IF($D25<>"",QuantityEstimate($J25,$H25,$E25,IF($K25<100,$K25,$K25-ConstYear),$L25,$M25,AA$21),"") -> 1.101928375 | AB25: =IF($D25<>"",QuantityEstimate($J25,$H25,$E25,IF($K25<100,$K25,$K25-ConstYear),$L25,$M25,AB$21),"") -> 1.101928375 | AC25: =IF($D25<>"",QuantityEstimate($J25,$H25,$E25,IF($K25<100,$K25,$K25-ConstYear),$L25,$M25,AC$21),"") -> 1.101928375 | AD25: =IF($D25<>"",QuantityEstimate($J25,$H25,$E25,IF($K25<100,$K25,$K25-ConstYear),$L25,$M25,AD$21),"") -> 1.101928375 | AE25: =IF($D25<>"",QuantityEstimate($J25,$H25,$E25,IF($K25<100,$K25,$K25-ConstYear),$L25,$M25,AE$21),"") -> 1.101928375 | AF25: =IF($D25<>"",QuantityEstimate($J25,$H25,$E25,IF($K25<100,$K25,$K25-ConstYear),$L25,$M25,AF$21),"") -> 1.101928375 | AG25: =IF($D25<>"",QuantityEstimate($J25,$H25,$E25,IF($K25<100,$K25,$K25-ConstYear),$L25,$M25,AG$21),"") -> 1.101928375 | AH25: =IF($D25<>"",QuantityEstimate($J25,$H25,$E25,IF($K25<100,$K25,$K25-ConstYear),$L25,$M25,AH$21),"") -> 1.101928375 | AI25: =IF($D25<>"",QuantityEstimate($J25,$H25,$E25,IF($K25<100,$K25,$K25-ConstYear),$L25,$M25,AI$21),"") -> 1.101928375 | AJ25: =IF($D25<>"",QuantityEstimate($J25,$H25,$E25,IF($K25<100,$K25,$K25-ConstYear),$L25,$M25,AJ$21),"") -> 1.101928375 | AK25: =IF($D25<>"",QuantityEstimate($J25,$H25,$E25,IF($K25<100,$K25,$K25-ConstYear),$L25,$M25,AK$21),"") -> 1.101928375 | AL25: =IF($D25<>"",QuantityEstimate($J25,$H25,$E25,IF($K25<100,$K25,$K25-ConstYear),$L25,$M25,AL$21),"") -> 1.101928375 | AM25: =IF($D25<>"",QuantityEstimate($J25,$H25,$E25,IF($K25<100,$K25,$K25-ConstYear),$L25,$M25,AM$21),"") -> 1.101928375 | AN25: =IF($D25<>"",QuantityEstimate($J25,$H25,$E25,IF($K25<100,$K25,$K25-ConstYear),$L25,$M25,AN$21),"") -> 1.101928375 | AO25: =IF($D25<>"",QuantityEstimate($J25,$H25,$E25,IF($K25<100,$K25,$K25-ConstYear),$L25,$M25,AO$21),"") -> 1.101928375 | AP25: =IF($D25<>"",QuantityEstimate($J25,$H25,$E25,IF($K25<100,$K25,$K25-ConstYear),$L25,$M25,AP$21),"") -> 1.101928375 | AQ25: =IF($D25<>"",QuantityEstimate($J25,$H25,$E25,IF($K25<100,$K25,$K25-ConstYear),$L25,$M25,AQ$21),"") -> 1.101928375 | AR25: =IF($D25<>"",QuantityEstimate($J25,$H25,$E25,IF($K25<100,$K25,$K25-ConstYear),$L25,$M25,AR$21),"") -> 1.101928375 | AS25: =IF($D25<>"",QuantityEstimate($J25,$H25,$E25,IF($K25<100,$K25,$K25-ConstYear),$L25,$M25,AS$21),"") -> 1.101928375 | AT25: =IF($D25<>"",QuantityEstimate($J25,$H25,$E25,IF($K25<100,$K25,$K25-ConstYear),$L25,$M25,AT$21),"") -> 1.101928375 | AU25: =IF($D25<>"",QuantityEstimate($J25,$H25,$E25,IF($K25<100,$K25,$K25-ConstYear),$L25,$M25,AU$21),"") -> 1.101928375 | AV25: =IF($D25<>"",QuantityEstimate($J25,$H25,$E25,IF($K25<100,$K25,$K25-ConstYear),$L25,$M25,AV$21),"") -> 1.101928375 | AW25: =IF($D25<>"",QuantityEstimate($J25,$H25,$E25,IF($K25<100,$K25,$K25-ConstYear),$L25,$M25,AW$21),"") -> 1.101928375 | AX25: =IF($D25<>"",QuantityEstimate($J25,$H25,$E25,IF($K25<100,$K25,$K25-ConstYear),$L25,$M25,AX$21),"") -> 1.101928375 | AY25: =IF($D25<>"",QuantityEstimate($J25,$H25,$E25,IF($K25<100,$K25,$K25-ConstYear),$L25,$M25,AY$21),"") -> 1.101928375 | AZ25: =IF($D25<>"",QuantityEstimate($J25,$H25,$E25,IF($K25<100,$K25,$K25-ConstYear),$L25,$M25,AZ$21),"") -> 1.101928375 | BA25: =IF($D25<>"",QuantityEstimate($J25,$H25,$E25,IF($K25<100,$K25,$K25-ConstYear),$L25,$M25,BA$21),"") -> 1.101928375 | BB25: =IF($D25<>"",QuantityEstimate($J25,$H25,$E25,IF($K25<100,$K25,$K25-ConstYear),$L25,$M25,BB$21),"") -> 1.101928375 | BC25: =IF($D25<>"",QuantityEstimate($J25,$H25,$E25,IF($K25<100,$K25,$K25-ConstYear),$L25,$M25,BC$21),"") -> 1.101928375 | BD25: =IF($D25<>"",QuantityEstimate($J25,$H25,$E25,IF($K25<100,$K25,$K25-ConstYear),$L25,$M25,BD$21),"") -> 0 | BF25: =IF($P$25<>"", $C25*$P$25,"") -> 881.5426997 | BG25: =IF($Q$25<>"", $C25*$Q$25,"") -> 881.5426997 | BH25: =IF($R$25<>"", $C25*$R$25,"") -> 881.5426997 | BI25: =IF($S$25<>"", $C25*$S$25,"") -> 881.5426997 | BJ25: =IF($T$25<>"", $C25*$T$25,"") -> 881.5426997 | BK25: =IF($U$25<>"", $C25*$U$25,"") -> 881.5426997 | BL25: =IF($V$25<>"", $C25*$V$25,"") -> 881.5426997 | BM25: =IF($W$25<>"", $C25*$W$25,"") -> 881.5426997 | BN25: =IF($X$25<>"", $C25*$X$25,"") -> 881.5426997 | BO25: =IF($Y$25<>"", $C25*$Y$25,"") -> 881.5426997 | BP25: =IF($Z$25<>"", $C25*$Z$25,"") -> 881.5426997 | BQ25: =IF($AA$25<>"", $C25*$AA$25,"") -> 881.5426997 | BR25: =IF($AB$25<>"", $C25*$AB$25,"") -> 881.5426997 | BS25: =IF($AC$25<>"", $C25*$AC$25,"") -> 881.5426997 | BT25: =IF($AD$25<>"", $C25*$AD$25,"") -> 881.5426997 | BU25: =IF($AE$25<>"", $C25*$AE$25,"") -> 881.5426997 | BV25: =IF($AF$25<>"", $C25*$AF$25,"") -> 881.5426997 | BW25: =IF($AG$25<>"", $C25*$AG$25,"") -> 881.5426997 | BX25: =IF($AH$25<>"", $C25*$AH$25,"") -> 881.5426997 | BY25: =IF($AI$25<>"", $C25*$AI$25,"") -> 881.5426997 | BZ25: =IF($AJ$25<>"", $C25*$AJ$25,"") -> 881.5426997 | CA25: =IF($AK$25<>"", $C25*$AK$25,"") -> 881.5426997 | CB25: =IF($AL$25<>"", $C25*$AL$25,"") -> 881.5426997 | CC25: =IF($AM$25<>"", $C25*$AM$25,"") -> 881.5426997 | CD25: =IF($AN$25<>"", $C25*$AN$25,"") -> 881.5426997 | CE25: =IF($AO$25<>"", $C25*$AO$25,"") -> 881.5426997 | CF25: =IF($AP$25<>"", $C25*$AP$25,"") -> 881.5426997 | CG25: =IF($AQ$25<>"", $C25*$AQ$25,"") -> 881.5426997 | CH25: =IF($AR$25<>"", $C25*$AR$25,"") -> 881.5426997 | CI25: =IF($AS$25<>"", $C25*$AS$25,"") -> 881.5426997 | CJ25: =IF($AT$25<>"", $C25*$AT$25,"") -> 881.5426997 | CK25: =IF($AU$25<>"", $C25*$AU$25,"") -> 881.5426997 | CL25: =IF($AV$25<>"", $C25*$AV$25,"") -> 881.5426997 | CM25: =IF($AW$25<>"", $C25*$AW$25,"") -> 881.5426997 | CN25: =IF($AX$25<>"", $C25*$AX$25,"") -> 881.5426997 | CO25: =IF($AY$25<>"", $C25*$AY$25,"") -> 881.5426997 | CP25: =IF($AZ$25<>"", $C25*$AZ$25,"") -> 881.5426997 | CQ25: =IF($BA$25<>"", $C25*$BA$25,"") -> 881.5426997 | CR25: =IF($BB$25<>"", $C25*$BB$25,"") -> 881.5426997 | CS25: =IF($BC$25<>"", $C25*$BC$25,"") -> 881.5426997 | CT25: =IF($BD$25<>"", $C25*$BD$25,"") -> 0 | CV25: =IF($P$25<>"",$BF$25/(1 + DiscountRate) ^ $CV$21,"") -> 881.5426997 | CW25: =IF($Q$25<>"",$BG$25/(1 + DiscountRate) ^ $CW$21,"") -> 847.6372113 | CX25: =IF($R$25<>"",$BH$25/(1 + DiscountRate) ^ $CX$21,"") -> 815.0357801 | CY25: =IF($S$25<>"",$BI$25/(1 + DiscountRate) ^ $CY$21,"") -> 783.6882501 | CZ25: =IF($T$25<>"",$BJ$25/(1 + DiscountRate) ^ $CZ$21,"") -> 753.5463943 | DA25: =IF($U$25<>"",$BK$25/(1 + DiscountRate) ^ $DA$21,"") -> 724.5638407 | DB25: =IF($V$25<>"",$BL$25/(1 + DiscountRate) ^ $DB$21,"") -> 696.6960006 | DC25: =IF($W$25<>"",$BM$25/(1 + DiscountRate) ^ $DC$21,"") -> 669.9000006 | DD25: =IF($X$25<>"",$BN$25/(1 + DiscountRate) ^ $DD$21,"") -> 644.134616 | DE25: =IF($Y$25<>"",$BO$25/(1 + DiscountRate) ^ $DE$21,"") -> 619.3602077 | DF25: =IF($Z$25<>"",$BP$25/(1 + DiscountRate) ^ $DF$21,"") -> 595.5386612 | DG25: =IF($AA$25<>"",$BQ$25/(1 + DiscountRate) ^ $DG$21,"") -> 572.6333281 | DH25: =IF($AB$25<>"",$BR$25/(1 + DiscountRate) ^ $DH$21,"") -> 550.6089693 | DI25: =IF($AC$25<>"",$BS$25/(1 + DiscountRate) ^ $DI$21,"") -> 529.4317013 | DJ25: =IF($AD$25<>"",$BT$25/(1 + DiscountRate) ^ $DJ$21,"") -> 509.0689435 | DK25: =IF($AE$25<>"",$BU$25/(1 + DiscountRate) ^ $DK$21,"") -> 489.4893688 | DL25: =IF($AF$25<>"",$BV$25/(1 + DiscountRate) ^ $DL$21,"") -> 470.6628546 | DM25: =IF($AG$25<>"",$BW$25/(1 + DiscountRate) ^ $DM$21,"") -> 452.5604371 | DN25: =IF($AH$25<>"",$BX$25/(1 + DiscountRate) ^ $DN$21,"") -> 435.1542665 | DO25: =IF($AI$25<>"",$BY$25/(1 + DiscountRate) ^ $DO$21,"") -> 418.4175639 | DP25: =IF($AJ$25<>"",$BZ$25/(1 + DiscountRate) ^ $DP$21,"") -> 402.3245807 | DQ25: =IF($AK$25<>"",$CA$25/(1 + DiscountRate) ^ $DQ$21,"") -> 386.8505583 | DR25: =IF($AL$25<>"",$CB$25/(1 + DiscountRate) ^ $DR$21,"") -> 371.9716907 | DS25: =IF($AM$25<>"",$CC$25/(1 + DiscountRate) ^ $DS$21,"") -> 357.6650872 | DT25: =IF($AN$25<>"",$CD$25/(1 + DiscountRate) ^ $DT$21,"") -> 343.9087377 | DU25: =IF($AO$25<>"",$CE$25/(1 + DiscountRate) ^ $DU$21,"") -> 330.6814786 | DV25: =IF($AP$25<>"",$CF$25/(1 + DiscountRate) ^ $DV$21,"") -> 317.9629602 | DW25: =IF($AQ$25<>"",$CG$25/(1 + DiscountRate) ^ $DW$21,"") -> 305.7336155 | DX25: =IF($AR$25<>"",$CH$25/(1 + DiscountRate) ^ $DX$21,"") -> 293.9746303 | DY25: =IF($AS$25<>"",$CI$25/(1 + DiscountRate) ^ $DY$21,"") -> 282.6679138 | DZ25: =IF($AT$25<>"",$CJ$25/(1 + DiscountRate) ^ $DZ$21,"") -> 271.7960709 | EA25: =IF($AU$25<>"",$CK$25/(1 + DiscountRate) ^ $EA$21,"") -> 261.3423759 | EB25: =IF($AV$25<>"",$CL$25/(1 + DiscountRate) ^ $EB$21,"") -> 251.2907461 | EC25: =IF($AW$25<>"",$CM$25/(1 + DiscountRate) ^ $EC$21,"") -> 241.6257174 | ED25: =IF($AX$25<>"",$CN$25/(1 + DiscountRate) ^ $ED$21,"") -> 232.3324205 | EE25: =IF($AY$25<>"",$CO$25/(1 + DiscountRate) ^ $EE$21,"") -> 223.3965582 | EF25: =IF($AZ$25<>"",$CP$25/(1 + DiscountRate) ^ $EF$21,"") -> 214.8043829 | EG25: =IF($BA$25<>"",$CQ$25/(1 + DiscountRate) ^ $EG$21,"") -> 206.5426759 | EH25: =IF($BB$25<>"",$CR$25/(1 + DiscountRate) ^ $EH$21,"") -> 198.5987268 | EI25: =IF($BC$25<>"",$CS$25/(1 + DiscountRate) ^ $EI$21,"") -> 190.9603142 | EJ25: =IF($BD$25<>"",$CT$25/(1 + DiscountRate) ^ $EJ$21,"") -> 0
A26: Interlocking Concrete Pavement | B26: Replace Cracked Pavers | C26: 6 | D26: =IF($A26<>"",IF($B26<>"",VLOOKUP(CONCATENATE($A26,"_",$B26),List_PavtUnitCosts,6,FALSE),""),"") -> sq. ft. | E26: 2 | F26: percent | G26: Pavement Area | H26: =IF($A26<>"",IF($B26<>"",ItemQuantity(A26,B26,D26,E26,F26,G26),""),"") -> 960 | I26: sq. ft. | J26: One Time | K26: 28 | N26: =IF($A26<>"",IF($B26<>"",SUM(OFFSET($P26,0,AnalysisPeriod*2+4):OFFSET($P26,0,AnalysisPeriod*3+4)),""),"") -> 1920.830235 | P26: =IF($D26<>"",QuantityEstimate($J26,$H26,$E26,IF($K26<100,$K26,$K26-ConstYear),$L26,$M26,P$21),"") -> 0 | Q26: =IF($D26<>"",QuantityEstimate($J26,$H26,$E26,IF($K26<100,$K26,$K26-ConstYear),$L26,$M26,Q$21),"") -> 0 | R26: =IF($D26<>"",QuantityEstimate($J26,$H26,$E26,IF($K26<100,$K26,$K26-ConstYear),$L26,$M26,R$21),"") -> 0 | S26: =IF($D26<>"",QuantityEstimate($J26,$H26,$E26,IF($K26<100,$K26,$K26-ConstYear),$L26,$M26,S$21),"") -> 0 | T26: =IF($D26<>"",QuantityEstimate($J26,$H26,$E26,IF($K26<100,$K26,$K26-ConstYear),$L26,$M26,T$21),"") -> 0 | U26: =IF($D26<>"",QuantityEstimate($J26,$H26,$E26,IF($K26<100,$K26,$K26-ConstYear),$L26,$M26,U$21),"") -> 0 | V26: =IF($D26<>"",QuantityEstimate($J26,$H26,$E26,IF($K26<100,$K26,$K26-ConstYear),$L26,$M26,V$21),"") -> 0 | W26: =IF($D26<>"",QuantityEstimate($J26,$H26,$E26,IF($K26<100,$K26,$K26-ConstYear),$L26,$M26,W$21),"") -> 0 | X26: =IF($D26<>"",QuantityEstimate($J26,$H26,$E26,IF($K26<100,$K26,$K26-ConstYear),$L26,$M26,X$21),"") -> 0 | Y26: =IF($D26<>"",QuantityEstimate($J26,$H26,$E26,IF($K26<100,$K26,$K26-ConstYear),$L26,$M26,Y$21),"") -> 0 | Z26: =IF($D26<>"",QuantityEstimate($J26,$H26,$E26,IF($K26<100,$K26,$K26-ConstYear),$L26,$M26,Z$21),"") -> 0 | AA26: =IF($D26<>"",QuantityEstimate($J26,$H26,$E26,IF($K26<100,$K26,$K26-ConstYear),$L26,$M26,AA$21),"") -> 0 | AB26: =IF($D26<>"",QuantityEstimate($J26,$H26,$E26,IF($K26<100,$K26,$K26-ConstYear),$L26,$M26,AB$21),"") -> 0 | AC26: =IF($D26<>"",QuantityEstimate($J26,$H26,$E26,IF($K26<100,$K26,$K26-ConstYear),$L26,$M26,AC$21),"") -> 0 | AD26: =IF($D26<>"",QuantityEstimate($J26,$H26,$E26,IF($K26<100,$K26,$K26-ConstYear),$L26,$M26,AD$21),"") -> 0 | AE26: =IF($D26<>"",QuantityEstimate($J26,$H26,$E26,IF($K26<100,$K26,$K26-ConstYear),$L26,$M26,AE$21),"") -> 0 | AF26: =IF($D26<>"",QuantityEstimate($J26,$H26,$E26,IF($K26<100,$K26,$K26-ConstYear),$L26,$M26,AF$21),"") -> 0 | AG26: =IF($D26<>"",QuantityEstimate($J26,$H26,$E26,IF($K26<100,$K26,$K26-ConstYear),$L26,$M26,AG$21),"") -> 0 | AH26: =IF($D26<>"",QuantityEstimate($J26,$H26,$E26,IF($K26<100,$K26,$K26-ConstYear),$L26,$M26,AH$21),"") -> 0 | AI26: =IF($D26<>"",QuantityEstimate($J26,$H26,$E26,IF($K26<100,$K26,$K26-ConstYear),$L26,$M26,AI$21),"") -> 0 | AJ26: =IF($D26<>"",QuantityEstimate($J26,$H26,$E26,IF($K26<100,$K26,$K26-ConstYear),$L26,$M26,AJ$21),"") -> 0 | AK26: =IF($D26<>"",QuantityEstimate($J26,$H26,$E26,IF($K26<100,$K26,$K26-ConstYear),$L26,$M26,AK$21),"") -> 0 | AL26: =IF($D26<>"",QuantityEstimate($J26,$H26,$E26,IF($K26<100,$K26,$K26-ConstYear),$L26,$M26,AL$21),"") -> 0 | AM26: =IF($D26<>"",QuantityEstimate($J26,$H26,$E26,IF($K26<100,$K26,$K26-ConstYear),$L26,$M26,AM$21),"") -> 0 | AN26: =IF($D26<>"",QuantityEstimate($J26,$H26,$E26,IF($K26<100,$K26,$K26-ConstYear),$L26,$M26,AN$21),"") -> 0 | AO26: =IF($D26<>"",QuantityEstimate($J26,$H26,$E26,IF($K26<100,$K26,$K26-ConstYear),$L26,$M26,AO$21),"") -> 0 | AP26: =IF($D26<>"",QuantityEstimate($J26,$H26,$E26,IF($K26<100,$K26,$K26-ConstYear),$L26,$M26,AP$21),"") -> 0 | AQ26: =IF($D26<>"",QuantityEstimate($J26,$H26,$E26,IF($K26<100,$K26,$K26-ConstYear),$L26,$M26,AQ$21),"") -> 0 | AR26: =IF($D26<>"",QuantityEstimate($J26,$H26,$E26,IF($K26<100,$K26,$K26-ConstYear),$L26,$M26,AR$21),"") -> 960 | AS26: =IF($D26<>"",QuantityEstimate($J26,$H26,$E26,IF($K26<100,$K26,$K26-ConstYear),$L26,$M26,AS$21),"") -> 0 | AT26: =IF($D26<>"",QuantityEstimate($J26,$H26,$E26,IF($K26<100,$K26,$K26-ConstYear),$L26,$M26,AT$21),"") -> 0 | AU26: =IF($D26<>"",QuantityEstimate($J26,$H26,$E26,IF($K26<100,$K26,$K26-ConstYear),$L26,$M26,AU$21),"") -> 0 | AV26: =IF($D26<>"",QuantityEstimate($J26,$H26,$E26,IF($K26<100,$K26,$K26-ConstYear),$L26,$M26,AV$21),"") -> 0 | AW26: =IF($D26<>"",QuantityEstimate($J26,$H26,$E26,IF($K26<100,$K26,$K26-ConstYear),$L26,$M26,AW$21),"") -> 0 | AX26: =IF($D26<>"",QuantityEstimate($J26,$H26,$E26,IF($K26<100,$K26,$K26-ConstYear),$L26,$M26,AX$21),"") -> 0 | AY26: =IF($D26<>"",QuantityEstimate($J26,$H26,$E26,IF($K26<100,$K26,$K26-ConstYear),$L26,$M26,AY$21),"") -> 0 | AZ26: =IF($D26<>"",QuantityEstimate($J26,$H26,$E26,IF($K26<100,$K26,$K26-ConstYear),$L26,$M26,AZ$21),"") -> 0 | BA26: =IF($D26<>"",QuantityEstimate($J26,$H26,$E26,IF($K26<100,$K26,$K26-ConstYear),$L26,$M26,BA$21),"") -> 0 | BB26: =IF($D26<>"",QuantityEstimate($J26,$H26,$E26,IF($K26<100,$K26,$K26-ConstYear),$L26,$M26,BB$21),"") -> 0 | BC26: =IF($D26<>"",QuantityEstimate($J26,$H26,$E26,IF($K26<100,$K26,$K26-ConstYear),$L26,$M26,BC$21),"") -> 0 | BD26: =IF($D26<>"",QuantityEstimate($J26,$H26,$E26,IF($K26<100,$K26,$K26-ConstYear),$L26,$M26,BD$21),"") -> 0 | BF26: =IF($P$26<>"", $C26*$P$26,"") -> 0 | BG26: =IF($Q$26<>"", $C26*$Q$26,"") -> 0 | BH26: =IF($R$26<>"", $C26*$R$26,"") -> 0 | BI26: =IF($S$26<>"", $C26*$S$26,"") -> 0 | BJ26: =IF($T$26<>"", $C26*$T$26,"") -> 0 | BK26: =IF($U$26<>"", $C26*$U$26,"") -> 0 | BL26: =IF($V$26<>"", $C26*$V$26,"") -> 0 | BM26: =IF($W$26<>"", $C26*$W$26,"") -> 0 | BN26: =IF($X$26<>"", $C26*$X$26,"") -> 0 | BO26: =IF($Y$26<>"", $C26*$Y$26,"") -> 0 | BP26: =IF($Z$26<>"", $C26*$Z$26,"") -> 0 | BQ26: =IF($AA$26<>"", $C26*$AA$26,"") -> 0 | BR26: =IF($AB$26<>"", $C26*$AB$26,"") -> 0 | BS26: =IF($AC$26<>"", $C26*$AC$26,"") -> 0 | BT26: =IF($AD$26<>"", $C26*$AD$26,"") -> 0 | BU26: =IF($AE$26<>"", $C26*$AE$26,"") -> 0 | BV26: =IF($AF$26<>"", $C26*$AF$26,"") -> 0 | BW26: =IF($AG$26<>"", $C26*$AG$26,"") -> 0 | BX26: =IF($AH$26<>"", $C26*$AH$26,"") -> 0 | BY26: =IF($AI$26<>"", $C26*$AI$26,"") -> 0 | BZ26: =IF($AJ$26<>"", $C26*$AJ$26,"") -> 0 | CA26: =IF($AK$26<>"", $C26*$AK$26,"") -> 0 | CB26: =IF($AL$26<>"", $C26*$AL$26,"") -> 0 | CC26: =IF($AM$26<>"", $C26*$AM$26,"") -> 0 | CD26: =IF($AN$26<>"", $C26*$AN$26,"") -> 0 | CE26: =IF($AO$26<>"", $C26*$AO$26,"") -> 0 | CF26: =IF($AP$26<>"", $C26*$AP$26,"") -> 0 | CG26: =IF($AQ$26<>"", $C26*$AQ$26,"") -> 0 | CH26: =IF($AR$26<>"", $C26*$AR$26,"") -> 5760 | CI26: =IF($AS$26<>"", $C26*$AS$26,"") -> 0 | CJ26: =IF($AT$26<>"", $C26*$AT$26,"") -> 0 | CK26: =IF($AU$26<>"", $C26*$AU$26,"") -> 0 | CL26: =IF($AV$26<>"", $C26*$AV$26,"") -> 0 | CM26: =IF($AW$26<>"", $C26*$AW$26,"") -> 0 | CN26: =IF($AX$26<>"", $C26*$AX$26,"") -> 0 | CO26: =IF($AY$26<>"", $C26*$AY$26,"") -> 0 | CP26: =IF($AZ$26<>"", $C26*$AZ$26,"") -> 0 | CQ26: =IF($BA$26<>"", $C26*$BA$26,"") -> 0 | CR26: =IF($BB$26<>"", $C26*$BB$26,"") -> 0 | CS26: =IF($BC$26<>"", $C26*$BC$26,"") -> 0 | CT26: =IF($BD$26<>"", $C26*$BD$26,"") -> 0 | CV26: =IF($P$26<>"",$BF$26/(1 + DiscountRate) ^ $CV$21,"") -> 0 | CW26: =IF($Q$26<>"",$BG$26/(1 + DiscountRate) ^ $CW$21,"") -> 0 | CX26: =IF($R$26<>"",$BH$26/(1 + DiscountRate) ^ $CX$21,"") -> 0 | CY26: =IF($S$26<>"",$BI$26/(1 + DiscountRate) ^ $CY$21,"") -> 0 | CZ26: =IF($T$26<>"",$BJ$26/(1 + DiscountRate) ^ $CZ$21,"") -> 0 | DA26: =IF($U$26<>"",$BK$26/(1 + DiscountRate) ^ $DA$21,"") -> 0 | DB26: =IF($V$26<>"",$BL$26/(1 + DiscountRate) ^ $DB$21,"") -> 0 | DC26: =IF($W$26<>"",$BM$26/(1 + DiscountRate) ^ $DC$21,"") -> 0 | DD26: =IF($X$26<>"",$BN$26/(1 + DiscountRate) ^ $DD$21,"") -> 0 | DE26: =IF($Y$26<>"",$BO$26/(1 + DiscountRate) ^ $DE$21,"") -> 0 | DF26: =IF($Z$26<>"",$BP$26/(1 + DiscountRate) ^ $DF$21,"") -> 0 | DG26: =IF($AA$26<>"",$BQ$26/(1 + DiscountRate) ^ $DG$21,"") -> 0 | DH26: =IF($AB$26<>"",$BR$26/(1 + DiscountRate) ^ $DH$21,"") -> 0 | DI26: =IF($AC$26<>"",$BS$26/(1 + DiscountRate) ^ $DI$21,"") -> 0 | DJ26: =IF($AD$26<>"",$BT$26/(1 + DiscountRate) ^ $DJ$21,"") -> 0 | DK26: =IF($AE$26<>"",$BU$26/(1 + DiscountRate) ^ $DK$21,"") -> 0 | DL26: =IF($AF$26<>"",$BV$26/(1 + DiscountRate) ^ $DL$21,"") -> 0 | DM26: =IF($AG$26<>"",$BW$26/(1 + DiscountRate) ^ $DM$21,"") -> 0 | DN26: =IF($AH$26<>"",$BX$26/(1 + DiscountRate) ^ $DN$21,"") -> 0 | DO26: =IF($AI$26<>"",$BY$26/(1 + DiscountRate) ^ $DO$21,"") -> 0 | DP26: =IF($AJ$26<>"",$BZ$26/(1 + DiscountRate) ^ $DP$21,"") -> 0 | DQ26: =IF($AK$26<>"",$CA$26/(1 + DiscountRate) ^ $DQ$21,"") -> 0 | DR26: =IF($AL$26<>"",$CB$26/(1 + DiscountRate) ^ $DR$21,"") -> 0 | DS26: =IF($AM$26<>"",$CC$26/(1 + DiscountRate) ^ $DS$21,"") -> 0 | DT26: =IF($AN$26<>"",$CD$26/(1 + DiscountRate) ^ $DT$21,"") -> 0 | DU26: =IF($AO$26<>"",$CE$26/(1 + DiscountRate) ^ $DU$21,"") -> 0 | DV26: =IF($AP$26<>"",$CF$26/(1 + DiscountRate) ^ $DV$21,"") -> 0 | DW26: =IF($AQ$26<>"",$CG$26/(1 + DiscountRate) ^ $DW$21,"") -> 0 | DX26: =IF($AR$26<>"",$CH$26/(1 + DiscountRate) ^ $DX$21,"") -> 1920.830235 | DY26: =IF($AS$26<>"",$CI$26/(1 + DiscountRate) ^ $DY$21,"") -> 0 | DZ26: =IF($AT$26<>"",$CJ$26/(1 + DiscountRate) ^ $DZ$21,"") -> 0 | EA26: =IF($AU$26<>"",$CK$26/(1 + DiscountRate) ^ $EA$21,"") -> 0 | EB26: =IF($AV$26<>"",$CL$26/(1 + DiscountRate) ^ $EB$21,"") -> 0 | EC26: =IF($AW$26<>"",$CM$26/(1 + DiscountRate) ^ $EC$21,"") -> 0 | ED26: =IF($AX$26<>"",$CN$26/(1 + DiscountRate) ^ $ED$21,"") -> 0 | EE26: =IF($AY$26<>"",$CO$26/(1 + DiscountRate) ^ $EE$21,"") -> 0 | EF26: =IF($AZ$26<>"",$CP$26/(1 + DiscountRate) ^ $EF$21,"") -> 0 | EG26: =IF($BA$26<>"",$CQ$26/(1 + DiscountRate) ^ $EG$21,"") -> 0 | EH26: =IF($BB$26<>"",$CR$26/(1 + DiscountRate) ^ $EH$21,"") -> 0 | EI26: =IF($BC$26<>"",$CS$26/(1 + DiscountRate) ^ $EI$21,"") -> 0 | EJ26: =IF($BD$26<>"",$CT$26/(1 + DiscountRate) ^ $EJ$21,"") -> 0
A27: Interlocking Concrete Pavement | B27: Replace Worn/Rutted Pavers (wheelpath) | C27: 12 | D27: =IF($A27<>"",IF($B27<>"",VLOOKUP(CONCATENATE($A27,"_",$B27),List_PavtUnitCosts,6,FALSE),""),"") -> sq. ft. | E27: 5 | F27: percent | G27: Pavement Area | H27: =IF($A27<>"",IF($B27<>"",ItemQuantity(A27,B27,D27,E27,F27,G27),""),"") -> 2400 | I27: sq. ft. | J27: One Time | K27: 35 | N27: =IF($A27<>"",IF($B27<>"",SUM(OFFSET($P27,0,AnalysisPeriod*2+4):OFFSET($P27,0,AnalysisPeriod*3+4)),""),"") -> 7298.365557 | P27: =IF($D27<>"",QuantityEstimate($J27,$H27,$E27,IF($K27<100,$K27,$K27-ConstYear),$L27,$M27,P$21),"") -> 0 | Q27: =IF($D27<>"",QuantityEstimate($J27,$H27,$E27,IF($K27<100,$K27,$K27-ConstYear),$L27,$M27,Q$21),"") -> 0 | R27: =IF($D27<>"",QuantityEstimate($J27,$H27,$E27,IF($K27<100,$K27,$K27-ConstYear),$L27,$M27,R$21),"") -> 0 | S27: =IF($D27<>"",QuantityEstimate($J27,$H27,$E27,IF($K27<100,$K27,$K27-ConstYear),$L27,$M27,S$21),"") -> 0 | T27: =IF($D27<>"",QuantityEstimate($J27,$H27,$E27,IF($K27<100,$K27,$K27-ConstYear),$L27,$M27,T$21),"") -> 0 | U27: =IF($D27<>"",QuantityEstimate($J27,$H27,$E27,IF($K27<100,$K27,$K27-ConstYear),$L27,$M27,U$21),"") -> 0 | V27: =IF($D27<>"",QuantityEstimate($J27,$H27,$E27,IF($K27<100,$K27,$K27-ConstYear),$L27,$M27,V$21),"") -> 0 | W27: =IF($D27<>"",QuantityEstimate($J27,$H27,$E27,IF($K27<100,$K27,$K27-ConstYear),$L27,$M27,W$21),"") -> 0 | X27: =IF($D27<>"",QuantityEstimate($J27,$H27,$E27,IF($K27<100,$K27,$K27-ConstYear),$L27,$M27,X$21),"") -> 0 | Y27: =IF($D27<>"",QuantityEstimate($J27,$H27,$E27,IF($K27<100,$K27,$K27-ConstYear),$L27,$M27,Y$21),"") -> 0 | Z27: =IF($D27<>"",QuantityEstimate($J27,$H27,$E27,IF($K27<100,$K27,$K27-ConstYear),$L27,$M27,Z$21),"") -> 0 | AA27: =IF($D27<>"",QuantityEstimate($J27,$H27,$E27,IF($K27<100,$K27,$K27-ConstYear),$L27,$M27,AA$21),"") -> 0 | AB27: =IF($D27<>"",QuantityEstimate($J27,$H27,$E27,IF($K27<100,$K27,$K27-ConstYear),$L27,$M27,AB$21),"") -> 0 | AC27: =IF($D27<>"",QuantityEstimate($J27,$H27,$E27,IF($K27<100,$K27,$K27-ConstYear),$L27,$M27,AC$21),"") -> 0 | AD27: =IF($D27<>"",QuantityEstimate($J27,$H27,$E27,IF($K27<100,$K27,$K27-ConstYear),$L27,$M27,AD$21),"") -> 0 | AE27: =IF($D27<>"",QuantityEstimate($J27,$H27,$E27,IF($K27<100,$K27,$K27-ConstYear),$L27,$M27,AE$21),"") -> 0 | AF27: =IF($D27<>"",QuantityEstimate($J27,$H27,$E27,IF($K27<100,$K27,$K27-ConstYear),$L27,$M27,AF$21),"") -> 0 | AG27: =IF($D27<>"",QuantityEstimate($J27,$H27,$E27,IF($K27<100,$K27,$K27-ConstYear),$L27,$M27,AG$21),"") -> 0 | AH27: =IF($D27<>"",QuantityEstimate($J27,$H27,$E27,IF($K27<100,$K27,$K27-ConstYear),$L27,$M27,AH$21),"") -> 0 | AI27: =IF($D27<>"",QuantityEstimate($J27,$H27,$E27,IF($K27<100,$K27,$K27-ConstYear),$L27,$M27,AI$21),"") -> 0 | AJ27: =IF($D27<>"",QuantityEstimate($J27,$H27,$E27,IF($K27<100,$K27,$K27-ConstYear),$L27,$M27,AJ$21),"") -> 0 | AK27: =IF($D27<>"",QuantityEstimate($J27,$H27,$E27,IF($K27<100,$K27,$K27-ConstYear),$L27,$M27,AK$21),"") -> 0 | AL27: =IF($D27<>"",QuantityEstimate($J27,$H27,$E27,IF($K27<100,$K27,$K27-ConstYear),$L27,$M27,AL$21),"") -> 0 | AM27: =IF($D27<>"",QuantityEstimate($J27,$H27,$E27,IF($K27<100,$K27,$K27-ConstYear),$L27,$M27,AM$21),"") -> 0 | AN27: =IF($D27<>"",QuantityEstimate($J27,$H27,$E27,IF($K27<100,$K27,$K27-ConstYear),$L27,$M27,AN$21),"") -> 0 | AO27: =IF($D27<>"",QuantityEstimate($J27,$H27,$E27,IF($K27<100,$K27,$K27-ConstYear),$L27,$M27,AO$21),"") -> 0 | AP27: =IF($D27<>"",QuantityEstimate($J27,$H27,$E27,IF($K27<100,$K27,$K27-ConstYear),$L27,$M27,AP$21),"") -> 0 | AQ27: =IF($D27<>"",QuantityEstimate($J27,$H27,$E27,IF($K27<100,$K27,$K27-ConstYear),$L27,$M27,AQ$21),"") -> 0 | AR27: =IF($D27<>"",QuantityEstimate($J27,$H27,$E27,IF($K27<100,$K27,$K27-ConstYear),$L27,$M27,AR$21),"") -> 0 | AS27: =IF($D27<>"",QuantityEstimate($J27,$H27,$E27,IF($K27<100,$K27,$K27-ConstYear),$L27,$M27,AS$21),"") -> 0 | AT27: =IF($D27<>"",QuantityEstimate($J27,$H27,$E27,IF($K27<100,$K27,$K27-ConstYear),$L27,$M27,AT$21),"") -> 0 | AU27: =IF($D27<>"",QuantityEstimate($J27,$H27,$E27,IF($K27<100,$K27,$K27-ConstYear),$L27,$M27,AU$21),"") -> 0 | AV27: =IF($D27<>"",QuantityEstimate($J27,$H27,$E27,IF($K27<100,$K27,$K27-ConstYear),$L27,$M27,AV$21),"") -> 0 | AW27: =IF($D27<>"",QuantityEstimate($J27,$H27,$E27,IF($K27<100,$K27,$K27-ConstYear),$L27,$M27,AW$21),"") -> 0 | AX27: =IF($D27<>"",QuantityEstimate($J27,$H27,$E27,IF($K27<100,$K27,$K27-ConstYear),$L27,$M27,AX$21),"") -> 0 | AY27: =IF($D27<>"",QuantityEstimate($J27,$H27,$E27,IF($K27<100,$K27,$K27-ConstYear),$L27,$M27,AY$21),"") -> 2400 | AZ27: =IF($D27<>"",QuantityEstimate($J27,$H27,$E27,IF($K27<100,$K27,$K27-ConstYear),$L27,$M27,AZ$21),"") -> 0 | BA27: =IF($D27<>"",QuantityEstimate($J27,$H27,$E27,IF($K27<100,$K27,$K27-ConstYear),$L27,$M27,BA$21),"") -> 0 | BB27: =IF($D27<>"",QuantityEstimate($J27,$H27,$E27,IF($K27<100,$K27,$K27-ConstYear),$L27,$M27,BB$21),"") -> 0 | BC27: =IF($D27<>"",QuantityEstimate($J27,$H27,$E27,IF($K27<100,$K27,$K27-ConstYear),$L27,$M27,BC$21),"") -> 0 | BD27: =IF($D27<>"",QuantityEstimate($J27,$H27,$E27,IF($K27<100,$K27,$K27-ConstYear),$L27,$M27,BD$21),"") -> 0 | BF27: =IF($P$27<>"", $C27*$P$27,"") -> 0 | BG27: =IF($Q$27<>"", $C27*$Q$27,"") -> 0 | BH27: =IF($R$27<>"", $C27*$R$27,"") -> 0 | BI27: =IF($S$27<>"", $C27*$S$27,"") -> 0 | BJ27: =IF($T$27<>"", $C27*$T$27,"") -> 0 | BK27: =IF($U$27<>"", $C27*$U$27,"") -> 0 | BL27: =IF($V$27<>"", $C27*$V$27,"") -> 0 | BM27: =IF($W$27<>"", $C27*$W$27,"") -> 0 | BN27: =IF($X$27<>"", $C27*$X$27,"") -> 0 | BO27: =IF($Y$27<>"", $C27*$Y$27,"") -> 0 | BP27: =IF($Z$27<>"", $C27*$Z$27,"") -> 0 | BQ27: =IF($AA$27<>"", $C27*$AA$27,"") -> 0 | BR27: =IF($AB$27<>"", $C27*$AB$27,"") -> 0 | BS27: =IF($AC$27<>"", $C27*$AC$27,"") -> 0 | BT27: =IF($AD$27<>"", $C27*$AD$27,"") -> 0 | BU27: =IF($AE$27<>"", $C27*$AE$27,"") -> 0 | BV27: =IF($AF$27<>"", $C27*$AF$27,"") -> 0 | BW27: =IF($AG$27<>"", $C27*$AG$27,"") -> 0 | BX27: =IF($AH$27<>"", $C27*$AH$27,"") -> 0 | BY27: =IF($AI$27<>"", $C27*$AI$27,"") -> 0 | BZ27: =IF($AJ$27<>"", $C27*$AJ$27,"") -> 0 | CA27: =IF($AK$27<>"", $C27*$AK$27,"") -> 0 | CB27: =IF($AL$27<>"", $C27*$AL$27,"") -> 0 | CC27: =IF($AM$27<>"", $C27*$AM$27,"") -> 0 | CD27: =IF($AN$27<>"", $C27*$AN$27,"") -> 0 | CE27: =IF($AO$27<>"", $C27*$AO$27,"") -> 0 | CF27: =IF($AP$27<>"", $C27*$AP$27,"") -> 0 | CG27: =IF($AQ$27<>"", $C27*$AQ$27,"") -> 0 | CH27: =IF($AR$27<>"", $C27*$AR$27,"") -> 0 | CI27: =IF($AS$27<>"", $C27*$AS$27,"") -> 0 | CJ27: =IF($AT$27<>"", $C27*$AT$27,"") -> 0 | CK27: =IF($AU$27<>"", $C27*$AU$27,"") -> 0 | CL27: =IF($AV$27<>"", $C27*$AV$27,"") -> 0 | CM27: =IF($AW$27<>"", $C27*$AW$27,"") -> 0 | CN27: =IF($AX$27<>"", $C27*$AX$27,"") -> 0 | CO27: =IF($AY$27<>"", $C27*$AY$27,"") -> 28800 | CP27: =IF($AZ$27<>"", $C27*$AZ$27,"") -> 0 | CQ27: =IF($BA$27<>"", $C27*$BA$27,"") -> 0 | CR27: =IF($BB$27<>"", $C27*$BB$27,"") -> 0 | CS27: =IF($BC$27<>"", $C27*$BC$27,"") -> 0 | CT27: =IF($BD$27<>"", $C27*$BD$27,"") -> 0 | CV27: =IF($P$27<>"",$BF$27/(1 + DiscountRate) ^ $CV$21,"") -> 0 | CW27: =IF($Q$27<>"",$BG$27/(1 + DiscountRate) ^ $CW$21,"") -> 0 | CX27: =IF($R$27<>"",$BH$27/(1 + DiscountRate) ^ $CX$21,"") -> 0 | CY27: =IF($S$27<>"",$BI$27/(1 + DiscountRate) ^ $CY$21,"") -> 0 | CZ27: =IF($T$27<>"",$BJ$27/(1 + DiscountRate) ^ $CZ$21,"") -> 0 | DA27: =IF($U$27<>"",$BK$27/(1 + DiscountRate) ^ $DA$21,"") -> 0 | DB27: =IF($V$27<>"",$BL$27/(1 + DiscountRate) ^ $DB$21,"") -> 0 | DC27: =IF($W$27<>"",$BM$27/(1 + DiscountRate) ^ $DC$21,"") -> 0 | DD27: =IF($X$27<>"",$BN$27/(1 + DiscountRate) ^ $DD$21,"") -> 0 | DE27: =IF($Y$27<>"",$BO$27/(1 + DiscountRate) ^ $DE$21,"") -> 0 | DF27: =IF($Z$27<>"",$BP$27/(1 + DiscountRate) ^ $DF$21,"") -> 0 | DG27: =IF($AA$27<>"",$BQ$27/(1 + DiscountRate) ^ $DG$21,"") -> 0 | DH27: =IF($AB$27<>"",$BR$27/(1 + DiscountRate) ^ $DH$21,"") -> 0 | DI27: =IF($AC$27<>"",$BS$27/(1 + DiscountRate) ^ $DI$21,"") -> 0 | DJ27: =IF($AD$27<>"",$BT$27/(1 + DiscountRate) ^ $DJ$21,"") -> 0 | DK27: =IF($AE$27<>"",$BU$27/(1 + DiscountRate) ^ $DK$21,"") -> 0 | DL27: =IF($AF$27<>"",$BV$27/(1 + DiscountRate) ^ $DL$21,"") -> 0 | DM27: =IF($AG$27<>"",$BW$27/(1 + DiscountRate) ^ $DM$21,"") -> 0 | DN27: =IF($AH$27<>"",$BX$27/(1 + DiscountRate) ^ $DN$21,"") -> 0 | DO27: =IF($AI$27<>"",$BY$27/(1 + DiscountRate) ^ $DO$21,"") -> 0 | DP27: =IF($AJ$27<>"",$BZ$27/(1 + DiscountRate) ^ $DP$21,"") -> 0 | DQ27: =IF($AK$27<>"",$CA$27/(1 + DiscountRate) ^ $DQ$21,"") -> 0 | DR27: =IF($AL$27<>"",$CB$27/(1 + DiscountRate) ^ $DR$21,"") -> 0 | DS27: =IF($AM$27<>"",$CC$27/(1 + DiscountRate) ^ $DS$21,"") -> 0 | DT27: =IF($AN$27<>"",$CD$27/(1 + DiscountRate) ^ $DT$21,"") -> 0 | DU27: =IF($AO$27<>"",$CE$27/(1 + DiscountRate) ^ $DU$21,"") -> 0 | DV27: =IF($AP$27<>"",$CF$27/(1 + DiscountRate) ^ $DV$21,"") -> 0 | DW27: =IF($AQ$27<>"",$CG$27/(1 + DiscountRate) ^ $DW$21,"") -> 0 | DX27: =IF($AR$27<>"",$CH$27/(1 + DiscountRate) ^ $DX$21,"") -> 0 | DY27: =IF($AS$27<>"",$CI$27/(1 + DiscountRate) ^ $DY$21,"") -> 0 | DZ27: =IF($AT$27<>"",$CJ$27/(1 + DiscountRate) ^ $DZ$21,"") -> 0 | EA27: =IF($AU$27<>"",$CK$27/(1 + DiscountRate) ^ $EA$21,"") -> 0 | EB27: =IF($AV$27<>"",$CL$27/(1 + DiscountRate) ^ $EB$21,"") -> 0 | EC27: =IF($AW$27<>"",$CM$27/(1 + DiscountRate) ^ $EC$21,"") -> 0 | ED27: =IF($AX$27<>"",$CN$27/(1 + DiscountRate) ^ $ED$21,"") -> 0 | EE27: =IF($AY$27<>"",$CO$27/(1 + DiscountRate) ^ $EE$21,"") -> 7298.365557 | EF27: =IF($AZ$27<>"",$CP$27/(1 + DiscountRate) ^ $EF$21,"") -> 0 | EG27: =IF($BA$27<>"",$CQ$27/(1 + DiscountRate) ^ $EG$21,"") -> 0 | EH27: =IF($BB$27<>"",$CR$27/(1 + DiscountRate) ^ $EH$21,"") -> 0 | EI27: =IF($BC$27<>"",$CS$27/(1 + DiscountRate) ^ $EI$21,"") -> 0 | EJ27: =IF($BD$27<>"",$CT$27/(1 + DiscountRate) ^ $EJ$21,"") -> 0
A28: Interlocking Concrete Pavement | B28: Restorative Surface Vacuum Sweeping | C28: 8000 | D28: acre | E28: 100 | F28: percent | G28: Pavement Area | H28: =IF($A28<>"",IF($B28<>"",ItemQuantity(A28,B28,D28,E28,F28,G28),""),"") -> 1.101928375 | I28: acre | J28: One Time | K28: 35 | N28: =IF($A28<>"",IF($B28<>"",SUM(OFFSET($P28,0,AnalysisPeriod*2+4):OFFSET($P28,0,AnalysisPeriod*3+4)),""),"") -> 2233.965582 | P28: =IF($D28<>"",QuantityEstimate($J28,$H28,$E28,IF($K28<100,$K28,$K28-ConstYear),$L28,$M28,P$21),"") -> 0 | Q28: =IF($D28<>"",QuantityEstimate($J28,$H28,$E28,IF($K28<100,$K28,$K28-ConstYear),$L28,$M28,Q$21),"") -> 0 | R28: =IF($D28<>"",QuantityEstimate($J28,$H28,$E28,IF($K28<100,$K28,$K28-ConstYear),$L28,$M28,R$21),"") -> 0 | S28: =IF($D28<>"",QuantityEstimate($J28,$H28,$E28,IF($K28<100,$K28,$K28-ConstYear),$L28,$M28,S$21),"") -> 0 | T28: =IF($D28<>"",QuantityEstimate($J28,$H28,$E28,IF($K28<100,$K28,$K28-ConstYear),$L28,$M28,T$21),"") -> 0 | U28: =IF($D28<>"",QuantityEstimate($J28,$H28,$E28,IF($K28<100,$K28,$K28-ConstYear),$L28,$M28,U$21),"") -> 0 | V28: =IF($D28<>"",QuantityEstimate($J28,$H28,$E28,IF($K28<100,$K28,$K28-ConstYear),$L28,$M28,V$21),"") -> 0 | W28: =IF($D28<>"",QuantityEstimate($J28,$H28,$E28,IF($K28<100,$K28,$K28-ConstYear),$L28,$M28,W$21),"") -> 0 | X28: =IF($D28<>"",QuantityEstimate($J28,$H28,$E28,IF($K28<100,$K28,$K28-ConstYear),$L28,$M28,X$21),"") -> 0 | Y28: =IF($D28<>"",QuantityEstimate($J28,$H28,$E28,IF($K28<100,$K28,$K28-ConstYear),$L28,$M28,Y$21),"") -> 0 | Z28: =IF($D28<>"",QuantityEstimate($J28,$H28,$E28,IF($K28<100,$K28,$K28-ConstYear),$L28,$M28,Z$21),"") -> 0 | AA28: =IF($D28<>"",QuantityEstimate($J28,$H28,$E28,IF($K28<100,$K28,$K28-ConstYear),$L28,$M28,AA$21),"") -> 0 | AB28: =IF($D28<>"",QuantityEstimate($J28,$H28,$E28,IF($K28<100,$K28,$K28-ConstYear),$L28,$M28,AB$21),"") -> 0 | AC28: =IF($D28<>"",QuantityEstimate($J28,$H28,$E28,IF($K28<100,$K28,$K28-ConstYear),$L28,$M28,AC$21),"") -> 0 | AD28: =IF($D28<>"",QuantityEstimate($J28,$H28,$E28,IF($K28<100,$K28,$K28-ConstYear),$L28,$M28,AD$21),"") -> 0 | AE28: =IF($D28<>"",QuantityEstimate($J28,$H28,$E28,IF($K28<100,$K28,$K28-ConstYear),$L28,$M28,AE$21),"") -> 0 | AF28: =IF($D28<>"",QuantityEstimate($J28,$H28,$E28,IF($K28<100,$K28,$K28-ConstYear),$L28,$M28,AF$21),"") -> 0 | AG28: =IF($D28<>"",QuantityEstimate($J28,$H28,$E28,IF($K28<100,$K28,$K28-ConstYear),$L28,$M28,AG$21),"") -> 0 | AH28: =IF($D28<>"",QuantityEstimate($J28,$H28,$E28,IF($K28<100,$K28,$K28-ConstYear),$L28,$M28,AH$21),"") -> 0 | AI28: =IF($D28<>"",QuantityEstimate($J28,$H28,$E28,IF($K28<100,$K28,$K28-ConstYear),$L28,$M28,AI$21),"") -> 0 | AJ28: =IF($D28<>"",QuantityEstimate($J28,$H28,$E28,IF($K28<100,$K28,$K28-ConstYear),$L28,$M28,AJ$21),"") -> 0 | AK28: =IF($D28<>"",QuantityEstimate($J28,$H28,$E28,IF($K28<100,$K28,$K28-ConstYear),$L28,$M28,AK$21),"") -> 0 | AL28: =IF($D28<>"",QuantityEstimate($J28,$H28,$E28,IF($K28<100,$K28,$K28-ConstYear),$L28,$M28,AL$21),"") -> 0 | AM28: =IF($D28<>"",QuantityEstimate($J28,$H28,$E28,IF($K28<100,$K28,$K28-ConstYear),$L28,$M28,AM$21),"") -> 0 | AN28: =IF($D28<>"",QuantityEstimate($J28,$H28,$E28,IF($K28<100,$K28,$K28-ConstYear),$L28,$M28,AN$21),"") -> 0 | AO28: =IF($D28<>"",QuantityEstimate($J28,$H28,$E28,IF($K28<100,$K28,$K28-ConstYear),$L28,$M28,AO$21),"") -> 0 | AP28: =IF($D28<>"",QuantityEstimate($J28,$H28,$E28,IF($K28<100,$K28,$K28-ConstYear),$L28,$M28,AP$21),"") -> 0 | AQ28: =IF($D28<>"",QuantityEstimate($J28,$H28,$E28,IF($K28<100,$K28,$K28-ConstYear),$L28,$M28,AQ$21),"") -> 0 | AR28: =IF($D28<>"",QuantityEstimate($J28,$H28,$E28,IF($K28<100,$K28,$K28-ConstYear),$L28,$M28,AR$21),"") -> 0 | AS28: =IF($D28<>"",QuantityEstimate($J28,$H28,$E28,IF($K28<100,$K28,$K28-ConstYear),$L28,$M28,AS$21),"") -> 0 | AT28: =IF($D28<>"",QuantityEstimate($J28,$H28,$E28,IF($K28<100,$K28,$K28-ConstYear),$L28,$M28,AT$21),"") -> 0 | AU28: =IF($D28<>"",QuantityEstimate($J28,$H28,$E28,IF($K28<100,$K28,$K28-ConstYear),$L28,$M28,AU$21),"") -> 0 | AV28: =IF($D28<>"",QuantityEstimate($J28,$H28,$E28,IF($K28<100,$K28,$K28-ConstYear),$L28,$M28,AV$21),"") -> 0 | AW28: =IF($D28<>"",QuantityEstimate($J28,$H28,$E28,IF($K28<100,$K28,$K28-ConstYear),$L28,$M28,AW$21),"") -> 0 | AX28: =IF($D28<>"",QuantityEstimate($J28,$H28,$E28,IF($K28<100,$K28,$K28-ConstYear),$L28,$M28,AX$21),"") -> 0 | AY28: =IF($D28<>"",QuantityEstimate($J28,$H28,$E28,IF($K28<100,$K28,$K28-ConstYear),$L28,$M28,AY$21),"") -> 1.101928375 | AZ28: =IF($D28<>"",QuantityEstimate($J28,$H28,$E28,IF($K28<100,$K28,$K28-ConstYear),$L28,$M28,AZ$21),"") -> 0 | BA28: =IF($D28<>"",QuantityEstimate($J28,$H28,$E28,IF($K28<100,$K28,$K28-ConstYear),$L28,$M28,BA$21),"") -> 0 | BB28: =IF($D28<>"",QuantityEstimate($J28,$H28,$E28,IF($K28<100,$K28,$K28-ConstYear),$L28,$M28,BB$21),"") -> 0 | BC28: =IF($D28<>"",QuantityEstimate($J28,$H28,$E28,IF($K28<100,$K28,$K28-ConstYear),$L28,$M28,BC$21),"") -> 0 | BD28: =IF($D28<>"",QuantityEstimate($J28,$H28,$E28,IF($K28<100,$K28,$K28-ConstYear),$L28,$M28,BD$21),"") -> 0 | BF28: =IF($P$28<>"", $C28*$P$28,"") -> 0 | BG28: =IF($Q$28<>"", $C28*$Q$28,"") -> 0 | BH28: =IF($R$28<>"", $C28*$R$28,"") -> 0 | BI28: =IF($S$28<>"", $C28*$S$28,"") -> 0 | BJ28: =IF($T$28<>"", $C28*$T$28,"") -> 0 | BK28: =IF($U$28<>"", $C28*$U$28,"") -> 0 | BL28: =IF($V$28<>"", $C28*$V$28,"") -> 0 | BM28: =IF($W$28<>"", $C28*$W$28,"") -> 0 | BN28: =IF($X$28<>"", $C28*$X$28,"") -> 0 | BO28: =IF($Y$28<>"", $C28*$Y$28,"") -> 0 | BP28: =IF($Z$28<>"", $C28*$Z$28,"") -> 0 | BQ28: =IF($AA$28<>"", $C28*$AA$28,"") -> 0 | BR28: =IF($AB$28<>"", $C28*$AB$28,"") -> 0 | BS28: =IF($AC$28<>"", $C28*$AC$28,"") -> 0 | BT28: =IF($AD$28<>"", $C28*$AD$28,"") -> 0 | BU28: =IF($AE$28<>"", $C28*$AE$28,"") -> 0 | BV28: =IF($AF$28<>"", $C28*$AF$28,"") -> 0 | BW28: =IF($AG$28<>"", $C28*$AG$28,"") -> 0 | BX28: =IF($AH$28<>"", $C28*$AH$28,"") -> 0 | BY28: =IF($AI$28<>"", $C28*$AI$28,"") -> 0 | BZ28: =IF($AJ$28<>"", $C28*$AJ$28,"") -> 0 | CA28: =IF($AK$28<>"", $C28*$AK$28,"") -> 0 | CB28: =IF($AL$28<>"", $C28*$AL$28,"") -> 0 | CC28: =IF($AM$28<>"", $C28*$AM$28,"") -> 0 | CD28: =IF($AN$28<>"", $C28*$AN$28,"") -> 0 | CE28: =IF($AO$28<>"", $C28*$AO$28,"") -> 0 | CF28: =IF($AP$28<>"", $C28*$AP$28,"") -> 0 | CG28: =IF($AQ$28<>"", $C28*$AQ$28,"") -> 0 | CH28: =IF($AR$28<>"", $C28*$AR$28,"") -> 0 | CI28: =IF($AS$28<>"", $C28*$AS$28,"") -> 0 | CJ28: =IF($AT$28<>"", $C28*$AT$28,"") -> 0 | CK28: =IF($AU$28<>"", $C28*$AU$28,"") -> 0 | CL28: =IF($AV$28<>"", $C28*$AV$28,"") -> 0 | CM28: =IF($AW$28<>"", $C28*$AW$28,"") -> 0 | CN28: =IF($AX$28<>"", $C28*$AX$28,"") -> 0 | CO28: =IF($AY$28<>"", $C28*$AY$28,"") -> 8815.426997 | CP28: =IF($AZ$28<>"", $C28*$AZ$28,"") -> 0 | CQ28: =IF($BA$28<>"", $C28*$BA$28,"") -> 0 | CR28: =IF($BB$28<>"", $C28*$BB$28,"") -> 0 | CS28: =IF($BC$28<>"", $C28*$BC$28,"") -> 0 | CT28: =IF($BD$28<>"", $C28*$BD$28,"") -> 0 | CV28: =IF($P$28<>"",$BF$28/(1 + DiscountRate) ^ $CV$21,"") -> 0 | CW28: =IF($Q$28<>"",$BG$28/(1 + DiscountRate) ^ $CW$21,"") -> 0 | CX28: =IF($R$28<>"",$BH$28/(1 + DiscountRate) ^ $CX$21,"") -> 0 | CY28: =IF($S$28<>"",$BI$28/(1 + DiscountRate) ^ $CY$21,"") -> 0 | CZ28: =IF($T$28<>"",$BJ$28/(1 + DiscountRate) ^ $CZ$21,"") -> 0 | DA28: =IF($U$28<>"",$BK$28/(1 + DiscountRate) ^ $DA$21,"") -> 0 | DB28: =IF($V$28<>"",$BL$28/(1 + DiscountRate) ^ $DB$21,"") -> 0 | DC28: =IF($W$28<>"",$BM$28/(1 + DiscountRate) ^ $DC$21,"") -> 0 | DD28: =IF($X$28<>"",$BN$28/(1 + DiscountRate) ^ $DD$21,"") -> 0 | DE28: =IF($Y$28<>"",$BO$28/(1 + DiscountRate) ^ $DE$21,"") -> 0 | DF28: =IF($Z$28<>"",$BP$28/(1 + DiscountRate) ^ $DF$21,"") -> 0 | DG28: =IF($AA$28<>"",$BQ$28/(1 + DiscountRate) ^ $DG$21,"") -> 0 | DH28: =IF($AB$28<>"",$BR$28/(1 + DiscountRate) ^ $DH$21,"") -> 0 | DI28: =IF($AC$28<>"",$BS$28/(1 + DiscountRate) ^ $DI$21,"") -> 0 | DJ28: =IF($AD$28<>"",$BT$28/(1 + DiscountRate) ^ $DJ$21,"") -> 0 | DK28: =IF($AE$28<>"",$BU$28/(1 + DiscountRate) ^ $DK$21,"") -> 0 | DL28: =IF($AF$28<>"",$BV$28/(1 + DiscountRate) ^ $DL$21,"") -> 0 | DM28: =IF($AG$28<>"",$BW$28/(1 + DiscountRate) ^ $DM$21,"") -> 0 | DN28: =IF($AH$28<>"",$BX$28/(1 + DiscountRate) ^ $DN$21,"") -> 0 | DO28: =IF($AI$28<>"",$BY$28/(1 + DiscountRate) ^ $DO$21,"") -> 0 | DP28: =IF($AJ$28<>"",$BZ$28/(1 + DiscountRate) ^ $DP$21,"") -> 0 | DQ28: =IF($AK$28<>"",$CA$28/(1 + DiscountRate) ^ $DQ$21,"") -> 0 | DR28: =IF($AL$28<>"",$CB$28/(1 + DiscountRate) ^ $DR$21,"") -> 0 | DS28: =IF($AM$28<>"",$CC$28/(1 + DiscountRate) ^ $DS$21,"") -> 0 | DT28: =IF($AN$28<>"",$CD$28/(1 + DiscountRate) ^ $DT$21,"") -> 0 | DU28: =IF($AO$28<>"",$CE$28/(1 + DiscountRate) ^ $DU$21,"") -> 0 | DV28: =IF($AP$28<>"",$CF$28/(1 + DiscountRate) ^ $DV$21,"") -> 0 | DW28: =IF($AQ$28<>"",$CG$28/(1 + DiscountRate) ^ $DW$21,"") -> 0 | DX28: =IF($AR$28<>"",$CH$28/(1 + DiscountRate) ^ $DX$21,"") -> 0 | DY28: =IF($AS$28<>"",$CI$28/(1 + DiscountRate) ^ $DY$21,"") -> 0 | DZ28: =IF($AT$28<>"",$CJ$28/(1 + DiscountRate) ^ $DZ$21,"") -> 0 | EA28: =IF($AU$28<>"",$CK$28/(1 + DiscountRate) ^ $EA$21,"") -> 0 | EB28: =IF($AV$28<>"",$CL$28/(1 + DiscountRate) ^ $EB$21,"") -> 0 | EC28: =IF($AW$28<>"",$CM$28/(1 + DiscountRate) ^ $EC$21,"") -> 0 | ED28: =IF($AX$28<>"",$CN$28/(1 + DiscountRate) ^ $ED$21,"") -> 0 | EE28: =IF($AY$28<>"",$CO$28/(1 + DiscountRate) ^ $EE$21,"") -> 2233.965582 | EF28: =IF($AZ$28<>"",$CP$28/(1 + DiscountRate) ^ $EF$21,"") -> 0 | EG28: =IF($BA$28<>"",$CQ$28/(1 + DiscountRate) ^ $EG$21,"") -> 0 | EH28: =IF($BB$28<>"",$CR$28/(1 + DiscountRate) ^ $EH$21,"") -> 0 | EI28: =IF($BC$28<>"",$CS$28/(1 + DiscountRate) ^ $EI$21,"") -> 0 | EJ28: =IF($BD$28<>"",$CT$28/(1 + DiscountRate) ^ $EJ$21,"") -> 0
H29: =IF($A29<>"",IF($B29<>"",ItemQuantity(A29,B29,D29,E29,F29,G29),""),"") ->  | N29: =IF($A29<>"",IF($B29<>"",SUM(OFFSET($P29,0,AnalysisPeriod*2+4):OFFSET($P29,0,AnalysisPeriod*3+4)),""),"") ->  | P29: =IF($D29<>"",QuantityEstimate($J29,$H29,$E29,IF($K29<100,$K29,$K29-ConstYear),$L29,$M29,P$21),"") ->  | Q29: =IF($D29<>"",QuantityEstimate($J29,$H29,$E29,IF($K29<100,$K29,$K29-ConstYear),$L29,$M29,Q$21),"") ->  | R29: =IF($D29<>"",QuantityEstimate($J29,$H29,$E29,IF($K29<100,$K29,$K29-ConstYear),$L29,$M29,R$21),"") ->  | S29: =IF($D29<>"",QuantityEstimate($J29,$H29,$E29,IF($K29<100,$K29,$K29-ConstYear),$L29,$M29,S$21),"") ->  | T29: =IF($D29<>"",QuantityEstimate($J29,$H29,$E29,IF($K29<100,$K29,$K29-ConstYear),$L29,$M29,T$21),"") ->  | U29: =IF($D29<>"",QuantityEstimate($J29,$H29,$E29,IF($K29<100,$K29,$K29-ConstYear),$L29,$M29,U$21),"") ->  | V29: =IF($D29<>"",QuantityEstimate($J29,$H29,$E29,IF($K29<100,$K29,$K29-ConstYear),$L29,$M29,V$21),"") ->  | W29: =IF($D29<>"",QuantityEstimate($J29,$H29,$E29,IF($K29<100,$K29,$K29-ConstYear),$L29,$M29,W$21),"") ->  | X29: =IF($D29<>"",QuantityEstimate($J29,$H29,$E29,IF($K29<100,$K29,$K29-ConstYear),$L29,$M29,X$21),"") ->  | Y29: =IF($D29<>"",QuantityEstimate($J29,$H29,$E29,IF($K29<100,$K29,$K29-ConstYear),$L29,$M29,Y$21),"") ->  | Z29: =IF($D29<>"",QuantityEstimate($J29,$H29,$E29,IF($K29<100,$K29,$K29-ConstYear),$L29,$M29,Z$21),"") ->  | AA29: =IF($D29<>"",QuantityEstimate($J29,$H29,$E29,IF($K29<100,$K29,$K29-ConstYear),$L29,$M29,AA$21),"") ->  | AB29: =IF($D29<>"",QuantityEstimate($J29,$H29,$E29,IF($K29<100,$K29,$K29-ConstYear),$L29,$M29,AB$21),"") ->  | AC29: =IF($D29<>"",QuantityEstimate($J29,$H29,$E29,IF($K29<100,$K29,$K29-ConstYear),$L29,$M29,AC$21),"") ->  | AD29: =IF($D29<>"",QuantityEstimate($J29,$H29,$E29,IF($K29<100,$K29,$K29-ConstYear),$L29,$M29,AD$21),"") ->  | AE29: =IF($D29<>"",QuantityEstimate($J29,$H29,$E29,IF($K29<100,$K29,$K29-ConstYear),$L29,$M29,AE$21),"") ->  | AF29: =IF($D29<>"",QuantityEstimate($J29,$H29,$E29,IF($K29<100,$K29,$K29-ConstYear),$L29,$M29,AF$21),"") ->  | AG29: =IF($D29<>"",QuantityEstimate($J29,$H29,$E29,IF($K29<100,$K29,$K29-ConstYear),$L29,$M29,AG$21),"") ->  | AH29: =IF($D29<>"",QuantityEstimate($J29,$H29,$E29,IF($K29<100,$K29,$K29-ConstYear),$L29,$M29,AH$21),"") ->  | AI29: =IF($D29<>"",QuantityEstimate($J29,$H29,$E29,IF($K29<100,$K29,$K29-ConstYear),$L29,$M29,AI$21),"") ->  | AJ29: =IF($D29<>"",QuantityEstimate($J29,$H29,$E29,IF($K29<100,$K29,$K29-ConstYear),$L29,$M29,AJ$21),"") ->  | AK29: =IF($D29<>"",QuantityEstimate($J29,$H29,$E29,IF($K29<100,$K29,$K29-ConstYear),$L29,$M29,AK$21),"") ->  | AL29: =IF($D29<>"",QuantityEstimate($J29,$H29,$E29,IF($K29<100,$K29,$K29-ConstYear),$L29,$M29,AL$21),"") ->  | AM29: =IF($D29<>"",QuantityEstimate($J29,$H29,$E29,IF($K29<100,$K29,$K29-ConstYear),$L29,$M29,AM$21),"") ->  | AN29: =IF($D29<>"",QuantityEstimate($J29,$H29,$E29,IF($K29<100,$K29,$K29-ConstYear),$L29,$M29,AN$21),"") ->  | AO29: =IF($D29<>"",QuantityEstimate($J29,$H29,$E29,IF($K29<100,$K29,$K29-ConstYear),$L29,$M29,AO$21),"") ->  | AP29: =IF($D29<>"",QuantityEstimate($J29,$H29,$E29,IF($K29<100,$K29,$K29-ConstYear),$L29,$M29,AP$21),"") ->  | AQ29: =IF($D29<>"",QuantityEstimate($J29,$H29,$E29,IF($K29<100,$K29,$K29-ConstYear),$L29,$M29,AQ$21),"") ->  | AR29: =IF($D29<>"",QuantityEstimate($J29,$H29,$E29,IF($K29<100,$K29,$K29-ConstYear),$L29,$M29,AR$21),"") ->  | AS29: =IF($D29<>"",QuantityEstimate($J29,$H29,$E29,IF($K29<100,$K29,$K29-ConstYear),$L29,$M29,AS$21),"") ->  | AT29: =IF($D29<>"",QuantityEstimate($J29,$H29,$E29,IF($K29<100,$K29,$K29-ConstYear),$L29,$M29,AT$21),"") ->  | AU29: =IF($D29<>"",QuantityEstimate($J29,$H29,$E29,IF($K29<100,$K29,$K29-ConstYear),$L29,$M29,AU$21),"") ->  | AV29: =IF($D29<>"",QuantityEstimate($J29,$H29,$E29,IF($K29<100,$K29,$K29-ConstYear),$L29,$M29,AV$21),"") ->  | AW29: =IF($D29<>"",QuantityEstimate($J29,$H29,$E29,IF($K29<100,$K29,$K29-ConstYear),$L29,$M29,AW$21),"") ->  | AX29: =IF($D29<>"",QuantityEstimate($J29,$H29,$E29,IF($K29<100,$K29,$K29-ConstYear),$L29,$M29,AX$21),"") ->  | AY29: =IF($D29<>"",QuantityEstimate($J29,$H29,$E29,IF($K29<100,$K29,$K29-ConstYear),$L29,$M29,AY$21),"") ->  | AZ29: =IF($D29<>"",QuantityEstimate($J29,$H29,$E29,IF($K29<100,$K29,$K29-ConstYear),$L29,$M29,AZ$21),"") ->  | BA29: =IF($D29<>"",QuantityEstimate($J29,$H29,$E29,IF($K29<100,$K29,$K29-ConstYear),$L29,$M29,BA$21),"") ->  | BB29: =IF($D29<>"",QuantityEstimate($J29,$H29,$E29,IF($K29<100,$K29,$K29-ConstYear),$L29,$M29,BB$21),"") ->  | BC29: =IF($D29<>"",QuantityEstimate($J29,$H29,$E29,IF($K29<100,$K29,$K29-ConstYear),$L29,$M29,BC$21),"") ->  | BD29: =IF($D29<>"",QuantityEstimate($J29,$H29,$E29,IF($K29<100,$K29,$K29-ConstYear),$L29,$M29,BD$21),"") ->  | BF29: =IF($P$29<>"", $C29*$P$29,"") ->  | BG29: =IF($Q$29<>"", $C29*$Q$29,"") ->  | BH29: =IF($R$29<>"", $C29*$R$29,"") ->  | BI29: =IF($S$29<>"", $C29*$S$29,"") ->  | BJ29: =IF($T$29<>"", $C29*$T$29,"") ->  | BK29: =IF($U$29<>"", $C29*$U$29,"") ->  | BL29: =IF($V$29<>"", $C29*$V$29,"") ->  | BM29: =IF($W$29<>"", $C29*$W$29,"") ->  | BN29: =IF($X$29<>"", $C29*$X$29,"") ->  | BO29: =IF($Y$29<>"", $C29*$Y$29,"") ->  | BP29: =IF($Z$29<>"", $C29*$Z$29,"") ->  | BQ29: =IF($AA$29<>"", $C29*$AA$29,"") ->  | BR29: =IF($AB$29<>"", $C29*$AB$29,"") ->  | BS29: =IF($AC$29<>"", $C29*$AC$29,"") ->  | BT29: =IF($AD$29<>"", $C29*$AD$29,"") ->  | BU29: =IF($AE$29<>"", $C29*$AE$29,"") ->  | BV29: =IF($AF$29<>"", $C29*$AF$29,"") ->  | BW29: =IF($AG$29<>"", $C29*$AG$29,"") ->  | BX29: =IF($AH$29<>"", $C29*$AH$29,"") ->  | BY29: =IF($AI$29<>"", $C29*$AI$29,"") ->  | BZ29: =IF($AJ$29<>"", $C29*$AJ$29,"") ->  | CA29: =IF($AK$29<>"", $C29*$AK$29,"") ->  | CB29: =IF($AL$29<>"", $C29*$AL$29,"") ->  | CC29: =IF($AM$29<>"", $C29*$AM$29,"") ->  | CD29: =IF($AN$29<>"", $C29*$AN$29,"") ->  | CE29: =IF($AO$29<>"", $C29*$AO$29,"") ->  | CF29: =IF($AP$29<>"", $C29*$AP$29,"") ->  | CG29: =IF($AQ$29<>"", $C29*$AQ$29,"") ->  | CH29: =IF($AR$29<>"", $C29*$AR$29,"") ->  | CI29: =IF($AS$29<>"", $C29*$AS$29,"") ->  | CJ29: =IF($AT$29<>"", $C29*$AT$29,"") ->  | CK29: =IF($AU$29<>"", $C29*$AU$29,"") ->  | CL29: =IF($AV$29<>"", $C29*$AV$29,"") ->  | CM29: =IF($AW$29<>"", $C29*$AW$29,"") ->  | CN29: =IF($AX$29<>"", $C29*$AX$29,"") ->  | CO29: =IF($AY$29<>"", $C29*$AY$29,"") ->  | CP29: =IF($AZ$29<>"", $C29*$AZ$29,"") ->  | CQ29: =IF($BA$29<>"", $C29*$BA$29,"") ->  | CR29: =IF($BB$29<>"", $C29*$BB$29,"") ->  | CS29: =IF($BC$29<>"", $C29*$BC$29,"") ->  | CT29: =IF($BD$29<>"", $C29*$BD$29,"") ->  | CV29: =IF($P$29<>"",$BF$29/(1 + DiscountRate) ^ $CV$21,"") ->  | CW29: =IF($Q$29<>"",$BG$29/(1 + DiscountRate) ^ $CW$21,"") ->  | CX29: =IF($R$29<>"",$BH$29/(1 + DiscountRate) ^ $CX$21,"") ->  | CY29: =IF($S$29<>"",$BI$29/(1 + DiscountRate) ^ $CY$21,"") ->  | CZ29: =IF($T$29<>"",$BJ$29/(1 + DiscountRate) ^ $CZ$21,"") ->  | DA29: =IF($U$29<>"",$BK$29/(1 + DiscountRate) ^ $DA$21,"") ->  | DB29: =IF($V$29<>"",$BL$29/(1 + DiscountRate) ^ $DB$21,"") ->  | DC29: =IF($W$29<>"",$BM$29/(1 + DiscountRate) ^ $DC$21,"") ->  | DD29: =IF($X$29<>"",$BN$29/(1 + DiscountRate) ^ $DD$21,"") ->  | DE29: =IF($Y$29<>"",$BO$29/(1 + DiscountRate) ^ $DE$21,"") ->  | DF29: =IF($Z$29<>"",$BP$29/(1 + DiscountRate) ^ $DF$21,"") ->  | DG29: =IF($AA$29<>"",$BQ$29/(1 + DiscountRate) ^ $DG$21,"") ->  | DH29: =IF($AB$29<>"",$BR$29/(1 + DiscountRate) ^ $DH$21,"") ->  | DI29: =IF($AC$29<>"",$BS$29/(1 + DiscountRate) ^ $DI$21,"") ->  | DJ29: =IF($AD$29<>"",$BT$29/(1 + DiscountRate) ^ $DJ$21,"") ->  | DK29: =IF($AE$29<>"",$BU$29/(1 + DiscountRate) ^ $DK$21,"") ->  | DL29: =IF($AF$29<>"",$BV$29/(1 + DiscountRate) ^ $DL$21,"") ->  | DM29: =IF($AG$29<>"",$BW$29/(1 + DiscountRate) ^ $DM$21,"") ->  | DN29: =IF($AH$29<>"",$BX$29/(1 + DiscountRate) ^ $DN$21,"") ->  | DO29: =IF($AI$29<>"",$BY$29/(1 + DiscountRate) ^ $DO$21,"") ->  | DP29: =IF($AJ$29<>"",$BZ$29/(1 + DiscountRate) ^ $DP$21,"") ->  | DQ29: =IF($AK$29<>"",$CA$29/(1 + DiscountRate) ^ $DQ$21,"") ->  | DR29: =IF($AL$29<>"",$CB$29/(1 + DiscountRate) ^ $DR$21,"") ->  | DS29: =IF($AM$29<>"",$CC$29/(1 + DiscountRate) ^ $DS$21,"") ->  | DT29: =IF($AN$29<>"",$CD$29/(1 + DiscountRate) ^ $DT$21,"") ->  | DU29: =IF($AO$29<>"",$CE$29/(1 + DiscountRate) ^ $DU$21,"") ->  | DV29: =IF($AP$29<>"",$CF$29/(1 + DiscountRate) ^ $DV$21,"") ->  | DW29: =IF($AQ$29<>"",$CG$29/(1 + DiscountRate) ^ $DW$21,"") ->  | DX29: =IF($AR$29<>"",$CH$29/(1 + DiscountRate) ^ $DX$21,"") ->  | DY29: =IF($AS$29<>"",$CI$29/(1 + DiscountRate) ^ $DY$21,"") ->  | DZ29: =IF($AT$29<>"",$CJ$29/(1 + DiscountRate) ^ $DZ$21,"") ->  | EA29: =IF($AU$29<>"",$CK$29/(1 + DiscountRate) ^ $EA$21,"") ->  | EB29: =IF($AV$29<>"",$CL$29/(1 + DiscountRate) ^ $EB$21,"") ->  | EC29: =IF($AW$29<>"",$CM$29/(1 + DiscountRate) ^ $EC$21,"") ->  | ED29: =IF($AX$29<>"",$CN$29/(1 + DiscountRate) ^ $ED$21,"") ->  | EE29: =IF($AY$29<>"",$CO$29/(1 + DiscountRate) ^ $EE$21,"") ->  | EF29: =IF($AZ$29<>"",$CP$29/(1 + DiscountRate) ^ $EF$21,"") ->  | EG29: =IF($BA$29<>"",$CQ$29/(1 + DiscountRate) ^ $EG$21,"") ->  | EH29: =IF($BB$29<>"",$CR$29/(1 + DiscountRate) ^ $EH$21,"") ->  | EI29: =IF($BC$29<>"",$CS$29/(1 + DiscountRate) ^ $EI$21,"") ->  | EJ29: =IF($BD$29<>"",$CT$29/(1 + DiscountRate) ^ $EJ$21,"") -> 
H30: =IF($A30<>"",IF($B30<>"",ItemQuantity(A30,B30,D30,E30,F30,G30),""),"") ->  | N30: =IF($A30<>"",IF($B30<>"",SUM(OFFSET($P30,0,AnalysisPeriod*2+4):OFFSET($P30,0,AnalysisPeriod*3+4)),""),"") ->  | P30: =IF($D30<>"",QuantityEstimate($J30,$H30,$E30,IF($K30<100,$K30,$K30-ConstYear),$L30,$M30,P$21),"") ->  | Q30: =IF($D30<>"",QuantityEstimate($J30,$H30,$E30,IF($K30<100,$K30,$K30-ConstYear),$L30,$M30,Q$21),"") ->  | R30: =IF($D30<>"",QuantityEstimate($J30,$H30,$E30,IF($K30<100,$K30,$K30-ConstYear),$L30,$M30,R$21),"") ->  | S30: =IF($D30<>"",QuantityEstimate($J30,$H30,$E30,IF($K30<100,$K30,$K30-ConstYear),$L30,$M30,S$21),"") ->  | T30: =IF($D30<>"",QuantityEstimate($J30,$H30,$E30,IF($K30<100,$K30,$K30-ConstYear),$L30,$M30,T$21),"") ->  | U30: =IF($D30<>"",QuantityEstimate($J30,$H30,$E30,IF($K30<100,$K30,$K30-ConstYear),$L30,$M30,U$21),"") ->  | V30: =IF($D30<>"",QuantityEstimate($J30,$H30,$E30,IF($K30<100,$K30,$K30-ConstYear),$L30,$M30,V$21),"") ->  | W30: =IF($D30<>"",QuantityEstimate($J30,$H30,$E30,IF($K30<100,$K30,$K30-ConstYear),$L30,$M30,W$21),"") ->  | X30: =IF($D30<>"",QuantityEstimate($J30,$H30,$E30,IF($K30<100,$K30,$K30-ConstYear),$L30,$M30,X$21),"") ->  | Y30: =IF($D30<>"",QuantityEstimate($J30,$H30,$E30,IF($K30<100,$K30,$K30-ConstYear),$L30,$M30,Y$21),"") ->  | Z30: =IF($D30<>"",QuantityEstimate($J30,$H30,$E30,IF($K30<100,$K30,$K30-ConstYear),$L30,$M30,Z$21),"") ->  | AA30: =IF($D30<>"",QuantityEstimate($J30,$H30,$E30,IF($K30<100,$K30,$K30-ConstYear),$L30,$M30,AA$21),"") ->  | AB30: =IF($D30<>"",QuantityEstimate($J30,$H30,$E30,IF($K30<100,$K30,$K30-ConstYear),$L30,$M30,AB$21),"") ->  | AC30: =IF($D30<>"",QuantityEstimate($J30,$H30,$E30,IF($K30<100,$K30,$K30-ConstYear),$L30,$M30,AC$21),"") ->  | AD30: =IF($D30<>"",QuantityEstimate($J30,$H30,$E30,IF($K30<100,$K30,$K30-ConstYear),$L30,$M30,AD$21),"") ->  | AE30: =IF($D30<>"",QuantityEstimate($J30,$H30,$E30,IF($K30<100,$K30,$K30-ConstYear),$L30,$M30,AE$21),"") ->  | AF30: =IF($D30<>"",QuantityEstimate($J30,$H30,$E30,IF($K30<100,$K30,$K30-ConstYear),$L30,$M30,AF$21),"") ->  | AG30: =IF($D30<>"",QuantityEstimate($J30,$H30,$E30,IF($K30<100,$K30,$K30-ConstYear),$L30,$M30,AG$21),"") ->  | AH30: =IF($D30<>"",QuantityEstimate($J30,$H30,$E30,IF($K30<100,$K30,$K30-ConstYear),$L30,$M30,AH$21),"") ->  | AI30: =IF($D30<>"",QuantityEstimate($J30,$H30,$E30,IF($K30<100,$K30,$K30-ConstYear),$L30,$M30,AI$21),"") ->  | AJ30: =IF($D30<>"",QuantityEstimate($J30,$H30,$E30,IF($K30<100,$K30,$K30-ConstYear),$L30,$M30,AJ$21),"") ->  | AK30: =IF($D30<>"",QuantityEstimate($J30,$H30,$E30,IF($K30<100,$K30,$K30-ConstYear),$L30,$M30,AK$21),"") ->  | AL30: =IF($D30<>"",QuantityEstimate($J30,$H30,$E30,IF($K30<100,$K30,$K30-ConstYear),$L30,$M30,AL$21),"") ->  | AM30: =IF($D30<>"",QuantityEstimate($J30,$H30,$E30,IF($K30<100,$K30,$K30-ConstYear),$L30,$M30,AM$21),"") ->  | AN30: =IF($D30<>"",QuantityEstimate($J30,$H30,$E30,IF($K30<100,$K30,$K30-ConstYear),$L30,$M30,AN$21),"") ->  | AO30: =IF($D30<>"",QuantityEstimate($J30,$H30,$E30,IF($K30<100,$K30,$K30-ConstYear),$L30,$M30,AO$21),"") ->  | AP30: =IF($D30<>"",QuantityEstimate($J30,$H30,$E30,IF($K30<100,$K30,$K30-ConstYear),$L30,$M30,AP$21),"") ->  | AQ30: =IF($D30<>"",QuantityEstimate($J30,$H30,$E30,IF($K30<100,$K30,$K30-ConstYear),$L30,$M30,AQ$21),"") ->  | AR30: =IF($D30<>"",QuantityEstimate($J30,$H30,$E30,IF($K30<100,$K30,$K30-ConstYear),$L30,$M30,AR$21),"") ->  | AS30: =IF($D30<>"",QuantityEstimate($J30,$H30,$E30,IF($K30<100,$K30,$K30-ConstYear),$L30,$M30,AS$21),"") ->  | AT30: =IF($D30<>"",QuantityEstimate($J30,$H30,$E30,IF($K30<100,$K30,$K30-ConstYear),$L30,$M30,AT$21),"") ->  | AU30: =IF($D30<>"",QuantityEstimate($J30,$H30,$E30,IF($K30<100,$K30,$K30-ConstYear),$L30,$M30,AU$21),"") ->  | AV30: =IF($D30<>"",QuantityEstimate($J30,$H30,$E30,IF($K30<100,$K30,$K30-ConstYear),$L30,$M30,AV$21),"") ->  | AW30: =IF($D30<>"",QuantityEstimate($J30,$H30,$E30,IF($K30<100,$K30,$K30-ConstYear),$L30,$M30,AW$21),"") ->  | AX30: =IF($D30<>"",QuantityEstimate($J30,$H30,$E30,IF($K30<100,$K30,$K30-ConstYear),$L30,$M30,AX$21),"") ->  | AY30: =IF($D30<>"",QuantityEstimate($J30,$H30,$E30,IF($K30<100,$K30,$K30-ConstYear),$L30,$M30,AY$21),"") ->  | AZ30: =IF($D30<>"",QuantityEstimate($J30,$H30,$E30,IF($K30<100,$K30,$K30-ConstYear),$L30,$M30,AZ$21),"") ->  | BA30: =IF($D30<>"",QuantityEstimate($J30,$H30,$E30,IF($K30<100,$K30,$K30-ConstYear),$L30,$M30,BA$21),"") ->  | BB30: =IF($D30<>"",QuantityEstimate($J30,$H30,$E30,IF($K30<100,$K30,$K30-ConstYear),$L30,$M30,BB$21),"") ->  | BC30: =IF($D30<>"",QuantityEstimate($J30,$H30,$E30,IF($K30<100,$K30,$K30-ConstYear),$L30,$M30,BC$21),"") ->  | BD30: =IF($D30<>"",QuantityEstimate($J30,$H30,$E30,IF($K30<100,$K30,$K30-ConstYear),$L30,$M30,BD$21),"") ->  | BF30: =IF($P$30<>"", $C30*$P$30,"") ->  | BG30: =IF($Q$30<>"", $C30*$Q$30,"") ->  | BH30: =IF($R$30<>"", $C30*$R$30,"") ->  | BI30: =IF($S$30<>"", $C30*$S$30,"") ->  | BJ30: =IF($T$30<>"", $C30*$T$30,"") ->  | BK30: =IF($U$30<>"", $C30*$U$30,"") ->  | BL30: =IF($V$30<>"", $C30*$V$30,"") ->  | BM30: =IF($W$30<>"", $C30*$W$30,"") ->  | BN30: =IF($X$30<>"", $C30*$X$30,"") ->  | BO30: =IF($Y$30<>"", $C30*$Y$30,"") ->  | BP30: =IF($Z$30<>"", $C30*$Z$30,"") ->  | BQ30: =IF($AA$30<>"", $C30*$AA$30,"") ->  | BR30: =IF($AB$30<>"", $C30*$AB$30,"") ->  | BS30: =IF($AC$30<>"", $C30*$AC$30,"") ->  | BT30: =IF($AD$30<>"", $C30*$AD$30,"") ->  | BU30: =IF($AE$30<>"", $C30*$AE$30,"") ->  | BV30: =IF($AF$30<>"", $C30*$AF$30,"") ->  | BW30: =IF($AG$30<>"", $C30*$AG$30,"") ->  | BX30: =IF($AH$30<>"", $C30*$AH$30,"") ->  | BY30: =IF($AI$30<>"", $C30*$AI$30,"") ->  | BZ30: =IF($AJ$30<>"", $C30*$AJ$30,"") ->  | CA30: =IF($AK$30<>"", $C30*$AK$30,"") ->  | CB30: =IF($AL$30<>"", $C30*$AL$30,"") ->  | CC30: =IF($AM$30<>"", $C30*$AM$30,"") ->  | CD30: =IF($AN$30<>"", $C30*$AN$30,"") ->  | CE30: =IF($AO$30<>"", $C30*$AO$30,"") ->  | CF30: =IF($AP$30<>"", $C30*$AP$30,"") ->  | CG30: =IF($AQ$30<>"", $C30*$AQ$30,"") ->  | CH30: =IF($AR$30<>"", $C30*$AR$30,"") ->  | CI30: =IF($AS$30<>"", $C30*$AS$30,"") ->  | CJ30: =IF($AT$30<>"", $C30*$AT$30,"") ->  | CK30: =IF($AU$30<>"", $C30*$AU$30,"") ->  | CL30: =IF($AV$30<>"", $C30*$AV$30,"") ->  | CM30: =IF($AW$30<>"", $C30*$AW$30,"") ->  | CN30: =IF($AX$30<>"", $C30*$AX$30,"") ->  | CO30: =IF($AY$30<>"", $C30*$AY$30,"") ->  | CP30: =IF($AZ$30<>"", $C30*$AZ$30,"") ->  | CQ30: =IF($BA$30<>"", $C30*$BA$30,"") ->  | CR30: =IF($BB$30<>"", $C30*$BB$30,"") ->  | CS30: =IF($BC$30<>"", $C30*$BC$30,"") ->  | CT30: =IF($BD$30<>"", $C30*$BD$30,"") ->  | CV30: =IF($P$30<>"",$BF$30/(1 + DiscountRate) ^ $CV$21,"") ->  | CW30: =IF($Q$30<>"",$BG$30/(1 + DiscountRate) ^ $CW$21,"") ->  | CX30: =IF($R$30<>"",$BH$30/(1 + DiscountRate) ^ $CX$21,"") ->  | CY30: =IF($S$30<>"",$BI$30/(1 + DiscountRate) ^ $CY$21,"") ->  | CZ30: =IF($T$30<>"",$BJ$30/(1 + DiscountRate) ^ $CZ$21,"") ->  | DA30: =IF($U$30<>"",$BK$30/(1 + DiscountRate) ^ $DA$21,"") ->  | DB30: =IF($V$30<>"",$BL$30/(1 + DiscountRate) ^ $DB$21,"") ->  | DC30: =IF($W$30<>"",$BM$30/(1 + DiscountRate) ^ $DC$21,"") ->  | DD30: =IF($X$30<>"",$BN$30/(1 + DiscountRate) ^ $DD$21,"") ->  | DE30: =IF($Y$30<>"",$BO$30/(1 + DiscountRate) ^ $DE$21,"") ->  | DF30: =IF($Z$30<>"",$BP$30/(1 + DiscountRate) ^ $DF$21,"") ->  | DG30: =IF($AA$30<>"",$BQ$30/(1 + DiscountRate) ^ $DG$21,"") ->  | DH30: =IF($AB$30<>"",$BR$30/(1 + DiscountRate) ^ $DH$21,"") ->  | DI30: =IF($AC$30<>"",$BS$30/(1 + DiscountRate) ^ $DI$21,"") ->  | DJ30: =IF($AD$30<>"",$BT$30/(1 + DiscountRate) ^ $DJ$21,"") ->  | DK30: =IF($AE$30<>"",$BU$30/(1 + DiscountRate) ^ $DK$21,"") ->  | DL30: =IF($AF$30<>"",$BV$30/(1 + DiscountRate) ^ $DL$21,"") ->  | DM30: =IF($AG$30<>"",$BW$30/(1 + DiscountRate) ^ $DM$21,"") ->  | DN30: =IF($AH$30<>"",$BX$30/(1 + DiscountRate) ^ $DN$21,"") ->  | DO30: =IF($AI$30<>"",$BY$30/(1 + DiscountRate) ^ $DO$21,"") ->  | DP30: =IF($AJ$30<>"",$BZ$30/(1 + DiscountRate) ^ $DP$21,"") ->  | DQ30: =IF($AK$30<>"",$CA$30/(1 + DiscountRate) ^ $DQ$21,"") ->  | DR30: =IF($AL$30<>"",$CB$30/(1 + DiscountRate) ^ $DR$21,"") ->  | DS30: =IF($AM$30<>"",$CC$30/(1 + DiscountRate) ^ $DS$21,"") ->  | DT30: =IF($AN$30<>"",$CD$30/(1 + DiscountRate) ^ $DT$21,"") ->  | DU30: =IF($AO$30<>"",$CE$30/(1 + DiscountRate) ^ $DU$21,"") ->  | DV30: =IF($AP$30<>"",$CF$30/(1 + DiscountRate) ^ $DV$21,"") ->  | DW30: =IF($AQ$30<>"",$CG$30/(1 + DiscountRate) ^ $DW$21,"") ->  | DX30: =IF($AR$30<>"",$CH$30/(1 + DiscountRate) ^ $DX$21,"") ->  | DY30: =IF($AS$30<>"",$CI$30/(1 + DiscountRate) ^ $DY$21,"") ->  | DZ30: =IF($AT$30<>"",$CJ$30/(1 + DiscountRate) ^ $DZ$21,"") ->  | EA30: =IF($AU$30<>"",$CK$30/(1 + DiscountRate) ^ $EA$21,"") ->  | EB30: =IF($AV$30<>"",$CL$30/(1 + DiscountRate) ^ $EB$21,"") ->  | EC30: =IF($AW$30<>"",$CM$30/(1 + DiscountRate) ^ $EC$21,"") ->  | ED30: =IF($AX$30<>"",$CN$30/(1 + DiscountRate) ^ $ED$21,"") ->  | EE30: =IF($AY$30<>"",$CO$30/(1 + DiscountRate) ^ $EE$21,"") ->  | EF30: =IF($AZ$30<>"",$CP$30/(1 + DiscountRate) ^ $EF$21,"") ->  | EG30: =IF($BA$30<>"",$CQ$30/(1 + DiscountRate) ^ $EG$21,"") ->  | EH30: =IF($BB$30<>"",$CR$30/(1 + DiscountRate) ^ $EH$21,"") ->  | EI30: =IF($BC$30<>"",$CS$30/(1 + DiscountRate) ^ $EI$21,"") ->  | EJ30: =IF($BD$30<>"",$CT$30/(1 + DiscountRate) ^ $EJ$21,"") -> 
H31: =IF($A31<>"",IF($B31<>"",ItemQuantity(A31,B31,D31,E31,F31,G31),""),"") ->  | N31: =IF($A31<>"",IF($B31<>"",SUM(OFFSET($P31,0,AnalysisPeriod*2+4):OFFSET($P31,0,AnalysisPeriod*3+4)),""),"") ->  | P31: =IF($D31<>"",QuantityEstimate($J31,$H31,$E31,IF($K31<100,$K31,$K31-ConstYear),$L31,$M31,P$21),"") ->  | Q31: =IF($D31<>"",QuantityEstimate($J31,$H31,$E31,IF($K31<100,$K31,$K31-ConstYear),$L31,$M31,Q$21),"") ->  | R31: =IF($D31<>"",QuantityEstimate($J31,$H31,$E31,IF($K31<100,$K31,$K31-ConstYear),$L31,$M31,R$21),"") ->  | S31: =IF($D31<>"",QuantityEstimate($J31,$H31,$E31,IF($K31<100,$K31,$K31-ConstYear),$L31,$M31,S$21),"") ->  | T31: =IF($D31<>"",QuantityEstimate($J31,$H31,$E31,IF($K31<100,$K31,$K31-ConstYear),$L31,$M31,T$21),"") ->  | U31: =IF($D31<>"",QuantityEstimate($J31,$H31,$E31,IF($K31<100,$K31,$K31-ConstYear),$L31,$M31,U$21),"") ->  | V31: =IF($D31<>"",QuantityEstimate($J31,$H31,$E31,IF($K31<100,$K31,$K31-ConstYear),$L31,$M31,V$21),"") ->  | W31: =IF($D31<>"",QuantityEstimate($J31,$H31,$E31,IF($K31<100,$K31,$K31-ConstYear),$L31,$M31,W$21),"") ->  | X31: =IF($D31<>"",QuantityEstimate($J31,$H31,$E31,IF($K31<100,$K31,$K31-ConstYear),$L31,$M31,X$21),"") ->  | Y31: =IF($D31<>"",QuantityEstimate($J31,$H31,$E31,IF($K31<100,$K31,$K31-ConstYear),$L31,$M31,Y$21),"") ->  | Z31: =IF($D31<>"",QuantityEstimate($J31,$H31,$E31,IF($K31<100,$K31,$K31-ConstYear),$L31,$M31,Z$21),"") ->  | AA31: =IF($D31<>"",QuantityEstimate($J31,$H31,$E31,IF($K31<100,$K31,$K31-ConstYear),$L31,$M31,AA$21),"") ->  | AB31: =IF($D31<>"",QuantityEstimate($J31,$H31,$E31,IF($K31<100,$K31,$K31-ConstYear),$L31,$M31,AB$21),"") ->  | AC31: =IF($D31<>"",QuantityEstimate($J31,$H31,$E31,IF($K31<100,$K31,$K31-ConstYear),$L31,$M31,AC$21),"") ->  | AD31: =IF($D31<>"",QuantityEstimate($J31,$H31,$E31,IF($K31<100,$K31,$K31-ConstYear),$L31,$M31,AD$21),"") ->  | AE31: =IF($D31<>"",QuantityEstimate($J31,$H31,$E31,IF($K31<100,$K31,$K31-ConstYear),$L31,$M31,AE$21),"") ->  | AF31: =IF($D31<>"",QuantityEstimate($J31,$H31,$E31,IF($K31<100,$K31,$K31-ConstYear),$L31,$M31,AF$21),"") ->  | AG31: =IF($D31<>"",QuantityEstimate($J31,$H31,$E31,IF($K31<100,$K31,$K31-ConstYear),$L31,$M31,AG$21),"") ->  | AH31: =IF($D31<>"",QuantityEstimate($J31,$H31,$E31,IF($K31<100,$K31,$K31-ConstYear),$L31,$M31,AH$21),"") ->  | AI31: =IF($D31<>"",QuantityEstimate($J31,$H31,$E31,IF($K31<100,$K31,$K31-ConstYear),$L31,$M31,AI$21),"") ->  | AJ31: =IF($D31<>"",QuantityEstimate($J31,$H31,$E31,IF($K31<100,$K31,$K31-ConstYear),$L31,$M31,AJ$21),"") ->  | AK31: =IF($D31<>"",QuantityEstimate($J31,$H31,$E31,IF($K31<100,$K31,$K31-ConstYear),$L31,$M31,AK$21),"") ->  | AL31: =IF($D31<>"",QuantityEstimate($J31,$H31,$E31,IF($K31<100,$K31,$K31-ConstYear),$L31,$M31,AL$21),"") ->  | AM31: =IF($D31<>"",QuantityEstimate($J31,$H31,$E31,IF($K31<100,$K31,$K31-ConstYear),$L31,$M31,AM$21),"") ->  | AN31: =IF($D31<>"",QuantityEstimate($J31,$H31,$E31,IF($K31<100,$K31,$K31-ConstYear),$L31,$M31,AN$21),"") ->  | AO31: =IF($D31<>"",QuantityEstimate($J31,$H31,$E31,IF($K31<100,$K31,$K31-ConstYear),$L31,$M31,AO$21),"") ->  | AP31: =IF($D31<>"",QuantityEstimate($J31,$H31,$E31,IF($K31<100,$K31,$K31-ConstYear),$L31,$M31,AP$21),"") ->  | AQ31: =IF($D31<>"",QuantityEstimate($J31,$H31,$E31,IF($K31<100,$K31,$K31-ConstYear),$L31,$M31,AQ$21),"") ->  | AR31: =IF($D31<>"",QuantityEstimate($J31,$H31,$E31,IF($K31<100,$K31,$K31-ConstYear),$L31,$M31,AR$21),"") ->  | AS31: =IF($D31<>"",QuantityEstimate($J31,$H31,$E31,IF($K31<100,$K31,$K31-ConstYear),$L31,$M31,AS$21),"") ->  | AT31: =IF($D31<>"",QuantityEstimate($J31,$H31,$E31,IF($K31<100,$K31,$K31-ConstYear),$L31,$M31,AT$21),"") ->  | AU31: =IF($D31<>"",QuantityEstimate($J31,$H31,$E31,IF($K31<100,$K31,$K31-ConstYear),$L31,$M31,AU$21),"") ->  | AV31: =IF($D31<>"",QuantityEstimate($J31,$H31,$E31,IF($K31<100,$K31,$K31-ConstYear),$L31,$M31,AV$21),"") ->  | AW31: =IF($D31<>"",QuantityEstimate($J31,$H31,$E31,IF($K31<100,$K31,$K31-ConstYear),$L31,$M31,AW$21),"") ->  | AX31: =IF($D31<>"",QuantityEstimate($J31,$H31,$E31,IF($K31<100,$K31,$K31-ConstYear),$L31,$M31,AX$21),"") ->  | AY31: =IF($D31<>"",QuantityEstimate($J31,$H31,$E31,IF($K31<100,$K31,$K31-ConstYear),$L31,$M31,AY$21),"") ->  | AZ31: =IF($D31<>"",QuantityEstimate($J31,$H31,$E31,IF($K31<100,$K31,$K31-ConstYear),$L31,$M31,AZ$21),"") ->  | BA31: =IF($D31<>"",QuantityEstimate($J31,$H31,$E31,IF($K31<100,$K31,$K31-ConstYear),$L31,$M31,BA$21),"") ->  | BB31: =IF($D31<>"",QuantityEstimate($J31,$H31,$E31,IF($K31<100,$K31,$K31-ConstYear),$L31,$M31,BB$21),"") ->  | BC31: =IF($D31<>"",QuantityEstimate($J31,$H31,$E31,IF($K31<100,$K31,$K31-ConstYear),$L31,$M31,BC$21),"") ->  | BD31: =IF($D31<>"",QuantityEstimate($J31,$H31,$E31,IF($K31<100,$K31,$K31-ConstYear),$L31,$M31,BD$21),"") ->  | BF31: =IF($P$31<>"", $C31*$P$31,"") ->  | BG31: =IF($Q$31<>"", $C31*$Q$31,"") ->  | BH31: =IF($R$31<>"", $C31*$R$31,"") ->  | BI31: =IF($S$31<>"", $C31*$S$31,"") ->  | BJ31: =IF($T$31<>"", $C31*$T$31,"") ->  | BK31: =IF($U$31<>"", $C31*$U$31,"") ->  | BL31: =IF($V$31<>"", $C31*$V$31,"") ->  | BM31: =IF($W$31<>"", $C31*$W$31,"") ->  | BN31: =IF($X$31<>"", $C31*$X$31,"") ->  | BO31: =IF($Y$31<>"", $C31*$Y$31,"") ->  | BP31: =IF($Z$31<>"", $C31*$Z$31,"") ->  | BQ31: =IF($AA$31<>"", $C31*$AA$31,"") ->  | BR31: =IF($AB$31<>"", $C31*$AB$31,"") ->  | BS31: =IF($AC$31<>"", $C31*$AC$31,"") ->  | BT31: =IF($AD$31<>"", $C31*$AD$31,"") ->  | BU31: =IF($AE$31<>"", $C31*$AE$31,"") ->  | BV31: =IF($AF$31<>"", $C31*$AF$31,"") ->  | BW31: =IF($AG$31<>"", $C31*$AG$31,"") ->  | BX31: =IF($AH$31<>"", $C31*$AH$31,"") ->  | BY31: =IF($AI$31<>"", $C31*$AI$31,"") ->  | BZ31: =IF($AJ$31<>"", $C31*$AJ$31,"") ->  | CA31: =IF($AK$31<>"", $C31*$AK$31,"") ->  | CB31: =IF($AL$31<>"", $C31*$AL$31,"") ->  | CC31: =IF($AM$31<>"", $C31*$AM$31,"") ->  | CD31: =IF($AN$31<>"", $C31*$AN$31,"") ->  | CE31: =IF($AO$31<>"", $C31*$AO$31,"") ->  | CF31: =IF($AP$31<>"", $C31*$AP$31,"") ->  | CG31: =IF($AQ$31<>"", $C31*$AQ$31,"") ->  | CH31: =IF($AR$31<>"", $C31*$AR$31,"") ->  | CI31: =IF($AS$31<>"", $C31*$AS$31,"") ->  | CJ31: =IF($AT$31<>"", $C31*$AT$31,"") ->  | CK31: =IF($AU$31<>"", $C31*$AU$31,"") ->  | CL31: =IF($AV$31<>"", $C31*$AV$31,"") ->  | CM31: =IF($AW$31<>"", $C31*$AW$31,"") ->  | CN31: =IF($AX$31<>"", $C31*$AX$31,"") ->  | CO31: =IF($AY$31<>"", $C31*$AY$31,"") ->  | CP31: =IF($AZ$31<>"", $C31*$AZ$31,"") ->  | CQ31: =IF($BA$31<>"", $C31*$BA$31,"") ->  | CR31: =IF($BB$31<>"", $C31*$BB$31,"") ->  | CS31: =IF($BC$31<>"", $C31*$BC$31,"") ->  | CT31: =IF($BD$31<>"", $C31*$BD$31,"") ->  | CV31: =IF($P$31<>"",$BF$31/(1 + DiscountRate) ^ $CV$21,"") ->  | CW31: =IF($Q$31<>"",$BG$31/(1 + DiscountRate) ^ $CW$21,"") ->  | CX31: =IF($R$31<>"",$BH$31/(1 + DiscountRate) ^ $CX$21,"") ->  | CY31: =IF($S$31<>"",$BI$31/(1 + DiscountRate) ^ $CY$21,"") ->  | CZ31: =IF($T$31<>"",$BJ$31/(1 + DiscountRate) ^ $CZ$21,"") ->  | DA31: =IF($U$31<>"",$BK$31/(1 + DiscountRate) ^ $DA$21,"") ->  | DB31: =IF($V$31<>"",$BL$31/(1 + DiscountRate) ^ $DB$21,"") ->  | DC31: =IF($W$31<>"",$BM$31/(1 + DiscountRate) ^ $DC$21,"") ->  | DD31: =IF($X$31<>"",$BN$31/(1 + DiscountRate) ^ $DD$21,"") ->  | DE31: =IF($Y$31<>"",$BO$31/(1 + DiscountRate) ^ $DE$21,"") ->  | DF31: =IF($Z$31<>"",$BP$31/(1 + DiscountRate) ^ $DF$21,"") ->  | DG31: =IF($AA$31<>"",$BQ$31/(1 + DiscountRate) ^ $DG$21,"") ->  | DH31: =IF($AB$31<>"",$BR$31/(1 + DiscountRate) ^ $DH$21,"") ->  | DI31: =IF($AC$31<>"",$BS$31/(1 + DiscountRate) ^ $DI$21,"") ->  | DJ31: =IF($AD$31<>"",$BT$31/(1 + DiscountRate) ^ $DJ$21,"") ->  | DK31: =IF($AE$31<>"",$BU$31/(1 + DiscountRate) ^ $DK$21,"") ->  | DL31: =IF($AF$31<>"",$BV$31/(1 + DiscountRate) ^ $DL$21,"") ->  | DM31: =IF($AG$31<>"",$BW$31/(1 + DiscountRate) ^ $DM$21,"") ->  | DN31: =IF($AH$31<>"",$BX$31/(1 + DiscountRate) ^ $DN$21,"") ->  | DO31: =IF($AI$31<>"",$BY$31/(1 + DiscountRate) ^ $DO$21,"") ->  | DP31: =IF($AJ$31<>"",$BZ$31/(1 + DiscountRate) ^ $DP$21,"") ->  | DQ31: =IF($AK$31<>"",$CA$31/(1 + DiscountRate) ^ $DQ$21,"") ->  | DR31: =IF($AL$31<>"",$CB$31/(1 + DiscountRate) ^ $DR$21,"") ->  | DS31: =IF($AM$31<>"",$CC$31/(1 + DiscountRate) ^ $DS$21,"") ->  | DT31: =IF($AN$31<>"",$CD$31/(1 + DiscountRate) ^ $DT$21,"") ->  | DU31: =IF($AO$31<>"",$CE$31/(1 + DiscountRate) ^ $DU$21,"") ->  | DV31: =IF($AP$31<>"",$CF$31/(1 + DiscountRate) ^ $DV$21,"") ->  | DW31: =IF($AQ$31<>"",$CG$31/(1 + DiscountRate) ^ $DW$21,"") ->  | DX31: =IF($AR$31<>"",$CH$31/(1 + DiscountRate) ^ $DX$21,"") ->  | DY31: =IF($AS$31<>"",$CI$31/(1 + DiscountRate) ^ $DY$21,"") ->  | DZ31: =IF($AT$31<>"",$CJ$31/(1 + DiscountRate) ^ $DZ$21,"") ->  | EA31: =IF($AU$31<>"",$CK$31/(1 + DiscountRate) ^ $EA$21,"") ->  | EB31: =IF($AV$31<>"",$CL$31/(1 + DiscountRate) ^ $EB$21,"") ->  | EC31: =IF($AW$31<>"",$CM$31/(1 + DiscountRate) ^ $EC$21,"") ->  | ED31: =IF($AX$31<>"",$CN$31/(1 + DiscountRate) ^ $ED$21,"") ->  | EE31: =IF($AY$31<>"",$CO$31/(1 + DiscountRate) ^ $EE$21,"") ->  | EF31: =IF($AZ$31<>"",$CP$31/(1 + DiscountRate) ^ $EF$21,"") ->  | EG31: =IF($BA$31<>"",$CQ$31/(1 + DiscountRate) ^ $EG$21,"") ->  | EH31: =IF($BB$31<>"",$CR$31/(1 + DiscountRate) ^ $EH$21,"") ->  | EI31: =IF($BC$31<>"",$CS$31/(1 + DiscountRate) ^ $EI$21,"") ->  | EJ31: =IF($BD$31<>"",$CT$31/(1 + DiscountRate) ^ $EJ$21,"") -> 
H32: =IF($A32<>"",IF($B32<>"",ItemQuantity(A32,B32,D32,E32,F32,G32),""),"") ->  | N32: =IF($A32<>"",IF($B32<>"",SUM(OFFSET($P32,0,AnalysisPeriod*2+4):OFFSET($P32,0,AnalysisPeriod*3+4)),""),"") ->  | P32: =IF($D32<>"",QuantityEstimate($J32,$H32,$E32,IF($K32<100,$K32,$K32-ConstYear),$L32,$M32,P$21),"") ->  | Q32: =IF($D32<>"",QuantityEstimate($J32,$H32,$E32,IF($K32<100,$K32,$K32-ConstYear),$L32,$M32,Q$21),"") ->  | R32: =IF($D32<>"",QuantityEstimate($J32,$H32,$E32,IF($K32<100,$K32,$K32-ConstYear),$L32,$M32,R$21),"") ->  | S32: =IF($D32<>"",QuantityEstimate($J32,$H32,$E32,IF($K32<100,$K32,$K32-ConstYear),$L32,$M32,S$21),"") ->  | T32: =IF($D32<>"",QuantityEstimate($J32,$H32,$E32,IF($K32<100,$K32,$K32-ConstYear),$L32,$M32,T$21),"") ->  | U32: =IF($D32<>"",QuantityEstimate($J32,$H32,$E32,IF($K32<100,$K32,$K32-ConstYear),$L32,$M32,U$21),"") ->  | V32: =IF($D32<>"",QuantityEstimate($J32,$H32,$E32,IF($K32<100,$K32,$K32-ConstYear),$L32,$M32,V$21),"") ->  | W32: =IF($D32<>"",QuantityEstimate($J32,$H32,$E32,IF($K32<100,$K32,$K32-ConstYear),$L32,$M32,W$21),"") ->  | X32: =IF($D32<>"",QuantityEstimate($J32,$H32,$E32,IF($K32<100,$K32,$K32-ConstYear),$L32,$M32,X$21),"") ->  | Y32: =IF($D32<>"",QuantityEstimate($J32,$H32,$E32,IF($K32<100,$K32,$K32-ConstYear),$L32,$M32,Y$21),"") ->  | Z32: =IF($D32<>"",QuantityEstimate($J32,$H32,$E32,IF($K32<100,$K32,$K32-ConstYear),$L32,$M32,Z$21),"") ->  | AA32: =IF($D32<>"",QuantityEstimate($J32,$H32,$E32,IF($K32<100,$K32,$K32-ConstYear),$L32,$M32,AA$21),"") ->  | AB32: =IF($D32<>"",QuantityEstimate($J32,$H32,$E32,IF($K32<100,$K32,$K32-ConstYear),$L32,$M32,AB$21),"") ->  | AC32: =IF($D32<>"",QuantityEstimate($J32,$H32,$E32,IF($K32<100,$K32,$K32-ConstYear),$L32,$M32,AC$21),"") ->  | AD32: =IF($D32<>"",QuantityEstimate($J32,$H32,$E32,IF($K32<100,$K32,$K32-ConstYear),$L32,$M32,AD$21),"") ->  | AE32: =IF($D32<>"",QuantityEstimate($J32,$H32,$E32,IF($K32<100,$K32,$K32-ConstYear),$L32,$M32,AE$21),"") ->  | AF32: =IF($D32<>"",QuantityEstimate($J32,$H32,$E32,IF($K32<100,$K32,$K32-ConstYear),$L32,$M32,AF$21),"") ->  | AG32: =IF($D32<>"",QuantityEstimate($J32,$H32,$E32,IF($K32<100,$K32,$K32-ConstYear),$L32,$M32,AG$21),"") ->  | AH32: =IF($D32<>"",QuantityEstimate($J32,$H32,$E32,IF($K32<100,$K32,$K32-ConstYear),$L32,$M32,AH$21),"") ->  | AI32: =IF($D32<>"",QuantityEstimate($J32,$H32,$E32,IF($K32<100,$K32,$K32-ConstYear),$L32,$M32,AI$21),"") ->  | AJ32: =IF($D32<>"",QuantityEstimate($J32,$H32,$E32,IF($K32<100,$K32,$K32-ConstYear),$L32,$M32,AJ$21),"") ->  | AK32: =IF($D32<>"",QuantityEstimate($J32,$H32,$E32,IF($K32<100,$K32,$K32-ConstYear),$L32,$M32,AK$21),"") ->  | AL32: =IF($D32<>"",QuantityEstimate($J32,$H32,$E32,IF($K32<100,$K32,$K32-ConstYear),$L32,$M32,AL$21),"") ->  | AM32: =IF($D32<>"",QuantityEstimate($J32,$H32,$E32,IF($K32<100,$K32,$K32-ConstYear),$L32,$M32,AM$21),"") ->  | AN32: =IF($D32<>"",QuantityEstimate($J32,$H32,$E32,IF($K32<100,$K32,$K32-ConstYear),$L32,$M32,AN$21),"") ->  | AO32: =IF($D32<>"",QuantityEstimate($J32,$H32,$E32,IF($K32<100,$K32,$K32-ConstYear),$L32,$M32,AO$21),"") ->  | AP32: =IF($D32<>"",QuantityEstimate($J32,$H32,$E32,IF($K32<100,$K32,$K32-ConstYear),$L32,$M32,AP$21),"") ->  | AQ32: =IF($D32<>"",QuantityEstimate($J32,$H32,$E32,IF($K32<100,$K32,$K32-ConstYear),$L32,$M32,AQ$21),"") ->  | AR32: =IF($D32<>"",QuantityEstimate($J32,$H32,$E32,IF($K32<100,$K32,$K32-ConstYear),$L32,$M32,AR$21),"") ->  | AS32: =IF($D32<>"",QuantityEstimate($J32,$H32,$E32,IF($K32<100,$K32,$K32-ConstYear),$L32,$M32,AS$21),"") ->  | AT32: =IF($D32<>"",QuantityEstimate($J32,$H32,$E32,IF($K32<100,$K32,$K32-ConstYear),$L32,$M32,AT$21),"") ->  | AU32: =IF($D32<>"",QuantityEstimate($J32,$H32,$E32,IF($K32<100,$K32,$K32-ConstYear),$L32,$M32,AU$21),"") ->  | AV32: =IF($D32<>"",QuantityEstimate($J32,$H32,$E32,IF($K32<100,$K32,$K32-ConstYear),$L32,$M32,AV$21),"") ->  | AW32: =IF($D32<>"",QuantityEstimate($J32,$H32,$E32,IF($K32<100,$K32,$K32-ConstYear),$L32,$M32,AW$21),"") ->  | AX32: =IF($D32<>"",QuantityEstimate($J32,$H32,$E32,IF($K32<100,$K32,$K32-ConstYear),$L32,$M32,AX$21),"") ->  | AY32: =IF($D32<>"",QuantityEstimate($J32,$H32,$E32,IF($K32<100,$K32,$K32-ConstYear),$L32,$M32,AY$21),"") ->  | AZ32: =IF($D32<>"",QuantityEstimate($J32,$H32,$E32,IF($K32<100,$K32,$K32-ConstYear),$L32,$M32,AZ$21),"") ->  | BA32: =IF($D32<>"",QuantityEstimate($J32,$H32,$E32,IF($K32<100,$K32,$K32-ConstYear),$L32,$M32,BA$21),"") ->  | BB32: =IF($D32<>"",QuantityEstimate($J32,$H32,$E32,IF($K32<100,$K32,$K32-ConstYear),$L32,$M32,BB$21),"") ->  | BC32: =IF($D32<>"",QuantityEstimate($J32,$H32,$E32,IF($K32<100,$K32,$K32-ConstYear),$L32,$M32,BC$21),"") ->  | BD32: =IF($D32<>"",QuantityEstimate($J32,$H32,$E32,IF($K32<100,$K32,$K32-ConstYear),$L32,$M32,BD$21),"") ->  | BF32: =IF($P$32<>"", $C32*$P$32,"") ->  | BG32: =IF($Q$32<>"", $C32*$Q$32,"") ->  | BH32: =IF($R$32<>"", $C32*$R$32,"") ->  | BI32: =IF($S$32<>"", $C32*$S$32,"") ->  | BJ32: =IF($T$32<>"", $C32*$T$32,"") ->  | BK32: =IF($U$32<>"", $C32*$U$32,"") ->  | BL32: =IF($V$32<>"", $C32*$V$32,"") ->  | BM32: =IF($W$32<>"", $C32*$W$32,"") ->  | BN32: =IF($X$32<>"", $C32*$X$32,"") ->  | BO32: =IF($Y$32<>"", $C32*$Y$32,"") ->  | BP32: =IF($Z$32<>"", $C32*$Z$32,"") ->  | BQ32: =IF($AA$32<>"", $C32*$AA$32,"") ->  | BR32: =IF($AB$32<>"", $C32*$AB$32,"") ->  | BS32: =IF($AC$32<>"", $C32*$AC$32,"") ->  | BT32: =IF($AD$32<>"", $C32*$AD$32,"") ->  | BU32: =IF($AE$32<>"", $C32*$AE$32,"") ->  | BV32: =IF($AF$32<>"", $C32*$AF$32,"") ->  | BW32: =IF($AG$32<>"", $C32*$AG$32,"") ->  | BX32: =IF($AH$32<>"", $C32*$AH$32,"") ->  | BY32: =IF($AI$32<>"", $C32*$AI$32,"") ->  | BZ32: =IF($AJ$32<>"", $C32*$AJ$32,"") ->  | CA32: =IF($AK$32<>"", $C32*$AK$32,"") ->  | CB32: =IF($AL$32<>"", $C32*$AL$32,"") ->  | CC32: =IF($AM$32<>"", $C32*$AM$32,"") ->  | CD32: =IF($AN$32<>"", $C32*$AN$32,"") ->  | CE32: =IF($AO$32<>"", $C32*$AO$32,"") ->  | CF32: =IF($AP$32<>"", $C32*$AP$32,"") ->  | CG32: =IF($AQ$32<>"", $C32*$AQ$32,"") ->  | CH32: =IF($AR$32<>"", $C32*$AR$32,"") ->  | CI32: =IF($AS$32<>"", $C32*$AS$32,"") ->  | CJ32: =IF($AT$32<>"", $C32*$AT$32,"") ->  | CK32: =IF($AU$32<>"", $C32*$AU$32,"") ->  | CL32: =IF($AV$32<>"", $C32*$AV$32,"") ->  | CM32: =IF($AW$32<>"", $C32*$AW$32,"") ->  | CN32: =IF($AX$32<>"", $C32*$AX$32,"") ->  | CO32: =IF($AY$32<>"", $C32*$AY$32,"") ->  | CP32: =IF($AZ$32<>"", $C32*$AZ$32,"") ->  | CQ32: =IF($BA$32<>"", $C32*$BA$32,"") ->  | CR32: =IF($BB$32<>"", $C32*$BB$32,"") ->  | CS32: =IF($BC$32<>"", $C32*$BC$32,"") ->  | CT32: =IF($BD$32<>"", $C32*$BD$32,"") ->  | CV32: =IF($P$32<>"",$BF$32/(1 + DiscountRate) ^ $CV$21,"") ->  | CW32: =IF($Q$32<>"",$BG$32/(1 + DiscountRate) ^ $CW$21,"") ->  | CX32: =IF($R$32<>"",$BH$32/(1 + DiscountRate) ^ $CX$21,"") ->  | CY32: =IF($S$32<>"",$BI$32/(1 + DiscountRate) ^ $CY$21,"") ->  | CZ32: =IF($T$32<>"",$BJ$32/(1 + DiscountRate) ^ $CZ$21,"") ->  | DA32: =IF($U$32<>"",$BK$32/(1 + DiscountRate) ^ $DA$21,"") ->  | DB32: =IF($V$32<>"",$BL$32/(1 + DiscountRate) ^ $DB$21,"") ->  | DC32: =IF($W$32<>"",$BM$32/(1 + DiscountRate) ^ $DC$21,"") ->  | DD32: =IF($X$32<>"",$BN$32/(1 + DiscountRate) ^ $DD$21,"") ->  | DE32: =IF($Y$32<>"",$BO$32/(1 + DiscountRate) ^ $DE$21,"") ->  | DF32: =IF($Z$32<>"",$BP$32/(1 + DiscountRate) ^ $DF$21,"") ->  | DG32: =IF($AA$32<>"",$BQ$32/(1 + DiscountRate) ^ $DG$21,"") ->  | DH32: =IF($AB$32<>"",$BR$32/(1 + DiscountRate) ^ $DH$21,"") ->  | DI32: =IF($AC$32<>"",$BS$32/(1 + DiscountRate) ^ $DI$21,"") ->  | DJ32: =IF($AD$32<>"",$BT$32/(1 + DiscountRate) ^ $DJ$21,"") ->  | DK32: =IF($AE$32<>"",$BU$32/(1 + DiscountRate) ^ $DK$21,"") ->  | DL32: =IF($AF$32<>"",$BV$32/(1 + DiscountRate) ^ $DL$21,"") ->  | DM32: =IF($AG$32<>"",$BW$32/(1 + DiscountRate) ^ $DM$21,"") ->  | DN32: =IF($AH$32<>"",$BX$32/(1 + DiscountRate) ^ $DN$21,"") ->  | DO32: =IF($AI$32<>"",$BY$32/(1 + DiscountRate) ^ $DO$21,"") ->  | DP32: =IF($AJ$32<>"",$BZ$32/(1 + DiscountRate) ^ $DP$21,"") ->  | DQ32: =IF($AK$32<>"",$CA$32/(1 + DiscountRate) ^ $DQ$21,"") ->  | DR32: =IF($AL$32<>"",$CB$32/(1 + DiscountRate) ^ $DR$21,"") ->  | DS32: =IF($AM$32<>"",$CC$32/(1 + DiscountRate) ^ $DS$21,"") ->  | DT32: =IF($AN$32<>"",$CD$32/(1 + DiscountRate) ^ $DT$21,"") ->  | DU32: =IF($AO$32<>"",$CE$32/(1 + DiscountRate) ^ $DU$21,"") ->  | DV32: =IF($AP$32<>"",$CF$32/(1 + DiscountRate) ^ $DV$21,"") ->  | DW32: =IF($AQ$32<>"",$CG$32/(1 + DiscountRate) ^ $DW$21,"") ->  | DX32: =IF($AR$32<>"",$CH$32/(1 + DiscountRate) ^ $DX$21,"") ->  | DY32: =IF($AS$32<>"",$CI$32/(1 + DiscountRate) ^ $DY$21,"") ->  | DZ32: =IF($AT$32<>"",$CJ$32/(1 + DiscountRate) ^ $DZ$21,"") ->  | EA32: =IF($AU$32<>"",$CK$32/(1 + DiscountRate) ^ $EA$21,"") ->  | EB32: =IF($AV$32<>"",$CL$32/(1 + DiscountRate) ^ $EB$21,"") ->  | EC32: =IF($AW$32<>"",$CM$32/(1 + DiscountRate) ^ $EC$21,"") ->  | ED32: =IF($AX$32<>"",$CN$32/(1 + DiscountRate) ^ $ED$21,"") ->  | EE32: =IF($AY$32<>"",$CO$32/(1 + DiscountRate) ^ $EE$21,"") ->  | EF32: =IF($AZ$32<>"",$CP$32/(1 + DiscountRate) ^ $EF$21,"") ->  | EG32: =IF($BA$32<>"",$CQ$32/(1 + DiscountRate) ^ $EG$21,"") ->  | EH32: =IF($BB$32<>"",$CR$32/(1 + DiscountRate) ^ $EH$21,"") ->  | EI32: =IF($BC$32<>"",$CS$32/(1 + DiscountRate) ^ $EI$21,"") ->  | EJ32: =IF($BD$32<>"",$CT$32/(1 + DiscountRate) ^ $EJ$21,"") -> 
H33: =IF($A33<>"",IF($B33<>"",ItemQuantity(A33,B33,D33,E33,F33,G33),""),"") ->  | N33: =IF($A33<>"",IF($B33<>"",SUM(OFFSET($P33,0,AnalysisPeriod*2+4):OFFSET($P33,0,AnalysisPeriod*3+4)),""),"") ->  | P33: =IF($D33<>"",QuantityEstimate($J33,$H33,$E33,IF($K33<100,$K33,$K33-ConstYear),$L33,$M33,P$21),"") ->  | Q33: =IF($D33<>"",QuantityEstimate($J33,$H33,$E33,IF($K33<100,$K33,$K33-ConstYear),$L33,$M33,Q$21),"") ->  | R33: =IF($D33<>"",QuantityEstimate($J33,$H33,$E33,IF($K33<100,$K33,$K33-ConstYear),$L33,$M33,R$21),"") ->  | S33: =IF($D33<>"",QuantityEstimate($J33,$H33,$E33,IF($K33<100,$K33,$K33-ConstYear),$L33,$M33,S$21),"") ->  | T33: =IF($D33<>"",QuantityEstimate($J33,$H33,$E33,IF($K33<100,$K33,$K33-ConstYear),$L33,$M33,T$21),"") ->  | U33: =IF($D33<>"",QuantityEstimate($J33,$H33,$E33,IF($K33<100,$K33,$K33-ConstYear),$L33,$M33,U$21),"") ->  | V33: =IF($D33<>"",QuantityEstimate($J33,$H33,$E33,IF($K33<100,$K33,$K33-ConstYear),$L33,$M33,V$21),"") ->  | W33: =IF($D33<>"",QuantityEstimate($J33,$H33,$E33,IF($K33<100,$K33,$K33-ConstYear),$L33,$M33,W$21),"") ->  | X33: =IF($D33<>"",QuantityEstimate($J33,$H33,$E33,IF($K33<100,$K33,$K33-ConstYear),$L33,$M33,X$21),"") ->  | Y33: =IF($D33<>"",QuantityEstimate($J33,$H33,$E33,IF($K33<100,$K33,$K33-ConstYear),$L33,$M33,Y$21),"") ->  | Z33: =IF($D33<>"",QuantityEstimate($J33,$H33,$E33,IF($K33<100,$K33,$K33-ConstYear),$L33,$M33,Z$21),"") ->  | AA33: =IF($D33<>"",QuantityEstimate($J33,$H33,$E33,IF($K33<100,$K33,$K33-ConstYear),$L33,$M33,AA$21),"") ->  | AB33: =IF($D33<>"",QuantityEstimate($J33,$H33,$E33,IF($K33<100,$K33,$K33-ConstYear),$L33,$M33,AB$21),"") ->  | AC33: =IF($D33<>"",QuantityEstimate($J33,$H33,$E33,IF($K33<100,$K33,$K33-ConstYear),$L33,$M33,AC$21),"") ->  | AD33: =IF($D33<>"",QuantityEstimate($J33,$H33,$E33,IF($K33<100,$K33,$K33-ConstYear),$L33,$M33,AD$21),"") ->  | AE33: =IF($D33<>"",QuantityEstimate($J33,$H33,$E33,IF($K33<100,$K33,$K33-ConstYear),$L33,$M33,AE$21),"") ->  | AF33: =IF($D33<>"",QuantityEstimate($J33,$H33,$E33,IF($K33<100,$K33,$K33-ConstYear),$L33,$M33,AF$21),"") ->  | AG33: =IF($D33<>"",QuantityEstimate($J33,$H33,$E33,IF($K33<100,$K33,$K33-ConstYear),$L33,$M33,AG$21),"") ->  | AH33: =IF($D33<>"",QuantityEstimate($J33,$H33,$E33,IF($K33<100,$K33,$K33-ConstYear),$L33,$M33,AH$21),"") ->  | AI33: =IF($D33<>"",QuantityEstimate($J33,$H33,$E33,IF($K33<100,$K33,$K33-ConstYear),$L33,$M33,AI$21),"") ->  | AJ33: =IF($D33<>"",QuantityEstimate($J33,$H33,$E33,IF($K33<100,$K33,$K33-ConstYear),$L33,$M33,AJ$21),"") ->  | AK33: =IF($D33<>"",QuantityEstimate($J33,$H33,$E33,IF($K33<100,$K33,$K33-ConstYear),$L33,$M33,AK$21),"") ->  | AL33: =IF($D33<>"",QuantityEstimate($J33,$H33,$E33,IF($K33<100,$K33,$K33-ConstYear),$L33,$M33,AL$21),"") ->  | AM33: =IF($D33<>"",QuantityEstimate($J33,$H33,$E33,IF($K33<100,$K33,$K33-ConstYear),$L33,$M33,AM$21),"") ->  | AN33: =IF($D33<>"",QuantityEstimate($J33,$H33,$E33,IF($K33<100,$K33,$K33-ConstYear),$L33,$M33,AN$21),"") ->  | AO33: =IF($D33<>"",QuantityEstimate($J33,$H33,$E33,IF($K33<100,$K33,$K33-ConstYear),$L33,$M33,AO$21),"") ->  | AP33: =IF($D33<>"",QuantityEstimate($J33,$H33,$E33,IF($K33<100,$K33,$K33-ConstYear),$L33,$M33,AP$21),"") ->  | AQ33: =IF($D33<>"",QuantityEstimate($J33,$H33,$E33,IF($K33<100,$K33,$K33-ConstYear),$L33,$M33,AQ$21),"") ->  | AR33: =IF($D33<>"",QuantityEstimate($J33,$H33,$E33,IF($K33<100,$K33,$K33-ConstYear),$L33,$M33,AR$21),"") ->  | AS33: =IF($D33<>"",QuantityEstimate($J33,$H33,$E33,IF($K33<100,$K33,$K33-ConstYear),$L33,$M33,AS$21),"") ->  | AT33: =IF($D33<>"",QuantityEstimate($J33,$H33,$E33,IF($K33<100,$K33,$K33-ConstYear),$L33,$M33,AT$21),"") ->  | AU33: =IF($D33<>"",QuantityEstimate($J33,$H33,$E33,IF($K33<100,$K33,$K33-ConstYear),$L33,$M33,AU$21),"") ->  | AV33: =IF($D33<>"",QuantityEstimate($J33,$H33,$E33,IF($K33<100,$K33,$K33-ConstYear),$L33,$M33,AV$21),"") ->  | AW33: =IF($D33<>"",QuantityEstimate($J33,$H33,$E33,IF($K33<100,$K33,$K33-ConstYear),$L33,$M33,AW$21),"") ->  | AX33: =IF($D33<>"",QuantityEstimate($J33,$H33,$E33,IF($K33<100,$K33,$K33-ConstYear),$L33,$M33,AX$21),"") ->  | AY33: =IF($D33<>"",QuantityEstimate($J33,$H33,$E33,IF($K33<100,$K33,$K33-ConstYear),$L33,$M33,AY$21),"") ->  | AZ33: =IF($D33<>"",QuantityEstimate($J33,$H33,$E33,IF($K33<100,$K33,$K33-ConstYear),$L33,$M33,AZ$21),"") ->  | BA33: =IF($D33<>"",QuantityEstimate($J33,$H33,$E33,IF($K33<100,$K33,$K33-ConstYear),$L33,$M33,BA$21),"") ->  | BB33: =IF($D33<>"",QuantityEstimate($J33,$H33,$E33,IF($K33<100,$K33,$K33-ConstYear),$L33,$M33,BB$21),"") ->  | BC33: =IF($D33<>"",QuantityEstimate($J33,$H33,$E33,IF($K33<100,$K33,$K33-ConstYear),$L33,$M33,BC$21),"") ->  | BD33: =IF($D33<>"",QuantityEstimate($J33,$H33,$E33,IF($K33<100,$K33,$K33-ConstYear),$L33,$M33,BD$21),"") ->  | BF33: =IF($P$33<>"", $C33*$P$33,"") ->  | BG33: =IF($Q$33<>"", $C33*$Q$33,"") ->  | BH33: =IF($R$33<>"", $C33*$R$33,"") ->  | BI33: =IF($S$33<>"", $C33*$S$33,"") ->  | BJ33: =IF($T$33<>"", $C33*$T$33,"") ->  | BK33: =IF($U$33<>"", $C33*$U$33,"") ->  | BL33: =IF($V$33<>"", $C33*$V$33,"") ->  | BM33: =IF($W$33<>"", $C33*$W$33,"") ->  | BN33: =IF($X$33<>"", $C33*$X$33,"") ->  | BO33: =IF($Y$33<>"", $C33*$Y$33,"") ->  | BP33: =IF($Z$33<>"", $C33*$Z$33,"") ->  | BQ33: =IF($AA$33<>"", $C33*$AA$33,"") ->  | BR33: =IF($AB$33<>"", $C33*$AB$33,"") ->  | BS33: =IF($AC$33<>"", $C33*$AC$33,"") ->  | BT33: =IF($AD$33<>"", $C33*$AD$33,"") ->  | BU33: =IF($AE$33<>"", $C33*$AE$33,"") ->  | BV33: =IF($AF$33<>"", $C33*$AF$33,"") ->  | BW33: =IF($AG$33<>"", $C33*$AG$33,"") ->  | BX33: =IF($AH$33<>"", $C33*$AH$33,"") ->  | BY33: =IF($AI$33<>"", $C33*$AI$33,"") ->  | BZ33: =IF($AJ$33<>"", $C33*$AJ$33,"") ->  | CA33: =IF($AK$33<>"", $C33*$AK$33,"") ->  | CB33: =IF($AL$33<>"", $C33*$AL$33,"") ->  | CC33: =IF($AM$33<>"", $C33*$AM$33,"") ->  | CD33: =IF($AN$33<>"", $C33*$AN$33,"") ->  | CE33: =IF($AO$33<>"", $C33*$AO$33,"") ->  | CF33: =IF($AP$33<>"", $C33*$AP$33,"") ->  | CG33: =IF($AQ$33<>"", $C33*$AQ$33,"") ->  | CH33: =IF($AR$33<>"", $C33*$AR$33,"") ->  | CI33: =IF($AS$33<>"", $C33*$AS$33,"") ->  | CJ33: =IF($AT$33<>"", $C33*$AT$33,"") ->  | CK33: =IF($AU$33<>"", $C33*$AU$33,"") ->  | CL33: =IF($AV$33<>"", $C33*$AV$33,"") ->  | CM33: =IF($AW$33<>"", $C33*$AW$33,"") ->  | CN33: =IF($AX$33<>"", $C33*$AX$33,"") ->  | CO33: =IF($AY$33<>"", $C33*$AY$33,"") ->  | CP33: =IF($AZ$33<>"", $C33*$AZ$33,"") ->  | CQ33: =IF($BA$33<>"", $C33*$BA$33,"") ->  | CR33: =IF($BB$33<>"", $C33*$BB$33,"") ->  | CS33: =IF($BC$33<>"", $C33*$BC$33,"") ->  | CT33: =IF($BD$33<>"", $C33*$BD$33,"") ->  | CV33: =IF($P$33<>"",$BF$33/(1 + DiscountRate) ^ $CV$21,"") ->  | CW33: =IF($Q$33<>"",$BG$33/(1 + DiscountRate) ^ $CW$21,"") ->  | CX33: =IF($R$33<>"",$BH$33/(1 + DiscountRate) ^ $CX$21,"") ->  | CY33: =IF($S$33<>"",$BI$33/(1 + DiscountRate) ^ $CY$21,"") ->  | CZ33: =IF($T$33<>"",$BJ$33/(1 + DiscountRate) ^ $CZ$21,"") ->  | DA33: =IF($U$33<>"",$BK$33/(1 + DiscountRate) ^ $DA$21,"") ->  | DB33: =IF($V$33<>"",$BL$33/(1 + DiscountRate) ^ $DB$21,"") ->  | DC33: =IF($W$33<>"",$BM$33/(1 + DiscountRate) ^ $DC$21,"") ->  | DD33: =IF($X$33<>"",$BN$33/(1 + DiscountRate) ^ $DD$21,"") ->  | DE33: =IF($Y$33<>"",$BO$33/(1 + DiscountRate) ^ $DE$21,"") ->  | DF33: =IF($Z$33<>"",$BP$33/(1 + DiscountRate) ^ $DF$21,"") ->  | DG33: =IF($AA$33<>"",$BQ$33/(1 + DiscountRate) ^ $DG$21,"") ->  | DH33: =IF($AB$33<>"",$BR$33/(1 + DiscountRate) ^ $DH$21,"") ->  | DI33: =IF($AC$33<>"",$BS$33/(1 + DiscountRate) ^ $DI$21,"") ->  | DJ33: =IF($AD$33<>"",$BT$33/(1 + DiscountRate) ^ $DJ$21,"") ->  | DK33: =IF($AE$33<>"",$BU$33/(1 + DiscountRate) ^ $DK$21,"") ->  | DL33: =IF($AF$33<>"",$BV$33/(1 + DiscountRate) ^ $DL$21,"") ->  | DM33: =IF($AG$33<>"",$BW$33/(1 + DiscountRate) ^ $DM$21,"") ->  | DN33: =IF($AH$33<>"",$BX$33/(1 + DiscountRate) ^ $DN$21,"") ->  | DO33: =IF($AI$33<>"",$BY$33/(1 + DiscountRate) ^ $DO$21,"") ->  | DP33: =IF($AJ$33<>"",$BZ$33/(1 + DiscountRate) ^ $DP$21,"") ->  | DQ33: =IF($AK$33<>"",$CA$33/(1 + DiscountRate) ^ $DQ$21,"") ->  | DR33: =IF($AL$33<>"",$CB$33/(1 + DiscountRate) ^ $DR$21,"") ->  | DS33: =IF($AM$33<>"",$CC$33/(1 + DiscountRate) ^ $DS$21,"") ->  | DT33: =IF($AN$33<>"",$CD$33/(1 + DiscountRate) ^ $DT$21,"") ->  | DU33: =IF($AO$33<>"",$CE$33/(1 + DiscountRate) ^ $DU$21,"") ->  | DV33: =IF($AP$33<>"",$CF$33/(1 + DiscountRate) ^ $DV$21,"") ->  | DW33: =IF($AQ$33<>"",$CG$33/(1 + DiscountRate) ^ $DW$21,"") ->  | DX33: =IF($AR$33<>"",$CH$33/(1 + DiscountRate) ^ $DX$21,"") ->  | DY33: =IF($AS$33<>"",$CI$33/(1 + DiscountRate) ^ $DY$21,"") ->  | DZ33: =IF($AT$33<>"",$CJ$33/(1 + DiscountRate) ^ $DZ$21,"") ->  | EA33: =IF($AU$33<>"",$CK$33/(1 + DiscountRate) ^ $EA$21,"") ->  | EB33: =IF($AV$33<>"",$CL$33/(1 + DiscountRate) ^ $EB$21,"") ->  | EC33: =IF($AW$33<>"",$CM$33/(1 + DiscountRate) ^ $EC$21,"") ->  | ED33: =IF($AX$33<>"",$CN$33/(1 + DiscountRate) ^ $ED$21,"") ->  | EE33: =IF($AY$33<>"",$CO$33/(1 + DiscountRate) ^ $EE$21,"") ->  | EF33: =IF($AZ$33<>"",$CP$33/(1 + DiscountRate) ^ $EF$21,"") ->  | EG33: =IF($BA$33<>"",$CQ$33/(1 + DiscountRate) ^ $EG$21,"") ->  | EH33: =IF($BB$33<>"",$CR$33/(1 + DiscountRate) ^ $EH$21,"") ->  | EI33: =IF($BC$33<>"",$CS$33/(1 + DiscountRate) ^ $EI$21,"") ->  | EJ33: =IF($BD$33<>"",$CT$33/(1 + DiscountRate) ^ $EJ$21,"") -> 
H34: =IF($A34<>"",IF($B34<>"",ItemQuantity(A34,B34,D34,E34,F34,G34),""),"") ->  | N34: =IF($A34<>"",IF($B34<>"",SUM(OFFSET($P34,0,AnalysisPeriod*2+4):OFFSET($P34,0,AnalysisPeriod*3+4)),""),"") ->  | P34: =IF($D34<>"",QuantityEstimate($J34,$H34,$E34,IF($K34<100,$K34,$K34-ConstYear),$L34,$M34,P$21),"") ->  | Q34: =IF($D34<>"",QuantityEstimate($J34,$H34,$E34,IF($K34<100,$K34,$K34-ConstYear),$L34,$M34,Q$21),"") ->  | R34: =IF($D34<>"",QuantityEstimate($J34,$H34,$E34,IF($K34<100,$K34,$K34-ConstYear),$L34,$M34,R$21),"") ->  | S34: =IF($D34<>"",QuantityEstimate($J34,$H34,$E34,IF($K34<100,$K34,$K34-ConstYear),$L34,$M34,S$21),"") ->  | T34: =IF($D34<>"",QuantityEstimate($J34,$H34,$E34,IF($K34<100,$K34,$K34-ConstYear),$L34,$M34,T$21),"") ->  | U34: =IF($D34<>"",QuantityEstimate($J34,$H34,$E34,IF($K34<100,$K34,$K34-ConstYear),$L34,$M34,U$21),"") ->  | V34: =IF($D34<>"",QuantityEstimate($J34,$H34,$E34,IF($K34<100,$K34,$K34-ConstYear),$L34,$M34,V$21),"") ->  | W34: =IF($D34<>"",QuantityEstimate($J34,$H34,$E34,IF($K34<100,$K34,$K34-ConstYear),$L34,$M34,W$21),"") ->  | X34: =IF($D34<>"",QuantityEstimate($J34,$H34,$E34,IF($K34<100,$K34,$K34-ConstYear),$L34,$M34,X$21),"") ->  | Y34: =IF($D34<>"",QuantityEstimate($J34,$H34,$E34,IF($K34<100,$K34,$K34-ConstYear),$L34,$M34,Y$21),"") ->  | Z34: =IF($D34<>"",QuantityEstimate($J34,$H34,$E34,IF($K34<100,$K34,$K34-ConstYear),$L34,$M34,Z$21),"") ->  | AA34: =IF($D34<>"",QuantityEstimate($J34,$H34,$E34,IF($K34<100,$K34,$K34-ConstYear),$L34,$M34,AA$21),"") ->  | AB34: =IF($D34<>"",QuantityEstimate($J34,$H34,$E34,IF($K34<100,$K34,$K34-ConstYear),$L34,$M34,AB$21),"") ->  | AC34: =IF($D34<>"",QuantityEstimate($J34,$H34,$E34,IF($K34<100,$K34,$K34-ConstYear),$L34,$M34,AC$21),"") ->  | AD34: =IF($D34<>"",QuantityEstimate($J34,$H34,$E34,IF($K34<100,$K34,$K34-ConstYear),$L34,$M34,AD$21),"") ->  | AE34: =IF($D34<>"",QuantityEstimate($J34,$H34,$E34,IF($K34<100,$K34,$K34-ConstYear),$L34,$M34,AE$21),"") ->  | AF34: =IF($D34<>"",QuantityEstimate($J34,$H34,$E34,IF($K34<100,$K34,$K34-ConstYear),$L34,$M34,AF$21),"") ->  | AG34: =IF($D34<>"",QuantityEstimate($J34,$H34,$E34,IF($K34<100,$K34,$K34-ConstYear),$L34,$M34,AG$21),"") ->  | AH34: =IF($D34<>"",QuantityEstimate($J34,$H34,$E34,IF($K34<100,$K34,$K34-ConstYear),$L34,$M34,AH$21),"") ->  | AI34: =IF($D34<>"",QuantityEstimate($J34,$H34,$E34,IF($K34<100,$K34,$K34-ConstYear),$L34,$M34,AI$21),"") ->  | AJ34: =IF($D34<>"",QuantityEstimate($J34,$H34,$E34,IF($K34<100,$K34,$K34-ConstYear),$L34,$M34,AJ$21),"") ->  | AK34: =IF($D34<>"",QuantityEstimate($J34,$H34,$E34,IF($K34<100,$K34,$K34-ConstYear),$L34,$M34,AK$21),"") ->  | AL34: =IF($D34<>"",QuantityEstimate($J34,$H34,$E34,IF($K34<100,$K34,$K34-ConstYear),$L34,$M34,AL$21),"") ->  | AM34: =IF($D34<>"",QuantityEstimate($J34,$H34,$E34,IF($K34<100,$K34,$K34-ConstYear),$L34,$M34,AM$21),"") ->  | AN34: =IF($D34<>"",QuantityEstimate($J34,$H34,$E34,IF($K34<100,$K34,$K34-ConstYear),$L34,$M34,AN$21),"") ->  | AO34: =IF($D34<>"",QuantityEstimate($J34,$H34,$E34,IF($K34<100,$K34,$K34-ConstYear),$L34,$M34,AO$21),"") ->  | AP34: =IF($D34<>"",QuantityEstimate($J34,$H34,$E34,IF($K34<100,$K34,$K34-ConstYear),$L34,$M34,AP$21),"") ->  | AQ34: =IF($D34<>"",QuantityEstimate($J34,$H34,$E34,IF($K34<100,$K34,$K34-ConstYear),$L34,$M34,AQ$21),"") ->  | AR34: =IF($D34<>"",QuantityEstimate($J34,$H34,$E34,IF($K34<100,$K34,$K34-ConstYear),$L34,$M34,AR$21),"") ->  | AS34: =IF($D34<>"",QuantityEstimate($J34,$H34,$E34,IF($K34<100,$K34,$K34-ConstYear),$L34,$M34,AS$21),"") ->  | AT34: =IF($D34<>"",QuantityEstimate($J34,$H34,$E34,IF($K34<100,$K34,$K34-ConstYear),$L34,$M34,AT$21),"") ->  | AU34: =IF($D34<>"",QuantityEstimate($J34,$H34,$E34,IF($K34<100,$K34,$K34-ConstYear),$L34,$M34,AU$21),"") ->  | AV34: =IF($D34<>"",QuantityEstimate($J34,$H34,$E34,IF($K34<100,$K34,$K34-ConstYear),$L34,$M34,AV$21),"") ->  | AW34: =IF($D34<>"",QuantityEstimate($J34,$H34,$E34,IF($K34<100,$K34,$K34-ConstYear),$L34,$M34,AW$21),"") ->  | AX34: =IF($D34<>"",QuantityEstimate($J34,$H34,$E34,IF($K34<100,$K34,$K34-ConstYear),$L34,$M34,AX$21),"") ->  | AY34: =IF($D34<>"",QuantityEstimate($J34,$H34,$E34,IF($K34<100,$K34,$K34-ConstYear),$L34,$M34,AY$21),"") ->  | AZ34: =IF($D34<>"",QuantityEstimate($J34,$H34,$E34,IF($K34<100,$K34,$K34-ConstYear),$L34,$M34,AZ$21),"") ->  | BA34: =IF($D34<>"",QuantityEstimate($J34,$H34,$E34,IF($K34<100,$K34,$K34-ConstYear),$L34,$M34,BA$21),"") ->  | BB34: =IF($D34<>"",QuantityEstimate($J34,$H34,$E34,IF($K34<100,$K34,$K34-ConstYear),$L34,$M34,BB$21),"") ->  | BC34: =IF($D34<>"",QuantityEstimate($J34,$H34,$E34,IF($K34<100,$K34,$K34-ConstYear),$L34,$M34,BC$21),"") ->  | BD34: =IF($D34<>"",QuantityEstimate($J34,$H34,$E34,IF($K34<100,$K34,$K34-ConstYear),$L34,$M34,BD$21),"") ->  | BF34: =IF($P$34<>"", $C34*$P$34,"") ->  | BG34: =IF($Q$34<>"", $C34*$Q$34,"") ->  | BH34: =IF($R$34<>"", $C34*$R$34,"") ->  | BI34: =IF($S$34<>"", $C34*$S$34,"") ->  | BJ34: =IF($T$34<>"", $C34*$T$34,"") ->  | BK34: =IF($U$34<>"", $C34*$U$34,"") ->  | BL34: =IF($V$34<>"", $C34*$V$34,"") ->  | BM34: =IF($W$34<>"", $C34*$W$34,"") ->  | BN34: =IF($X$34<>"", $C34*$X$34,"") ->  | BO34: =IF($Y$34<>"", $C34*$Y$34,"") ->  | BP34: =IF($Z$34<>"", $C34*$Z$34,"") ->  | BQ34: =IF($AA$34<>"", $C34*$AA$34,"") ->  | BR34: =IF($AB$34<>"", $C34*$AB$34,"") ->  | BS34: =IF($AC$34<>"", $C34*$AC$34,"") ->  | BT34: =IF($AD$34<>"", $C34*$AD$34,"") ->  | BU34: =IF($AE$34<>"", $C34*$AE$34,"") ->  | BV34: =IF($AF$34<>"", $C34*$AF$34,"") ->  | BW34: =IF($AG$34<>"", $C34*$AG$34,"") ->  | BX34: =IF($AH$34<>"", $C34*$AH$34,"") ->  | BY34: =IF($AI$34<>"", $C34*$AI$34,"") ->  | BZ34: =IF($AJ$34<>"", $C34*$AJ$34,"") ->  | CA34: =IF($AK$34<>"", $C34*$AK$34,"") ->  | CB34: =IF($AL$34<>"", $C34*$AL$34,"") ->  | CC34: =IF($AM$34<>"", $C34*$AM$34,"") ->  | CD34: =IF($AN$34<>"", $C34*$AN$34,"") ->  | CE34: =IF($AO$34<>"", $C34*$AO$34,"") ->  | CF34: =IF($AP$34<>"", $C34*$AP$34,"") ->  | CG34: =IF($AQ$34<>"", $C34*$AQ$34,"") ->  | CH34: =IF($AR$34<>"", $C34*$AR$34,"") ->  | CI34: =IF($AS$34<>"", $C34*$AS$34,"") ->  | CJ34: =IF($AT$34<>"", $C34*$AT$34,"") ->  | CK34: =IF($AU$34<>"", $C34*$AU$34,"") ->  | CL34: =IF($AV$34<>"", $C34*$AV$34,"") ->  | CM34: =IF($AW$34<>"", $C34*$AW$34,"") ->  | CN34: =IF($AX$34<>"", $C34*$AX$34,"") ->  | CO34: =IF($AY$34<>"", $C34*$AY$34,"") ->  | CP34: =IF($AZ$34<>"", $C34*$AZ$34,"") ->  | CQ34: =IF($BA$34<>"", $C34*$BA$34,"") ->  | CR34: =IF($BB$34<>"", $C34*$BB$34,"") ->  | CS34: =IF($BC$34<>"", $C34*$BC$34,"") ->  | CT34: =IF($BD$34<>"", $C34*$BD$34,"") ->  | CV34: =IF($P$34<>"",$BF$34/(1 + DiscountRate) ^ $CV$21,"") ->  | CW34: =IF($Q$34<>"",$BG$34/(1 + DiscountRate) ^ $CW$21,"") ->  | CX34: =IF($R$34<>"",$BH$34/(1 + DiscountRate) ^ $CX$21,"") ->  | CY34: =IF($S$34<>"",$BI$34/(1 + DiscountRate) ^ $CY$21,"") ->  | CZ34: =IF($T$34<>"",$BJ$34/(1 + DiscountRate) ^ $CZ$21,"") ->  | DA34: =IF($U$34<>"",$BK$34/(1 + DiscountRate) ^ $DA$21,"") ->  | DB34: =IF($V$34<>"",$BL$34/(1 + DiscountRate) ^ $DB$21,"") ->  | DC34: =IF($W$34<>"",$BM$34/(1 + DiscountRate) ^ $DC$21,"") ->  | DD34: =IF($X$34<>"",$BN$34/(1 + DiscountRate) ^ $DD$21,"") ->  | DE34: =IF($Y$34<>"",$BO$34/(1 + DiscountRate) ^ $DE$21,"") ->  | DF34: =IF($Z$34<>"",$BP$34/(1 + DiscountRate) ^ $DF$21,"") ->  | DG34: =IF($AA$34<>"",$BQ$34/(1 + DiscountRate) ^ $DG$21,"") ->  | DH34: =IF($AB$34<>"",$BR$34/(1 + DiscountRate) ^ $DH$21,"") ->  | DI34: =IF($AC$34<>"",$BS$34/(1 + DiscountRate) ^ $DI$21,"") ->  | DJ34: =IF($AD$34<>"",$BT$34/(1 + DiscountRate) ^ $DJ$21,"") ->  | DK34: =IF($AE$34<>"",$BU$34/(1 + DiscountRate) ^ $DK$21,"") ->  | DL34: =IF($AF$34<>"",$BV$34/(1 + DiscountRate) ^ $DL$21,"") ->  | DM34: =IF($AG$34<>"",$BW$34/(1 + DiscountRate) ^ $DM$21,"") ->  | DN34: =IF($AH$34<>"",$BX$34/(1 + DiscountRate) ^ $DN$21,"") ->  | DO34: =IF($AI$34<>"",$BY$34/(1 + DiscountRate) ^ $DO$21,"") ->  | DP34: =IF($AJ$34<>"",$BZ$34/(1 + DiscountRate) ^ $DP$21,"") ->  | DQ34: =IF($AK$34<>"",$CA$34/(1 + DiscountRate) ^ $DQ$21,"") ->  | DR34: =IF($AL$34<>"",$CB$34/(1 + DiscountRate) ^ $DR$21,"") ->  | DS34: =IF($AM$34<>"",$CC$34/(1 + DiscountRate) ^ $DS$21,"") ->  | DT34: =IF($AN$34<>"",$CD$34/(1 + DiscountRate) ^ $DT$21,"") ->  | DU34: =IF($AO$34<>"",$CE$34/(1 + DiscountRate) ^ $DU$21,"") ->  | DV34: =IF($AP$34<>"",$CF$34/(1 + DiscountRate) ^ $DV$21,"") ->  | DW34: =IF($AQ$34<>"",$CG$34/(1 + DiscountRate) ^ $DW$21,"") ->  | DX34: =IF($AR$34<>"",$CH$34/(1 + DiscountRate) ^ $DX$21,"") ->  | DY34: =IF($AS$34<>"",$CI$34/(1 + DiscountRate) ^ $DY$21,"") ->  | DZ34: =IF($AT$34<>"",$CJ$34/(1 + DiscountRate) ^ $DZ$21,"") ->  | EA34: =IF($AU$34<>"",$CK$34/(1 + DiscountRate) ^ $EA$21,"") ->  | EB34: =IF($AV$34<>"",$CL$34/(1 + DiscountRate) ^ $EB$21,"") ->  | EC34: =IF($AW$34<>"",$CM$34/(1 + DiscountRate) ^ $EC$21,"") ->  | ED34: =IF($AX$34<>"",$CN$34/(1 + DiscountRate) ^ $ED$21,"") ->  | EE34: =IF($AY$34<>"",$CO$34/(1 + DiscountRate) ^ $EE$21,"") ->  | EF34: =IF($AZ$34<>"",$CP$34/(1 + DiscountRate) ^ $EF$21,"") ->  | EG34: =IF($BA$34<>"",$CQ$34/(1 + DiscountRate) ^ $EG$21,"") ->  | EH34: =IF($BB$34<>"",$CR$34/(1 + DiscountRate) ^ $EH$21,"") ->  | EI34: =IF($BC$34<>"",$CS$34/(1 + DiscountRate) ^ $EI$21,"") ->  | EJ34: =IF($BD$34<>"",$CT$34/(1 + DiscountRate) ^ $EJ$21,"") -> 
H35: =IF($A35<>"",IF($B35<>"",ItemQuantity(A35,B35,D35,E35,F35,G35),""),"") ->  | N35: =IF($A35<>"",IF($B35<>"",SUM(OFFSET($P35,0,AnalysisPeriod*2+4):OFFSET($P35,0,AnalysisPeriod*3+4)),""),"") ->  | P35: =IF($D35<>"",QuantityEstimate($J35,$H35,$E35,IF($K35<100,$K35,$K35-ConstYear),$L35,$M35,P$21),"") ->  | Q35: =IF($D35<>"",QuantityEstimate($J35,$H35,$E35,IF($K35<100,$K35,$K35-ConstYear),$L35,$M35,Q$21),"") ->  | R35: =IF($D35<>"",QuantityEstimate($J35,$H35,$E35,IF($K35<100,$K35,$K35-ConstYear),$L35,$M35,R$21),"") ->  | S35: =IF($D35<>"",QuantityEstimate($J35,$H35,$E35,IF($K35<100,$K35,$K35-ConstYear),$L35,$M35,S$21),"") ->  | T35: =IF($D35<>"",QuantityEstimate($J35,$H35,$E35,IF($K35<100,$K35,$K35-ConstYear),$L35,$M35,T$21),"") ->  | U35: =IF($D35<>"",QuantityEstimate($J35,$H35,$E35,IF($K35<100,$K35,$K35-ConstYear),$L35,$M35,U$21),"") ->  | V35: =IF($D35<>"",QuantityEstimate($J35,$H35,$E35,IF($K35<100,$K35,$K35-ConstYear),$L35,$M35,V$21),"") ->  | W35: =IF($D35<>"",QuantityEstimate($J35,$H35,$E35,IF($K35<100,$K35,$K35-ConstYear),$L35,$M35,W$21),"") ->  | X35: =IF($D35<>"",QuantityEstimate($J35,$H35,$E35,IF($K35<100,$K35,$K35-ConstYear),$L35,$M35,X$21),"") ->  | Y35: =IF($D35<>"",QuantityEstimate($J35,$H35,$E35,IF($K35<100,$K35,$K35-ConstYear),$L35,$M35,Y$21),"") ->  | Z35: =IF($D35<>"",QuantityEstimate($J35,$H35,$E35,IF($K35<100,$K35,$K35-ConstYear),$L35,$M35,Z$21),"") ->  | AA35: =IF($D35<>"",QuantityEstimate($J35,$H35,$E35,IF($K35<100,$K35,$K35-ConstYear),$L35,$M35,AA$21),"") ->  | AB35: =IF($D35<>"",QuantityEstimate($J35,$H35,$E35,IF($K35<100,$K35,$K35-ConstYear),$L35,$M35,AB$21),"") ->  | AC35: =IF($D35<>"",QuantityEstimate($J35,$H35,$E35,IF($K35<100,$K35,$K35-ConstYear),$L35,$M35,AC$21),"") ->  | AD35: =IF($D35<>"",QuantityEstimate($J35,$H35,$E35,IF($K35<100,$K35,$K35-ConstYear),$L35,$M35,AD$21),"") ->  | AE35: =IF($D35<>"",QuantityEstimate($J35,$H35,$E35,IF($K35<100,$K35,$K35-ConstYear),$L35,$M35,AE$21),"") ->  | AF35: =IF($D35<>"",QuantityEstimate($J35,$H35,$E35,IF($K35<100,$K35,$K35-ConstYear),$L35,$M35,AF$21),"") ->  | AG35: =IF($D35<>"",QuantityEstimate($J35,$H35,$E35,IF($K35<100,$K35,$K35-ConstYear),$L35,$M35,AG$21),"") ->  | AH35: =IF($D35<>"",QuantityEstimate($J35,$H35,$E35,IF($K35<100,$K35,$K35-ConstYear),$L35,$M35,AH$21),"") ->  | AI35: =IF($D35<>"",QuantityEstimate($J35,$H35,$E35,IF($K35<100,$K35,$K35-ConstYear),$L35,$M35,AI$21),"") ->  | AJ35: =IF($D35<>"",QuantityEstimate($J35,$H35,$E35,IF($K35<100,$K35,$K35-ConstYear),$L35,$M35,AJ$21),"") ->  | AK35: =IF($D35<>"",QuantityEstimate($J35,$H35,$E35,IF($K35<100,$K35,$K35-ConstYear),$L35,$M35,AK$21),"") ->  | AL35: =IF($D35<>"",QuantityEstimate($J35,$H35,$E35,IF($K35<100,$K35,$K35-ConstYear),$L35,$M35,AL$21),"") ->  | AM35: =IF($D35<>"",QuantityEstimate($J35,$H35,$E35,IF($K35<100,$K35,$K35-ConstYear),$L35,$M35,AM$21),"") ->  | AN35: =IF($D35<>"",QuantityEstimate($J35,$H35,$E35,IF($K35<100,$K35,$K35-ConstYear),$L35,$M35,AN$21),"") ->  | AO35: =IF($D35<>"",QuantityEstimate($J35,$H35,$E35,IF($K35<100,$K35,$K35-ConstYear),$L35,$M35,AO$21),"") ->  | AP35: =IF($D35<>"",QuantityEstimate($J35,$H35,$E35,IF($K35<100,$K35,$K35-ConstYear),$L35,$M35,AP$21),"") ->  | AQ35: =IF($D35<>"",QuantityEstimate($J35,$H35,$E35,IF($K35<100,$K35,$K35-ConstYear),$L35,$M35,AQ$21),"") ->  | AR35: =IF($D35<>"",QuantityEstimate($J35,$H35,$E35,IF($K35<100,$K35,$K35-ConstYear),$L35,$M35,AR$21),"") ->  | AS35: =IF($D35<>"",QuantityEstimate($J35,$H35,$E35,IF($K35<100,$K35,$K35-ConstYear),$L35,$M35,AS$21),"") ->  | AT35: =IF($D35<>"",QuantityEstimate($J35,$H35,$E35,IF($K35<100,$K35,$K35-ConstYear),$L35,$M35,AT$21),"") ->  | AU35: =IF($D35<>"",QuantityEstimate($J35,$H35,$E35,IF($K35<100,$K35,$K35-ConstYear),$L35,$M35,AU$21),"") ->  | AV35: =IF($D35<>"",QuantityEstimate($J35,$H35,$E35,IF($K35<100,$K35,$K35-ConstYear),$L35,$M35,AV$21),"") ->  | AW35: =IF($D35<>"",QuantityEstimate($J35,$H35,$E35,IF($K35<100,$K35,$K35-ConstYear),$L35,$M35,AW$21),"") ->  | AX35: =IF($D35<>"",QuantityEstimate($J35,$H35,$E35,IF($K35<100,$K35,$K35-ConstYear),$L35,$M35,AX$21),"") ->  | AY35: =IF($D35<>"",QuantityEstimate($J35,$H35,$E35,IF($K35<100,$K35,$K35-ConstYear),$L35,$M35,AY$21),"") ->  | AZ35: =IF($D35<>"",QuantityEstimate($J35,$H35,$E35,IF($K35<100,$K35,$K35-ConstYear),$L35,$M35,AZ$21),"") ->  | BA35: =IF($D35<>"",QuantityEstimate($J35,$H35,$E35,IF($K35<100,$K35,$K35-ConstYear),$L35,$M35,BA$21),"") ->  | BB35: =IF($D35<>"",QuantityEstimate($J35,$H35,$E35,IF($K35<100,$K35,$K35-ConstYear),$L35,$M35,BB$21),"") ->  | BC35: =IF($D35<>"",QuantityEstimate($J35,$H35,$E35,IF($K35<100,$K35,$K35-ConstYear),$L35,$M35,BC$21),"") ->  | BD35: =IF($D35<>"",QuantityEstimate($J35,$H35,$E35,IF($K35<100,$K35,$K35-ConstYear),$L35,$M35,BD$21),"") ->  | BF35: =IF($P$35<>"", $C35*$P$35,"") ->  | BG35: =IF($Q$35<>"", $C35*$Q$35,"") ->  | BH35: =IF($R$35<>"", $C35*$R$35,"") ->  | BI35: =IF($S$35<>"", $C35*$S$35,"") ->  | BJ35: =IF($T$35<>"", $C35*$T$35,"") ->  | BK35: =IF($U$35<>"", $C35*$U$35,"") ->  | BL35: =IF($V$35<>"", $C35*$V$35,"") ->  | BM35: =IF($W$35<>"", $C35*$W$35,"") ->  | BN35: =IF($X$35<>"", $C35*$X$35,"") ->  | BO35: =IF($Y$35<>"", $C35*$Y$35,"") ->  | BP35: =IF($Z$35<>"", $C35*$Z$35,"") ->  | BQ35: =IF($AA$35<>"", $C35*$AA$35,"") ->  | BR35: =IF($AB$35<>"", $C35*$AB$35,"") ->  | BS35: =IF($AC$35<>"", $C35*$AC$35,"") ->  | BT35: =IF($AD$35<>"", $C35*$AD$35,"") ->  | BU35: =IF($AE$35<>"", $C35*$AE$35,"") ->  | BV35: =IF($AF$35<>"", $C35*$AF$35,"") ->  | BW35: =IF($AG$35<>"", $C35*$AG$35,"") ->  | BX35: =IF($AH$35<>"", $C35*$AH$35,"") ->  | BY35: =IF($AI$35<>"", $C35*$AI$35,"") ->  | BZ35: =IF($AJ$35<>"", $C35*$AJ$35,"") ->  | CA35: =IF($AK$35<>"", $C35*$AK$35,"") ->  | CB35: =IF($AL$35<>"", $C35*$AL$35,"") ->  | CC35: =IF($AM$35<>"", $C35*$AM$35,"") ->  | CD35: =IF($AN$35<>"", $C35*$AN$35,"") ->  | CE35: =IF($AO$35<>"", $C35*$AO$35,"") ->  | CF35: =IF($AP$35<>"", $C35*$AP$35,"") ->  | CG35: =IF($AQ$35<>"", $C35*$AQ$35,"") ->  | CH35: =IF($AR$35<>"", $C35*$AR$35,"") ->  | CI35: =IF($AS$35<>"", $C35*$AS$35,"") ->  | CJ35: =IF($AT$35<>"", $C35*$AT$35,"") ->  | CK35: =IF($AU$35<>"", $C35*$AU$35,"") ->  | CL35: =IF($AV$35<>"", $C35*$AV$35,"") ->  | CM35: =IF($AW$35<>"", $C35*$AW$35,"") ->  | CN35: =IF($AX$35<>"", $C35*$AX$35,"") ->  | CO35: =IF($AY$35<>"", $C35*$AY$35,"") ->  | CP35: =IF($AZ$35<>"", $C35*$AZ$35,"") ->  | CQ35: =IF($BA$35<>"", $C35*$BA$35,"") ->  | CR35: =IF($BB$35<>"", $C35*$BB$35,"") ->  | CS35: =IF($BC$35<>"", $C35*$BC$35,"") ->  | CT35: =IF($BD$35<>"", $C35*$BD$35,"") ->  | CV35: =IF($P$35<>"",$BF$35/(1 + DiscountRate) ^ $CV$21,"") ->  | CW35: =IF($Q$35<>"",$BG$35/(1 + DiscountRate) ^ $CW$21,"") ->  | CX35: =IF($R$35<>"",$BH$35/(1 + DiscountRate) ^ $CX$21,"") ->  | CY35: =IF($S$35<>"",$BI$35/(1 + DiscountRate) ^ $CY$21,"") ->  | CZ35: =IF($T$35<>"",$BJ$35/(1 + DiscountRate) ^ $CZ$21,"") ->  | DA35: =IF($U$35<>"",$BK$35/(1 + DiscountRate) ^ $DA$21,"") ->  | DB35: =IF($V$35<>"",$BL$35/(1 + DiscountRate) ^ $DB$21,"") ->  | DC35: =IF($W$35<>"",$BM$35/(1 + DiscountRate) ^ $DC$21,"") ->  | DD35: =IF($X$35<>"",$BN$35/(1 + DiscountRate) ^ $DD$21,"") ->  | DE35: =IF($Y$35<>"",$BO$35/(1 + DiscountRate) ^ $DE$21,"") ->  | DF35: =IF($Z$35<>"",$BP$35/(1 + DiscountRate) ^ $DF$21,"") ->  | DG35: =IF($AA$35<>"",$BQ$35/(1 + DiscountRate) ^ $DG$21,"") ->  | DH35: =IF($AB$35<>"",$BR$35/(1 + DiscountRate) ^ $DH$21,"") ->  | DI35: =IF($AC$35<>"",$BS$35/(1 + DiscountRate) ^ $DI$21,"") ->  | DJ35: =IF($AD$35<>"",$BT$35/(1 + DiscountRate) ^ $DJ$21,"") ->  | DK35: =IF($AE$35<>"",$BU$35/(1 + DiscountRate) ^ $DK$21,"") ->  | DL35: =IF($AF$35<>"",$BV$35/(1 + DiscountRate) ^ $DL$21,"") ->  | DM35: =IF($AG$35<>"",$BW$35/(1 + DiscountRate) ^ $DM$21,"") ->  | DN35: =IF($AH$35<>"",$BX$35/(1 + DiscountRate) ^ $DN$21,"") ->  | DO35: =IF($AI$35<>"",$BY$35/(1 + DiscountRate) ^ $DO$21,"") ->  | DP35: =IF($AJ$35<>"",$BZ$35/(1 + DiscountRate) ^ $DP$21,"") ->  | DQ35: =IF($AK$35<>"",$CA$35/(1 + DiscountRate) ^ $DQ$21,"") ->  | DR35: =IF($AL$35<>"",$CB$35/(1 + DiscountRate) ^ $DR$21,"") ->  | DS35: =IF($AM$35<>"",$CC$35/(1 + DiscountRate) ^ $DS$21,"") ->  | DT35: =IF($AN$35<>"",$CD$35/(1 + DiscountRate) ^ $DT$21,"") ->  | DU35: =IF($AO$35<>"",$CE$35/(1 + DiscountRate) ^ $DU$21,"") ->  | DV35: =IF($AP$35<>"",$CF$35/(1 + DiscountRate) ^ $DV$21,"") ->  | DW35: =IF($AQ$35<>"",$CG$35/(1 + DiscountRate) ^ $DW$21,"") ->  | DX35: =IF($AR$35<>"",$CH$35/(1 + DiscountRate) ^ $DX$21,"") ->  | DY35: =IF($AS$35<>"",$CI$35/(1 + DiscountRate) ^ $DY$21,"") ->  | DZ35: =IF($AT$35<>"",$CJ$35/(1 + DiscountRate) ^ $DZ$21,"") ->  | EA35: =IF($AU$35<>"",$CK$35/(1 + DiscountRate) ^ $EA$21,"") ->  | EB35: =IF($AV$35<>"",$CL$35/(1 + DiscountRate) ^ $EB$21,"") ->  | EC35: =IF($AW$35<>"",$CM$35/(1 + DiscountRate) ^ $EC$21,"") ->  | ED35: =IF($AX$35<>"",$CN$35/(1 + DiscountRate) ^ $ED$21,"") ->  | EE35: =IF($AY$35<>"",$CO$35/(1 + DiscountRate) ^ $EE$21,"") ->  | EF35: =IF($AZ$35<>"",$CP$35/(1 + DiscountRate) ^ $EF$21,"") ->  | EG35: =IF($BA$35<>"",$CQ$35/(1 + DiscountRate) ^ $EG$21,"") ->  | EH35: =IF($BB$35<>"",$CR$35/(1 + DiscountRate) ^ $EH$21,"") ->  | EI35: =IF($BC$35<>"",$CS$35/(1 + DiscountRate) ^ $EI$21,"") ->  | EJ35: =IF($BD$35<>"",$CT$35/(1 + DiscountRate) ^ $EJ$21,"") -> 
H36: =IF($A36<>"",IF($B36<>"",ItemQuantity(A36,B36,D36,E36,F36,G36),""),"") ->  | N36: =IF($A36<>"",IF($B36<>"",SUM(OFFSET($P36,0,AnalysisPeriod*2+4):OFFSET($P36,0,AnalysisPeriod*3+4)),""),"") ->  | P36: =IF($D36<>"",QuantityEstimate($J36,$H36,$E36,IF($K36<100,$K36,$K36-ConstYear),$L36,$M36,P$21),"") ->  | Q36: =IF($D36<>"",QuantityEstimate($J36,$H36,$E36,IF($K36<100,$K36,$K36-ConstYear),$L36,$M36,Q$21),"") ->  | R36: =IF($D36<>"",QuantityEstimate($J36,$H36,$E36,IF($K36<100,$K36,$K36-ConstYear),$L36,$M36,R$21),"") ->  | S36: =IF($D36<>"",QuantityEstimate($J36,$H36,$E36,IF($K36<100,$K36,$K36-ConstYear),$L36,$M36,S$21),"") ->  | T36: =IF($D36<>"",QuantityEstimate($J36,$H36,$E36,IF($K36<100,$K36,$K36-ConstYear),$L36,$M36,T$21),"") ->  | U36: =IF($D36<>"",QuantityEstimate($J36,$H36,$E36,IF($K36<100,$K36,$K36-ConstYear),$L36,$M36,U$21),"") ->  | V36: =IF($D36<>"",QuantityEstimate($J36,$H36,$E36,IF($K36<100,$K36,$K36-ConstYear),$L36,$M36,V$21),"") ->  | W36: =IF($D36<>"",QuantityEstimate($J36,$H36,$E36,IF($K36<100,$K36,$K36-ConstYear),$L36,$M36,W$21),"") ->  | X36: =IF($D36<>"",QuantityEstimate($J36,$H36,$E36,IF($K36<100,$K36,$K36-ConstYear),$L36,$M36,X$21),"") ->  | Y36: =IF($D36<>"",QuantityEstimate($J36,$H36,$E36,IF($K36<100,$K36,$K36-ConstYear),$L36,$M36,Y$21),"") ->  | Z36: =IF($D36<>"",QuantityEstimate($J36,$H36,$E36,IF($K36<100,$K36,$K36-ConstYear),$L36,$M36,Z$21),"") ->  | AA36: =IF($D36<>"",QuantityEstimate($J36,$H36,$E36,IF($K36<100,$K36,$K36-ConstYear),$L36,$M36,AA$21),"") ->  | AB36: =IF($D36<>"",QuantityEstimate($J36,$H36,$E36,IF($K36<100,$K36,$K36-ConstYear),$L36,$M36,AB$21),"") ->  | AC36: =IF($D36<>"",QuantityEstimate($J36,$H36,$E36,IF($K36<100,$K36,$K36-ConstYear),$L36,$M36,AC$21),"") ->  | AD36: =IF($D36<>"",QuantityEstimate($J36,$H36,$E36,IF($K36<100,$K36,$K36-ConstYear),$L36,$M36,AD$21),"") ->  | AE36: =IF($D36<>"",QuantityEstimate($J36,$H36,$E36,IF($K36<100,$K36,$K36-ConstYear),$L36,$M36,AE$21),"") ->  | AF36: =IF($D36<>"",QuantityEstimate($J36,$H36,$E36,IF($K36<100,$K36,$K36-ConstYear),$L36,$M36,AF$21),"") ->  | AG36: =IF($D36<>"",QuantityEstimate($J36,$H36,$E36,IF($K36<100,$K36,$K36-ConstYear),$L36,$M36,AG$21),"") ->  | AH36: =IF($D36<>"",QuantityEstimate($J36,$H36,$E36,IF($K36<100,$K36,$K36-ConstYear),$L36,$M36,AH$21),"") ->  | AI36: =IF($D36<>"",QuantityEstimate($J36,$H36,$E36,IF($K36<100,$K36,$K36-ConstYear),$L36,$M36,AI$21),"") ->  | AJ36: =IF($D36<>"",QuantityEstimate($J36,$H36,$E36,IF($K36<100,$K36,$K36-ConstYear),$L36,$M36,AJ$21),"") ->  | AK36: =IF($D36<>"",QuantityEstimate($J36,$H36,$E36,IF($K36<100,$K36,$K36-ConstYear),$L36,$M36,AK$21),"") ->  | AL36: =IF($D36<>"",QuantityEstimate($J36,$H36,$E36,IF($K36<100,$K36,$K36-ConstYear),$L36,$M36,AL$21),"") ->  | AM36: =IF($D36<>"",QuantityEstimate($J36,$H36,$E36,IF($K36<100,$K36,$K36-ConstYear),$L36,$M36,AM$21),"") ->  | AN36: =IF($D36<>"",QuantityEstimate($J36,$H36,$E36,IF($K36<100,$K36,$K36-ConstYear),$L36,$M36,AN$21),"") ->  | AO36: =IF($D36<>"",QuantityEstimate($J36,$H36,$E36,IF($K36<100,$K36,$K36-ConstYear),$L36,$M36,AO$21),"") ->  | AP36: =IF($D36<>"",QuantityEstimate($J36,$H36,$E36,IF($K36<100,$K36,$K36-ConstYear),$L36,$M36,AP$21),"") ->  | AQ36: =IF($D36<>"",QuantityEstimate($J36,$H36,$E36,IF($K36<100,$K36,$K36-ConstYear),$L36,$M36,AQ$21),"") ->  | AR36: =IF($D36<>"",QuantityEstimate($J36,$H36,$E36,IF($K36<100,$K36,$K36-ConstYear),$L36,$M36,AR$21),"") ->  | AS36: =IF($D36<>"",QuantityEstimate($J36,$H36,$E36,IF($K36<100,$K36,$K36-ConstYear),$L36,$M36,AS$21),"") ->  | AT36: =IF($D36<>"",QuantityEstimate($J36,$H36,$E36,IF($K36<100,$K36,$K36-ConstYear),$L36,$M36,AT$21),"") ->  | AU36: =IF($D36<>"",QuantityEstimate($J36,$H36,$E36,IF($K36<100,$K36,$K36-ConstYear),$L36,$M36,AU$21),"") ->  | AV36: =IF($D36<>"",QuantityEstimate($J36,$H36,$E36,IF($K36<100,$K36,$K36-ConstYear),$L36,$M36,AV$21),"") ->  | AW36: =IF($D36<>"",QuantityEstimate($J36,$H36,$E36,IF($K36<100,$K36,$K36-ConstYear),$L36,$M36,AW$21),"") ->  | AX36: =IF($D36<>"",QuantityEstimate($J36,$H36,$E36,IF($K36<100,$K36,$K36-ConstYear),$L36,$M36,AX$21),"") ->  | AY36: =IF($D36<>"",QuantityEstimate($J36,$H36,$E36,IF($K36<100,$K36,$K36-ConstYear),$L36,$M36,AY$21),"") ->  | AZ36: =IF($D36<>"",QuantityEstimate($J36,$H36,$E36,IF($K36<100,$K36,$K36-ConstYear),$L36,$M36,AZ$21),"") ->  | BA36: =IF($D36<>"",QuantityEstimate($J36,$H36,$E36,IF($K36<100,$K36,$K36-ConstYear),$L36,$M36,BA$21),"") ->  | BB36: =IF($D36<>"",QuantityEstimate($J36,$H36,$E36,IF($K36<100,$K36,$K36-ConstYear),$L36,$M36,BB$21),"") ->  | BC36: =IF($D36<>"",QuantityEstimate($J36,$H36,$E36,IF($K36<100,$K36,$K36-ConstYear),$L36,$M36,BC$21),"") ->  | BD36: =IF($D36<>"",QuantityEstimate($J36,$H36,$E36,IF($K36<100,$K36,$K36-ConstYear),$L36,$M36,BD$21),"") ->  | BF36: =IF($P$36<>"", $C36*$P$36,"") ->  | BG36: =IF($Q$36<>"", $C36*$Q$36,"") ->  | BH36: =IF($R$36<>"", $C36*$R$36,"") ->  | BI36: =IF($S$36<>"", $C36*$S$36,"") ->  | BJ36: =IF($T$36<>"", $C36*$T$36,"") ->  | BK36: =IF($U$36<>"", $C36*$U$36,"") ->  | BL36: =IF($V$36<>"", $C36*$V$36,"") ->  | BM36: =IF($W$36<>"", $C36*$W$36,"") ->  | BN36: =IF($X$36<>"", $C36*$X$36,"") ->  | BO36: =IF($Y$36<>"", $C36*$Y$36,"") ->  | BP36: =IF($Z$36<>"", $C36*$Z$36,"") ->  | BQ36: =IF($AA$36<>"", $C36*$AA$36,"") ->  | BR36: =IF($AB$36<>"", $C36*$AB$36,"") ->  | BS36: =IF($AC$36<>"", $C36*$AC$36,"") ->  | BT36: =IF($AD$36<>"", $C36*$AD$36,"") ->  | BU36: =IF($AE$36<>"", $C36*$AE$36,"") ->  | BV36: =IF($AF$36<>"", $C36*$AF$36,"") ->  | BW36: =IF($AG$36<>"", $C36*$AG$36,"") ->  | BX36: =IF($AH$36<>"", $C36*$AH$36,"") ->  | BY36: =IF($AI$36<>"", $C36*$AI$36,"") ->  | BZ36: =IF($AJ$36<>"", $C36*$AJ$36,"") ->  | CA36: =IF($AK$36<>"", $C36*$AK$36,"") ->  | CB36: =IF($AL$36<>"", $C36*$AL$36,"") ->  | CC36: =IF($AM$36<>"", $C36*$AM$36,"") ->  | CD36: =IF($AN$36<>"", $C36*$AN$36,"") ->  | CE36: =IF($AO$36<>"", $C36*$AO$36,"") ->  | CF36: =IF($AP$36<>"", $C36*$AP$36,"") ->  | CG36: =IF($AQ$36<>"", $C36*$AQ$36,"") ->  | CH36: =IF($AR$36<>"", $C36*$AR$36,"") ->  | CI36: =IF($AS$36<>"", $C36*$AS$36,"") ->  | CJ36: =IF($AT$36<>"", $C36*$AT$36,"") ->  | CK36: =IF($AU$36<>"", $C36*$AU$36,"") ->  | CL36: =IF($AV$36<>"", $C36*$AV$36,"") ->  | CM36: =IF($AW$36<>"", $C36*$AW$36,"") ->  | CN36: =IF($AX$36<>"", $C36*$AX$36,"") ->  | CO36: =IF($AY$36<>"", $C36*$AY$36,"") ->  | CP36: =IF($AZ$36<>"", $C36*$AZ$36,"") ->  | CQ36: =IF($BA$36<>"", $C36*$BA$36,"") ->  | CR36: =IF($BB$36<>"", $C36*$BB$36,"") ->  | CS36: =IF($BC$36<>"", $C36*$BC$36,"") ->  | CT36: =IF($BD$36<>"", $C36*$BD$36,"") ->  | CV36: =IF($P$36<>"",$BF$36/(1 + DiscountRate) ^ $CV$21,"") ->  | CW36: =IF($Q$36<>"",$BG$36/(1 + DiscountRate) ^ $CW$21,"") ->  | CX36: =IF($R$36<>"",$BH$36/(1 + DiscountRate) ^ $CX$21,"") ->  | CY36: =IF($S$36<>"",$BI$36/(1 + DiscountRate) ^ $CY$21,"") ->  | CZ36: =IF($T$36<>"",$BJ$36/(1 + DiscountRate) ^ $CZ$21,"") ->  | DA36: =IF($U$36<>"",$BK$36/(1 + DiscountRate) ^ $DA$21,"") ->  | DB36: =IF($V$36<>"",$BL$36/(1 + DiscountRate) ^ $DB$21,"") ->  | DC36: =IF($W$36<>"",$BM$36/(1 + DiscountRate) ^ $DC$21,"") ->  | DD36: =IF($X$36<>"",$BN$36/(1 + DiscountRate) ^ $DD$21,"") ->  | DE36: =IF($Y$36<>"",$BO$36/(1 + DiscountRate) ^ $DE$21,"") ->  | DF36: =IF($Z$36<>"",$BP$36/(1 + DiscountRate) ^ $DF$21,"") ->  | DG36: =IF($AA$36<>"",$BQ$36/(1 + DiscountRate) ^ $DG$21,"") ->  | DH36: =IF($AB$36<>"",$BR$36/(1 + DiscountRate) ^ $DH$21,"") ->  | DI36: =IF($AC$36<>"",$BS$36/(1 + DiscountRate) ^ $DI$21,"") ->  | DJ36: =IF($AD$36<>"",$BT$36/(1 + DiscountRate) ^ $DJ$21,"") ->  | DK36: =IF($AE$36<>"",$BU$36/(1 + DiscountRate) ^ $DK$21,"") ->  | DL36: =IF($AF$36<>"",$BV$36/(1 + DiscountRate) ^ $DL$21,"") ->  | DM36: =IF($AG$36<>"",$BW$36/(1 + DiscountRate) ^ $DM$21,"") ->  | DN36: =IF($AH$36<>"",$BX$36/(1 + DiscountRate) ^ $DN$21,"") ->  | DO36: =IF($AI$36<>"",$BY$36/(1 + DiscountRate) ^ $DO$21,"") ->  | DP36: =IF($AJ$36<>"",$BZ$36/(1 + DiscountRate) ^ $DP$21,"") ->  | DQ36: =IF($AK$36<>"",$CA$36/(1 + DiscountRate) ^ $DQ$21,"") ->  | DR36: =IF($AL$36<>"",$CB$36/(1 + DiscountRate) ^ $DR$21,"") ->  | DS36: =IF($AM$36<>"",$CC$36/(1 + DiscountRate) ^ $DS$21,"") ->  | DT36: =IF($AN$36<>"",$CD$36/(1 + DiscountRate) ^ $DT$21,"") ->  | DU36: =IF($AO$36<>"",$CE$36/(1 + DiscountRate) ^ $DU$21,"") ->  | DV36: =IF($AP$36<>"",$CF$36/(1 + DiscountRate) ^ $DV$21,"") ->  | DW36: =IF($AQ$36<>"",$CG$36/(1 + DiscountRate) ^ $DW$21,"") ->  | DX36: =IF($AR$36<>"",$CH$36/(1 + DiscountRate) ^ $DX$21,"") ->  | DY36: =IF($AS$36<>"",$CI$36/(1 + DiscountRate) ^ $DY$21,"") ->  | DZ36: =IF($AT$36<>"",$CJ$36/(1 + DiscountRate) ^ $DZ$21,"") ->  | EA36: =IF($AU$36<>"",$CK$36/(1 + DiscountRate) ^ $EA$21,"") ->  | EB36: =IF($AV$36<>"",$CL$36/(1 + DiscountRate) ^ $EB$21,"") ->  | EC36: =IF($AW$36<>"",$CM$36/(1 + DiscountRate) ^ $EC$21,"") ->  | ED36: =IF($AX$36<>"",$CN$36/(1 + DiscountRate) ^ $ED$21,"") ->  | EE36: =IF($AY$36<>"",$CO$36/(1 + DiscountRate) ^ $EE$21,"") ->  | EF36: =IF($AZ$36<>"",$CP$36/(1 + DiscountRate) ^ $EF$21,"") ->  | EG36: =IF($BA$36<>"",$CQ$36/(1 + DiscountRate) ^ $EG$21,"") ->  | EH36: =IF($BB$36<>"",$CR$36/(1 + DiscountRate) ^ $EH$21,"") ->  | EI36: =IF($BC$36<>"",$CS$36/(1 + DiscountRate) ^ $EI$21,"") ->  | EJ36: =IF($BD$36<>"",$CT$36/(1 + DiscountRate) ^ $EJ$21,"") -> 
H37: =IF($A37<>"",IF($B37<>"",ItemQuantity(A37,B37,D37,E37,F37,G37),""),"") ->  | N37: =IF($A37<>"",IF($B37<>"",SUM(OFFSET($P37,0,AnalysisPeriod*2+4):OFFSET($P37,0,AnalysisPeriod*3+4)),""),"") ->  | P37: =IF($D37<>"",QuantityEstimate($J37,$H37,$E37,IF($K37<100,$K37,$K37-ConstYear),$L37,$M37,P$21),"") ->  | Q37: =IF($D37<>"",QuantityEstimate($J37,$H37,$E37,IF($K37<100,$K37,$K37-ConstYear),$L37,$M37,Q$21),"") ->  | R37: =IF($D37<>"",QuantityEstimate($J37,$H37,$E37,IF($K37<100,$K37,$K37-ConstYear),$L37,$M37,R$21),"") ->  | S37: =IF($D37<>"",QuantityEstimate($J37,$H37,$E37,IF($K37<100,$K37,$K37-ConstYear),$L37,$M37,S$21),"") ->  | T37: =IF($D37<>"",QuantityEstimate($J37,$H37,$E37,IF($K37<100,$K37,$K37-ConstYear),$L37,$M37,T$21),"") ->  | U37: =IF($D37<>"",QuantityEstimate($J37,$H37,$E37,IF($K37<100,$K37,$K37-ConstYear),$L37,$M37,U$21),"") ->  | V37: =IF($D37<>"",QuantityEstimate($J37,$H37,$E37,IF($K37<100,$K37,$K37-ConstYear),$L37,$M37,V$21),"") ->  | W37: =IF($D37<>"",QuantityEstimate($J37,$H37,$E37,IF($K37<100,$K37,$K37-ConstYear),$L37,$M37,W$21),"") ->  | X37: =IF($D37<>"",QuantityEstimate($J37,$H37,$E37,IF($K37<100,$K37,$K37-ConstYear),$L37,$M37,X$21),"") ->  | Y37: =IF($D37<>"",QuantityEstimate($J37,$H37,$E37,IF($K37<100,$K37,$K37-ConstYear),$L37,$M37,Y$21),"") ->  | Z37: =IF($D37<>"",QuantityEstimate($J37,$H37,$E37,IF($K37<100,$K37,$K37-ConstYear),$L37,$M37,Z$21),"") ->  | AA37: =IF($D37<>"",QuantityEstimate($J37,$H37,$E37,IF($K37<100,$K37,$K37-ConstYear),$L37,$M37,AA$21),"") ->  | AB37: =IF($D37<>"",QuantityEstimate($J37,$H37,$E37,IF($K37<100,$K37,$K37-ConstYear),$L37,$M37,AB$21),"") ->  | AC37: =IF($D37<>"",QuantityEstimate($J37,$H37,$E37,IF($K37<100,$K37,$K37-ConstYear),$L37,$M37,AC$21),"") ->  | AD37: =IF($D37<>"",QuantityEstimate($J37,$H37,$E37,IF($K37<100,$K37,$K37-ConstYear),$L37,$M37,AD$21),"") ->  | AE37: =IF($D37<>"",QuantityEstimate($J37,$H37,$E37,IF($K37<100,$K37,$K37-ConstYear),$L37,$M37,AE$21),"") ->  | AF37: =IF($D37<>"",QuantityEstimate($J37,$H37,$E37,IF($K37<100,$K37,$K37-ConstYear),$L37,$M37,AF$21),"") ->  | AG37: =IF($D37<>"",QuantityEstimate($J37,$H37,$E37,IF($K37<100,$K37,$K37-ConstYear),$L37,$M37,AG$21),"") ->  | AH37: =IF($D37<>"",QuantityEstimate($J37,$H37,$E37,IF($K37<100,$K37,$K37-ConstYear),$L37,$M37,AH$21),"") ->  | AI37: =IF($D37<>"",QuantityEstimate($J37,$H37,$E37,IF($K37<100,$K37,$K37-ConstYear),$L37,$M37,AI$21),"") ->  | AJ37: =IF($D37<>"",QuantityEstimate($J37,$H37,$E37,IF($K37<100,$K37,$K37-ConstYear),$L37,$M37,AJ$21),"") ->  | AK37: =IF($D37<>"",QuantityEstimate($J37,$H37,$E37,IF($K37<100,$K37,$K37-ConstYear),$L37,$M37,AK$21),"") ->  | AL37: =IF($D37<>"",QuantityEstimate($J37,$H37,$E37,IF($K37<100,$K37,$K37-ConstYear),$L37,$M37,AL$21),"") ->  | AM37: =IF($D37<>"",QuantityEstimate($J37,$H37,$E37,IF($K37<100,$K37,$K37-ConstYear),$L37,$M37,AM$21),"") ->  | AN37: =IF($D37<>"",QuantityEstimate($J37,$H37,$E37,IF($K37<100,$K37,$K37-ConstYear),$L37,$M37,AN$21),"") ->  | AO37: =IF($D37<>"",QuantityEstimate($J37,$H37,$E37,IF($K37<100,$K37,$K37-ConstYear),$L37,$M37,AO$21),"") ->  | AP37: =IF($D37<>"",QuantityEstimate($J37,$H37,$E37,IF($K37<100,$K37,$K37-ConstYear),$L37,$M37,AP$21),"") ->  | AQ37: =IF($D37<>"",QuantityEstimate($J37,$H37,$E37,IF($K37<100,$K37,$K37-ConstYear),$L37,$M37,AQ$21),"") ->  | AR37: =IF($D37<>"",QuantityEstimate($J37,$H37,$E37,IF($K37<100,$K37,$K37-ConstYear),$L37,$M37,AR$21),"") ->  | AS37: =IF($D37<>"",QuantityEstimate($J37,$H37,$E37,IF($K37<100,$K37,$K37-ConstYear),$L37,$M37,AS$21),"") ->  | AT37: =IF($D37<>"",QuantityEstimate($J37,$H37,$E37,IF($K37<100,$K37,$K37-ConstYear),$L37,$M37,AT$21),"") ->  | AU37: =IF($D37<>"",QuantityEstimate($J37,$H37,$E37,IF($K37<100,$K37,$K37-ConstYear),$L37,$M37,AU$21),"") ->  | AV37: =IF($D37<>"",QuantityEstimate($J37,$H37,$E37,IF($K37<100,$K37,$K37-ConstYear),$L37,$M37,AV$21),"") ->  | AW37: =IF($D37<>"",QuantityEstimate($J37,$H37,$E37,IF($K37<100,$K37,$K37-ConstYear),$L37,$M37,AW$21),"") ->  | AX37: =IF($D37<>"",QuantityEstimate($J37,$H37,$E37,IF($K37<100,$K37,$K37-ConstYear),$L37,$M37,AX$21),"") ->  | AY37: =IF($D37<>"",QuantityEstimate($J37,$H37,$E37,IF($K37<100,$K37,$K37-ConstYear),$L37,$M37,AY$21),"") ->  | AZ37: =IF($D37<>"",QuantityEstimate($J37,$H37,$E37,IF($K37<100,$K37,$K37-ConstYear),$L37,$M37,AZ$21),"") ->  | BA37: =IF($D37<>"",QuantityEstimate($J37,$H37,$E37,IF($K37<100,$K37,$K37-ConstYear),$L37,$M37,BA$21),"") ->  | BB37: =IF($D37<>"",QuantityEstimate($J37,$H37,$E37,IF($K37<100,$K37,$K37-ConstYear),$L37,$M37,BB$21),"") ->  | BC37: =IF($D37<>"",QuantityEstimate($J37,$H37,$E37,IF($K37<100,$K37,$K37-ConstYear),$L37,$M37,BC$21),"") ->  | BD37: =IF($D37<>"",QuantityEstimate($J37,$H37,$E37,IF($K37<100,$K37,$K37-ConstYear),$L37,$M37,BD$21),"") ->  | BF37: =IF($P$37<>"", $C37*$P$37,"") ->  | BG37: =IF($Q$37<>"", $C37*$Q$37,"") ->  | BH37: =IF($R$37<>"", $C37*$R$37,"") ->  | BI37: =IF($S$37<>"", $C37*$S$37,"") ->  | BJ37: =IF($T$37<>"", $C37*$T$37,"") ->  | BK37: =IF($U$37<>"", $C37*$U$37,"") ->  | BL37: =IF($V$37<>"", $C37*$V$37,"") ->  | BM37: =IF($W$37<>"", $C37*$W$37,"") ->  | BN37: =IF($X$37<>"", $C37*$X$37,"") ->  | BO37: =IF($Y$37<>"", $C37*$Y$37,"") ->  | BP37: =IF($Z$37<>"", $C37*$Z$37,"") ->  | BQ37: =IF($AA$37<>"", $C37*$AA$37,"") ->  | BR37: =IF($AB$37<>"", $C37*$AB$37,"") ->  | BS37: =IF($AC$37<>"", $C37*$AC$37,"") ->  | BT37: =IF($AD$37<>"", $C37*$AD$37,"") ->  | BU37: =IF($AE$37<>"", $C37*$AE$37,"") ->  | BV37: =IF($AF$37<>"", $C37*$AF$37,"") ->  | BW37: =IF($AG$37<>"", $C37*$AG$37,"") ->  | BX37: =IF($AH$37<>"", $C37*$AH$37,"") ->  | BY37: =IF($AI$37<>"", $C37*$AI$37,"") ->  | BZ37: =IF($AJ$37<>"", $C37*$AJ$37,"") ->  | CA37: =IF($AK$37<>"", $C37*$AK$37,"") ->  | CB37: =IF($AL$37<>"", $C37*$AL$37,"") ->  | CC37: =IF($AM$37<>"", $C37*$AM$37,"") ->  | CD37: =IF($AN$37<>"", $C37*$AN$37,"") ->  | CE37: =IF($AO$37<>"", $C37*$AO$37,"") ->  | CF37: =IF($AP$37<>"", $C37*$AP$37,"") ->  | CG37: =IF($AQ$37<>"", $C37*$AQ$37,"") ->  | CH37: =IF($AR$37<>"", $C37*$AR$37,"") ->  | CI37: =IF($AS$37<>"", $C37*$AS$37,"") ->  | CJ37: =IF($AT$37<>"", $C37*$AT$37,"") ->  | CK37: =IF($AU$37<>"", $C37*$AU$37,"") ->  | CL37: =IF($AV$37<>"", $C37*$AV$37,"") ->  | CM37: =IF($AW$37<>"", $C37*$AW$37,"") ->  | CN37: =IF($AX$37<>"", $C37*$AX$37,"") ->  | CO37: =IF($AY$37<>"", $C37*$AY$37,"") ->  | CP37: =IF($AZ$37<>"", $C37*$AZ$37,"") ->  | CQ37: =IF($BA$37<>"", $C37*$BA$37,"") ->  | CR37: =IF($BB$37<>"", $C37*$BB$37,"") ->  | CS37: =IF($BC$37<>"", $C37*$BC$37,"") ->  | CT37: =IF($BD$37<>"", $C37*$BD$37,"") ->  | CV37: =IF($P$37<>"",$BF$37/(1 + DiscountRate) ^ $CV$21,"") ->  | CW37: =IF($Q$37<>"",$BG$37/(1 + DiscountRate) ^ $CW$21,"") ->  | CX37: =IF($R$37<>"",$BH$37/(1 + DiscountRate) ^ $CX$21,"") ->  | CY37: =IF($S$37<>"",$BI$37/(1 + DiscountRate) ^ $CY$21,"") ->  | CZ37: =IF($T$37<>"",$BJ$37/(1 + DiscountRate) ^ $CZ$21,"") ->  | DA37: =IF($U$37<>"",$BK$37/(1 + DiscountRate) ^ $DA$21,"") ->  | DB37: =IF($V$37<>"",$BL$37/(1 + DiscountRate) ^ $DB$21,"") ->  | DC37: =IF($W$37<>"",$BM$37/(1 + DiscountRate) ^ $DC$21,"") ->  | DD37: =IF($X$37<>"",$BN$37/(1 + DiscountRate) ^ $DD$21,"") ->  | DE37: =IF($Y$37<>"",$BO$37/(1 + DiscountRate) ^ $DE$21,"") ->  | DF37: =IF($Z$37<>"",$BP$37/(1 + DiscountRate) ^ $DF$21,"") ->  | DG37: =IF($AA$37<>"",$BQ$37/(1 + DiscountRate) ^ $DG$21,"") ->  | DH37: =IF($AB$37<>"",$BR$37/(1 + DiscountRate) ^ $DH$21,"") ->  | DI37: =IF($AC$37<>"",$BS$37/(1 + DiscountRate) ^ $DI$21,"") ->  | DJ37: =IF($AD$37<>"",$BT$37/(1 + DiscountRate) ^ $DJ$21,"") ->  | DK37: =IF($AE$37<>"",$BU$37/(1 + DiscountRate) ^ $DK$21,"") ->  | DL37: =IF($AF$37<>"",$BV$37/(1 + DiscountRate) ^ $DL$21,"") ->  | DM37: =IF($AG$37<>"",$BW$37/(1 + DiscountRate) ^ $DM$21,"") ->  | DN37: =IF($AH$37<>"",$BX$37/(1 + DiscountRate) ^ $DN$21,"") ->  | DO37: =IF($AI$37<>"",$BY$37/(1 + DiscountRate) ^ $DO$21,"") ->  | DP37: =IF($AJ$37<>"",$BZ$37/(1 + DiscountRate) ^ $DP$21,"") ->  | DQ37: =IF($AK$37<>"",$CA$37/(1 + DiscountRate) ^ $DQ$21,"") ->  | DR37: =IF($AL$37<>"",$CB$37/(1 + DiscountRate) ^ $DR$21,"") ->  | DS37: =IF($AM$37<>"",$CC$37/(1 + DiscountRate) ^ $DS$21,"") ->  | DT37: =IF($AN$37<>"",$CD$37/(1 + DiscountRate) ^ $DT$21,"") ->  | DU37: =IF($AO$37<>"",$CE$37/(1 + DiscountRate) ^ $DU$21,"") ->  | DV37: =IF($AP$37<>"",$CF$37/(1 + DiscountRate) ^ $DV$21,"") ->  | DW37: =IF($AQ$37<>"",$CG$37/(1 + DiscountRate) ^ $DW$21,"") ->  | DX37: =IF($AR$37<>"",$CH$37/(1 + DiscountRate) ^ $DX$21,"") ->  | DY37: =IF($AS$37<>"",$CI$37/(1 + DiscountRate) ^ $DY$21,"") ->  | DZ37: =IF($AT$37<>"",$CJ$37/(1 + DiscountRate) ^ $DZ$21,"") ->  | EA37: =IF($AU$37<>"",$CK$37/(1 + DiscountRate) ^ $EA$21,"") ->  | EB37: =IF($AV$37<>"",$CL$37/(1 + DiscountRate) ^ $EB$21,"") ->  | EC37: =IF($AW$37<>"",$CM$37/(1 + DiscountRate) ^ $EC$21,"") ->  | ED37: =IF($AX$37<>"",$CN$37/(1 + DiscountRate) ^ $ED$21,"") ->  | EE37: =IF($AY$37<>"",$CO$37/(1 + DiscountRate) ^ $EE$21,"") ->  | EF37: =IF($AZ$37<>"",$CP$37/(1 + DiscountRate) ^ $EF$21,"") ->  | EG37: =IF($BA$37<>"",$CQ$37/(1 + DiscountRate) ^ $EG$21,"") ->  | EH37: =IF($BB$37<>"",$CR$37/(1 + DiscountRate) ^ $EH$21,"") ->  | EI37: =IF($BC$37<>"",$CS$37/(1 + DiscountRate) ^ $EI$21,"") ->  | EJ37: =IF($BD$37<>"",$CT$37/(1 + DiscountRate) ^ $EJ$21,"") -> 
H38: =IF($A38<>"",IF($B38<>"",ItemQuantity(A38,B38,D38,E38,F38,G38),""),"") ->  | N38: =IF($A38<>"",IF($B38<>"",SUM(OFFSET($P38,0,AnalysisPeriod*2+4):OFFSET($P38,0,AnalysisPeriod*3+4)),""),"") ->  | P38: =IF($D38<>"",QuantityEstimate($J38,$H38,$E38,IF($K38<100,$K38,$K38-ConstYear),$L38,$M38,P$21),"") ->  | Q38: =IF($D38<>"",QuantityEstimate($J38,$H38,$E38,IF($K38<100,$K38,$K38-ConstYear),$L38,$M38,Q$21),"") ->  | R38: =IF($D38<>"",QuantityEstimate($J38,$H38,$E38,IF($K38<100,$K38,$K38-ConstYear),$L38,$M38,R$21),"") ->  | S38: =IF($D38<>"",QuantityEstimate($J38,$H38,$E38,IF($K38<100,$K38,$K38-ConstYear),$L38,$M38,S$21),"") ->  | T38: =IF($D38<>"",QuantityEstimate($J38,$H38,$E38,IF($K38<100,$K38,$K38-ConstYear),$L38,$M38,T$21),"") ->  | U38: =IF($D38<>"",QuantityEstimate($J38,$H38,$E38,IF($K38<100,$K38,$K38-ConstYear),$L38,$M38,U$21),"") ->  | V38: =IF($D38<>"",QuantityEstimate($J38,$H38,$E38,IF($K38<100,$K38,$K38-ConstYear),$L38,$M38,V$21),"") ->  | W38: =IF($D38<>"",QuantityEstimate($J38,$H38,$E38,IF($K38<100,$K38,$K38-ConstYear),$L38,$M38,W$21),"") ->  | X38: =IF($D38<>"",QuantityEstimate($J38,$H38,$E38,IF($K38<100,$K38,$K38-ConstYear),$L38,$M38,X$21),"") ->  | Y38: =IF($D38<>"",QuantityEstimate($J38,$H38,$E38,IF($K38<100,$K38,$K38-ConstYear),$L38,$M38,Y$21),"") ->  | Z38: =IF($D38<>"",QuantityEstimate($J38,$H38,$E38,IF($K38<100,$K38,$K38-ConstYear),$L38,$M38,Z$21),"") ->  | AA38: =IF($D38<>"",QuantityEstimate($J38,$H38,$E38,IF($K38<100,$K38,$K38-ConstYear),$L38,$M38,AA$21),"") ->  | AB38: =IF($D38<>"",QuantityEstimate($J38,$H38,$E38,IF($K38<100,$K38,$K38-ConstYear),$L38,$M38,AB$21),"") ->  | AC38: =IF($D38<>"",QuantityEstimate($J38,$H38,$E38,IF($K38<100,$K38,$K38-ConstYear),$L38,$M38,AC$21),"") ->  | AD38: =IF($D38<>"",QuantityEstimate($J38,$H38,$E38,IF($K38<100,$K38,$K38-ConstYear),$L38,$M38,AD$21),"") ->  | AE38: =IF($D38<>"",QuantityEstimate($J38,$H38,$E38,IF($K38<100,$K38,$K38-ConstYear),$L38,$M38,AE$21),"") ->  | AF38: =IF($D38<>"",QuantityEstimate($J38,$H38,$E38,IF($K38<100,$K38,$K38-ConstYear),$L38,$M38,AF$21),"") ->  | AG38: =IF($D38<>"",QuantityEstimate($J38,$H38,$E38,IF($K38<100,$K38,$K38-ConstYear),$L38,$M38,AG$21),"") ->  | AH38: =IF($D38<>"",QuantityEstimate($J38,$H38,$E38,IF($K38<100,$K38,$K38-ConstYear),$L38,$M38,AH$21),"") ->  | AI38: =IF($D38<>"",QuantityEstimate($J38,$H38,$E38,IF($K38<100,$K38,$K38-ConstYear),$L38,$M38,AI$21),"") ->  | AJ38: =IF($D38<>"",QuantityEstimate($J38,$H38,$E38,IF($K38<100,$K38,$K38-ConstYear),$L38,$M38,AJ$21),"") ->  | AK38: =IF($D38<>"",QuantityEstimate($J38,$H38,$E38,IF($K38<100,$K38,$K38-ConstYear),$L38,$M38,AK$21),"") ->  | AL38: =IF($D38<>"",QuantityEstimate($J38,$H38,$E38,IF($K38<100,$K38,$K38-ConstYear),$L38,$M38,AL$21),"") ->  | AM38: =IF($D38<>"",QuantityEstimate($J38,$H38,$E38,IF($K38<100,$K38,$K38-ConstYear),$L38,$M38,AM$21),"") ->  | AN38: =IF($D38<>"",QuantityEstimate($J38,$H38,$E38,IF($K38<100,$K38,$K38-ConstYear),$L38,$M38,AN$21),"") ->  | AO38: =IF($D38<>"",QuantityEstimate($J38,$H38,$E38,IF($K38<100,$K38,$K38-ConstYear),$L38,$M38,AO$21),"") ->  | AP38: =IF($D38<>"",QuantityEstimate($J38,$H38,$E38,IF($K38<100,$K38,$K38-ConstYear),$L38,$M38,AP$21),"") ->  | AQ38: =IF($D38<>"",QuantityEstimate($J38,$H38,$E38,IF($K38<100,$K38,$K38-ConstYear),$L38,$M38,AQ$21),"") ->  | AR38: =IF($D38<>"",QuantityEstimate($J38,$H38,$E38,IF($K38<100,$K38,$K38-ConstYear),$L38,$M38,AR$21),"") ->  | AS38: =IF($D38<>"",QuantityEstimate($J38,$H38,$E38,IF($K38<100,$K38,$K38-ConstYear),$L38,$M38,AS$21),"") ->  | AT38: =IF($D38<>"",QuantityEstimate($J38,$H38,$E38,IF($K38<100,$K38,$K38-ConstYear),$L38,$M38,AT$21),"") ->  | AU38: =IF($D38<>"",QuantityEstimate($J38,$H38,$E38,IF($K38<100,$K38,$K38-ConstYear),$L38,$M38,AU$21),"") ->  | AV38: =IF($D38<>"",QuantityEstimate($J38,$H38,$E38,IF($K38<100,$K38,$K38-ConstYear),$L38,$M38,AV$21),"") ->  | AW38: =IF($D38<>"",QuantityEstimate($J38,$H38,$E38,IF($K38<100,$K38,$K38-ConstYear),$L38,$M38,AW$21),"") ->  | AX38: =IF($D38<>"",QuantityEstimate($J38,$H38,$E38,IF($K38<100,$K38,$K38-ConstYear),$L38,$M38,AX$21),"") ->  | AY38: =IF($D38<>"",QuantityEstimate($J38,$H38,$E38,IF($K38<100,$K38,$K38-ConstYear),$L38,$M38,AY$21),"") ->  | AZ38: =IF($D38<>"",QuantityEstimate($J38,$H38,$E38,IF($K38<100,$K38,$K38-ConstYear),$L38,$M38,AZ$21),"") ->  | BA38: =IF($D38<>"",QuantityEstimate($J38,$H38,$E38,IF($K38<100,$K38,$K38-ConstYear),$L38,$M38,BA$21),"") ->  | BB38: =IF($D38<>"",QuantityEstimate($J38,$H38,$E38,IF($K38<100,$K38,$K38-ConstYear),$L38,$M38,BB$21),"") ->  | BC38: =IF($D38<>"",QuantityEstimate($J38,$H38,$E38,IF($K38<100,$K38,$K38-ConstYear),$L38,$M38,BC$21),"") ->  | BD38: =IF($D38<>"",QuantityEstimate($J38,$H38,$E38,IF($K38<100,$K38,$K38-ConstYear),$L38,$M38,BD$21),"") ->  | BF38: =IF($P$38<>"", $C38*$P$38,"") ->  | BG38: =IF($Q$38<>"", $C38*$Q$38,"") ->  | BH38: =IF($R$38<>"", $C38*$R$38,"") ->  | BI38: =IF($S$38<>"", $C38*$S$38,"") ->  | BJ38: =IF($T$38<>"", $C38*$T$38,"") ->  | BK38: =IF($U$38<>"", $C38*$U$38,"") ->  | BL38: =IF($V$38<>"", $C38*$V$38,"") ->  | BM38: =IF($W$38<>"", $C38*$W$38,"") ->  | BN38: =IF($X$38<>"", $C38*$X$38,"") ->  | BO38: =IF($Y$38<>"", $C38*$Y$38,"") ->  | BP38: =IF($Z$38<>"", $C38*$Z$38,"") ->  | BQ38: =IF($AA$38<>"", $C38*$AA$38,"") ->  | BR38: =IF($AB$38<>"", $C38*$AB$38,"") ->  | BS38: =IF($AC$38<>"", $C38*$AC$38,"") ->  | BT38: =IF($AD$38<>"", $C38*$AD$38,"") ->  | BU38: =IF($AE$38<>"", $C38*$AE$38,"") ->  | BV38: =IF($AF$38<>"", $C38*$AF$38,"") ->  | BW38: =IF($AG$38<>"", $C38*$AG$38,"") ->  | BX38: =IF($AH$38<>"", $C38*$AH$38,"") ->  | BY38: =IF($AI$38<>"", $C38*$AI$38,"") ->  | BZ38: =IF($AJ$38<>"", $C38*$AJ$38,"") ->  | CA38: =IF($AK$38<>"", $C38*$AK$38,"") ->  | CB38: =IF($AL$38<>"", $C38*$AL$38,"") ->  | CC38: =IF($AM$38<>"", $C38*$AM$38,"") ->  | CD38: =IF($AN$38<>"", $C38*$AN$38,"") ->  | CE38: =IF($AO$38<>"", $C38*$AO$38,"") ->  | CF38: =IF($AP$38<>"", $C38*$AP$38,"") ->  | CG38: =IF($AQ$38<>"", $C38*$AQ$38,"") ->  | CH38: =IF($AR$38<>"", $C38*$AR$38,"") ->  | CI38: =IF($AS$38<>"", $C38*$AS$38,"") ->  | CJ38: =IF($AT$38<>"", $C38*$AT$38,"") ->  | CK38: =IF($AU$38<>"", $C38*$AU$38,"") ->  | CL38: =IF($AV$38<>"", $C38*$AV$38,"") ->  | CM38: =IF($AW$38<>"", $C38*$AW$38,"") ->  | CN38: =IF($AX$38<>"", $C38*$AX$38,"") ->  | CO38: =IF($AY$38<>"", $C38*$AY$38,"") ->  | CP38: =IF($AZ$38<>"", $C38*$AZ$38,"") ->  | CQ38: =IF($BA$38<>"", $C38*$BA$38,"") ->  | CR38: =IF($BB$38<>"", $C38*$BB$38,"") ->  | CS38: =IF($BC$38<>"", $C38*$BC$38,"") ->  | CT38: =IF($BD$38<>"", $C38*$BD$38,"") ->  | CV38: =IF($P$38<>"",$BF$38/(1 + DiscountRate) ^ $CV$21,"") ->  | CW38: =IF($Q$38<>"",$BG$38/(1 + DiscountRate) ^ $CW$21,"") ->  | CX38: =IF($R$38<>"",$BH$38/(1 + DiscountRate) ^ $CX$21,"") ->  | CY38: =IF($S$38<>"",$BI$38/(1 + DiscountRate) ^ $CY$21,"") ->  | CZ38: =IF($T$38<>"",$BJ$38/(1 + DiscountRate) ^ $CZ$21,"") ->  | DA38: =IF($U$38<>"",$BK$38/(1 + DiscountRate) ^ $DA$21,"") ->  | DB38: =IF($V$38<>"",$BL$38/(1 + DiscountRate) ^ $DB$21,"") ->  | DC38: =IF($W$38<>"",$BM$38/(1 + DiscountRate) ^ $DC$21,"") ->  | DD38: =IF($X$38<>"",$BN$38/(1 + DiscountRate) ^ $DD$21,"") ->  | DE38: =IF($Y$38<>"",$BO$38/(1 + DiscountRate) ^ $DE$21,"") ->  | DF38: =IF($Z$38<>"",$BP$38/(1 + DiscountRate) ^ $DF$21,"") ->  | DG38: =IF($AA$38<>"",$BQ$38/(1 + DiscountRate) ^ $DG$21,"") ->  | DH38: =IF($AB$38<>"",$BR$38/(1 + DiscountRate) ^ $DH$21,"") ->  | DI38: =IF($AC$38<>"",$BS$38/(1 + DiscountRate) ^ $DI$21,"") ->  | DJ38: =IF($AD$38<>"",$BT$38/(1 + DiscountRate) ^ $DJ$21,"") ->  | DK38: =IF($AE$38<>"",$BU$38/(1 + DiscountRate) ^ $DK$21,"") ->  | DL38: =IF($AF$38<>"",$BV$38/(1 + DiscountRate) ^ $DL$21,"") ->  | DM38: =IF($AG$38<>"",$BW$38/(1 + DiscountRate) ^ $DM$21,"") ->  | DN38: =IF($AH$38<>"",$BX$38/(1 + DiscountRate) ^ $DN$21,"") ->  | DO38: =IF($AI$38<>"",$BY$38/(1 + DiscountRate) ^ $DO$21,"") ->  | DP38: =IF($AJ$38<>"",$BZ$38/(1 + DiscountRate) ^ $DP$21,"") ->  | DQ38: =IF($AK$38<>"",$CA$38/(1 + DiscountRate) ^ $DQ$21,"") ->  | DR38: =IF($AL$38<>"",$CB$38/(1 + DiscountRate) ^ $DR$21,"") ->  | DS38: =IF($AM$38<>"",$CC$38/(1 + DiscountRate) ^ $DS$21,"") ->  | DT38: =IF($AN$38<>"",$CD$38/(1 + DiscountRate) ^ $DT$21,"") ->  | DU38: =IF($AO$38<>"",$CE$38/(1 + DiscountRate) ^ $DU$21,"") ->  | DV38: =IF($AP$38<>"",$CF$38/(1 + DiscountRate) ^ $DV$21,"") ->  | DW38: =IF($AQ$38<>"",$CG$38/(1 + DiscountRate) ^ $DW$21,"") ->  | DX38: =IF($AR$38<>"",$CH$38/(1 + DiscountRate) ^ $DX$21,"") ->  | DY38: =IF($AS$38<>"",$CI$38/(1 + DiscountRate) ^ $DY$21,"") ->  | DZ38: =IF($AT$38<>"",$CJ$38/(1 + DiscountRate) ^ $DZ$21,"") ->  | EA38: =IF($AU$38<>"",$CK$38/(1 + DiscountRate) ^ $EA$21,"") ->  | EB38: =IF($AV$38<>"",$CL$38/(1 + DiscountRate) ^ $EB$21,"") ->  | EC38: =IF($AW$38<>"",$CM$38/(1 + DiscountRate) ^ $EC$21,"") ->  | ED38: =IF($AX$38<>"",$CN$38/(1 + DiscountRate) ^ $ED$21,"") ->  | EE38: =IF($AY$38<>"",$CO$38/(1 + DiscountRate) ^ $EE$21,"") ->  | EF38: =IF($AZ$38<>"",$CP$38/(1 + DiscountRate) ^ $EF$21,"") ->  | EG38: =IF($BA$38<>"",$CQ$38/(1 + DiscountRate) ^ $EG$21,"") ->  | EH38: =IF($BB$38<>"",$CR$38/(1 + DiscountRate) ^ $EH$21,"") ->  | EI38: =IF($BC$38<>"",$CS$38/(1 + DiscountRate) ^ $EI$21,"") ->  | EJ38: =IF($BD$38<>"",$CT$38/(1 + DiscountRate) ^ $EJ$21,"") -> 
H39: =IF($A39<>"",IF($B39<>"",ItemQuantity(A39,B39,D39,E39,F39,G39),""),"") ->  | N39: =IF($A39<>"",IF($B39<>"",SUM(OFFSET($P39,0,AnalysisPeriod*2+4):OFFSET($P39,0,AnalysisPeriod*3+4)),""),"") ->  | P39: =IF($D39<>"",QuantityEstimate($J39,$H39,$E39,IF($K39<100,$K39,$K39-ConstYear),$L39,$M39,P$21),"") ->  | Q39: =IF($D39<>"",QuantityEstimate($J39,$H39,$E39,IF($K39<100,$K39,$K39-ConstYear),$L39,$M39,Q$21),"") ->  | R39: =IF($D39<>"",QuantityEstimate($J39,$H39,$E39,IF($K39<100,$K39,$K39-ConstYear),$L39,$M39,R$21),"") ->  | S39: =IF($D39<>"",QuantityEstimate($J39,$H39,$E39,IF($K39<100,$K39,$K39-ConstYear),$L39,$M39,S$21),"") ->  | T39: =IF($D39<>"",QuantityEstimate($J39,$H39,$E39,IF($K39<100,$K39,$K39-ConstYear),$L39,$M39,T$21),"") ->  | U39: =IF($D39<>"",QuantityEstimate($J39,$H39,$E39,IF($K39<100,$K39,$K39-ConstYear),$L39,$M39,U$21),"") ->  | V39: =IF($D39<>"",QuantityEstimate($J39,$H39,$E39,IF($K39<100,$K39,$K39-ConstYear),$L39,$M39,V$21),"") ->  | W39: =IF($D39<>"",QuantityEstimate($J39,$H39,$E39,IF($K39<100,$K39,$K39-ConstYear),$L39,$M39,W$21),"") ->  | X39: =IF($D39<>"",QuantityEstimate($J39,$H39,$E39,IF($K39<100,$K39,$K39-ConstYear),$L39,$M39,X$21),"") ->  | Y39: =IF($D39<>"",QuantityEstimate($J39,$H39,$E39,IF($K39<100,$K39,$K39-ConstYear),$L39,$M39,Y$21),"") ->  | Z39: =IF($D39<>"",QuantityEstimate($J39,$H39,$E39,IF($K39<100,$K39,$K39-ConstYear),$L39,$M39,Z$21),"") ->  | AA39: =IF($D39<>"",QuantityEstimate($J39,$H39,$E39,IF($K39<100,$K39,$K39-ConstYear),$L39,$M39,AA$21),"") ->  | AB39: =IF($D39<>"",QuantityEstimate($J39,$H39,$E39,IF($K39<100,$K39,$K39-ConstYear),$L39,$M39,AB$21),"") ->  | AC39: =IF($D39<>"",QuantityEstimate($J39,$H39,$E39,IF($K39<100,$K39,$K39-ConstYear),$L39,$M39,AC$21),"") ->  | AD39: =IF($D39<>"",QuantityEstimate($J39,$H39,$E39,IF($K39<100,$K39,$K39-ConstYear),$L39,$M39,AD$21),"") ->  | AE39: =IF($D39<>"",QuantityEstimate($J39,$H39,$E39,IF($K39<100,$K39,$K39-ConstYear),$L39,$M39,AE$21),"") ->  | AF39: =IF($D39<>"",QuantityEstimate($J39,$H39,$E39,IF($K39<100,$K39,$K39-ConstYear),$L39,$M39,AF$21),"") ->  | AG39: =IF($D39<>"",QuantityEstimate($J39,$H39,$E39,IF($K39<100,$K39,$K39-ConstYear),$L39,$M39,AG$21),"") ->  | AH39: =IF($D39<>"",QuantityEstimate($J39,$H39,$E39,IF($K39<100,$K39,$K39-ConstYear),$L39,$M39,AH$21),"") ->  | AI39: =IF($D39<>"",QuantityEstimate($J39,$H39,$E39,IF($K39<100,$K39,$K39-ConstYear),$L39,$M39,AI$21),"") ->  | AJ39: =IF($D39<>"",QuantityEstimate($J39,$H39,$E39,IF($K39<100,$K39,$K39-ConstYear),$L39,$M39,AJ$21),"") ->  | AK39: =IF($D39<>"",QuantityEstimate($J39,$H39,$E39,IF($K39<100,$K39,$K39-ConstYear),$L39,$M39,AK$21),"") ->  | AL39: =IF($D39<>"",QuantityEstimate($J39,$H39,$E39,IF($K39<100,$K39,$K39-ConstYear),$L39,$M39,AL$21),"") ->  | AM39: =IF($D39<>"",QuantityEstimate($J39,$H39,$E39,IF($K39<100,$K39,$K39-ConstYear),$L39,$M39,AM$21),"") ->  | AN39: =IF($D39<>"",QuantityEstimate($J39,$H39,$E39,IF($K39<100,$K39,$K39-ConstYear),$L39,$M39,AN$21),"") ->  | AO39: =IF($D39<>"",QuantityEstimate($J39,$H39,$E39,IF($K39<100,$K39,$K39-ConstYear),$L39,$M39,AO$21),"") ->  | AP39: =IF($D39<>"",QuantityEstimate($J39,$H39,$E39,IF($K39<100,$K39,$K39-ConstYear),$L39,$M39,AP$21),"") ->  | AQ39: =IF($D39<>"",QuantityEstimate($J39,$H39,$E39,IF($K39<100,$K39,$K39-ConstYear),$L39,$M39,AQ$21),"") ->  | AR39: =IF($D39<>"",QuantityEstimate($J39,$H39,$E39,IF($K39<100,$K39,$K39-ConstYear),$L39,$M39,AR$21),"") ->  | AS39: =IF($D39<>"",QuantityEstimate($J39,$H39,$E39,IF($K39<100,$K39,$K39-ConstYear),$L39,$M39,AS$21),"") ->  | AT39: =IF($D39<>"",QuantityEstimate($J39,$H39,$E39,IF($K39<100,$K39,$K39-ConstYear),$L39,$M39,AT$21),"") ->  | AU39: =IF($D39<>"",QuantityEstimate($J39,$H39,$E39,IF($K39<100,$K39,$K39-ConstYear),$L39,$M39,AU$21),"") ->  | AV39: =IF($D39<>"",QuantityEstimate($J39,$H39,$E39,IF($K39<100,$K39,$K39-ConstYear),$L39,$M39,AV$21),"") ->  | AW39: =IF($D39<>"",QuantityEstimate($J39,$H39,$E39,IF($K39<100,$K39,$K39-ConstYear),$L39,$M39,AW$21),"") ->  | AX39: =IF($D39<>"",QuantityEstimate($J39,$H39,$E39,IF($K39<100,$K39,$K39-ConstYear),$L39,$M39,AX$21),"") ->  | AY39: =IF($D39<>"",QuantityEstimate($J39,$H39,$E39,IF($K39<100,$K39,$K39-ConstYear),$L39,$M39,AY$21),"") ->  | AZ39: =IF($D39<>"",QuantityEstimate($J39,$H39,$E39,IF($K39<100,$K39,$K39-ConstYear),$L39,$M39,AZ$21),"") ->  | BA39: =IF($D39<>"",QuantityEstimate($J39,$H39,$E39,IF($K39<100,$K39,$K39-ConstYear),$L39,$M39,BA$21),"") ->  | BB39: =IF($D39<>"",QuantityEstimate($J39,$H39,$E39,IF($K39<100,$K39,$K39-ConstYear),$L39,$M39,BB$21),"") ->  | BC39: =IF($D39<>"",QuantityEstimate($J39,$H39,$E39,IF($K39<100,$K39,$K39-ConstYear),$L39,$M39,BC$21),"") ->  | BD39: =IF($D39<>"",QuantityEstimate($J39,$H39,$E39,IF($K39<100,$K39,$K39-ConstYear),$L39,$M39,BD$21),"") ->  | BF39: =IF($P$39<>"", $C39*$P$39,"") ->  | BG39: =IF($Q$39<>"", $C39*$Q$39,"") ->  | BH39: =IF($R$39<>"", $C39*$R$39,"") ->  | BI39: =IF($S$39<>"", $C39*$S$39,"") ->  | BJ39: =IF($T$39<>"", $C39*$T$39,"") ->  | BK39: =IF($U$39<>"", $C39*$U$39,"") ->  | BL39: =IF($V$39<>"", $C39*$V$39,"") ->  | BM39: =IF($W$39<>"", $C39*$W$39,"") ->  | BN39: =IF($X$39<>"", $C39*$X$39,"") ->  | BO39: =IF($Y$39<>"", $C39*$Y$39,"") ->  | BP39: =IF($Z$39<>"", $C39*$Z$39,"") ->  | BQ39: =IF($AA$39<>"", $C39*$AA$39,"") ->  | BR39: =IF($AB$39<>"", $C39*$AB$39,"") ->  | BS39: =IF($AC$39<>"", $C39*$AC$39,"") ->  | BT39: =IF($AD$39<>"", $C39*$AD$39,"") ->  | BU39: =IF($AE$39<>"", $C39*$AE$39,"") ->  | BV39: =IF($AF$39<>"", $C39*$AF$39,"") ->  | BW39: =IF($AG$39<>"", $C39*$AG$39,"") ->  | BX39: =IF($AH$39<>"", $C39*$AH$39,"") ->  | BY39: =IF($AI$39<>"", $C39*$AI$39,"") ->  | BZ39: =IF($AJ$39<>"", $C39*$AJ$39,"") ->  | CA39: =IF($AK$39<>"", $C39*$AK$39,"") ->  | CB39: =IF($AL$39<>"", $C39*$AL$39,"") ->  | CC39: =IF($AM$39<>"", $C39*$AM$39,"") ->  | CD39: =IF($AN$39<>"", $C39*$AN$39,"") ->  | CE39: =IF($AO$39<>"", $C39*$AO$39,"") ->  | CF39: =IF($AP$39<>"", $C39*$AP$39,"") ->  | CG39: =IF($AQ$39<>"", $C39*$AQ$39,"") ->  | CH39: =IF($AR$39<>"", $C39*$AR$39,"") ->  | CI39: =IF($AS$39<>"", $C39*$AS$39,"") ->  | CJ39: =IF($AT$39<>"", $C39*$AT$39,"") ->  | CK39: =IF($AU$39<>"", $C39*$AU$39,"") ->  | CL39: =IF($AV$39<>"", $C39*$AV$39,"") ->  | CM39: =IF($AW$39<>"", $C39*$AW$39,"") ->  | CN39: =IF($AX$39<>"", $C39*$AX$39,"") ->  | CO39: =IF($AY$39<>"", $C39*$AY$39,"") ->  | CP39: =IF($AZ$39<>"", $C39*$AZ$39,"") ->  | CQ39: =IF($BA$39<>"", $C39*$BA$39,"") ->  | CR39: =IF($BB$39<>"", $C39*$BB$39,"") ->  | CS39: =IF($BC$39<>"", $C39*$BC$39,"") ->  | CT39: =IF($BD$39<>"", $C39*$BD$39,"") ->  | CV39: =IF($P$39<>"",$BF$39/(1 + DiscountRate) ^ $CV$21,"") ->  | CW39: =IF($Q$39<>"",$BG$39/(1 + DiscountRate) ^ $CW$21,"") ->  | CX39: =IF($R$39<>"",$BH$39/(1 + DiscountRate) ^ $CX$21,"") ->  | CY39: =IF($S$39<>"",$BI$39/(1 + DiscountRate) ^ $CY$21,"") ->  | CZ39: =IF($T$39<>"",$BJ$39/(1 + DiscountRate) ^ $CZ$21,"") ->  | DA39: =IF($U$39<>"",$BK$39/(1 + DiscountRate) ^ $DA$21,"") ->  | DB39: =IF($V$39<>"",$BL$39/(1 + DiscountRate) ^ $DB$21,"") ->  | DC39: =IF($W$39<>"",$BM$39/(1 + DiscountRate) ^ $DC$21,"") ->  | DD39: =IF($X$39<>"",$BN$39/(1 + DiscountRate) ^ $DD$21,"") ->  | DE39: =IF($Y$39<>"",$BO$39/(1 + DiscountRate) ^ $DE$21,"") ->  | DF39: =IF($Z$39<>"",$BP$39/(1 + DiscountRate) ^ $DF$21,"") ->  | DG39: =IF($AA$39<>"",$BQ$39/(1 + DiscountRate) ^ $DG$21,"") ->  | DH39: =IF($AB$39<>"",$BR$39/(1 + DiscountRate) ^ $DH$21,"") ->  | DI39: =IF($AC$39<>"",$BS$39/(1 + DiscountRate) ^ $DI$21,"") ->  | DJ39: =IF($AD$39<>"",$BT$39/(1 + DiscountRate) ^ $DJ$21,"") ->  | DK39: =IF($AE$39<>"",$BU$39/(1 + DiscountRate) ^ $DK$21,"") ->  | DL39: =IF($AF$39<>"",$BV$39/(1 + DiscountRate) ^ $DL$21,"") ->  | DM39: =IF($AG$39<>"",$BW$39/(1 + DiscountRate) ^ $DM$21,"") ->  | DN39: =IF($AH$39<>"",$BX$39/(1 + DiscountRate) ^ $DN$21,"") ->  | DO39: =IF($AI$39<>"",$BY$39/(1 + DiscountRate) ^ $DO$21,"") ->  | DP39: =IF($AJ$39<>"",$BZ$39/(1 + DiscountRate) ^ $DP$21,"") ->  | DQ39: =IF($AK$39<>"",$CA$39/(1 + DiscountRate) ^ $DQ$21,"") ->  | DR39: =IF($AL$39<>"",$CB$39/(1 + DiscountRate) ^ $DR$21,"") ->  | DS39: =IF($AM$39<>"",$CC$39/(1 + DiscountRate) ^ $DS$21,"") ->  | DT39: =IF($AN$39<>"",$CD$39/(1 + DiscountRate) ^ $DT$21,"") ->  | DU39: =IF($AO$39<>"",$CE$39/(1 + DiscountRate) ^ $DU$21,"") ->  | DV39: =IF($AP$39<>"",$CF$39/(1 + DiscountRate) ^ $DV$21,"") ->  | DW39: =IF($AQ$39<>"",$CG$39/(1 + DiscountRate) ^ $DW$21,"") ->  | DX39: =IF($AR$39<>"",$CH$39/(1 + DiscountRate) ^ $DX$21,"") ->  | DY39: =IF($AS$39<>"",$CI$39/(1 + DiscountRate) ^ $DY$21,"") ->  | DZ39: =IF($AT$39<>"",$CJ$39/(1 + DiscountRate) ^ $DZ$21,"") ->  | EA39: =IF($AU$39<>"",$CK$39/(1 + DiscountRate) ^ $EA$21,"") ->  | EB39: =IF($AV$39<>"",$CL$39/(1 + DiscountRate) ^ $EB$21,"") ->  | EC39: =IF($AW$39<>"",$CM$39/(1 + DiscountRate) ^ $EC$21,"") ->  | ED39: =IF($AX$39<>"",$CN$39/(1 + DiscountRate) ^ $ED$21,"") ->  | EE39: =IF($AY$39<>"",$CO$39/(1 + DiscountRate) ^ $EE$21,"") ->  | EF39: =IF($AZ$39<>"",$CP$39/(1 + DiscountRate) ^ $EF$21,"") ->  | EG39: =IF($BA$39<>"",$CQ$39/(1 + DiscountRate) ^ $EG$21,"") ->  | EH39: =IF($BB$39<>"",$CR$39/(1 + DiscountRate) ^ $EH$21,"") ->  | EI39: =IF($BC$39<>"",$CS$39/(1 + DiscountRate) ^ $EI$21,"") ->  | EJ39: =IF($BD$39<>"",$CT$39/(1 + DiscountRate) ^ $EJ$21,"") -> 
H40: =IF($A40<>"",IF($B40<>"",ItemQuantity(A40,B40,D40,E40,F40,G40),""),"") ->  | N40: =IF($A40<>"",IF($B40<>"",SUM(OFFSET($P40,0,AnalysisPeriod*2+4):OFFSET($P40,0,AnalysisPeriod*3+4)),""),"") ->  | P40: =IF($D40<>"",QuantityEstimate($J40,$H40,$E40,IF($K40<100,$K40,$K40-ConstYear),$L40,$M40,P$21),"") ->  | Q40: =IF($D40<>"",QuantityEstimate($J40,$H40,$E40,IF($K40<100,$K40,$K40-ConstYear),$L40,$M40,Q$21),"") ->  | R40: =IF($D40<>"",QuantityEstimate($J40,$H40,$E40,IF($K40<100,$K40,$K40-ConstYear),$L40,$M40,R$21),"") ->  | S40: =IF($D40<>"",QuantityEstimate($J40,$H40,$E40,IF($K40<100,$K40,$K40-ConstYear),$L40,$M40,S$21),"") ->  | T40: =IF($D40<>"",QuantityEstimate($J40,$H40,$E40,IF($K40<100,$K40,$K40-ConstYear),$L40,$M40,T$21),"") ->  | U40: =IF($D40<>"",QuantityEstimate($J40,$H40,$E40,IF($K40<100,$K40,$K40-ConstYear),$L40,$M40,U$21),"") ->  | V40: =IF($D40<>"",QuantityEstimate($J40,$H40,$E40,IF($K40<100,$K40,$K40-ConstYear),$L40,$M40,V$21),"") ->  | W40: =IF($D40<>"",QuantityEstimate($J40,$H40,$E40,IF($K40<100,$K40,$K40-ConstYear),$L40,$M40,W$21),"") ->  | X40: =IF($D40<>"",QuantityEstimate($J40,$H40,$E40,IF($K40<100,$K40,$K40-ConstYear),$L40,$M40,X$21),"") ->  | Y40: =IF($D40<>"",QuantityEstimate($J40,$H40,$E40,IF($K40<100,$K40,$K40-ConstYear),$L40,$M40,Y$21),"") ->  | Z40: =IF($D40<>"",QuantityEstimate($J40,$H40,$E40,IF($K40<100,$K40,$K40-ConstYear),$L40,$M40,Z$21),"") ->  | AA40: =IF($D40<>"",QuantityEstimate($J40,$H40,$E40,IF($K40<100,$K40,$K40-ConstYear),$L40,$M40,AA$21),"") ->  | AB40: =IF($D40<>"",QuantityEstimate($J40,$H40,$E40,IF($K40<100,$K40,$K40-ConstYear),$L40,$M40,AB$21),"") ->  | AC40: =IF($D40<>"",QuantityEstimate($J40,$H40,$E40,IF($K40<100,$K40,$K40-ConstYear),$L40,$M40,AC$21),"") ->  | AD40: =IF($D40<>"",QuantityEstimate($J40,$H40,$E40,IF($K40<100,$K40,$K40-ConstYear),$L40,$M40,AD$21),"") ->  | AE40: =IF($D40<>"",QuantityEstimate($J40,$H40,$E40,IF($K40<100,$K40,$K40-ConstYear),$L40,$M40,AE$21),"") ->  | AF40: =IF($D40<>"",QuantityEstimate($J40,$H40,$E40,IF($K40<100,$K40,$K40-ConstYear),$L40,$M40,AF$21),"") ->  | AG40: =IF($D40<>"",QuantityEstimate($J40,$H40,$E40,IF($K40<100,$K40,$K40-ConstYear),$L40,$M40,AG$21),"") ->  | AH40: =IF($D40<>"",QuantityEstimate($J40,$H40,$E40,IF($K40<100,$K40,$K40-ConstYear),$L40,$M40,AH$21),"") ->  | AI40: =IF($D40<>"",QuantityEstimate($J40,$H40,$E40,IF($K40<100,$K40,$K40-ConstYear),$L40,$M40,AI$21),"") ->  | AJ40: =IF($D40<>"",QuantityEstimate($J40,$H40,$E40,IF($K40<100,$K40,$K40-ConstYear),$L40,$M40,AJ$21),"") ->  | AK40: =IF($D40<>"",QuantityEstimate($J40,$H40,$E40,IF($K40<100,$K40,$K40-ConstYear),$L40,$M40,AK$21),"") ->  | AL40: =IF($D40<>"",QuantityEstimate($J40,$H40,$E40,IF($K40<100,$K40,$K40-ConstYear),$L40,$M40,AL$21),"") ->  | AM40: =IF($D40<>"",QuantityEstimate($J40,$H40,$E40,IF($K40<100,$K40,$K40-ConstYear),$L40,$M40,AM$21),"") ->  | AN40: =IF($D40<>"",QuantityEstimate($J40,$H40,$E40,IF($K40<100,$K40,$K40-ConstYear),$L40,$M40,AN$21),"") ->  | AO40: =IF($D40<>"",QuantityEstimate($J40,$H40,$E40,IF($K40<100,$K40,$K40-ConstYear),$L40,$M40,AO$21),"") ->  | AP40: =IF($D40<>"",QuantityEstimate($J40,$H40,$E40,IF($K40<100,$K40,$K40-ConstYear),$L40,$M40,AP$21),"") ->  | AQ40: =IF($D40<>"",QuantityEstimate($J40,$H40,$E40,IF($K40<100,$K40,$K40-ConstYear),$L40,$M40,AQ$21),"") ->  | AR40: =IF($D40<>"",QuantityEstimate($J40,$H40,$E40,IF($K40<100,$K40,$K40-ConstYear),$L40,$M40,AR$21),"") ->  | AS40: =IF($D40<>"",QuantityEstimate($J40,$H40,$E40,IF($K40<100,$K40,$K40-ConstYear),$L40,$M40,AS$21),"") ->  | AT40: =IF($D40<>"",QuantityEstimate($J40,$H40,$E40,IF($K40<100,$K40,$K40-ConstYear),$L40,$M40,AT$21),"") ->  | AU40: =IF($D40<>"",QuantityEstimate($J40,$H40,$E40,IF($K40<100,$K40,$K40-ConstYear),$L40,$M40,AU$21),"") ->  | AV40: =IF($D40<>"",QuantityEstimate($J40,$H40,$E40,IF($K40<100,$K40,$K40-ConstYear),$L40,$M40,AV$21),"") ->  | AW40: =IF($D40<>"",QuantityEstimate($J40,$H40,$E40,IF($K40<100,$K40,$K40-ConstYear),$L40,$M40,AW$21),"") ->  | AX40: =IF($D40<>"",QuantityEstimate($J40,$H40,$E40,IF($K40<100,$K40,$K40-ConstYear),$L40,$M40,AX$21),"") ->  | AY40: =IF($D40<>"",QuantityEstimate($J40,$H40,$E40,IF($K40<100,$K40,$K40-ConstYear),$L40,$M40,AY$21),"") ->  | AZ40: =IF($D40<>"",QuantityEstimate($J40,$H40,$E40,IF($K40<100,$K40,$K40-ConstYear),$L40,$M40,AZ$21),"") ->  | BA40: =IF($D40<>"",QuantityEstimate($J40,$H40,$E40,IF($K40<100,$K40,$K40-ConstYear),$L40,$M40,BA$21),"") ->  | BB40: =IF($D40<>"",QuantityEstimate($J40,$H40,$E40,IF($K40<100,$K40,$K40-ConstYear),$L40,$M40,BB$21),"") ->  | BC40: =IF($D40<>"",QuantityEstimate($J40,$H40,$E40,IF($K40<100,$K40,$K40-ConstYear),$L40,$M40,BC$21),"") ->  | BD40: =IF($D40<>"",QuantityEstimate($J40,$H40,$E40,IF($K40<100,$K40,$K40-ConstYear),$L40,$M40,BD$21),"") ->  | BF40: =IF($P$40<>"", $C40*$P$40,"") ->  | BG40: =IF($Q$40<>"", $C40*$Q$40,"") ->  | BH40: =IF($R$40<>"", $C40*$R$40,"") ->  | BI40: =IF($S$40<>"", $C40*$S$40,"") ->  | BJ40: =IF($T$40<>"", $C40*$T$40,"") ->  | BK40: =IF($U$40<>"", $C40*$U$40,"") ->  | BL40: =IF($V$40<>"", $C40*$V$40,"") ->  | BM40: =IF($W$40<>"", $C40*$W$40,"") ->  | BN40: =IF($X$40<>"", $C40*$X$40,"") ->  | BO40: =IF($Y$40<>"", $C40*$Y$40,"") ->  | BP40: =IF($Z$40<>"", $C40*$Z$40,"") ->  | BQ40: =IF($AA$40<>"", $C40*$AA$40,"") ->  | BR40: =IF($AB$40<>"", $C40*$AB$40,"") ->  | BS40: =IF($AC$40<>"", $C40*$AC$40,"") ->  | BT40: =IF($AD$40<>"", $C40*$AD$40,"") ->  | BU40: =IF($AE$40<>"", $C40*$AE$40,"") ->  | BV40: =IF($AF$40<>"", $C40*$AF$40,"") ->  | BW40: =IF($AG$40<>"", $C40*$AG$40,"") ->  | BX40: =IF($AH$40<>"", $C40*$AH$40,"") ->  | BY40: =IF($AI$40<>"", $C40*$AI$40,"") ->  | BZ40: =IF($AJ$40<>"", $C40*$AJ$40,"") ->  | CA40: =IF($AK$40<>"", $C40*$AK$40,"") ->  | CB40: =IF($AL$40<>"", $C40*$AL$40,"") ->  | CC40: =IF($AM$40<>"", $C40*$AM$40,"") ->  | CD40: =IF($AN$40<>"", $C40*$AN$40,"") ->  | CE40: =IF($AO$40<>"", $C40*$AO$40,"") ->  | CF40: =IF($AP$40<>"", $C40*$AP$40,"") ->  | CG40: =IF($AQ$40<>"", $C40*$AQ$40,"") ->  | CH40: =IF($AR$40<>"", $C40*$AR$40,"") ->  | CI40: =IF($AS$40<>"", $C40*$AS$40,"") ->  | CJ40: =IF($AT$40<>"", $C40*$AT$40,"") ->  | CK40: =IF($AU$40<>"", $C40*$AU$40,"") ->  | CL40: =IF($AV$40<>"", $C40*$AV$40,"") ->  | CM40: =IF($AW$40<>"", $C40*$AW$40,"") ->  | CN40: =IF($AX$40<>"", $C40*$AX$40,"") ->  | CO40: =IF($AY$40<>"", $C40*$AY$40,"") ->  | CP40: =IF($AZ$40<>"", $C40*$AZ$40,"") ->  | CQ40: =IF($BA$40<>"", $C40*$BA$40,"") ->  | CR40: =IF($BB$40<>"", $C40*$BB$40,"") ->  | CS40: =IF($BC$40<>"", $C40*$BC$40,"") ->  | CT40: =IF($BD$40<>"", $C40*$BD$40,"") ->  | CV40: =IF($P$40<>"",$BF$40/(1 + DiscountRate) ^ $CV$21,"") ->  | CW40: =IF($Q$40<>"",$BG$40/(1 + DiscountRate) ^ $CW$21,"") ->  | CX40: =IF($R$40<>"",$BH$40/(1 + DiscountRate) ^ $CX$21,"") ->  | CY40: =IF($S$40<>"",$BI$40/(1 + DiscountRate) ^ $CY$21,"") ->  | CZ40: =IF($T$40<>"",$BJ$40/(1 + DiscountRate) ^ $CZ$21,"") ->  | DA40: =IF($U$40<>"",$BK$40/(1 + DiscountRate) ^ $DA$21,"") ->  | DB40: =IF($V$40<>"",$BL$40/(1 + DiscountRate) ^ $DB$21,"") ->  | DC40: =IF($W$40<>"",$BM$40/(1 + DiscountRate) ^ $DC$21,"") ->  | DD40: =IF($X$40<>"",$BN$40/(1 + DiscountRate) ^ $DD$21,"") ->  | DE40: =IF($Y$40<>"",$BO$40/(1 + DiscountRate) ^ $DE$21,"") ->  | DF40: =IF($Z$40<>"",$BP$40/(1 + DiscountRate) ^ $DF$21,"") ->  | DG40: =IF($AA$40<>"",$BQ$40/(1 + DiscountRate) ^ $DG$21,"") ->  | DH40: =IF($AB$40<>"",$BR$40/(1 + DiscountRate) ^ $DH$21,"") ->  | DI40: =IF($AC$40<>"",$BS$40/(1 + DiscountRate) ^ $DI$21,"") ->  | DJ40: =IF($AD$40<>"",$BT$40/(1 + DiscountRate) ^ $DJ$21,"") ->  | DK40: =IF($AE$40<>"",$BU$40/(1 + DiscountRate) ^ $DK$21,"") ->  | DL40: =IF($AF$40<>"",$BV$40/(1 + DiscountRate) ^ $DL$21,"") ->  | DM40: =IF($AG$40<>"",$BW$40/(1 + DiscountRate) ^ $DM$21,"") ->  | DN40: =IF($AH$40<>"",$BX$40/(1 + DiscountRate) ^ $DN$21,"") ->  | DO40: =IF($AI$40<>"",$BY$40/(1 + DiscountRate) ^ $DO$21,"") ->  | DP40: =IF($AJ$40<>"",$BZ$40/(1 + DiscountRate) ^ $DP$21,"") ->  | DQ40: =IF($AK$40<>"",$CA$40/(1 + DiscountRate) ^ $DQ$21,"") ->  | DR40: =IF($AL$40<>"",$CB$40/(1 + DiscountRate) ^ $DR$21,"") ->  | DS40: =IF($AM$40<>"",$CC$40/(1 + DiscountRate) ^ $DS$21,"") ->  | DT40: =IF($AN$40<>"",$CD$40/(1 + DiscountRate) ^ $DT$21,"") ->  | DU40: =IF($AO$40<>"",$CE$40/(1 + DiscountRate) ^ $DU$21,"") ->  | DV40: =IF($AP$40<>"",$CF$40/(1 + DiscountRate) ^ $DV$21,"") ->  | DW40: =IF($AQ$40<>"",$CG$40/(1 + DiscountRate) ^ $DW$21,"") ->  | DX40: =IF($AR$40<>"",$CH$40/(1 + DiscountRate) ^ $DX$21,"") ->  | DY40: =IF($AS$40<>"",$CI$40/(1 + DiscountRate) ^ $DY$21,"") ->  | DZ40: =IF($AT$40<>"",$CJ$40/(1 + DiscountRate) ^ $DZ$21,"") ->  | EA40: =IF($AU$40<>"",$CK$40/(1 + DiscountRate) ^ $EA$21,"") ->  | EB40: =IF($AV$40<>"",$CL$40/(1 + DiscountRate) ^ $EB$21,"") ->  | EC40: =IF($AW$40<>"",$CM$40/(1 + DiscountRate) ^ $EC$21,"") ->  | ED40: =IF($AX$40<>"",$CN$40/(1 + DiscountRate) ^ $ED$21,"") ->  | EE40: =IF($AY$40<>"",$CO$40/(1 + DiscountRate) ^ $EE$21,"") ->  | EF40: =IF($AZ$40<>"",$CP$40/(1 + DiscountRate) ^ $EF$21,"") ->  | EG40: =IF($BA$40<>"",$CQ$40/(1 + DiscountRate) ^ $EG$21,"") ->  | EH40: =IF($BB$40<>"",$CR$40/(1 + DiscountRate) ^ $EH$21,"") ->  | EI40: =IF($BC$40<>"",$CS$40/(1 + DiscountRate) ^ $EI$21,"") ->  | EJ40: =IF($BD$40<>"",$CT$40/(1 + DiscountRate) ^ $EJ$21,"") -> 
M41: Total: | N41: =SUM(N23:N40) -> 46951.98334 | BF41: =SUM($BF$23:$BF$40) -> 881.5426997 | BG41: =SUM($BG$23:$BG$40) -> 881.5426997 | BH41: =SUM($BH$23:$BH$40) -> 881.5426997 | BI41: =SUM($BI$23:$BI$40) -> 881.5426997 | BJ41: =SUM($BJ$23:$BJ$40) -> 881.5426997 | BK41: =SUM($BK$23:$BK$40) -> 881.5426997 | BL41: =SUM($BL$23:$BL$40) -> 881.5426997 | BM41: =SUM($BM$23:$BM$40) -> 881.5426997 | BN41: =SUM($BN$23:$BN$40) -> 6641.5427 | BO41: =SUM($BO$23:$BO$40) -> 881.5426997 | BP41: =SUM($BP$23:$BP$40) -> 881.5426997 | BQ41: =SUM($BQ$23:$BQ$40) -> 881.5426997 | BR41: =SUM($BR$23:$BR$40) -> 881.5426997 | BS41: =SUM($BS$23:$BS$40) -> 881.5426997 | BT41: =SUM($BT$23:$BT$40) -> 881.5426997 | BU41: =SUM($BU$23:$BU$40) -> 881.5426997 | BV41: =SUM($BV$23:$BV$40) -> 881.5426997 | BW41: =SUM($BW$23:$BW$40) -> 881.5426997 | BX41: =SUM($BX$23:$BX$40) -> 881.5426997 | BY41: =SUM($BY$23:$BY$40) -> 881.5426997 | BZ41: =SUM($BZ$23:$BZ$40) -> 29681.5427 | CA41: =SUM($CA$23:$CA$40) -> 881.5426997 | CB41: =SUM($CB$23:$CB$40) -> 881.5426997 | CC41: =SUM($CC$23:$CC$40) -> 881.5426997 | CD41: =SUM($CD$23:$CD$40) -> 881.5426997 | CE41: =SUM($CE$23:$CE$40) -> 881.5426997 | CF41: =SUM($CF$23:$CF$40) -> 881.5426997 | CG41: =SUM($CG$23:$CG$40) -> 881.5426997 | CH41: =SUM($CH$23:$CH$40) -> 6641.5427 | CI41: =SUM($CI$23:$CI$40) -> 881.5426997 | CJ41: =SUM($CJ$23:$CJ$40) -> 881.5426997 | CK41: =SUM($CK$23:$CK$40) -> 881.5426997 | CL41: =SUM($CL$23:$CL$40) -> 881.5426997 | CM41: =SUM($CM$23:$CM$40) -> 881.5426997 | CN41: =SUM($CN$23:$CN$40) -> 881.5426997 | CO41: =SUM($CO$23:$CO$40) -> 38496.9697 | CP41: =SUM($CP$23:$CP$40) -> 881.5426997 | CQ41: =SUM($CQ$23:$CQ$40) -> 881.5426997 | CR41: =SUM($CR$23:$CR$40) -> 881.5426997 | CS41: =SUM($CS$23:$CS$40) -> 881.5426997 | CT41: =SUM($CT$23:$CT$40) -> 0 | CV41: =SUM($CV$23:$CV$40) -> 881.5426997 | CW41: =SUM($CW$23:$CW$40) -> 847.6372113 | CX41: =SUM($CX$23:$CX$40) -> 815.0357801 | CY41: =SUM($CY$23:$CY$40) -> 783.6882501 | CZ41: =SUM($CZ$23:$CZ$40) -> 753.5463943 | DA41: =SUM($DA$23:$DA$40) -> 724.5638407 | DB41: =SUM($DB$23:$DB$40) -> 696.6960006 | DC41: =SUM($DC$23:$DC$40) -> 669.9000006 | DD41: =SUM($DD$23:$DD$40) -> 4852.910197 | DE41: =SUM($DE$23:$DE$40) -> 619.3602077 | DF41: =SUM($DF$23:$DF$40) -> 595.5386612 | DG41: =SUM($DG$23:$DG$40) -> 572.6333281 | DH41: =SUM($DH$23:$DH$40) -> 550.6089693 | DI41: =SUM($DI$23:$DI$40) -> 529.4317013 | DJ41: =SUM($DJ$23:$DJ$40) -> 509.0689435 | DK41: =SUM($DK$23:$DK$40) -> 489.4893688 | DL41: =SUM($DL$23:$DL$40) -> 470.6628546 | DM41: =SUM($DM$23:$DM$40) -> 452.5604371 | DN41: =SUM($DN$23:$DN$40) -> 435.1542665 | DO41: =SUM($DO$23:$DO$40) -> 418.4175639 | DP41: =SUM($DP$23:$DP$40) -> 13546.26863 | DQ41: =SUM($DQ$23:$DQ$40) -> 386.8505583 | DR41: =SUM($DR$23:$DR$40) -> 371.9716907 | DS41: =SUM($DS$23:$DS$40) -> 357.6650872 | DT41: =SUM($DT$23:$DT$40) -> 343.9087377 | DU41: =SUM($DU$23:$DU$40) -> 330.6814786 | DV41: =SUM($DV$23:$DV$40) -> 317.9629602 | DW41: =SUM($DW$23:$DW$40) -> 305.7336155 | DX41: =SUM($DX$23:$DX$40) -> 2214.804865 | DY41: =SUM($DY$23:$DY$40) -> 282.6679138 | DZ41: =SUM($DZ$23:$DZ$40) -> 271.7960709 | EA41: =SUM($EA$23:$EA$40) -> 261.3423759 | EB41: =SUM($EB$23:$EB$40) -> 251.2907461 | EC41: =SUM($EC$23:$EC$40) -> 241.6257174 | ED41: =SUM($ED$23:$ED$40) -> 232.3324205 | EE41: =SUM($EE$23:$EE$40) -> 9755.727697 | EF41: =SUM($EF$23:$EF$40) -> 214.8043829 | EG41: =SUM($EG$23:$EG$40) -> 206.5426759 | EH41: =SUM($EH$23:$EH$40) -> 198.5987268 | EI41: =SUM($EI$23:$EI$40) -> 190.9603142 | EJ41: =SUM($EJ$23:$EJ$40) -> 0
A43: =$A$5&" Off-Road Considerations" -> Permeable Interlocking Concrete Pavement Off-Road Considerations
A44: INITIAL CONSTRUCTION COSTS
A45: Category | B45: Construction Item Description | C45: Unit Cost | D45: Unit | E45: Project Quantity | F45: Quantity Units | G45: Related Quantity Item | H45: Total Quantity | I45: Quantity Units | J45: Extended Cost
A46: Stormwater Management Pond | B46: Land Value | C46: =IF($A46<>"",IF($B46<>"",VLOOKUP(CONCATENATE($A46,"_",$B46),List_OffRoadUnitCosts,5,FALSE),""),"") -> 75000 | D46: =IF($A46<>"",IF($B46<>"",VLOOKUP(CONCATENATE($A46,"_",$B46),List_OffRoadUnitCosts,6,FALSE),""),"") -> acre | F46: acre | H46: =IF($A46<>"",IF($B46<>"",ItemQuantity(A46,B46,D46,E46,F46,G46),""),"") -> 0 | I46: =IF($A46<>"",IF($B46<>"",IF($F46<>"",$D46,""),""),"") -> acre | J46: =IF(AND(ISNUMBER(C46),ISNUMBER(H46)),PRODUCT(C46,H46),"") -> 0
A47: Stormwater Management Pond | B47: Excavation | C47: 10 | D47: sq. yd. | F47: sq. yd. | H47: =IF($A47<>"",IF($B47<>"",ItemQuantity(A47,B47,D47,E47,F47,G47),""),"") -> 0 | I47: =IF($A47<>"",IF($B47<>"",IF($F47<>"",$D47,""),""),"") -> sq. yd. | J47: 0
A48: Stormwater Management Pond | B48: Hauling and Disposal | C48: 10 | D48: sq. yd. | F48: sq. yd. | H48: =IF($A48<>"",IF($B48<>"",ItemQuantity(A48,B48,D48,E48,F48,G48),""),"") -> 0 | I48: sq. yd. | J48: 0
A49: Stormwater Management Pond | B49: Grading | C49: 1.5 | D49: sq. yd. | F49: sq. yd. | H49: =IF($A49<>"",IF($B49<>"",ItemQuantity(A49,B49,D49,E49,F49,G49),""),"") -> 0 | I49: sq. yd. | J49: 0
A50: Stormwater Management Pond | B50: Inlet Structure | C50: 2000 | D50: each | F50: each | H50: =IF($A50<>"",IF($B50<>"",ItemQuantity(A50,B50,D50,E50,F50,G50),""),"") -> 0 | I50: each | J50: 0
A51: Stormwater Management Pond | B51: Overflow Structure | C51: 3500 | D51: each | F51: each | H51: =IF($A51<>"",IF($B51<>"",ItemQuantity(A51,B51,D51,E51,F51,G51),""),"") -> 0 | I51: each | J51: 0
A52: Stormwater Management Pond | B52: Corrugated Pipe | C52: 17.55 | D52: ft. | F52: ft. | H52: =IF($A52<>"",IF($B52<>"",ItemQuantity(A52,B52,D52,E52,F52,G52),""),"") -> 0 | I52: ft. | J52: 0
A53: Stormwater Management Pond | B53: Concrete Pipe | C53: 30 | D53: ft. | F53: ft. | H53: =IF($A53<>"",IF($B53<>"",ItemQuantity(A53,B53,D53,E53,F53,G53),""),"") -> 0 | I53: ft. | J53: 0
A54: Stormwater Management Pond | B54: Sod | C54: 4.5 | D54: sq. yd. | F54: sq. ft. | H54: =IF($A54<>"",IF($B54<>"",ItemQuantity(A54,B54,D54,E54,F54,G54),""),"") -> 0 | I54: sq. yd. | J54: 0
A55: Combined Sewer Overflow (CSO) | B55: Plant Capital Cost/gallon/annually | C55: 4.5 | D55: =IF($A55<>"",IF($B55<>"",VLOOKUP(CONCATENATE($A55,"_",$B55),List_OffRoadUnitCosts,6,FALSE),""),"") -> gal. | F55: gal. | H55: =IF($A55<>"",IF($B55<>"",ItemQuantity(A55,B55,D55,E55,F55,G55),""),"") -> 0 | I55: gal. | J55: 0
A56: Traffic Calming | B56: Rubber Speed Bumps (25 years) | C56: 1500 | D56: each | F56: each | H56: =IF($A56<>"",IF($B56<>"",ItemQuantity(A56,B56,D56,E56,F56,G56),""),"") -> 0 | I56: each | J56: 0
A57: Traffic Calming | B57: Asphalt Speed Bump (25 years) | C57: 3000 | D57: each | F57: each | H57: =IF($A57<>"",IF($B57<>"",ItemQuantity(A57,B57,D57,E57,F57,G57),""),"") -> 0 | I57: each | J57: 0
H58: =IF($A58<>"",IF($B58<>"",ItemQuantity(A58,B58,D58,E58,F58,G58),""),"") -> 
H59: =IF($A59<>"",IF($B59<>"",ItemQuantity(A59,B59,D59,E59,F59,G59),""),"") -> 
H60: =IF($A60<>"",IF($B60<>"",ItemQuantity(A60,B60,D60,E60,F60,G60),""),"") -> 
H61: =IF($A61<>"",IF($B61<>"",ItemQuantity(A61,B61,D61,E61,F61,G61),""),"") -> 
I62: Total: | J62: =SUM(J46:J61) -> 0
A64: OPERATIONS, MAINTENANCE AND REHABILITATION COSTS | P64: 0 | Q64: 1 | R64: 2 | S64: 3 | T64: 4 | U64: 5 | V64: 6 | W64: 7 | X64: 8 | Y64: 9 | Z64: 10 | AA64: 11 | AB64: 12 | AC64: 13 | AD64: 14 | AE64: 15 | AF64: 16 | AG64: 17 | AH64: 18 | AI64: 19 | AJ64: 20 | AK64: 21 | AL64: 22 | AM64: 23 | AN64: 24 | AO64: 25 | AP64: 26 | AQ64: 27 | AR64: 28 | AS64: 29 | AT64: 30 | AU64: 31 | AV64: 32 | AW64: 33 | AX64: 34 | AY64: 35 | AZ64: 36 | BA64: 37 | BB64: 38 | BC64: 39 | BD64: 40 | BF64: 0 | BG64: 1 | BH64: 2 | BI64: 3 | BJ64: 4 | BK64: 5 | BL64: 6 | BM64: 7 | BN64: 8 | BO64: 9 | BP64: 10 | BQ64: 11 | BR64: 12 | BS64: 13 | BT64: 14 | BU64: 15 | BV64: 16 | BW64: 17 | BX64: 18 | BY64: 19 | BZ64: 20 | CA64: 21 | CB64: 22 | CC64: 23 | CD64: 24 | CE64: 25 | CF64: 26 | CG64: 27 | CH64: 28 | CI64: 29 | CJ64: 30 | CK64: 31 | CL64: 32 | CM64: 33 | CN64: 34 | CO64: 35 | CP64: 36 | CQ64: 37 | CR64: 38 | CS64: 39 | CT64: 40 | CV64: 0 | CW64: 1 | CX64: 2 | CY64: 3 | CZ64: 4 | DA64: 5 | DB64: 6 | DC64: 7 | DD64: 8 | DE64: 9 | DF64: 10 | DG64: 11 | DH64: 12 | DI64: 13 | DJ64: 14 | DK64: 15 | DL64: 16 | DM64: 17 | DN64: 18 | DO64: 19 | DP64: 20 | DQ64: 21 | DR64: 22 | DS64: 23 | DT64: 24 | DU64: 25 | DV64: 26 | DW64: 27 | DX64: 28 | DY64: 29 | DZ64: 30 | EA64: 31 | EB64: 32 | EC64: 33 | ED64: 34 | EE64: 35 | EF64: 36 | EG64: 37 | EH64: 38 | EI64: 39 | EJ64: 40
A65: Category | B65: Cost Description | C65: Unit Cost | D65: Unit | E65: Quantity Multiplier | F65: Quantity Multiplier Unit | G65: Related Quantity Item | H65: Total Quantity | I65: Quantity Units | J65: Distribution Type | K65: Initial Year | L65: Duration | M65: Period | N65: Total NPV Cost | P65: =ConstYear -> 2019 | Q65: 2018 | R65: 2019 | S65: 2020 | T65: 2021 | U65: 2022 | V65: 2023 | W65: 2024 | X65: 2025 | Y65: 2026 | Z65: 2027 | AA65: 2028 | AB65: 2029 | AC65: 2030 | AD65: 2031 | AE65: 2032 | AF65: 2033 | AG65: 2034 | AH65: 2035 | AI65: 2036 | AJ65: 2037 | AK65: 2038 | AL65: 2039 | AM65: 2040 | AN65: 2041 | AO65: 2042 | AP65: 2043 | AQ65: 2044 | AR65: 2045 | AS65: 2046 | AT65: 2047 | AU65: 2048 | AV65: 2049 | AW65: 2050 | AX65: 2051 | AY65: 2052 | AZ65: 2053 | BA65: 2054 | BB65: 2055 | BC65: 2056 | BD65: 2057 | BF65: 2017 | BG65: 2018 | BH65: 2019 | BI65: 2020 | BJ65: 2021 | BK65: 2022 | BL65: 2023 | BM65: 2024 | BN65: 2025 | BO65: 2026 | BP65: 2027 | BQ65: 2028 | BR65: 2029 | BS65: 2030 | BT65: 2031 | BU65: 2032 | BV65: 2033 | BW65: 2034 | BX65: 2035 | BY65: 2036 | BZ65: 2037 | CA65: 2038 | CB65: 2039 | CC65: 2040 | CD65: 2041 | CE65: 2042 | CF65: 2043 | CG65: 2044 | CH65: 2045 | CI65: 2046 | CJ65: 2047 | CK65: 2048 | CL65: 2049 | CM65: 2050 | CN65: 2051 | CO65: 2052 | CP65: 2053 | CQ65: 2054 | CR65: 2055 | CS65: 2056 | CT65: 2057 | CV65: 2017 | CW65: 2018 | CX65: 2019 | CY65: 2020 | CZ65: 2021 | DA65: 2022 | DB65: 2023 | DC65: 2024 | DD65: 2025 | DE65: 2026 | DF65: 2027 | DG65: 2028 | DH65: 2029 | DI65: 2030 | DJ65: 2031 | DK65: 2032 | DL65: 2033 | DM65: 2034 | DN65: 2035 | DO65: 2036 | DP65: 2037 | DQ65: 2038 | DR65: 2039 | DS65: 2040 | DT65: 2041 | DU65: 2042 | DV65: 2043 | DW65: 2044 | DX65: 2045 | DY65: 2046 | DZ65: 2047 | EA65: 2048 | EB65: 2049 | EC65: 2050 | ED65: 2051 | EE65: 2052 | EF65: 2053 | EG65: 2054 | EH65: 2055 | EI65: 2056 | EJ65: 2057
A66: Stormwater Management Pond | B66: Erosion | C66: =IF($A66<>"",IF($B66<>"",VLOOKUP(CONCATENATE($A66,"_",$B66),List_OffRoadUnitCosts,5,FALSE),""),"") -> 75 | D66: =IF($A66<>"",IF($B66<>"",VLOOKUP(CONCATENATE($A66,"_",$B66),List_OffRoadUnitCosts,6,FALSE),""),"") -> sq. yd. | F66: sq. yd. | H66: =IF($A66<>"",IF($B66<>"",ItemQuantity(A66,B66,D66,E66,F66,G66),""),"") -> 0 | I66: =IF($A66<>"",IF($B66<>"",IF($F66<>"",$D66,""),""),"") -> sq. yd. | J66: Periodic | K66: 1 | M66: 1 | N66: =IF($A66<>"",IF($B66<>"",SUM(OFFSET($P66,0,AnalysisPeriod*2+4):OFFSET($P66,0,AnalysisPeriod*3+4)),""),"") -> 0 | P66: =IF($D66<>"",QuantityEstimate($J66,$H66,$E66,IF($K66<100,$K66,$K66-ConstYear),$L66,$M66,P$21),"") -> 0 | Q66: =IF($D66<>"",QuantityEstimate($J66,$H66,$E66,IF($K66<100,$K66,$K66-ConstYear),$L66,$M66,Q$21),"") -> 0 | R66: =IF($D66<>"",QuantityEstimate($J66,$H66,$E66,IF($K66<100,$K66,$K66-ConstYear),$L66,$M66,R$21),"") -> 0 | S66: =IF($D66<>"",QuantityEstimate($J66,$H66,$E66,IF($K66<100,$K66,$K66-ConstYear),$L66,$M66,S$21),"") -> 0 | T66: =IF($D66<>"",QuantityEstimate($J66,$H66,$E66,IF($K66<100,$K66,$K66-ConstYear),$L66,$M66,T$21),"") -> 0 | U66: =IF($D66<>"",QuantityEstimate($J66,$H66,$E66,IF($K66<100,$K66,$K66-ConstYear),$L66,$M66,U$21),"") -> 0 | V66: =IF($D66<>"",QuantityEstimate($J66,$H66,$E66,IF($K66<100,$K66,$K66-ConstYear),$L66,$M66,V$21),"") -> 0 | W66: =IF($D66<>"",QuantityEstimate($J66,$H66,$E66,IF($K66<100,$K66,$K66-ConstYear),$L66,$M66,W$21),"") -> 0 | X66: =IF($D66<>"",QuantityEstimate($J66,$H66,$E66,IF($K66<100,$K66,$K66-ConstYear),$L66,$M66,X$21),"") -> 0 | Y66: =IF($D66<>"",QuantityEstimate($J66,$H66,$E66,IF($K66<100,$K66,$K66-ConstYear),$L66,$M66,Y$21),"") -> 0 | Z66: =IF($D66<>"",QuantityEstimate($J66,$H66,$E66,IF($K66<100,$K66,$K66-ConstYear),$L66,$M66,Z$21),"") -> 0 | AA66: =IF($D66<>"",QuantityEstimate($J66,$H66,$E66,IF($K66<100,$K66,$K66-ConstYear),$L66,$M66,AA$21),"") -> 0 | AB66: =IF($D66<>"",QuantityEstimate($J66,$H66,$E66,IF($K66<100,$K66,$K66-ConstYear),$L66,$M66,AB$21),"") -> 0 | AC66: =IF($D66<>"",QuantityEstimate($J66,$H66,$E66,IF($K66<100,$K66,$K66-ConstYear),$L66,$M66,AC$21),"") -> 0 | AD66: =IF($D66<>"",QuantityEstimate($J66,$H66,$E66,IF($K66<100,$K66,$K66-ConstYear),$L66,$M66,AD$21),"") -> 0 | AE66: =IF($D66<>"",QuantityEstimate($J66,$H66,$E66,IF($K66<100,$K66,$K66-ConstYear),$L66,$M66,AE$21),"") -> 0 | AF66: =IF($D66<>"",QuantityEstimate($J66,$H66,$E66,IF($K66<100,$K66,$K66-ConstYear),$L66,$M66,AF$21),"") -> 0 | AG66: =IF($D66<>"",QuantityEstimate($J66,$H66,$E66,IF($K66<100,$K66,$K66-ConstYear),$L66,$M66,AG$21),"") -> 0 | AH66: =IF($D66<>"",QuantityEstimate($J66,$H66,$E66,IF($K66<100,$K66,$K66-ConstYear),$L66,$M66,AH$21),"") -> 0 | AI66: =IF($D66<>"",QuantityEstimate($J66,$H66,$E66,IF($K66<100,$K66,$K66-ConstYear),$L66,$M66,AI$21),"") -> 0 | AJ66: =IF($D66<>"",QuantityEstimate($J66,$H66,$E66,IF($K66<100,$K66,$K66-ConstYear),$L66,$M66,AJ$21),"") -> 0 | AK66: =IF($D66<>"",QuantityEstimate($J66,$H66,$E66,IF($K66<100,$K66,$K66-ConstYear),$L66,$M66,AK$21),"") -> 0 | AL66: =IF($D66<>"",QuantityEstimate($J66,$H66,$E66,IF($K66<100,$K66,$K66-ConstYear),$L66,$M66,AL$21),"") -> 0 | AM66: =IF($D66<>"",QuantityEstimate($J66,$H66,$E66,IF($K66<100,$K66,$K66-ConstYear),$L66,$M66,AM$21),"") -> 0 | AN66: =IF($D66<>"",QuantityEstimate($J66,$H66,$E66,IF($K66<100,$K66,$K66-ConstYear),$L66,$M66,AN$21),"") -> 0 | AO66: =IF($D66<>"",QuantityEstimate($J66,$H66,$E66,IF($K66<100,$K66,$K66-ConstYear),$L66,$M66,AO$21),"") -> 0 | AP66: =IF($D66<>"",QuantityEstimate($J66,$H66,$E66,IF($K66<100,$K66,$K66-ConstYear),$L66,$M66,AP$21),"") -> 0 | AQ66: =IF($D66<>"",QuantityEstimate($J66,$H66,$E66,IF($K66<100,$K66,$K66-ConstYear),$L66,$M66,AQ$21),"") -> 0 | AR66: =IF($D66<>"",QuantityEstimate($J66,$H66,$E66,IF($K66<100,$K66,$K66-ConstYear),$L66,$M66,AR$21),"") -> 0 | AS66: =IF($D66<>"",QuantityEstimate($J66,$H66,$E66,IF($K66<100,$K66,$K66-ConstYear),$L66,$M66,AS$21),"") -> 0 | AT66: =IF($D66<>"",QuantityEstimate($J66,$H66,$E66,IF($K66<100,$K66,$K66-ConstYear),$L66,$M66,AT$21),"") -> 0 | AU66: =IF($D66<>"",QuantityEstimate($J66,$H66,$E66,IF($K66<100,$K66,$K66-ConstYear),$L66,$M66,AU$21),"") -> 0 | AV66: =IF($D66<>"",QuantityEstimate($J66,$H66,$E66,IF($K66<100,$K66,$K66-ConstYear),$L66,$M66,AV$21),"") -> 0 | AW66: =IF($D66<>"",QuantityEstimate($J66,$H66,$E66,IF($K66<100,$K66,$K66-ConstYear),$L66,$M66,AW$21),"") -> 0 | AX66: =IF($D66<>"",QuantityEstimate($J66,$H66,$E66,IF($K66<100,$K66,$K66-ConstYear),$L66,$M66,AX$21),"") -> 0 | AY66: =IF($D66<>"",QuantityEstimate($J66,$H66,$E66,IF($K66<100,$K66,$K66-ConstYear),$L66,$M66,AY$21),"") -> 0 | AZ66: =IF($D66<>"",QuantityEstimate($J66,$H66,$E66,IF($K66<100,$K66,$K66-ConstYear),$L66,$M66,AZ$21),"") -> 0 | BA66: =IF($D66<>"",QuantityEstimate($J66,$H66,$E66,IF($K66<100,$K66,$K66-ConstYear),$L66,$M66,BA$21),"") -> 0 | BB66: =IF($D66<>"",QuantityEstimate($J66,$H66,$E66,IF($K66<100,$K66,$K66-ConstYear),$L66,$M66,BB$21),"") -> 0 | BC66: =IF($D66<>"",QuantityEstimate($J66,$H66,$E66,IF($K66<100,$K66,$K66-ConstYear),$L66,$M66,BC$21),"") -> 0 | BD66: =IF($D66<>"",QuantityEstimate($J66,$H66,$E66,IF($K66<100,$K66,$K66-ConstYear),$L66,$M66,BD$21),"") -> 0 | BF66: =IF($P$66<>"", $C66*$P$66,"") -> 0 | BG66: =IF($Q$66<>"", $C66*$Q$66,"") -> 0 | BH66: =IF($R$66<>"", $C66*$R$66,"") -> 0 | BI66: =IF($S$66<>"", $C66*$S$66,"") -> 0 | BJ66: =IF($T$66<>"", $C66*$T$66,"") -> 0 | BK66: =IF($U$66<>"", $C66*$U$66,"") -> 0 | BL66: =IF($V$66<>"", $C66*$V$66,"") -> 0 | BM66: =IF($W$66<>"", $C66*$W$66,"") -> 0 | BN66: =IF($X$66<>"", $C66*$X$66,"") -> 0 | BO66: =IF($Y$66<>"", $C66*$Y$66,"") -> 0 | BP66: =IF($Z$66<>"", $C66*$Z$66,"") -> 0 | BQ66: =IF($AA$66<>"", $C66*$AA$66,"") -> 0 | BR66: =IF($AB$66<>"", $C66*$AB$66,"") -> 0 | BS66: =IF($AC$66<>"", $C66*$AC$66,"") -> 0 | BT66: =IF($AD$66<>"", $C66*$AD$66,"") -> 0 | BU66: =IF($AE$66<>"", $C66*$AE$66,"") -> 0 | BV66: =IF($AF$66<>"", $C66*$AF$66,"") -> 0 | BW66: =IF($AG$66<>"", $C66*$AG$66,"") -> 0 | BX66: =IF($AH$66<>"", $C66*$AH$66,"") -> 0 | BY66: =IF($AI$66<>"", $C66*$AI$66,"") -> 0 | BZ66: =IF($AJ$66<>"", $C66*$AJ$66,"") -> 0 | CA66: =IF($AK$66<>"", $C66*$AK$66,"") -> 0 | CB66: =IF($AL$66<>"", $C66*$AL$66,"") -> 0 | CC66: =IF($AM$66<>"", $C66*$AM$66,"") -> 0 | CD66: =IF($AN$66<>"", $C66*$AN$66,"") -> 0 | CE66: =IF($AO$66<>"", $C66*$AO$66,"") -> 0 | CF66: =IF($AP$66<>"", $C66*$AP$66,"") -> 0 | CG66: =IF($AQ$66<>"", $C66*$AQ$66,"") -> 0 | CH66: =IF($AR$66<>"", $C66*$AR$66,"") -> 0 | CI66: =IF($AS$66<>"", $C66*$AS$66,"") -> 0 | CJ66: =IF($AT$66<>"", $C66*$AT$66,"") -> 0 | CK66: =IF($AU$66<>"", $C66*$AU$66,"") -> 0 | CL66: =IF($AV$66<>"", $C66*$AV$66,"") -> 0 | CM66: =IF($AW$66<>"", $C66*$AW$66,"") -> 0 | CN66: =IF($AX$66<>"", $C66*$AX$66,"") -> 0 | CO66: =IF($AY$66<>"", $C66*$AY$66,"") -> 0 | CP66: =IF($AZ$66<>"", $C66*$AZ$66,"") -> 0 | CQ66: =IF($BA$66<>"", $C66*$BA$66,"") -> 0 | CR66: =IF($BB$66<>"", $C66*$BB$66,"") -> 0 | CS66: =IF($BC$66<>"", $C66*$BC$66,"") -> 0 | CT66: =IF($BD$66<>"", $C66*$BD$66,"") -> 0 | CV66: =IF($P$66<>"",$BF$66/(1 + DiscountRate) ^ $CV$64,"") -> 0 | CW66: =IF($Q$66<>"",$BG$66/(1 + DiscountRate) ^ $CW$64,"") -> 0 | CX66: =IF($R$66<>"",$BH$66/(1 + DiscountRate) ^ $CX$64,"") -> 0 | CY66: =IF($S$66<>"",$BI$66/(1 + DiscountRate) ^ $CY$64,"") -> 0 | CZ66: =IF($T$66<>"",$BJ$66/(1 + DiscountRate) ^ $CZ$64,"") -> 0 | DA66: =IF($U$66<>"",$BK$66/(1 + DiscountRate) ^ $DA$64,"") -> 0 | DB66: =IF($V$66<>"",$BL$66/(1 + DiscountRate) ^ $DB$64,"") -> 0 | DC66: =IF($W$66<>"",$BM$66/(1 + DiscountRate) ^ $DC$64,"") -> 0 | DD66: =IF($X$66<>"",$BN$66/(1 + DiscountRate) ^ $DD$64,"") -> 0 | DE66: =IF($Y$66<>"",$BO$66/(1 + DiscountRate) ^ $DE$64,"") -> 0 | DF66: =IF($Z$66<>"",$BP$66/(1 + DiscountRate) ^ $DF$64,"") -> 0 | DG66: =IF($AA$66<>"",$BQ$66/(1 + DiscountRate) ^ $DG$64,"") -> 0 | DH66: =IF($AB$66<>"",$BR$66/(1 + DiscountRate) ^ $DH$64,"") -> 0 | DI66: =IF($AC$66<>"",$BS$66/(1 + DiscountRate) ^ $DI$64,"") -> 0 | DJ66: =IF($AD$66<>"",$BT$66/(1 + DiscountRate) ^ $DJ$64,"") -> 0 | DK66: =IF($AE$66<>"",$BU$66/(1 + DiscountRate) ^ $DK$64,"") -> 0 | DL66: =IF($AF$66<>"",$BV$66/(1 + DiscountRate) ^ $DL$64,"") -> 0 | DM66: =IF($AG$66<>"",$BW$66/(1 + DiscountRate) ^ $DM$64,"") -> 0 | DN66: =IF($AH$66<>"",$BX$66/(1 + DiscountRate) ^ $DN$64,"") -> 0 | DO66: =IF($AI$66<>"",$BY$66/(1 + DiscountRate) ^ $DO$64,"") -> 0 | DP66: =IF($AJ$66<>"",$BZ$66/(1 + DiscountRate) ^ $DP$64,"") -> 0 | DQ66: =IF($AK$66<>"",$CA$66/(1 + DiscountRate) ^ $DQ$64,"") -> 0 | DR66: =IF($AL$66<>"",$CB$66/(1 + DiscountRate) ^ $DR$64,"") -> 0 | DS66: =IF($AM$66<>"",$CC$66/(1 + DiscountRate) ^ $DS$64,"") -> 0 | DT66: =IF($AN$66<>"",$CD$66/(1 + DiscountRate) ^ $DT$64,"") -> 0 | DU66: =IF($AO$66<>"",$CE$66/(1 + DiscountRate) ^ $DU$64,"") -> 0 | DV66: =IF($AP$66<>"",$CF$66/(1 + DiscountRate) ^ $DV$64,"") -> 0 | DW66: =IF($AQ$66<>"",$CG$66/(1 + DiscountRate) ^ $DW$64,"") -> 0 | DX66: =IF($AR$66<>"",$CH$66/(1 + DiscountRate) ^ $DX$64,"") -> 0 | DY66: =IF($AS$66<>"",$CI$66/(1 + DiscountRate) ^ $DY$64,"") -> 0 | DZ66: =IF($AT$66<>"",$CJ$66/(1 + DiscountRate) ^ $DZ$64,"") -> 0 | EA66: =IF($AU$66<>"",$CK$66/(1 + DiscountRate) ^ $EA$64,"") -> 0 | EB66: =IF($AV$66<>"",$CL$66/(1 + DiscountRate) ^ $EB$64,"") -> 0 | EC66: =IF($AW$66<>"",$CM$66/(1 + DiscountRate) ^ $EC$64,"") -> 0 | ED66: =IF($AX$66<>"",$CN$66/(1 + DiscountRate) ^ $ED$64,"") -> 0 | EE66: =IF($AY$66<>"",$CO$66/(1 + DiscountRate) ^ $EE$64,"") -> 0 | EF66: =IF($AZ$66<>"",$CP$66/(1 + DiscountRate) ^ $EF$64,"") -> 0 | EG66: =IF($BA$66<>"",$CQ$66/(1 + DiscountRate) ^ $EG$64,"") -> 0 | EH66: =IF($BB$66<>"",$CR$66/(1 + DiscountRate) ^ $EH$64,"") -> 0 | EI66: =IF($BC$66<>"",$CS$66/(1 + DiscountRate) ^ $EI$64,"") -> 0 | EJ66: =IF($BD$66<>"",$CT$66/(1 + DiscountRate) ^ $EJ$64,"") -> 0
A67: Stormwater Management Pond | B67: Site Protection/Sediment Control | C67: 125 | D67: each | F67: each | H67: =IF($A67<>"",IF($B67<>"",ItemQuantity(A67,B67,D67,E67,F67,G67),""),"") -> 0 | I67: =IF($A67<>"",IF($B67<>"",IF($F67<>"",$D67,""),""),"") -> each | J67: Periodic | K67: 1 | M67: 1 | N67: =IF($A67<>"",IF($B67<>"",SUM(OFFSET($P67,0,AnalysisPeriod*2+4):OFFSET($P67,0,AnalysisPeriod*3+4)),""),"") -> 0 | P67: =IF($D67<>"",QuantityEstimate($J67,$H67,$E67,IF($K67<100,$K67,$K67-ConstYear),$L67,$M67,P$21),"") -> 0 | Q67: =IF($D67<>"",QuantityEstimate($J67,$H67,$E67,IF($K67<100,$K67,$K67-ConstYear),$L67,$M67,Q$21),"") -> 0 | R67: =IF($D67<>"",QuantityEstimate($J67,$H67,$E67,IF($K67<100,$K67,$K67-ConstYear),$L67,$M67,R$21),"") -> 0 | S67: =IF($D67<>"",QuantityEstimate($J67,$H67,$E67,IF($K67<100,$K67,$K67-ConstYear),$L67,$M67,S$21),"") -> 0 | T67: =IF($D67<>"",QuantityEstimate($J67,$H67,$E67,IF($K67<100,$K67,$K67-ConstYear),$L67,$M67,T$21),"") -> 0 | U67: =IF($D67<>"",QuantityEstimate($J67,$H67,$E67,IF($K67<100,$K67,$K67-ConstYear),$L67,$M67,U$21),"") -> 0 | V67: =IF($D67<>"",QuantityEstimate($J67,$H67,$E67,IF($K67<100,$K67,$K67-ConstYear),$L67,$M67,V$21),"") -> 0 | W67: =IF($D67<>"",QuantityEstimate($J67,$H67,$E67,IF($K67<100,$K67,$K67-ConstYear),$L67,$M67,W$21),"") -> 0 | X67: =IF($D67<>"",QuantityEstimate($J67,$H67,$E67,IF($K67<100,$K67,$K67-ConstYear),$L67,$M67,X$21),"") -> 0 | Y67: =IF($D67<>"",QuantityEstimate($J67,$H67,$E67,IF($K67<100,$K67,$K67-ConstYear),$L67,$M67,Y$21),"") -> 0 | Z67: =IF($D67<>"",QuantityEstimate($J67,$H67,$E67,IF($K67<100,$K67,$K67-ConstYear),$L67,$M67,Z$21),"") -> 0 | AA67: =IF($D67<>"",QuantityEstimate($J67,$H67,$E67,IF($K67<100,$K67,$K67-ConstYear),$L67,$M67,AA$21),"") -> 0 | AB67: =IF($D67<>"",QuantityEstimate($J67,$H67,$E67,IF($K67<100,$K67,$K67-ConstYear),$L67,$M67,AB$21),"") -> 0 | AC67: =IF($D67<>"",QuantityEstimate($J67,$H67,$E67,IF($K67<100,$K67,$K67-ConstYear),$L67,$M67,AC$21),"") -> 0 | AD67: =IF($D67<>"",QuantityEstimate($J67,$H67,$E67,IF($K67<100,$K67,$K67-ConstYear),$L67,$M67,AD$21),"") -> 0 | AE67: =IF($D67<>"",QuantityEstimate($J67,$H67,$E67,IF($K67<100,$K67,$K67-ConstYear),$L67,$M67,AE$21),"") -> 0 | AF67: =IF($D67<>"",QuantityEstimate($J67,$H67,$E67,IF($K67<100,$K67,$K67-ConstYear),$L67,$M67,AF$21),"") -> 0 | AG67: =IF($D67<>"",QuantityEstimate($J67,$H67,$E67,IF($K67<100,$K67,$K67-ConstYear),$L67,$M67,AG$21),"") -> 0 | AH67: =IF($D67<>"",QuantityEstimate($J67,$H67,$E67,IF($K67<100,$K67,$K67-ConstYear),$L67,$M67,AH$21),"") -> 0 | AI67: =IF($D67<>"",QuantityEstimate($J67,$H67,$E67,IF($K67<100,$K67,$K67-ConstYear),$L67,$M67,AI$21),"") -> 0 | AJ67: =IF($D67<>"",QuantityEstimate($J67,$H67,$E67,IF($K67<100,$K67,$K67-ConstYear),$L67,$M67,AJ$21),"") -> 0 | AK67: =IF($D67<>"",QuantityEstimate($J67,$H67,$E67,IF($K67<100,$K67,$K67-ConstYear),$L67,$M67,AK$21),"") -> 0 | AL67: =IF($D67<>"",QuantityEstimate($J67,$H67,$E67,IF($K67<100,$K67,$K67-ConstYear),$L67,$M67,AL$21),"") -> 0 | AM67: =IF($D67<>"",QuantityEstimate($J67,$H67,$E67,IF($K67<100,$K67,$K67-ConstYear),$L67,$M67,AM$21),"") -> 0 | AN67: =IF($D67<>"",QuantityEstimate($J67,$H67,$E67,IF($K67<100,$K67,$K67-ConstYear),$L67,$M67,AN$21),"") -> 0 | AO67: =IF($D67<>"",QuantityEstimate($J67,$H67,$E67,IF($K67<100,$K67,$K67-ConstYear),$L67,$M67,AO$21),"") -> 0 | AP67: =IF($D67<>"",QuantityEstimate($J67,$H67,$E67,IF($K67<100,$K67,$K67-ConstYear),$L67,$M67,AP$21),"") -> 0 | AQ67: =IF($D67<>"",QuantityEstimate($J67,$H67,$E67,IF($K67<100,$K67,$K67-ConstYear),$L67,$M67,AQ$21),"") -> 0 | AR67: =IF($D67<>"",QuantityEstimate($J67,$H67,$E67,IF($K67<100,$K67,$K67-ConstYear),$L67,$M67,AR$21),"") -> 0 | AS67: =IF($D67<>"",QuantityEstimate($J67,$H67,$E67,IF($K67<100,$K67,$K67-ConstYear),$L67,$M67,AS$21),"") -> 0 | AT67: =IF($D67<>"",QuantityEstimate($J67,$H67,$E67,IF($K67<100,$K67,$K67-ConstYear),$L67,$M67,AT$21),"") -> 0 | AU67: =IF($D67<>"",QuantityEstimate($J67,$H67,$E67,IF($K67<100,$K67,$K67-ConstYear),$L67,$M67,AU$21),"") -> 0 | AV67: =IF($D67<>"",QuantityEstimate($J67,$H67,$E67,IF($K67<100,$K67,$K67-ConstYear),$L67,$M67,AV$21),"") -> 0 | AW67: =IF($D67<>"",QuantityEstimate($J67,$H67,$E67,IF($K67<100,$K67,$K67-ConstYear),$L67,$M67,AW$21),"") -> 0 | AX67: =IF($D67<>"",QuantityEstimate($J67,$H67,$E67,IF($K67<100,$K67,$K67-ConstYear),$L67,$M67,AX$21),"") -> 0 | AY67: =IF($D67<>"",QuantityEstimate($J67,$H67,$E67,IF($K67<100,$K67,$K67-ConstYear),$L67,$M67,AY$21),"") -> 0 | AZ67: =IF($D67<>"",QuantityEstimate($J67,$H67,$E67,IF($K67<100,$K67,$K67-ConstYear),$L67,$M67,AZ$21),"") -> 0 | BA67: =IF($D67<>"",QuantityEstimate($J67,$H67,$E67,IF($K67<100,$K67,$K67-ConstYear),$L67,$M67,BA$21),"") -> 0 | BB67: =IF($D67<>"",QuantityEstimate($J67,$H67,$E67,IF($K67<100,$K67,$K67-ConstYear),$L67,$M67,BB$21),"") -> 0 | BC67: =IF($D67<>"",QuantityEstimate($J67,$H67,$E67,IF($K67<100,$K67,$K67-ConstYear),$L67,$M67,BC$21),"") -> 0 | BD67: =IF($D67<>"",QuantityEstimate($J67,$H67,$E67,IF($K67<100,$K67,$K67-ConstYear),$L67,$M67,BD$21),"") -> 0 | BF67: =IF($P$67<>"", $C67*$P$67,"") -> 0 | BG67: =IF($Q$67<>"", $C67*$Q$67,"") -> 0 | BH67: =IF($R$67<>"", $C67*$R$67,"") -> 0 | BI67: =IF($S$67<>"", $C67*$S$67,"") -> 0 | BJ67: =IF($T$67<>"", $C67*$T$67,"") -> 0 | BK67: =IF($U$67<>"", $C67*$U$67,"") -> 0 | BL67: =IF($V$67<>"", $C67*$V$67,"") -> 0 | BM67: =IF($W$67<>"", $C67*$W$67,"") -> 0 | BN67: =IF($X$67<>"", $C67*$X$67,"") -> 0 | BO67: =IF($Y$67<>"", $C67*$Y$67,"") -> 0 | BP67: =IF($Z$67<>"", $C67*$Z$67,"") -> 0 | BQ67: =IF($AA$67<>"", $C67*$AA$67,"") -> 0 | BR67: =IF($AB$67<>"", $C67*$AB$67,"") -> 0 | BS67: =IF($AC$67<>"", $C67*$AC$67,"") -> 0 | BT67: =IF($AD$67<>"", $C67*$AD$67,"") -> 0 | BU67: =IF($AE$67<>"", $C67*$AE$67,"") -> 0 | BV67: =IF($AF$67<>"", $C67*$AF$67,"") -> 0 | BW67: =IF($AG$67<>"", $C67*$AG$67,"") -> 0 | BX67: =IF($AH$67<>"", $C67*$AH$67,"") -> 0 | BY67: =IF($AI$67<>"", $C67*$AI$67,"") -> 0 | BZ67: =IF($AJ$67<>"", $C67*$AJ$67,"") -> 0 | CA67: =IF($AK$67<>"", $C67*$AK$67,"") -> 0 | CB67: =IF($AL$67<>"", $C67*$AL$67,"") -> 0 | CC67: =IF($AM$67<>"", $C67*$AM$67,"") -> 0 | CD67: =IF($AN$67<>"", $C67*$AN$67,"") -> 0 | CE67: =IF($AO$67<>"", $C67*$AO$67,"") -> 0 | CF67: =IF($AP$67<>"", $C67*$AP$67,"") -> 0 | CG67: =IF($AQ$67<>"", $C67*$AQ$67,"") -> 0 | CH67: =IF($AR$67<>"", $C67*$AR$67,"") -> 0 | CI67: =IF($AS$67<>"", $C67*$AS$67,"") -> 0 | CJ67: =IF($AT$67<>"", $C67*$AT$67,"") -> 0 | CK67: =IF($AU$67<>"", $C67*$AU$67,"") -> 0 | CL67: =IF($AV$67<>"", $C67*$AV$67,"") -> 0 | CM67: =IF($AW$67<>"", $C67*$AW$67,"") -> 0 | CN67: =IF($AX$67<>"", $C67*$AX$67,"") -> 0 | CO67: =IF($AY$67<>"", $C67*$AY$67,"") -> 0 | CP67: =IF($AZ$67<>"", $C67*$AZ$67,"") -> 0 | CQ67: =IF($BA$67<>"", $C67*$BA$67,"") -> 0 | CR67: =IF($BB$67<>"", $C67*$BB$67,"") -> 0 | CS67: =IF($BC$67<>"", $C67*$BC$67,"") -> 0 | CT67: =IF($BD$67<>"", $C67*$BD$67,"") -> 0 | CV67: =IF($P$67<>"",$BF$67/(1 + DiscountRate) ^ $CV$64,"") -> 0 | CW67: =IF($Q$67<>"",$BG$67/(1 + DiscountRate) ^ $CW$64,"") -> 0 | CX67: =IF($R$67<>"",$BH$67/(1 + DiscountRate) ^ $CX$64,"") -> 0 | CY67: =IF($S$67<>"",$BI$67/(1 + DiscountRate) ^ $CY$64,"") -> 0 | CZ67: =IF($T$67<>"",$BJ$67/(1 + DiscountRate) ^ $CZ$64,"") -> 0 | DA67: =IF($U$67<>"",$BK$67/(1 + DiscountRate) ^ $DA$64,"") -> 0 | DB67: =IF($V$67<>"",$BL$67/(1 + DiscountRate) ^ $DB$64,"") -> 0 | DC67: =IF($W$67<>"",$BM$67/(1 + DiscountRate) ^ $DC$64,"") -> 0 | DD67: =IF($X$67<>"",$BN$67/(1 + DiscountRate) ^ $DD$64,"") -> 0 | DE67: =IF($Y$67<>"",$BO$67/(1 + DiscountRate) ^ $DE$64,"") -> 0 | DF67: =IF($Z$67<>"",$BP$67/(1 + DiscountRate) ^ $DF$64,"") -> 0 | DG67: =IF($AA$67<>"",$BQ$67/(1 + DiscountRate) ^ $DG$64,"") -> 0 | DH67: =IF($AB$67<>"",$BR$67/(1 + DiscountRate) ^ $DH$64,"") -> 0 | DI67: =IF($AC$67<>"",$BS$67/(1 + DiscountRate) ^ $DI$64,"") -> 0 | DJ67: =IF($AD$67<>"",$BT$67/(1 + DiscountRate) ^ $DJ$64,"") -> 0 | DK67: =IF($AE$67<>"",$BU$67/(1 + DiscountRate) ^ $DK$64,"") -> 0 | DL67: =IF($AF$67<>"",$BV$67/(1 + DiscountRate) ^ $DL$64,"") -> 0 | DM67: =IF($AG$67<>"",$BW$67/(1 + DiscountRate) ^ $DM$64,"") -> 0 | DN67: =IF($AH$67<>"",$BX$67/(1 + DiscountRate) ^ $DN$64,"") -> 0 | DO67: =IF($AI$67<>"",$BY$67/(1 + DiscountRate) ^ $DO$64,"") -> 0 | DP67: =IF($AJ$67<>"",$BZ$67/(1 + DiscountRate) ^ $DP$64,"") -> 0 | DQ67: =IF($AK$67<>"",$CA$67/(1 + DiscountRate) ^ $DQ$64,"") -> 0 | DR67: =IF($AL$67<>"",$CB$67/(1 + DiscountRate) ^ $DR$64,"") -> 0 | DS67: =IF($AM$67<>"",$CC$67/(1 + DiscountRate) ^ $DS$64,"") -> 0 | DT67: =IF($AN$67<>"",$CD$67/(1 + DiscountRate) ^ $DT$64,"") -> 0 | DU67: =IF($AO$67<>"",$CE$67/(1 + DiscountRate) ^ $DU$64,"") -> 0 | DV67: =IF($AP$67<>"",$CF$67/(1 + DiscountRate) ^ $DV$64,"") -> 0 | DW67: =IF($AQ$67<>"",$CG$67/(1 + DiscountRate) ^ $DW$64,"") -> 0 | DX67: =IF($AR$67<>"",$CH$67/(1 + DiscountRate) ^ $DX$64,"") -> 0 | DY67: =IF($AS$67<>"",$CI$67/(1 + DiscountRate) ^ $DY$64,"") -> 0 | DZ67: =IF($AT$67<>"",$CJ$67/(1 + DiscountRate) ^ $DZ$64,"") -> 0 | EA67: =IF($AU$67<>"",$CK$67/(1 + DiscountRate) ^ $EA$64,"") -> 0 | EB67: =IF($AV$67<>"",$CL$67/(1 + DiscountRate) ^ $EB$64,"") -> 0 | EC67: =IF($AW$67<>"",$CM$67/(1 + DiscountRate) ^ $EC$64,"") -> 0 | ED67: =IF($AX$67<>"",$CN$67/(1 + DiscountRate) ^ $ED$64,"") -> 0 | EE67: =IF($AY$67<>"",$CO$67/(1 + DiscountRate) ^ $EE$64,"") -> 0 | EF67: =IF($AZ$67<>"",$CP$67/(1 + DiscountRate) ^ $EF$64,"") -> 0 | EG67: =IF($BA$67<>"",$CQ$67/(1 + DiscountRate) ^ $EG$64,"") -> 0 | EH67: =IF($BB$67<>"",$CR$67/(1 + DiscountRate) ^ $EH$64,"") -> 0 | EI67: =IF($BC$67<>"",$CS$67/(1 + DiscountRate) ^ $EI$64,"") -> 0 | EJ67: =IF($BD$67<>"",$CT$67/(1 + DiscountRate) ^ $EJ$64,"") -> 0
A68: Stormwater Management Pond | B68: Soil Preparation | C68: 5 | D68: sq. yd. | F68: sq. yd. | H68: =IF($A68<>"",IF($B68<>"",ItemQuantity(A68,B68,D68,E68,F68,G68),""),"") -> 0 | I68: =IF($A68<>"",IF($B68<>"",IF($F68<>"",$D68,""),""),"") -> sq. yd. | J68: One Time | K68: 0 | M68: 1 | N68: =IF($A68<>"",IF($B68<>"",SUM(OFFSET($P68,0,AnalysisPeriod*2+4):OFFSET($P68,0,AnalysisPeriod*3+4)),""),"") -> 0 | P68: =IF($D68<>"",QuantityEstimate($J68,$H68,$E68,IF($K68<100,$K68,$K68-ConstYear),$L68,$M68,P$21),"") -> 0 | Q68: =IF($D68<>"",QuantityEstimate($J68,$H68,$E68,IF($K68<100,$K68,$K68-ConstYear),$L68,$M68,Q$21),"") -> 0 | R68: =IF($D68<>"",QuantityEstimate($J68,$H68,$E68,IF($K68<100,$K68,$K68-ConstYear),$L68,$M68,R$21),"") -> 0 | S68: =IF($D68<>"",QuantityEstimate($J68,$H68,$E68,IF($K68<100,$K68,$K68-ConstYear),$L68,$M68,S$21),"") -> 0 | T68: =IF($D68<>"",QuantityEstimate($J68,$H68,$E68,IF($K68<100,$K68,$K68-ConstYear),$L68,$M68,T$21),"") -> 0 | U68: =IF($D68<>"",QuantityEstimate($J68,$H68,$E68,IF($K68<100,$K68,$K68-ConstYear),$L68,$M68,U$21),"") -> 0 | V68: =IF($D68<>"",QuantityEstimate($J68,$H68,$E68,IF($K68<100,$K68,$K68-ConstYear),$L68,$M68,V$21),"") -> 0 | W68: =IF($D68<>"",QuantityEstimate($J68,$H68,$E68,IF($K68<100,$K68,$K68-ConstYear),$L68,$M68,W$21),"") -> 0 | X68: =IF($D68<>"",QuantityEstimate($J68,$H68,$E68,IF($K68<100,$K68,$K68-ConstYear),$L68,$M68,X$21),"") -> 0 | Y68: =IF($D68<>"",QuantityEstimate($J68,$H68,$E68,IF($K68<100,$K68,$K68-ConstYear),$L68,$M68,Y$21),"") -> 0 | Z68: =IF($D68<>"",QuantityEstimate($J68,$H68,$E68,IF($K68<100,$K68,$K68-ConstYear),$L68,$M68,Z$21),"") -> 0 | AA68: =IF($D68<>"",QuantityEstimate($J68,$H68,$E68,IF($K68<100,$K68,$K68-ConstYear),$L68,$M68,AA$21),"") -> 0 | AB68: =IF($D68<>"",QuantityEstimate($J68,$H68,$E68,IF($K68<100,$K68,$K68-ConstYear),$L68,$M68,AB$21),"") -> 0 | AC68: =IF($D68<>"",QuantityEstimate($J68,$H68,$E68,IF($K68<100,$K68,$K68-ConstYear),$L68,$M68,AC$21),"") -> 0 | AD68: =IF($D68<>"",QuantityEstimate($J68,$H68,$E68,IF($K68<100,$K68,$K68-ConstYear),$L68,$M68,AD$21),"") -> 0 | AE68: =IF($D68<>"",QuantityEstimate($J68,$H68,$E68,IF($K68<100,$K68,$K68-ConstYear),$L68,$M68,AE$21),"") -> 0 | AF68: =IF($D68<>"",QuantityEstimate($J68,$H68,$E68,IF($K68<100,$K68,$K68-ConstYear),$L68,$M68,AF$21),"") -> 0 | AG68: =IF($D68<>"",QuantityEstimate($J68,$H68,$E68,IF($K68<100,$K68,$K68-ConstYear),$L68,$M68,AG$21),"") -> 0 | AH68: =IF($D68<>"",QuantityEstimate($J68,$H68,$E68,IF($K68<100,$K68,$K68-ConstYear),$L68,$M68,AH$21),"") -> 0 | AI68: =IF($D68<>"",QuantityEstimate($J68,$H68,$E68,IF($K68<100,$K68,$K68-ConstYear),$L68,$M68,AI$21),"") -> 0 | AJ68: =IF($D68<>"",QuantityEstimate($J68,$H68,$E68,IF($K68<100,$K68,$K68-ConstYear),$L68,$M68,AJ$21),"") -> 0 | AK68: =IF($D68<>"",QuantityEstimate($J68,$H68,$E68,IF($K68<100,$K68,$K68-ConstYear),$L68,$M68,AK$21),"") -> 0 | AL68: =IF($D68<>"",QuantityEstimate($J68,$H68,$E68,IF($K68<100,$K68,$K68-ConstYear),$L68,$M68,AL$21),"") -> 0 | AM68: =IF($D68<>"",QuantityEstimate($J68,$H68,$E68,IF($K68<100,$K68,$K68-ConstYear),$L68,$M68,AM$21),"") -> 0 | AN68: =IF($D68<>"",QuantityEstimate($J68,$H68,$E68,IF($K68<100,$K68,$K68-ConstYear),$L68,$M68,AN$21),"") -> 0 | AO68: =IF($D68<>"",QuantityEstimate($J68,$H68,$E68,IF($K68<100,$K68,$K68-ConstYear),$L68,$M68,AO$21),"") -> 0 | AP68: =IF($D68<>"",QuantityEstimate($J68,$H68,$E68,IF($K68<100,$K68,$K68-ConstYear),$L68,$M68,AP$21),"") -> 0 | AQ68: =IF($D68<>"",QuantityEstimate($J68,$H68,$E68,IF($K68<100,$K68,$K68-ConstYear),$L68,$M68,AQ$21),"") -> 0 | AR68: =IF($D68<>"",QuantityEstimate($J68,$H68,$E68,IF($K68<100,$K68,$K68-ConstYear),$L68,$M68,AR$21),"") -> 0 | AS68: =IF($D68<>"",QuantityEstimate($J68,$H68,$E68,IF($K68<100,$K68,$K68-ConstYear),$L68,$M68,AS$21),"") -> 0 | AT68: =IF($D68<>"",QuantityEstimate($J68,$H68,$E68,IF($K68<100,$K68,$K68-ConstYear),$L68,$M68,AT$21),"") -> 0 | AU68: =IF($D68<>"",QuantityEstimate($J68,$H68,$E68,IF($K68<100,$K68,$K68-ConstYear),$L68,$M68,AU$21),"") -> 0 | AV68: =IF($D68<>"",QuantityEstimate($J68,$H68,$E68,IF($K68<100,$K68,$K68-ConstYear),$L68,$M68,AV$21),"") -> 0 | AW68: =IF($D68<>"",QuantityEstimate($J68,$H68,$E68,IF($K68<100,$K68,$K68-ConstYear),$L68,$M68,AW$21),"") -> 0 | AX68: =IF($D68<>"",QuantityEstimate($J68,$H68,$E68,IF($K68<100,$K68,$K68-ConstYear),$L68,$M68,AX$21),"") -> 0 | AY68: =IF($D68<>"",QuantityEstimate($J68,$H68,$E68,IF($K68<100,$K68,$K68-ConstYear),$L68,$M68,AY$21),"") -> 0 | AZ68: =IF($D68<>"",QuantityEstimate($J68,$H68,$E68,IF($K68<100,$K68,$K68-ConstYear),$L68,$M68,AZ$21),"") -> 0 | BA68: =IF($D68<>"",QuantityEstimate($J68,$H68,$E68,IF($K68<100,$K68,$K68-ConstYear),$L68,$M68,BA$21),"") -> 0 | BB68: =IF($D68<>"",QuantityEstimate($J68,$H68,$E68,IF($K68<100,$K68,$K68-ConstYear),$L68,$M68,BB$21),"") -> 0 | BC68: =IF($D68<>"",QuantityEstimate($J68,$H68,$E68,IF($K68<100,$K68,$K68-ConstYear),$L68,$M68,BC$21),"") -> 0 | BD68: =IF($D68<>"",QuantityEstimate($J68,$H68,$E68,IF($K68<100,$K68,$K68-ConstYear),$L68,$M68,BD$21),"") -> 0 | BF68: =IF($P$68<>"", $C68*$P$68,"") -> 0 | BG68: =IF($Q$68<>"", $C68*$Q$68,"") -> 0 | BH68: =IF($R$68<>"", $C68*$R$68,"") -> 0 | BI68: =IF($S$68<>"", $C68*$S$68,"") -> 0 | BJ68: =IF($T$68<>"", $C68*$T$68,"") -> 0 | BK68: =IF($U$68<>"", $C68*$U$68,"") -> 0 | BL68: =IF($V$68<>"", $C68*$V$68,"") -> 0 | BM68: =IF($W$68<>"", $C68*$W$68,"") -> 0 | BN68: =IF($X$68<>"", $C68*$X$68,"") -> 0 | BO68: =IF($Y$68<>"", $C68*$Y$68,"") -> 0 | BP68: =IF($Z$68<>"", $C68*$Z$68,"") -> 0 | BQ68: =IF($AA$68<>"", $C68*$AA$68,"") -> 0 | BR68: =IF($AB$68<>"", $C68*$AB$68,"") -> 0 | BS68: =IF($AC$68<>"", $C68*$AC$68,"") -> 0 | BT68: =IF($AD$68<>"", $C68*$AD$68,"") -> 0 | BU68: =IF($AE$68<>"", $C68*$AE$68,"") -> 0 | BV68: =IF($AF$68<>"", $C68*$AF$68,"") -> 0 | BW68: =IF($AG$68<>"", $C68*$AG$68,"") -> 0 | BX68: =IF($AH$68<>"", $C68*$AH$68,"") -> 0 | BY68: =IF($AI$68<>"", $C68*$AI$68,"") -> 0 | BZ68: =IF($AJ$68<>"", $C68*$AJ$68,"") -> 0 | CA68: =IF($AK$68<>"", $C68*$AK$68,"") -> 0 | CB68: =IF($AL$68<>"", $C68*$AL$68,"") -> 0 | CC68: =IF($AM$68<>"", $C68*$AM$68,"") -> 0 | CD68: =IF($AN$68<>"", $C68*$AN$68,"") -> 0 | CE68: =IF($AO$68<>"", $C68*$AO$68,"") -> 0 | CF68: =IF($AP$68<>"", $C68*$AP$68,"") -> 0 | CG68: =IF($AQ$68<>"", $C68*$AQ$68,"") -> 0 | CH68: =IF($AR$68<>"", $C68*$AR$68,"") -> 0 | CI68: =IF($AS$68<>"", $C68*$AS$68,"") -> 0 | CJ68: =IF($AT$68<>"", $C68*$AT$68,"") -> 0 | CK68: =IF($AU$68<>"", $C68*$AU$68,"") -> 0 | CL68: =IF($AV$68<>"", $C68*$AV$68,"") -> 0 | CM68: =IF($AW$68<>"", $C68*$AW$68,"") -> 0 | CN68: =IF($AX$68<>"", $C68*$AX$68,"") -> 0 | CO68: =IF($AY$68<>"", $C68*$AY$68,"") -> 0 | CP68: =IF($AZ$68<>"", $C68*$AZ$68,"") -> 0 | CQ68: =IF($BA$68<>"", $C68*$BA$68,"") -> 0 | CR68: =IF($BB$68<>"", $C68*$BB$68,"") -> 0 | CS68: =IF($BC$68<>"", $C68*$BC$68,"") -> 0 | CT68: =IF($BD$68<>"", $C68*$BD$68,"") -> 0 | CV68: =IF($P$68<>"",$BF$68/(1 + DiscountRate) ^ $CV$64,"") -> 0 | CW68: =IF($Q$68<>"",$BG$68/(1 + DiscountRate) ^ $CW$64,"") -> 0 | CX68: =IF($R$68<>"",$BH$68/(1 + DiscountRate) ^ $CX$64,"") -> 0 | CY68: =IF($S$68<>"",$BI$68/(1 + DiscountRate) ^ $CY$64,"") -> 0 | CZ68: =IF($T$68<>"",$BJ$68/(1 + DiscountRate) ^ $CZ$64,"") -> 0 | DA68: =IF($U$68<>"",$BK$68/(1 + DiscountRate) ^ $DA$64,"") -> 0 | DB68: =IF($V$68<>"",$BL$68/(1 + DiscountRate) ^ $DB$64,"") -> 0 | DC68: =IF($W$68<>"",$BM$68/(1 + DiscountRate) ^ $DC$64,"") -> 0 | DD68: =IF($X$68<>"",$BN$68/(1 + DiscountRate) ^ $DD$64,"") -> 0 | DE68: =IF($Y$68<>"",$BO$68/(1 + DiscountRate) ^ $DE$64,"") -> 0 | DF68: =IF($Z$68<>"",$BP$68/(1 + DiscountRate) ^ $DF$64,"") -> 0 | DG68: =IF($AA$68<>"",$BQ$68/(1 + DiscountRate) ^ $DG$64,"") -> 0 | DH68: =IF($AB$68<>"",$BR$68/(1 + DiscountRate) ^ $DH$64,"") -> 0 | DI68: =IF($AC$68<>"",$BS$68/(1 + DiscountRate) ^ $DI$64,"") -> 0 | DJ68: =IF($AD$68<>"",$BT$68/(1 + DiscountRate) ^ $DJ$64,"") -> 0 | DK68: =IF($AE$68<>"",$BU$68/(1 + DiscountRate) ^ $DK$64,"") -> 0 | DL68: =IF($AF$68<>"",$BV$68/(1 + DiscountRate) ^ $DL$64,"") -> 0 | DM68: =IF($AG$68<>"",$BW$68/(1 + DiscountRate) ^ $DM$64,"") -> 0 | DN68: =IF($AH$68<>"",$BX$68/(1 + DiscountRate) ^ $DN$64,"") -> 0 | DO68: =IF($AI$68<>"",$BY$68/(1 + DiscountRate) ^ $DO$64,"") -> 0 | DP68: =IF($AJ$68<>"",$BZ$68/(1 + DiscountRate) ^ $DP$64,"") -> 0 | DQ68: =IF($AK$68<>"",$CA$68/(1 + DiscountRate) ^ $DQ$64,"") -> 0 | DR68: =IF($AL$68<>"",$CB$68/(1 + DiscountRate) ^ $DR$64,"") -> 0 | DS68: =IF($AM$68<>"",$CC$68/(1 + DiscountRate) ^ $DS$64,"") -> 0 | DT68: =IF($AN$68<>"",$CD$68/(1 + DiscountRate) ^ $DT$64,"") -> 0 | DU68: =IF($AO$68<>"",$CE$68/(1 + DiscountRate) ^ $DU$64,"") -> 0 | DV68: =IF($AP$68<>"",$CF$68/(1 + DiscountRate) ^ $DV$64,"") -> 0 | DW68: =IF($AQ$68<>"",$CG$68/(1 + DiscountRate) ^ $DW$64,"") -> 0 | DX68: =IF($AR$68<>"",$CH$68/(1 + DiscountRate) ^ $DX$64,"") -> 0 | DY68: =IF($AS$68<>"",$CI$68/(1 + DiscountRate) ^ $DY$64,"") -> 0 | DZ68: =IF($AT$68<>"",$CJ$68/(1 + DiscountRate) ^ $DZ$64,"") -> 0 | EA68: =IF($AU$68<>"",$CK$68/(1 + DiscountRate) ^ $EA$64,"") -> 0 | EB68: =IF($AV$68<>"",$CL$68/(1 + DiscountRate) ^ $EB$64,"") -> 0 | EC68: =IF($AW$68<>"",$CM$68/(1 + DiscountRate) ^ $EC$64,"") -> 0 | ED68: =IF($AX$68<>"",$CN$68/(1 + DiscountRate) ^ $ED$64,"") -> 0 | EE68: =IF($AY$68<>"",$CO$68/(1 + DiscountRate) ^ $EE$64,"") -> 0 | EF68: =IF($AZ$68<>"",$CP$68/(1 + DiscountRate) ^ $EF$64,"") -> 0 | EG68: =IF($BA$68<>"",$CQ$68/(1 + DiscountRate) ^ $EG$64,"") -> 0 | EH68: =IF($BB$68<>"",$CR$68/(1 + DiscountRate) ^ $EH$64,"") -> 0 | EI68: =IF($BC$68<>"",$CS$68/(1 + DiscountRate) ^ $EI$64,"") -> 0 | EJ68: =IF($BD$68<>"",$CT$68/(1 + DiscountRate) ^ $EJ$64,"") -> 0
A69: Stormwater Management Pond | B69: Inspection | C69: 125 | D69: each | F69: each | H69: =IF($A69<>"",IF($B69<>"",ItemQuantity(A69,B69,D69,E69,F69,G69),""),"") -> 0 | I69: =IF($A69<>"",IF($B69<>"",IF($F69<>"",$D69,""),""),"") -> each | J69: Periodic | K69: 1 | M69: 1 | N69: =IF($A69<>"",IF($B69<>"",SUM(OFFSET($P69,0,AnalysisPeriod*2+4):OFFSET($P69,0,AnalysisPeriod*3+4)),""),"") -> 0 | P69: =IF($D69<>"",QuantityEstimate($J69,$H69,$E69,IF($K69<100,$K69,$K69-ConstYear),$L69,$M69,P$21),"") -> 0 | Q69: =IF($D69<>"",QuantityEstimate($J69,$H69,$E69,IF($K69<100,$K69,$K69-ConstYear),$L69,$M69,Q$21),"") -> 0 | R69: =IF($D69<>"",QuantityEstimate($J69,$H69,$E69,IF($K69<100,$K69,$K69-ConstYear),$L69,$M69,R$21),"") -> 0 | S69: =IF($D69<>"",QuantityEstimate($J69,$H69,$E69,IF($K69<100,$K69,$K69-ConstYear),$L69,$M69,S$21),"") -> 0 | T69: =IF($D69<>"",QuantityEstimate($J69,$H69,$E69,IF($K69<100,$K69,$K69-ConstYear),$L69,$M69,T$21),"") -> 0 | U69: =IF($D69<>"",QuantityEstimate($J69,$H69,$E69,IF($K69<100,$K69,$K69-ConstYear),$L69,$M69,U$21),"") -> 0 | V69: =IF($D69<>"",QuantityEstimate($J69,$H69,$E69,IF($K69<100,$K69,$K69-ConstYear),$L69,$M69,V$21),"") -> 0 | W69: =IF($D69<>"",QuantityEstimate($J69,$H69,$E69,IF($K69<100,$K69,$K69-ConstYear),$L69,$M69,W$21),"") -> 0 | X69: =IF($D69<>"",QuantityEstimate($J69,$H69,$E69,IF($K69<100,$K69,$K69-ConstYear),$L69,$M69,X$21),"") -> 0 | Y69: =IF($D69<>"",QuantityEstimate($J69,$H69,$E69,IF($K69<100,$K69,$K69-ConstYear),$L69,$M69,Y$21),"") -> 0 | Z69: =IF($D69<>"",QuantityEstimate($J69,$H69,$E69,IF($K69<100,$K69,$K69-ConstYear),$L69,$M69,Z$21),"") -> 0 | AA69: =IF($D69<>"",QuantityEstimate($J69,$H69,$E69,IF($K69<100,$K69,$K69-ConstYear),$L69,$M69,AA$21),"") -> 0 | AB69: =IF($D69<>"",QuantityEstimate($J69,$H69,$E69,IF($K69<100,$K69,$K69-ConstYear),$L69,$M69,AB$21),"") -> 0 | AC69: =IF($D69<>"",QuantityEstimate($J69,$H69,$E69,IF($K69<100,$K69,$K69-ConstYear),$L69,$M69,AC$21),"") -> 0 | AD69: =IF($D69<>"",QuantityEstimate($J69,$H69,$E69,IF($K69<100,$K69,$K69-ConstYear),$L69,$M69,AD$21),"") -> 0 | AE69: =IF($D69<>"",QuantityEstimate($J69,$H69,$E69,IF($K69<100,$K69,$K69-ConstYear),$L69,$M69,AE$21),"") -> 0 | AF69: =IF($D69<>"",QuantityEstimate($J69,$H69,$E69,IF($K69<100,$K69,$K69-ConstYear),$L69,$M69,AF$21),"") -> 0 | AG69: =IF($D69<>"",QuantityEstimate($J69,$H69,$E69,IF($K69<100,$K69,$K69-ConstYear),$L69,$M69,AG$21),"") -> 0 | AH69: =IF($D69<>"",QuantityEstimate($J69,$H69,$E69,IF($K69<100,$K69,$K69-ConstYear),$L69,$M69,AH$21),"") -> 0 | AI69: =IF($D69<>"",QuantityEstimate($J69,$H69,$E69,IF($K69<100,$K69,$K69-ConstYear),$L69,$M69,AI$21),"") -> 0 | AJ69: =IF($D69<>"",QuantityEstimate($J69,$H69,$E69,IF($K69<100,$K69,$K69-ConstYear),$L69,$M69,AJ$21),"") -> 0 | AK69: =IF($D69<>"",QuantityEstimate($J69,$H69,$E69,IF($K69<100,$K69,$K69-ConstYear),$L69,$M69,AK$21),"") -> 0 | AL69: =IF($D69<>"",QuantityEstimate($J69,$H69,$E69,IF($K69<100,$K69,$K69-ConstYear),$L69,$M69,AL$21),"") -> 0 | AM69: =IF($D69<>"",QuantityEstimate($J69,$H69,$E69,IF($K69<100,$K69,$K69-ConstYear),$L69,$M69,AM$21),"") -> 0 | AN69: =IF($D69<>"",QuantityEstimate($J69,$H69,$E69,IF($K69<100,$K69,$K69-ConstYear),$L69,$M69,AN$21),"") -> 0 | AO69: =IF($D69<>"",QuantityEstimate($J69,$H69,$E69,IF($K69<100,$K69,$K69-ConstYear),$L69,$M69,AO$21),"") -> 0 | AP69: =IF($D69<>"",QuantityEstimate($J69,$H69,$E69,IF($K69<100,$K69,$K69-ConstYear),$L69,$M69,AP$21),"") -> 0 | AQ69: =IF($D69<>"",QuantityEstimate($J69,$H69,$E69,IF($K69<100,$K69,$K69-ConstYear),$L69,$M69,AQ$21),"") -> 0 | AR69: =IF($D69<>"",QuantityEstimate($J69,$H69,$E69,IF($K69<100,$K69,$K69-ConstYear),$L69,$M69,AR$21),"") -> 0 | AS69: =IF($D69<>"",QuantityEstimate($J69,$H69,$E69,IF($K69<100,$K69,$K69-ConstYear),$L69,$M69,AS$21),"") -> 0 | AT69: =IF($D69<>"",QuantityEstimate($J69,$H69,$E69,IF($K69<100,$K69,$K69-ConstYear),$L69,$M69,AT$21),"") -> 0 | AU69: =IF($D69<>"",QuantityEstimate($J69,$H69,$E69,IF($K69<100,$K69,$K69-ConstYear),$L69,$M69,AU$21),"") -> 0 | AV69: =IF($D69<>"",QuantityEstimate($J69,$H69,$E69,IF($K69<100,$K69,$K69-ConstYear),$L69,$M69,AV$21),"") -> 0 | AW69: =IF($D69<>"",QuantityEstimate($J69,$H69,$E69,IF($K69<100,$K69,$K69-ConstYear),$L69,$M69,AW$21),"") -> 0 | AX69: =IF($D69<>"",QuantityEstimate($J69,$H69,$E69,IF($K69<100,$K69,$K69-ConstYear),$L69,$M69,AX$21),"") -> 0 | AY69: =IF($D69<>"",QuantityEstimate($J69,$H69,$E69,IF($K69<100,$K69,$K69-ConstYear),$L69,$M69,AY$21),"") -> 0 | AZ69: =IF($D69<>"",QuantityEstimate($J69,$H69,$E69,IF($K69<100,$K69,$K69-ConstYear),$L69,$M69,AZ$21),"") -> 0 | BA69: =IF($D69<>"",QuantityEstimate($J69,$H69,$E69,IF($K69<100,$K69,$K69-ConstYear),$L69,$M69,BA$21),"") -> 0 | BB69: =IF($D69<>"",QuantityEstimate($J69,$H69,$E69,IF($K69<100,$K69,$K69-ConstYear),$L69,$M69,BB$21),"") -> 0 | BC69: =IF($D69<>"",QuantityEstimate($J69,$H69,$E69,IF($K69<100,$K69,$K69-ConstYear),$L69,$M69,BC$21),"") -> 0 | BD69: =IF($D69<>"",QuantityEstimate($J69,$H69,$E69,IF($K69<100,$K69,$K69-ConstYear),$L69,$M69,BD$21),"") -> 0 | BF69: =IF($P$69<>"", $C69*$P$69,"") -> 0 | BG69: =IF($Q$69<>"", $C69*$Q$69,"") -> 0 | BH69: =IF($R$69<>"", $C69*$R$69,"") -> 0 | BI69: =IF($S$69<>"", $C69*$S$69,"") -> 0 | BJ69: =IF($T$69<>"", $C69*$T$69,"") -> 0 | BK69: =IF($U$69<>"", $C69*$U$69,"") -> 0 | BL69: =IF($V$69<>"", $C69*$V$69,"") -> 0 | BM69: =IF($W$69<>"", $C69*$W$69,"") -> 0 | BN69: =IF($X$69<>"", $C69*$X$69,"") -> 0 | BO69: =IF($Y$69<>"", $C69*$Y$69,"") -> 0 | BP69: =IF($Z$69<>"", $C69*$Z$69,"") -> 0 | BQ69: =IF($AA$69<>"", $C69*$AA$69,"") -> 0 | BR69: =IF($AB$69<>"", $C69*$AB$69,"") -> 0 | BS69: =IF($AC$69<>"", $C69*$AC$69,"") -> 0 | BT69: =IF($AD$69<>"", $C69*$AD$69,"") -> 0 | BU69: =IF($AE$69<>"", $C69*$AE$69,"") -> 0 | BV69: =IF($AF$69<>"", $C69*$AF$69,"") -> 0 | BW69: =IF($AG$69<>"", $C69*$AG$69,"") -> 0 | BX69: =IF($AH$69<>"", $C69*$AH$69,"") -> 0 | BY69: =IF($AI$69<>"", $C69*$AI$69,"") -> 0 | BZ69: =IF($AJ$69<>"", $C69*$AJ$69,"") -> 0 | CA69: =IF($AK$69<>"", $C69*$AK$69,"") -> 0 | CB69: =IF($AL$69<>"", $C69*$AL$69,"") -> 0 | CC69: =IF($AM$69<>"", $C69*$AM$69,"") -> 0 | CD69: =IF($AN$69<>"", $C69*$AN$69,"") -> 0 | CE69: =IF($AO$69<>"", $C69*$AO$69,"") -> 0 | CF69: =IF($AP$69<>"", $C69*$AP$69,"") -> 0 | CG69: =IF($AQ$69<>"", $C69*$AQ$69,"") -> 0 | CH69: =IF($AR$69<>"", $C69*$AR$69,"") -> 0 | CI69: =IF($AS$69<>"", $C69*$AS$69,"") -> 0 | CJ69: =IF($AT$69<>"", $C69*$AT$69,"") -> 0 | CK69: =IF($AU$69<>"", $C69*$AU$69,"") -> 0 | CL69: =IF($AV$69<>"", $C69*$AV$69,"") -> 0 | CM69: =IF($AW$69<>"", $C69*$AW$69,"") -> 0 | CN69: =IF($AX$69<>"", $C69*$AX$69,"") -> 0 | CO69: =IF($AY$69<>"", $C69*$AY$69,"") -> 0 | CP69: =IF($AZ$69<>"", $C69*$AZ$69,"") -> 0 | CQ69: =IF($BA$69<>"", $C69*$BA$69,"") -> 0 | CR69: =IF($BB$69<>"", $C69*$BB$69,"") -> 0 | CS69: =IF($BC$69<>"", $C69*$BC$69,"") -> 0 | CT69: =IF($BD$69<>"", $C69*$BD$69,"") -> 0 | CV69: =IF($P$69<>"",$BF$69/(1 + DiscountRate) ^ $CV$64,"") -> 0 | CW69: =IF($Q$69<>"",$BG$69/(1 + DiscountRate) ^ $CW$64,"") -> 0 | CX69: =IF($R$69<>"",$BH$69/(1 + DiscountRate) ^ $CX$64,"") -> 0 | CY69: =IF($S$69<>"",$BI$69/(1 + DiscountRate) ^ $CY$64,"") -> 0 | CZ69: =IF($T$69<>"",$BJ$69/(1 + DiscountRate) ^ $CZ$64,"") -> 0 | DA69: =IF($U$69<>"",$BK$69/(1 + DiscountRate) ^ $DA$64,"") -> 0 | DB69: =IF($V$69<>"",$BL$69/(1 + DiscountRate) ^ $DB$64,"") -> 0 | DC69: =IF($W$69<>"",$BM$69/(1 + DiscountRate) ^ $DC$64,"") -> 0 | DD69: =IF($X$69<>"",$BN$69/(1 + DiscountRate) ^ $DD$64,"") -> 0 | DE69: =IF($Y$69<>"",$BO$69/(1 + DiscountRate) ^ $DE$64,"") -> 0 | DF69: =IF($Z$69<>"",$BP$69/(1 + DiscountRate) ^ $DF$64,"") -> 0 | DG69: =IF($AA$69<>"",$BQ$69/(1 + DiscountRate) ^ $DG$64,"") -> 0 | DH69: =IF($AB$69<>"",$BR$69/(1 + DiscountRate) ^ $DH$64,"") -> 0 | DI69: =IF($AC$69<>"",$BS$69/(1 + DiscountRate) ^ $DI$64,"") -> 0 | DJ69: =IF($AD$69<>"",$BT$69/(1 + DiscountRate) ^ $DJ$64,"") -> 0 | DK69: =IF($AE$69<>"",$BU$69/(1 + DiscountRate) ^ $DK$64,"") -> 0 | DL69: =IF($AF$69<>"",$BV$69/(1 + DiscountRate) ^ $DL$64,"") -> 0 | DM69: =IF($AG$69<>"",$BW$69/(1 + DiscountRate) ^ $DM$64,"") -> 0 | DN69: =IF($AH$69<>"",$BX$69/(1 + DiscountRate) ^ $DN$64,"") -> 0 | DO69: =IF($AI$69<>"",$BY$69/(1 + DiscountRate) ^ $DO$64,"") -> 0 | DP69: =IF($AJ$69<>"",$BZ$69/(1 + DiscountRate) ^ $DP$64,"") -> 0 | DQ69: =IF($AK$69<>"",$CA$69/(1 + DiscountRate) ^ $DQ$64,"") -> 0 | DR69: =IF($AL$69<>"",$CB$69/(1 + DiscountRate) ^ $DR$64,"") -> 0 | DS69: =IF($AM$69<>"",$CC$69/(1 + DiscountRate) ^ $DS$64,"") -> 0 | DT69: =IF($AN$69<>"",$CD$69/(1 + DiscountRate) ^ $DT$64,"") -> 0 | DU69: =IF($AO$69<>"",$CE$69/(1 + DiscountRate) ^ $DU$64,"") -> 0 | DV69: =IF($AP$69<>"",$CF$69/(1 + DiscountRate) ^ $DV$64,"") -> 0 | DW69: =IF($AQ$69<>"",$CG$69/(1 + DiscountRate) ^ $DW$64,"") -> 0 | DX69: =IF($AR$69<>"",$CH$69/(1 + DiscountRate) ^ $DX$64,"") -> 0 | DY69: =IF($AS$69<>"",$CI$69/(1 + DiscountRate) ^ $DY$64,"") -> 0 | DZ69: =IF($AT$69<>"",$CJ$69/(1 + DiscountRate) ^ $DZ$64,"") -> 0 | EA69: =IF($AU$69<>"",$CK$69/(1 + DiscountRate) ^ $EA$64,"") -> 0 | EB69: =IF($AV$69<>"",$CL$69/(1 + DiscountRate) ^ $EB$64,"") -> 0 | EC69: =IF($AW$69<>"",$CM$69/(1 + DiscountRate) ^ $EC$64,"") -> 0 | ED69: =IF($AX$69<>"",$CN$69/(1 + DiscountRate) ^ $ED$64,"") -> 0 | EE69: =IF($AY$69<>"",$CO$69/(1 + DiscountRate) ^ $EE$64,"") -> 0 | EF69: =IF($AZ$69<>"",$CP$69/(1 + DiscountRate) ^ $EF$64,"") -> 0 | EG69: =IF($BA$69<>"",$CQ$69/(1 + DiscountRate) ^ $EG$64,"") -> 0 | EH69: =IF($BB$69<>"",$CR$69/(1 + DiscountRate) ^ $EH$64,"") -> 0 | EI69: =IF($BC$69<>"",$CS$69/(1 + DiscountRate) ^ $EI$64,"") -> 0 | EJ69: =IF($BD$69<>"",$CT$69/(1 + DiscountRate) ^ $EJ$64,"") -> 0
